Workbook

Sheet HOME
A2: The Department of Statistics (STAT)
A4: CPI and Inflation
A5: The Consumer Price Index (CPI) is an index of the variation in prices paid by consumers for retail goods and services, while the inflation rate is the year on year percentage change of the CPI. The sheets in this workbook contains the CPI figures and inflation rates for the 12 expenditure categories and subcategories from the base year 2018 to the current period. To navigate the sheets, click on the cell which represents the sheet that you would like to view. To return to the home page, click on the home button on the top left hand corner of the sheet.
A10: Description
A11: Overview | B11: The overview of the Consumer Price Index figures, quarterly percentage change and inflation rates for the current period.
A12: Total CPI | B12: Total Consumer Price Index figures by quarter and year
A13: CPI Qrtrly Comparison | B13: Quarterly percentage change for the 12 major expenditure categories and sub categories
A14: CPI Sub-Categories | B14: CPI for the 12 major expenditure categories and sub categories
A15: CPI Charts | B15: Quarterly Index comparison between Total CPI and the four expenditure categories with the highest weight
A16: Inflation | B16: Inflation rate by Quarter
A17: Inflation Sub-Categories | B17: Quarterly Inflation rates for the 12 major expenditure categories and sub categories.
A18: Inflation Charts | B18: Quarterly comparison between Total Inflation and the four expenditure categories with the highest weight
A19: Information Key
A20: Not available | B20: At this point in time, we are not able to monitor the prices necessary to calculate an index for these items.
A21: Not yet available | B21: The prices were collected in a later quarter, and as such an index is not yet availble, but will be in a later quarter.
A22: Not relevant | B22: There is either no local supplier, or the item/service is not relevant to the local market.

Sheet 2025Q3 Overview
A2: Table 1. | B2: Overview of the Consumer Price Index figures, quarterly percentage change and inflation rates for 2025 Quarter 3.
A5: Level | B5: Code | C5: Expenditure category | D5: 2018 WEIGHTS | E5: INDEX | F5: INDEX | G5: INDEX | H5: Quarter-to-Quarter | I5: Year-on-Year
E6: 2024 | F6: 2025 | G6: 2025 | H6: % Change | I6: % Change
E7: Quarter 3 | F7: Quarter 2 | G7: Quarter 3 | H7: Q2 2025 to Q3 2025 | I7: Q3 2024 to Q3 2025 | L7: All items | M7: =G6&" "&" "&G7 -> 2025 Quarter 3 | N7: =F6&" "&" "&F7 -> 2025 Quarter 2 | O7: =E6&" "&" "&E7 -> 2024 Quarter 3
L8: Miscellaneous goods and services | M8: =G164 -> 108.220556 | N8: =F164 -> 105.1617703 | O8: =E164 -> 103.6074629
C9: All items | D9: 1 | E9: ='CPI Sub-Categories'!AK8 -> 113.8220414 | F9: ='CPI Sub-Categories'!AN8 -> 114.2282959 | G9: ='CPI Sub-Categories'!AO8 -> 115.0919259 | H9: =(G9-F9)/F9 -> 0.00756056167 | I9: =(G9-E9)/E9 -> 0.0111567545 | L9: Restaurants and hotels | M9: =G158 -> 126.3512992 | N9: =F158 -> 127.9753645 | O9: =E158 -> 121.9748555
L10: Education | M10: =G147 -> 108.96039 | N10: =F147 -> 107.5639915 | O10: =E147 -> 107.5639915
A11: 1 | B11: 010000 | C11: Food and non-alcoholic beverages | D11: 0.07157520177 | E11: ='CPI Sub-Categories'!AK10 -> 120.7219583 | F11: ='CPI Sub-Categories'!AN10 -> 123.3800298 | G11: ='CPI Sub-Categories'!AL10 -> 121.7623874 | H11: =(G11-F11)/F11 -> -0.01311105488 | I11: =(G11-E11)/E11 -> 0.00861839178 | L11: Recreation and culture | M11: =G119 -> 111.5615462 | N11: =F119 -> 107.3789898 | O11: =E119 -> 108.4744138
A12: 2 | B12: 011000 | C12: Food | D12: 0.06113303294 | E12: ='CPI Sub-Categories'!AK11 -> 120.3463768 | F12: ='CPI Sub-Categories'!AN11 -> 123.0582511 | G12: ='CPI Sub-Categories'!AL11 -> 121.1223083 | H12: =(G12-F12)/F12 -> -0.01573192168 | I12: =(G12-E12)/E12 -> 0.006447485385 | L12: Communication | M12: =G112 -> 116.6788861 | N12: =F112 -> 115.7952609 | O12: =E112 -> 115.8060629
A13: 3 | B13: 011100 | C13: Bread and cereals | D13: 0.01307033898 | E13: ='CPI Sub-Categories'!AK12 -> 119.4617831 | F13: ='CPI Sub-Categories'!AN12 -> 118.0537617 | G13: ='CPI Sub-Categories'!AL12 -> 119.8432005 | H13: 0.0151578299 | I13: 0.003192798797 | L13: Transport | M13: =G94 -> 123.2383397 | N13: =F94 -> 116.333073 | O13: =E94 -> 114.7215672
A14: 3 | B14: 011200 | C14: Meat | D14: 0.01130202975 | E14: ='CPI Sub-Categories'!AK13 -> 114.3398951 | F14: ='CPI Sub-Categories'!AN13 -> 117.7292594 | G14: ='CPI Sub-Categories'!AL13 -> 113.5083709 | H14: -0.03585250176 | I14: -0.007272388665 | L14: Health | M14: =G83 -> 111.275481 | N14: =F83 -> 109.2257098 | O14: =E83 -> 109.1608483
A15: 3 | B15: 011300 | C15: Fish and seafood | D15: 0.003859464587 | E15: ='CPI Sub-Categories'!AK14 -> 117.1954638 | F15: ='CPI Sub-Categories'!AN14 -> 121.2539229 | G15: ='CPI Sub-Categories'!AL14 -> 112.4638801 | H15: -0.07249285333 | I15: -0.04037343722 | L15: Furnishings, household equipment and routine household maintenance | M15: =G64 -> 114.7535113 | N15: =F64 -> 117.3448502 | O15: =E64 -> 116.6014927
A16: 3 | B16: 011400 | C16: Milk, cheese and eggs | D16: 0.008316532751 | E16: ='CPI Sub-Categories'!AK15 -> 127.9671227 | F16: ='CPI Sub-Categories'!AN15 -> 140.0421524 | G16: ='CPI Sub-Categories'!AL15 -> 134.1877756 | H16: -0.04180439 | I16: 0.04861133692 | L16: Housing, water, electricity, gas and other fuels | M16: =G43 -> 111.5765639 | N16: =F43 -> 112.4585461 | O16: =E43 -> 112.1834026
A17: 3 | B17: 011500 | C17: Oils and fats | D17: 0.002433902005 | E17: ='CPI Sub-Categories'!AK16 -> 130.2917485 | F17: ='CPI Sub-Categories'!AN16 -> 134.0624311 | G17: ='CPI Sub-Categories'!AL16 -> 134.2747033 | H17: 0.001583383221 | I17: 0.03056950926 | L17: Clothing and footwear | M17: =G34 -> 122.3463586 | N17: =F34 -> 123.3902078 | O17: =E34 -> 121.1210535
A18: 3 | B18: 011600 | C18: Fruit | D18: 0.006377325482 | E18: ='CPI Sub-Categories'!AK17 -> 115.1556805 | F18: ='CPI Sub-Categories'!AN17 -> 117.7049733 | G18: ='CPI Sub-Categories'!AL17 -> 118.2109289 | H18: 0.004298506236 | I18: 0.02653146005 | L18: Alcoholic beverages, tobacco and narcotics | M18: =G25 -> 110.8851905 | N18: =F25 -> 112.3270251 | O18: =E25 -> 112.4423045
A19: 3 | B19: 011700 | C19: Vegetables | D19: 0.008369551942 | E19: ='CPI Sub-Categories'!AK18 -> 121.5530003 | F19: ='CPI Sub-Categories'!AN18 -> 119.496297 | G19: ='CPI Sub-Categories'!AL18 -> 120.0447711 | H19: 0.004589883445 | I19: -0.01240799622 | L19: Food and non-alcoholic beverages | M19: =G11 -> 121.7623874 | N19: =F11 -> 123.3800298 | O19: =E11 -> 120.7219583
A20: 3 | B20: 011800 | C20: Sugar, jam, honey, chocolate and confectionery | D20: 0.002725465895 | E20: ='CPI Sub-Categories'!AK19 -> 121.2257512 | F20: ='CPI Sub-Categories'!AN19 -> 124.2713594 | G20: ='CPI Sub-Categories'!AL19 -> 121.2491506 | H20: -0.02431943163 | I20: 0.0001930237966 | L20: TOTAL CPI | M20: =G9 -> 115.0919259 | N20: =F9 -> 114.2282959 | O20: =E9 -> 113.8220414
A21: 3 | B21: 011900 | C21: Food products n.e.c. | D21: 0.004678421541 | E21: ='CPI Sub-Categories'!AK20 -> 125.6112169 | F21: ='CPI Sub-Categories'!AN20 -> 128.4484355 | G21: ='CPI Sub-Categories'!AL20 -> 125.9865179 | H21: -0.01916658348 | I21: 0.002987798384
A22: 2 | B22: 012000 | C22: Non-alcoholic beverages | D22: 0.01044216883 | E22: ='CPI Sub-Categories'!AK21 -> 122.9207769 | F22: ='CPI Sub-Categories'!AN21 -> 125.2638632 | G22: ='CPI Sub-Categories'!AL21 -> 125.5096911 | H22: 0.001962481297 | I22: =(G22-E22)/E22 -> 0.02106164908
A23: 3 | B23: 012100 | C23: Coffee, tea and cocoa | D23: 0.001439457169 | E23: ='CPI Sub-Categories'!AK22 -> 115.5164738 | F23: ='CPI Sub-Categories'!AN22 -> 117.7903067 | G23: ='CPI Sub-Categories'!AL22 -> 116.548273 | H23: -0.01054444689 | I23: 0.008932052273
A24: 3 | B24: 012200 | C24: Mineral waters, soft drinks, fruit and vegetable juices | D24: 0.009002711664 | E24: ='CPI Sub-Categories'!AK23 -> 124.104662 | F24: ='CPI Sub-Categories'!AN23 -> 126.4588213 | G24: ='CPI Sub-Categories'!AL23 -> 126.9425458 | H24: 0.003825153641 | I24: 0.02286685845
A25: 1 | B25: 020000 | C25: Alcoholic beverages, tobacco and narcotics | D25: 0.003902687564 | E25: ='CPI Sub-Categories'!AK24 -> 112.4423045 | F25: ='CPI Sub-Categories'!AN24 -> 112.3270251 | G25: ='CPI Sub-Categories'!AL24 -> 110.8851905 | H25: -0.01283604426 | I25: =(G25-E25)/E25 -> -0.01384811593
A26: 2 | B26: 021000 | C26: Alcoholic beverages | D26: 0.003467220515 | E26: ='CPI Sub-Categories'!AK25 -> 111.3467445 | F26: ='CPI Sub-Categories'!AN25 -> 108.2169305 | G26: ='CPI Sub-Categories'!AL25 -> 110.1288547 | H26: 0.01766751409 | I26: -0.01093781222
A27: 3 | B27: 021100 | C27: Spirits | D27: 0.001409952496 | E27: ='CPI Sub-Categories'!AK26 -> 108.189363 | F27: ='CPI Sub-Categories'!AN26 -> 104.749681 | G27: ='CPI Sub-Categories'!AL26 -> 107.6941052 | H27: 0.02810914772 | I27: -0.004577693402
A28: 3 | B28: 021200 | C28: Wine | D28: 0.0007644271508 | E28: ='CPI Sub-Categories'!AK27 -> 121.8597946 | F28: ='CPI Sub-Categories'!AN27 -> 112.9001037 | G28: ='CPI Sub-Categories'!AL27 -> 117.346151 | H28: 0.03938036491 | I28: -0.0370396456
A29: 3 | B29: 021300 | C29: Beer | D29: 0.001292840869 | E29: ='CPI Sub-Categories'!AK28 -> 108.5740114 | F29: ='CPI Sub-Categories'!AN28 -> 109.2292062 | G29: ='CPI Sub-Categories'!AL28 -> 108.5167335 | H29: -0.006522730039 | I29: -0.0005275464998
A30: 2 | B30: 022000 | C30: Tobacco | D30: 0.0004354670492 | E30: ='CPI Sub-Categories'!AK29 -> 115.8589821 | F30: ='CPI Sub-Categories'!AN29 -> 116.9071913 | G30: ='CPI Sub-Categories'!AL29 -> 116.9071913 | H30: 0 | I30: 0.009047284238
A31: 3 | B31: 022100 | C31: Tobacco | D31: 0.0004354670492 | E31: ='CPI Sub-Categories'!AK30 -> 115.8589821 | F31: ='CPI Sub-Categories'!AN30 -> 116.9071913 | G31: ='CPI Sub-Categories'!AL30 -> 116.9071913 | H31: 0 | I31: 0.009047284238
A32: 2 | B32: 023000 | C32: Narcotics | D32: N/A | E32: ='CPI Sub-Categories'!AK31 -> Not available | F32: ='CPI Sub-Categories'!AN31 ->  | G32: ='CPI Sub-Categories'!AL31 -> Not available | H32: Not available | I32: Not available
A33: 3 | B33: 023000 | C33: Narcotics | D33: N/A | E33: ='CPI Sub-Categories'!AK32 -> Not available | F33: ='CPI Sub-Categories'!AN32 -> Not available | G33: ='CPI Sub-Categories'!AL32 -> Not available | H33: Not available | I33: Not available
A34: 1 | B34: 030000 | C34: Clothing and footwear | D34: 0.04759200268 | E34: ='CPI Sub-Categories'!AK33 -> 121.1210535 | F34: ='CPI Sub-Categories'!AN33 -> 123.3902078 | G34: ='CPI Sub-Categories'!AL33 -> 122.3463586 | H34: -0.008459741027 | I34: =(G34-E34)/E34 -> 0.01011636765
A35: 2 | B35: 031000 | C35: Clothing | D35: 0.03911025299 | E35: ='CPI Sub-Categories'!AK34 -> 118.5479987 | F35: ='CPI Sub-Categories'!AN34 -> 120.6326719 | G35: ='CPI Sub-Categories'!AL34 -> 117.8031601 | H35: -0.0234556009 | I35: -0.006283012325
A36: 3 | B36: 031100 | C36: Clothing materials | D36: 0.0002087855516 | E36: ='CPI Sub-Categories'!AK35 -> 62.5 | F36: ='CPI Sub-Categories'!AN35 -> 62.5 | G36: ='CPI Sub-Categories'!AL35 -> 62.5 | H36: 0 | I36: 0
A37: 3 | B37: 031200 | C37: Garments | D37: 0.03595385764 | E37: ='CPI Sub-Categories'!AK36 -> 118.7078605 | F37: ='CPI Sub-Categories'!AN36 -> 120.6864524 | G37: ='CPI Sub-Categories'!AL36 -> 118.0297426 | H37: -0.02201332225 | I37: -0.005712494018
A38: 3 | B38: 031300 | C38: Other articles of clothing and clothing accessories | D38: 0.001078520562 | E38: ='CPI Sub-Categories'!AK37 -> 126.0681172 | F38: ='CPI Sub-Categories'!AN37 -> 135.705474 | G38: ='CPI Sub-Categories'!AL37 -> 121.6640601 | H38: -0.1034697682 | I38: -0.03493394879
A39: 3 | B39: 031400 | C39: Cleaning, repair and hire of clothing | D39: 0.001869089237 | E39: ='CPI Sub-Categories'!AK38 -> 117.3943781 | F39: ='CPI Sub-Categories'!AN38 -> 117.3943781 | G39: ='CPI Sub-Categories'!AL38 -> 117.3943781 | H39: 0 | I39: 0
A40: 2 | B40: 032000 | C40: Footwear | D40: 0.008481749689 | E40: ='CPI Sub-Categories'!AK39 -> 139.8805498 | F40: ='CPI Sub-Categories'!AN39 -> 138.8640013 | G40: ='CPI Sub-Categories'!AL39 -> 143.2955264 | H40: 0.03191269926 | I40: 0.02441351952
A41: 3 | B41: 032100 | C41: Shoes and other footwear | D41: 0.00841615113 | E41: ='CPI Sub-Categories'!AK40 -> 140.4141013 | F41: ='CPI Sub-Categories'!AN40 -> 139.3896292 | G41: ='CPI Sub-Categories'!AL40 -> 143.8556959 | H41: 0.03204016554 | I41: 0.02451032098
A42: 3 | B42: 032200 | C42: Repair and hire of footwear | D42: 6.559855861e-05 | E42: ='CPI Sub-Categories'!AK41 -> 71.42857143 | F42: ='CPI Sub-Categories'!AN41 -> 71.42857143 | G42: ='CPI Sub-Categories'!AL41 -> 71.42857143 | H42: 0 | I42: -1.392663762e-15 | L42: All items | M42: =H7 -> Q2 2025 to Q3 2025 | N42: =I7 -> Q3 2024 to Q3 2025
A43: 1 | B43: 040000 | C43: Housing, water, electricity, gas and other fuels | D43: 0.3612690634 | E43: ='CPI Sub-Categories'!AK42 -> 112.1834026 | F43: ='CPI Sub-Categories'!AN42 -> 112.4585461 | G43: ='CPI Sub-Categories'!AL42 -> 111.5765639 | H43: -0.007842731359 | I43: -0.005409344434 | L43: Miscellaneous goods and services | M43: =H164 -> 0.0290864802 | N43: =I164 -> 0.04452471868
A44: 2 | B44: 041000 | C44: Actual rentals for housing | D44: 0.1275271524 | E44: ='CPI Sub-Categories'!AK43 -> 113.4672654 | F44: ='CPI Sub-Categories'!AN43 -> 113.4672654 | G44: ='CPI Sub-Categories'!AL43 -> 113.4672654 | H44: 0 | I44: 0 | L44: Restaurants and hotels | M44: =H158 -> -0.01269045245 | N44: =I158 -> 0.03587988466
A45: 3 | B45: 041100 | C45: Actual rentals paid by tenants | D45: 0.1275271524 | E45: ='CPI Sub-Categories'!AK44 -> 113.4672654 | F45: ='CPI Sub-Categories'!AN44 -> 113.4672654 | G45: ='CPI Sub-Categories'!AL44 -> 113.4672654 | H45: 0 | I45: 0 | L45: Education | M45: =H147 -> 0.01298202548 | N45: =I147 -> 0.01298202548
A46: 3 | B46: 041200 | C46: Other actual rentals | D46: N/A | E46: ='CPI Sub-Categories'!AK45 -> Not available | F46: ='CPI Sub-Categories'!AN45 -> Not available | G46: ='CPI Sub-Categories'!AL45 -> Not available | H46: Not available | I46: Not available | L46: Recreation and culture | M46: =H119 -> 0.03895134799 | N46: =I119 -> 0.02845954423
A47: 2 | B47: 042000 | C47: Imputed rentals for housing | D47: 0.1512878725 | E47: ='CPI Sub-Categories'!AK46 -> 99.99999997 | F47: ='CPI Sub-Categories'!AN46 -> 99.99999997 | G47: ='CPI Sub-Categories'!AL46 -> 99.99999997 | H47: 0 | I47: =(G47-E47)/E47 -> 0 | L47: Communication | M47: =H112 -> 0.007630927131 | N47: =I112 -> 0.007536938851
A48: 3 | B48: 042100 | C48: Imputed rentals of owner-occupiers | D48: 0.1512878725 | E48: ='CPI Sub-Categories'!AK47 -> 99.99999997 | F48: ='CPI Sub-Categories'!AN47 -> 99.99999997 | G48: ='CPI Sub-Categories'!AL47 -> 99.99999997 | H48: 0 | I48: =(G48-E48)/E48 -> 0 | L48: Transport | M48: =H94 -> 0.05935772622 | N48: =I94 -> 0.07423863447
A49: 3 | B49: 042200 | C49: Other imputed rentals | D49: N/A | E49: ='CPI Sub-Categories'!AK48 -> Not available | F49: ='CPI Sub-Categories'!AN48 -> Not available | G49: ='CPI Sub-Categories'!AL48 -> Not available | H49: Not available | I49: Not available | L49: Health | M49: =H83 -> 0.01876638012 | N49: =I83 -> 0.01937171335
A50: 2 | B50: 043000 | C50: Maintenance and repair of the dwelling | D50: 0.01847686536 | E50: ='CPI Sub-Categories'!AK49 -> 126.3622677 | F50: ='CPI Sub-Categories'!AN49 -> 121.3082239 | G50: ='CPI Sub-Categories'!AL49 -> 123.2864991 | H50: 0.01630784105 | I50: =(G50-E50)/E50 -> -0.02434087811 | L50: Furnishings, household equipment and routine household maintenance | M50: =H64 -> -0.02208310737 | N50: =I64 -> -0.01584869403
A51: 3 | B51: 043100 | C51: Materials for the maintenance and repair of the dwelling | D51: 0.01332018124 | E51: ='CPI Sub-Categories'!AK50 -> 128.8253126 | F51: ='CPI Sub-Categories'!AN50 -> 124.2597324 | G51: ='CPI Sub-Categories'!AL50 -> 124.558812 | H51: 0.002406890434 | I51: =(G51-E51)/E51 -> -0.03311849608 | L51: Housing, water, electricity, gas and other fuels | M51: =H43 -> -0.007842731359 | N51: =I43 -> -0.005409344434
A52: 3 | B52: 043200 | C52: Services for the maintenance and repair of the dwelling | D52: 0.005156684114 | E52: ='CPI Sub-Categories'!AK51 -> 120 | F52: ='CPI Sub-Categories'!AN51 -> 113.6842105 | G52: ='CPI Sub-Categories'!AL51 -> 120 | H52: 0.05555555556 | I52: =(G52-E52)/E52 -> 0 | L52: Clothing and footwear | M52: =H34 -> -0.008459741027 | N52: =I34 -> 0.01011636765
A53: 2 | B53: 044000 | C53: Water supply and miscellaneous services relating to the dwelling | D53: 0.0170067633 | E53: ='CPI Sub-Categories'!AK52 -> 102.2822099 | F53: ='CPI Sub-Categories'!AN52 -> 99.81124825 | G53: ='CPI Sub-Categories'!AL52 -> 102.2822099 | H53: =(G53-F53)/F53 -> 0.02475634503 | I53: =(G53-E53)/E53 -> 0 | L53: Alcoholic beverages, tobacco and narcotics | M53: =H25 -> -0.01283604426 | N53: =I25 -> -0.01384811593
A54: 3 | B54: 044100 | C54: Water supply | D54: 0.0143051788 | E54: ='CPI Sub-Categories'!AK53 -> 100.042775 | F54: ='CPI Sub-Categories'!AN53 -> 100.042775 | G54: ='CPI Sub-Categories'!AL53 -> 100.042775 | H54: 0 | I54: =(G54-E54)/E54 -> 0 | L54: Food and non-alcoholic beverages | M54: =H11 -> -0.01311105488 | N54: =I11 -> 0.00861839178
A55: 3 | B55: 044200 | C55: Refuse collection | D55: N/A | E55: ='CPI Sub-Categories'!AK54 -> Not available | F55: ='CPI Sub-Categories'!AN54 -> Not available | G55: ='CPI Sub-Categories'!AL54 -> Not available | H55: Not available | I55: Not available | L55: TOTAL CPI | M55: =H9 -> 0.00756056167 | N55: =I9 -> 0.0111567545
A56: 3 | B56: 044300 | C56: Sewage collection | D56: 0.000600431144 | E56: ='CPI Sub-Categories'!AK55 -> 93.63463875 | F56: ='CPI Sub-Categories'!AN55 -> 93.63463875 | G56: ='CPI Sub-Categories'!AL55 -> 93.63463875 | H56: 1.062384437e-15 | I56: =(G56-E56)/E56 -> 1.062384437e-15
A57: 3 | B57: 044400 | C57: Other services relating to the dwelling n.e.c. | D57: 0.002101153359 | E57: ='CPI Sub-Categories'!AK56 -> 120 | F57: ='CPI Sub-Categories'!AN56 -> 100 | G57: ='CPI Sub-Categories'!AL56 -> 120 | H57: 0.2 | I57: =(G57-E57)/E57 -> 0
A58: 2 | B58: 045000 | C58: Electricity, gas and other fuels | D58: 0.04697040981 | E58: ='CPI Sub-Categories'!AK57 -> 145.9467885 | F58: ='CPI Sub-Categories'!AN57 -> 134.6069269 | G58: ='CPI Sub-Categories'!AL57 -> 142.489261 | H58: =(G58-F58)/F58 -> 0.05855816063 | I58: =(G58-E58)/E58 -> -0.02369032978 | L58: All items | M58: quartely | N58: annually
A59: 3 | B59: 045100 | C59: Electricity | D59: 0.04115264977 | E59: ='CPI Sub-Categories'!AK58 -> 147.4532329 | F59: ='CPI Sub-Categories'!AN58 -> 132.9050847 | G59: ='CPI Sub-Categories'!AL58 -> 143.5071257 | H59: 0.07977152335 | I59: =(G59-E59)/E59 -> -0.02676175419 | L59: Clothing and footwear | M59: =H34 -> -0.008459741027 | N59: =I34 -> 0.01011636765
A60: 3 | B60: 045200 | C60: Cooking gas | D60: 0.005771555662 | E60: ='CPI Sub-Categories'!AK59 -> 135.2801539 | F60: ='CPI Sub-Categories'!AN59 -> 146.7329799 | G60: ='CPI Sub-Categories'!AL59 -> 135.2801539 | H60: -0.0780521595 | I60: =(G60-E60)/E60 -> 0 | L60: Transport | M60: =H94 -> 0.05935772622 | N60: =I94 -> 0.07423863447
A61: 3 | B61: 045300 | C61: Liquid fuels | D61: N/A | E61: ='CPI Sub-Categories'!AK60 -> Not available | F61: ='CPI Sub-Categories'!AN60 -> Not available | G61: ='CPI Sub-Categories'!AL60 -> Not available | H61: Not available | I61: Not available | L61: Miscellaneous goods and services | M61: =H164 -> 0.0290864802 | N61: =I164 -> 0.04452471868
A62: 3 | B62: 045400 | C62: Solid fuels | D62: 4.620437665e-05 | E62: ='CPI Sub-Categories'!AK61 -> 136.6156234 | F62: ='CPI Sub-Categories'!AN61 -> 135.6702335 | G62: ='CPI Sub-Categories'!AL61 -> 136.4271938 | H62: 0.005579413227 | I62: =(G62-E62)/E62 -> -0.001379267961 | L62: Food and non-alcoholic beverages | M62: =H11 -> -0.01311105488 | N62: =I11 -> 0.00861839178
A63: 3 | B63: 045500 | C63: Heat energy | D63: N/A | E63: ='CPI Sub-Categories'!AK62 -> Not available | F63: ='CPI Sub-Categories'!AN62 -> Not available | G63: ='CPI Sub-Categories'!AL62 -> Not available | H63: Not available | I63: Not available | L63: Restaurants and hotels | M63: =H158 -> -0.01269045245 | N63: =I158 -> 0.03587988466
A64: 1 | B64: 050000 | C64: Furnishings, household equipment and routine household maintenance | D64: 0.06462594826 | E64: ='CPI Sub-Categories'!AK63 -> 116.6014927 | F64: ='CPI Sub-Categories'!AN63 -> 117.3448502 | G64: ='CPI Sub-Categories'!AL63 -> 114.7535113 | H64: -0.02208310737 | I64: =(G64-E64)/E64 -> -0.01584869403 | L64: Health | M64: =H83 -> 0.01876638012 | N64: =I83 -> 0.01937171335
A65: 2 | B65: 051000 | C65: Furniture and furnishings, carpets and other floor coverings | D65: 0.01346537239 | E65: ='CPI Sub-Categories'!AK64 -> 105.4826679 | F65: ='CPI Sub-Categories'!AN64 -> 103.3928242 | G65: ='CPI Sub-Categories'!AL64 -> 102.2386683 | H65: -0.01116282372 | I65: =(G65-E65)/E65 -> -0.03075386352 | L65: Recreation and culture | M65: =H119 -> 0.03895134799 | N65: =I119 -> 0.02845954423
A66: 3 | B66: 051100 | C66: Furniture and furnishings | D66: 0.01276062609 | E66: ='CPI Sub-Categories'!AK65 -> 103.9891821 | F66: ='CPI Sub-Categories'!AN65 -> 102.9298522 | G66: ='CPI Sub-Categories'!AL65 -> 100.9069497 | H66: -0.01965321457 | I66: =(G66-E66)/E66 -> -0.02963993299 | L66: Education | M66: =H147 -> 0.01298202548 | N66: =I147 -> 0.01298202548
A67: 3 | B67: 051200 | C67: Carpets and other floor coverings | D67: 0.000704746303 | E67: ='CPI Sub-Categories'!AK66 -> 132.5247695 | F67: ='CPI Sub-Categories'!AN66 -> 111.7757196 | G67: ='CPI Sub-Categories'!AL66 -> 126.3516998 | H67: 0.1304038143 | I67: =(G67-E67)/E67 -> -0.04658049801 | L67: Communication | M67: =H112 -> 0.007630927131 | N67: =I112 -> 0.007536938851
A68: 3 | B68: 051300 | C68: Repair of furniture, furnishings and floor coverings | D68: N/R | E68: ='CPI Sub-Categories'!AK67 -> Not available | F68: ='CPI Sub-Categories'!AN67 -> Not available | G68: ='CPI Sub-Categories'!AL67 -> Not available | H68: Not relevant | I68: Not relevant | L68: Housing, water, electricity, gas and other fuels | M68: =H43 -> -0.007842731359 | N68: =I43 -> -0.005409344434
A69: 2 | B69: 052000 | C69: Household textiles | D69: 0.005407293891 | E69: ='CPI Sub-Categories'!AK68 -> 116.4074496 | F69: ='CPI Sub-Categories'!AN68 -> 103.5760132 | G69: ='CPI Sub-Categories'!AL68 -> 102.4890256 | H69: -0.0104945875 | I69: =(G69-E69)/E69 -> -0.1195664365 | L69: Furnishings, household equipment and routine household maintenance | M69: =H64 -> -0.02208310737 | N69: =I64 -> -0.01584869403
A70: 3 | B70: 052100 | C70: Household textiles | D70: 0.005407293891 | E70: ='CPI Sub-Categories'!AK69 -> 116.4074496 | F70: ='CPI Sub-Categories'!AN69 -> 103.5760132 | G70: ='CPI Sub-Categories'!AL69 -> 102.4890256 | H70: -0.0104945875 | I70: =(G70-E70)/E70 -> -0.1195664365 | L70: Alcoholic beverages, tobacco and narcotics | M70: =H25 -> -0.01283604426 | N70: =I25 -> -0.01384811593
A71: 2 | B71: 053000 | C71: Household appliances | D71: 0.007747387583 | E71: ='CPI Sub-Categories'!AK70 -> 127.4005602 | F71: ='CPI Sub-Categories'!AN70 -> 123.366937 | G71: ='CPI Sub-Categories'!AL70 -> 122.6014497 | H71: -0.006204963262 | I71: =(G71-E71)/E71 -> -0.03766946144
A72: 3 | B72: 053100 | C72: Major household appliances whether electric or not | D72: 0.007161939352 | E72: ='CPI Sub-Categories'!AK71 -> 129.4337582 | F72: ='CPI Sub-Categories'!AN71 -> 123.8852373 | G72: ='CPI Sub-Categories'!AL71 -> 124.5325851 | H72: 0.005225382351 | I72: =(G72-E72)/E72 -> -0.0378662659
A73: 3 | B73: 053200 | C73: Small electric household appliances | D73: 0.0005854482311 | E73: ='CPI Sub-Categories'!AK72 -> 102.5279854 | F73: ='CPI Sub-Categories'!AN72 -> 117.026451 | G73: ='CPI Sub-Categories'!AL72 -> 98.97743019 | H73: -0.1542302676 | I73: =(G73-E73)/E73 -> -0.03463010841
A74: 3 | B74: 053300 | C74: Repair of household appliances | D74: N/R | E74: ='CPI Sub-Categories'!AK73 -> Not relevant | F74: ='CPI Sub-Categories'!AN73 -> Not relevant | G74: ='CPI Sub-Categories'!AL73 -> Not relevant | H74: Not relevant | I74: Not relevant
A75: 2 | B75: 054000 | C75: Glassware, tableware and household utensils | D75: 0.00330486533 | E75: ='CPI Sub-Categories'!AK74 -> 124.4116153 | F75: ='CPI Sub-Categories'!AN74 -> 124.271727 | G75: ='CPI Sub-Categories'!AL74 -> 123.1690059 | H75: =(G75-F75)/F75 -> -0.008873467654 | I75: =(G75-E75)/E75 -> -0.00998788877
A76: 3 | B76: 054100 | C76: Glassware, tableware and household utensils | D76: 0.00330486533 | E76: ='CPI Sub-Categories'!AK75 -> 124.4116153 | F76: ='CPI Sub-Categories'!AN75 -> 124.271727 | G76: ='CPI Sub-Categories'!AL75 -> 123.1690059 | H76: -0.008873467654 | I76: -0.00998788877
A77: 2 | B77: 055000 | C77: Tools and equipment for house and garden | D77: 0.004937348775 | E77: ='CPI Sub-Categories'!AK76 -> 115.392805 | F77: ='CPI Sub-Categories'!AN76 -> 123.7100126 | G77: ='CPI Sub-Categories'!AL76 -> 116.1799275 | H77: -0.06086884123 | I77: 0.006821243375
A78: 3 | B78: 055100 | C78: Major tools and equipment | D78: 0.001008881673 | E78: ='CPI Sub-Categories'!AK77 -> 93.35247104 | F78: ='CPI Sub-Categories'!AN77 -> 112.2693318 | G78: ='CPI Sub-Categories'!AL77 -> 112.2693318 | H78: 0 | I78: 0.2026391007
A79: 3 | B79: 055200 | C79: Small tools and miscellaneous accessories | D79: 0.003928467102 | E79: ='CPI Sub-Categories'!AK78 -> 121.0530527 | F79: ='CPI Sub-Categories'!AN78 -> 126.6481299 | G79: ='CPI Sub-Categories'!AL78 -> 117.1842198 | H79: -0.07472601475 | I79: -0.03195981263
A80: 2 | B80: 056000 | C80: Goods and services for routine household maintenance | D80: 0.02976368029 | E80: ='CPI Sub-Categories'!AK79 -> 119.3178263 | F80: ='CPI Sub-Categories'!AN79 -> 120.3538235 | G80: ='CPI Sub-Categories'!AL79 -> 119.4296484 | H80: -0.007678817675 | I80: 0.0009371783939
A81: 3 | B81: 056100 | C81: Non-durable household goods | D81: 0.008843265387 | E81: ='CPI Sub-Categories'!AK80 -> 122.7414125 | F81: ='CPI Sub-Categories'!AN80 -> 126.2282567 | G81: ='CPI Sub-Categories'!AL80 -> 123.1177708 | H81: -0.02464175586 | I81: 0.003066270546
A82: 3 | B82: 056200 | C82: Domestic services and household services | D82: 0.02092041491 | E82: ='CPI Sub-Categories'!AK81 -> 117.8706428 | F82: ='CPI Sub-Categories'!AN81 -> 117.8706428 | G82: ='CPI Sub-Categories'!AL81 -> 117.8706428 | H82: 8.55998288e-15 | I82: 0
A83: 1 | B83: 060000 | C83: Health | D83: 0.01936594713 | E83: ='CPI Sub-Categories'!AK82 -> 109.1608483 | F83: ='CPI Sub-Categories'!AN82 -> 109.2257098 | G83: ='CPI Sub-Categories'!AL82 -> 111.275481 | H83: 0.01876638012 | I83: 0.01937171335
A84: 2 | B84: 061000 | C84: Medical products, appliances and equipment | D84: 0.01061024754 | E84: ='CPI Sub-Categories'!AK83 -> 111.580108 | F84: ='CPI Sub-Categories'!AN83 -> 114.5763676 | G84: ='CPI Sub-Categories'!AL83 -> 114.1737335 | H84: -0.003514110798 | I84: 0.02324451537
A85: 3 | B85: 061100 | C85: Pharmaceutical products | D85: 0.006814041106 | E85: ='CPI Sub-Categories'!AK84 -> 111.1182542 | F85: ='CPI Sub-Categories'!AN84 -> 115.0314026 | G85: ='CPI Sub-Categories'!AL84 -> 114.4635035 | H85: -0.00493690503 | I85: 0.03010530867
A86: 3 | B86: 061200 | C86: Other medical products | D86: 0.0007035773546 | E86: ='CPI Sub-Categories'!AK85 -> 112.4323813 | F86: ='CPI Sub-Categories'!AN85 -> 118.9742166 | G86: ='CPI Sub-Categories'!AL85 -> 119.0587861 | H86: 0.000710822198 | I86: 0.05893680044
A87: 3 | B87: 061300 | C87: Therapeutic appliances and equipment | D87: 0.003092629075 | E87: ='CPI Sub-Categories'!AK86 -> 112.403825 | F87: ='CPI Sub-Categories'!AN86 -> 112.5732651 | G87: ='CPI Sub-Categories'!AL86 -> 112.4239229 | H87: -0.001326622415 | I87: 0.0001788009201
A88: 2 | B88: 062000 | C88: Outpatient services | D88: 0.006002108961 | E88: ='CPI Sub-Categories'!AK87 -> 107.7465461 | F88: ='CPI Sub-Categories'!AN87 -> 115.6291519 | G88: ='CPI Sub-Categories'!AL87 -> 107.7465461 | H88: -0.06817143951 | I88: 0
A89: 3 | B89: 062100 | C89: Medical services | D89: 0.001970270763 | E89: ='CPI Sub-Categories'!AK88 -> 103.6167931 | F89: ='CPI Sub-Categories'!AN88 -> 106.9381853 | G89: ='CPI Sub-Categories'!AL88 -> 103.6167931 | H89: -0.03105899146 | I89: 0
A90: 3 | B90: 062200 | C90: Dental services | D90: 0.003430278293 | E90: ='CPI Sub-Categories'!AK89 -> 110.8224024 | F90: ='CPI Sub-Categories'!AN89 -> 122.2234671 | G90: ='CPI Sub-Categories'!AL89 -> 110.8224024 | H90: -0.09328048818 | I90: 0
A91: 3 | B91: 062300 | C91: Paramedical services | D91: 0.0006015599052 | E91: ='CPI Sub-Categories'!AK90 -> 103.7331316 | F91: ='CPI Sub-Categories'!AN90 -> 106.4916175 | G91: ='CPI Sub-Categories'!AL90 -> 103.7331316 | H91: -0.02590331465 | I91: 0
A92: 2 | B92: 063000 | C92: Hospital services | D92: 0.002753590631 | E92: ='CPI Sub-Categories'!AK91 -> 107.7999745 | F92: ='CPI Sub-Categories'!AN91 -> 117.6555213 | G92: ='CPI Sub-Categories'!AL91 -> 107.7999745 | H92: -0.08376612193 | I92: 0
A93: 3 | B93: 063100 | C93: Hospital services | D93: 0.002753590631 | E93: ='CPI Sub-Categories'!AK92 -> 107.7999745 | F93: ='CPI Sub-Categories'!AN92 -> 117.6555213 | G93: ='CPI Sub-Categories'!AL92 -> 107.7999745 | H93: -0.08376612193 | I93: 0
A94: 1 | B94: 070000 | C94: Transport | D94: 0.1457537881 | E94: ='CPI Sub-Categories'!AK93 -> 114.7215672 | F94: ='CPI Sub-Categories'!AN93 -> 116.333073 | G94: ='CPI Sub-Categories'!AL93 -> 123.2383397 | H94: 0.05935772622 | I94: 0.07423863447
A95: 2 | B95: 071000 | C95: Purchase of vehicles | D95: 0.04257250973 | E95: ='CPI Sub-Categories'!AK94 -> 116.6274392 | F95: ='CPI Sub-Categories'!AN94 -> 115.3307578 | G95: ='CPI Sub-Categories'!AL94 -> 117.185032 | H95: 0.01607788083 | I95: 0.004780974447
A96: 3 | B96: 071100 | C96: Motor cars | D96: 0.04198087105 | E96: ='CPI Sub-Categories'!AK95 -> 115.8789499 | F96: ='CPI Sub-Categories'!AN95 -> 114.5918362 | G96: ='CPI Sub-Categories'!AL95 -> 116.4187383 | H96: 0.01594268968 | I96: 0.004658209034
A97: 3 | B97: 071200 | C97: Motor cycles | D97: 0.0004078738668 | E97: ='CPI Sub-Categories'!AK96 -> 169.0759368 | F97: ='CPI Sub-Categories'!AN96 -> 169.1004477 | G97: ='CPI Sub-Categories'!AL96 -> 169.1004477 | H97: 5.882656396e-15 | I97: 0.0001449695584
A98: 3 | B98: 071300 | C98: Bicycles | D98: 0.0001837648124 | E98: ='CPI Sub-Categories'!AK97 -> 171.2072137 | F98: ='CPI Sub-Categories'!AN97 -> 164.7923724 | G98: ='CPI Sub-Categories'!AL97 -> 177.0154035 | H98: 0.07417231106 | I98: 0.03392491293
A99: 3 | B99: 071400 | C99: Animal drawn vehicles | D99: N/R | E99: ='CPI Sub-Categories'!AK98 -> Not relevant | F99: ='CPI Sub-Categories'!AN98 -> Not relevant | G99: ='CPI Sub-Categories'!AL98 -> Not relevant | H99: Not relevant | I99: Not relevant
A100: 2 | B100: 072000 | C100: Operation of personal transport equipment (incl. fuel) | D100: 0.05453835929 | E100: ='CPI Sub-Categories'!AK99 -> 119.0531217 | F100: ='CPI Sub-Categories'!AN99 -> 115.127558 | G100: ='CPI Sub-Categories'!AL99 -> 115.6850343 | H100: 0.004842248975 | I100: =(G100-E100)/E100 -> -0.0282906271
A101: 3 | B101: 072100 | C101: Spare parts and accessories for personal transport equipment | D101: 0.009968690435 | E101: ='CPI Sub-Categories'!AK100 -> 123.5093683 | F101: ='CPI Sub-Categories'!AN100 -> 132.5347725 | G101: ='CPI Sub-Categories'!AL100 -> 125.9461451 | H101: -0.0497124437 | I101: 0.01972948954
A102: 3 | B102: 072200 | C102: Fuels and lubricants for personal transport equipment | D102: 0.03620730981 | E102: ='CPI Sub-Categories'!AK101 -> 115.4896068 | F102: ='CPI Sub-Categories'!AN101 -> 105.3140145 | G102: ='CPI Sub-Categories'!AL101 -> 107.9405883 | H102: 0.02494040191 | I102: -0.06536534931
A103: 3 | B103: 072300 | C103: Maintenance and repair of personal transport equipment | D103: 0.007475538879 | E103: ='CPI Sub-Categories'!AK102 -> 132.6418979 | F103: ='CPI Sub-Categories'!AN102 -> 141.3835039 | G103: ='CPI Sub-Categories'!AL102 -> 141.3835039 | H103: 0 | I103: 0.06590380669
A104: 3 | B104: 072400 | C104: Other services in respect of personal transport equipment | D104: 0.0008868201669 | E104: ='CPI Sub-Categories'!AK103 -> 99.90484208 | F104: ='CPI Sub-Categories'!AN103 -> 98.79677812 | G104: ='CPI Sub-Categories'!AL103 -> 99.90484208 | H104: 0.011215588 | I104: 0
A105: 2 | B105: 073000 | C105: Transport services | D105: 0.04864291905 | E105: ='CPI Sub-Categories'!AK104 -> 116.7317089 | F105: ='CPI Sub-Categories'!AN104 -> 128.9063996 | G105: ='CPI Sub-Categories'!AL104 -> 137.0049764 | H105: 0.0628252499 | I105: 0.1736740399
A106: 3 | B106: 073100 | C106: Passenger transport by railway | D106: N/R | E106: ='CPI Sub-Categories'!AK105 -> Not relevant | F106: ='CPI Sub-Categories'!AN105 -> Not relevant | G106: ='CPI Sub-Categories'!AL105 -> Not relevant | H106: Not relevant | I106: Not relevant
A107: 3 | B107: 073200 | C107: Passenger transport by road | D107: 0.02737459359 | E107: ='CPI Sub-Categories'!AK106 -> 124.6695498 | F107: ='CPI Sub-Categories'!AN106 -> 142.8627619 | G107: ='CPI Sub-Categories'!AL106 -> 156.8491889 | H107: 0.09790113884 | I107: =(G107-E107)/E107 -> 0.2581194779
A108: 3 | B108: 073300 | C108: Passenger transport by air | D108: 0.01992870746 | E108: ='CPI Sub-Categories'!AK107 -> 103.7271792 | F108: ='CPI Sub-Categories'!AN107 -> 109.5681543 | G108: ='CPI Sub-Categories'!AL107 -> 109.3516224 | H108: -0.001976230072 | I108: =(G108-E108)/E108 -> 0.05422342768
A109: 3 | B109: 073400 | C109: Passenger transport by sea and inland waterway | D109: 0.001339617996 | E109: ='CPI Sub-Categories'!AK108 -> 147.9856118 | F109: ='CPI Sub-Categories'!AN108 -> 131.3970169 | G109: ='CPI Sub-Categories'!AL108 -> 142.8785373 | H109: 0.087380373 | I109: =(G109-E109)/E109 -> -0.03451061539
A110: 3 | B110: 073500 | C110: Combined passenger transport | D110: N/R | E110: ='CPI Sub-Categories'!AK109 -> Not relevant | F110: ='CPI Sub-Categories'!AN109 -> Not relevant | G110: ='CPI Sub-Categories'!AL109 -> Not relevant | H110: Not relevant | I110: Not relevant
A111: 3 | B111: 073600 | C111: Other purchased transport services | D111: N/R | E111: ='CPI Sub-Categories'!AK110 -> Not relevant | F111: ='CPI Sub-Categories'!AN110 -> Not relevant | G111: ='CPI Sub-Categories'!AL110 -> Not relevant | H111: Not relevant | I111: Not relevant
A112: 1 | B112: 080000 | C112: Communication | D112: 0.06022054108 | E112: ='CPI Sub-Categories'!AK111 -> 115.8060629 | F112: ='CPI Sub-Categories'!AN111 -> 115.7952609 | G112: ='CPI Sub-Categories'!AL111 -> 116.6788861 | H112: 0.007630927131 | I112: =(G112-E112)/E112 -> 0.007536938851
A113: 2 | B113: 081000 | C113: Postal services | D113: 0.0009259244429 | E113: ='CPI Sub-Categories'!AK112 -> 140.6787165 | F113: ='CPI Sub-Categories'!AN112 -> 161.635658 | G113: ='CPI Sub-Categories'!AL112 -> 136.4301622 | H113: -0.1559401931 | I113: -0.03020040513
A114: 3 | B114: 081100 | C114: Postal services | D114: 0.0009259244429 | E114: ='CPI Sub-Categories'!AK113 -> 140.6787165 | F114: ='CPI Sub-Categories'!AN113 -> 161.635658 | G114: ='CPI Sub-Categories'!AL113 -> 136.4301622 | H114: -0.1559401931 | I114: -0.03020040513
A115: 2 | B115: 082000 | C115: Telephone and telefax equipment | D115: 0.007485446686 | E115: ='CPI Sub-Categories'!AK114 -> 116.395014 | F115: ='CPI Sub-Categories'!AN114 -> 118.2642696 | G115: ='CPI Sub-Categories'!AL114 -> 112.5453313 | H115: -0.04835727913 | I115: -0.03307429217
A116: 3 | B116: 082100 | C116: Telephone and telefax equipment | D116: 0.007485446686 | E116: ='CPI Sub-Categories'!AK115 -> 116.395014 | F116: ='CPI Sub-Categories'!AN115 -> 118.2642696 | G116: ='CPI Sub-Categories'!AL115 -> 112.5453313 | H116: -0.04835727913 | I116: -0.03307429217
A117: 2 | B117: 083000 | C117: Telephone and telefax services | D117: 0.05180916995 | E117: ='CPI Sub-Categories'!AK116 -> 114.923784 | F117: ='CPI Sub-Categories'!AN116 -> 116.9231156 | G117: ='CPI Sub-Categories'!AL116 -> 116.9231156 | H117: 0 | I117: 0.01739702142
A118: 3 | B118: 083100 | C118: Telephone and telefax services | D118: 0.05180916995 | E118: ='CPI Sub-Categories'!AK117 -> 114.923784 | F118: ='CPI Sub-Categories'!AN117 -> 116.9231156 | G118: ='CPI Sub-Categories'!AL117 -> 116.9231156 | H118: 0 | I118: 0.01739702142
A119: 1 | B119: 090000 | C119: Recreation and culture | D119: 0.04601537625 | E119: ='CPI Sub-Categories'!AK118 -> 108.4744138 | F119: ='CPI Sub-Categories'!AN118 -> 107.3789898 | G119: ='CPI Sub-Categories'!AL118 -> 111.5615462 | H119: 0.03895134799 | I119: 0.02845954423
A120: 2 | B120: 091000 | C120: Audio-visual, photographic and information processing equipment | D120: 0.00969990827 | E120: ='CPI Sub-Categories'!AK119 -> 98.27975993 | F120: ='CPI Sub-Categories'!AN119 -> 89.5689169 | G120: ='CPI Sub-Categories'!AL119 -> 88.41078302 | H120: -0.01293008689 | I120: -0.1004171857
A121: 3 | B121: 091100 | C121: Equipment for the reception, recording and reproduction of sounds | D121: 0.001955751039 | E121: ='CPI Sub-Categories'!AK120 -> 79.53272465 | F121: ='CPI Sub-Categories'!AN120 -> 85.80214134 | G121: ='CPI Sub-Categories'!AL120 -> 83.43910175 | H121: -0.02754056659 | I121: 0.04911660092
A122: 3 | B122: 091200 | C122: Photographic and cinematographic equipment and optical instruments | D122: 0.0008498966125 | E122: ='CPI Sub-Categories'!AK121 -> 71.51244149 | F122: ='CPI Sub-Categories'!AN121 -> 65.55855455 | G122: ='CPI Sub-Categories'!AL121 -> 74.09061056 | H122: 0.1301440532 | I122: 0.03605203534
A123: 3 | B123: 091300 | C123: Information processing equipment | D123: 0.005978205442 | E123: ='CPI Sub-Categories'!AK122 -> 112.8001156 | F123: ='CPI Sub-Categories'!AN122 -> 97.04872836 | G123: ='CPI Sub-Categories'!AL122 -> 95.08272195 | H123: -0.02025793061 | I123: -0.1570689314
A124: 3 | B124: 091400 | C124: Recording media | D124: 0.000728629805 | E124: ='CPI Sub-Categories'!AK123 -> 62.8167327 | F124: ='CPI Sub-Categories'!AN123 -> 67.65250264 | G124: ='CPI Sub-Categories'!AL123 -> 63.30908723 | H124: -0.06420184385 | I124: 0.007837951887
A125: 3 | B125: 091500 | C125: Repair of audio-visual, photographic and information processing eq | D125: 0.0001874253718 | E125: ='CPI Sub-Categories'!AK124 -> 90 | F125: ='CPI Sub-Categories'!AN124 -> 84.375 | G125: ='CPI Sub-Categories'!AL124 -> 90 | H125: 0.06666666667 | I125: 0
A126: 2 | B126: 092000 | C126: Other major durables for recreation and culture | D126: N/R | E126: ='CPI Sub-Categories'!AK125 -> Not available | F126: ='CPI Sub-Categories'!AN125 -> Not available | G126: ='CPI Sub-Categories'!AL125 -> Not available | H126: Not relevant | I126: Not relevant
A127: 3 | B127: 092100 | C127: Major durables for outdoor recreation | D127: N/R | E127: ='CPI Sub-Categories'!AK126 -> Not relevant | F127: ='CPI Sub-Categories'!AN126 -> Not relevant | G127: ='CPI Sub-Categories'!AL126 -> Not relevant | H127: Not relevant | I127: Not relevant
A128: 3 | B128: 092200 | C128: Musical instruments and major durables for indoor recreation | D128: N/R | E128: ='CPI Sub-Categories'!AK127 -> Not relevant | F128: ='CPI Sub-Categories'!AN127 -> Not relevant | G128: ='CPI Sub-Categories'!AL127 -> Not relevant | H128: Not relevant | I128: Not relevant
A129: 3 | B129: 092300 | C129: Maintenance and repair of other major durables for recreation and | D129: N/R | E129: ='CPI Sub-Categories'!AK128 -> Not relevant | F129: ='CPI Sub-Categories'!AN128 -> Not relevant | G129: ='CPI Sub-Categories'!AL128 -> Not relevant | H129: Not relevant | I129: Not relevant
A130: 2 | B130: 093000 | C130: Other recreational items and equipment, gardens and pets | D130: 0.01341058746 | E130: ='CPI Sub-Categories'!AK129 -> 108.7874988 | F130: ='CPI Sub-Categories'!AN129 -> 112.3018757 | G130: ='CPI Sub-Categories'!AL129 -> 112.551029 | H130: 0.002218603218 | I130: =(G130-E130)/E130 -> 0.03459524498
A131: 3 | B131: 093100 | C131: Games, toys and hobbies | D131: 0.004644281871 | E131: ='CPI Sub-Categories'!AK130 -> 104.0401343 | F131: ='CPI Sub-Categories'!AN130 -> 109.3562035 | G131: ='CPI Sub-Categories'!AL130 -> 109.4940676 | H131: 0.001260688425 | I131: 0.05242143572
A132: 3 | B132: 093200 | C132: Equipment for sport, camping and open-air recreation | D132: 0.0003569339053 | E132: ='CPI Sub-Categories'!AK131 -> 136.9847899 | F132: ='CPI Sub-Categories'!AN131 -> 125.5223883 | G132: ='CPI Sub-Categories'!AL131 -> 132.1147094 | H132: 0.05251908567 | I132: -0.03555198048
A133: 3 | B133: 093300 | C133: Gardens, plants and flowers | D133: 0.0006092648886 | E133: ='CPI Sub-Categories'!AK132 -> 103.5978164 | F133: ='CPI Sub-Categories'!AN132 -> 150.1973969 | G133: ='CPI Sub-Categories'!AL132 -> 141.7148925 | H133: -0.05647570828 | I133: 0.3679332006
A134: 3 | B134: 093400 | C134: Pets and related products | D134: 0.0030491571 | E134: ='CPI Sub-Categories'!AK133 -> 128.1831433 | F134: ='CPI Sub-Categories'!AN133 -> 129.83787 | G134: ='CPI Sub-Categories'!AL133 -> 129.3823094 | H134: -0.003508688403 | I134: 0.009355099667
A135: 3 | B135: 093500 | C135: Veterinary and other services for pets | D135: 0.004750949691 | E135: ='CPI Sub-Categories'!AK134 -> 99.52725707 | F135: ='CPI Sub-Categories'!AN134 -> 98.0738303 | G135: ='CPI Sub-Categories'!AL134 -> 99.52725707 | H135: 0.01481972068 | I135: 0
A136: 2 | B136: 094000 | C136: Recreational and cultural services | D136: 0.01768603054 | E136: ='CPI Sub-Categories'!AK135 -> 103.884483 | F136: ='CPI Sub-Categories'!AN135 -> 109.0068371 | G136: ='CPI Sub-Categories'!AL135 -> 111.071282 | H136: 0.018938673 | I136: 0.06918067834
A137: 3 | B137: 094100 | C137: Sporting and recreational services | D137: 0.001469974702 | E137: ='CPI Sub-Categories'!AK136 -> 105.5513908 | F137: ='CPI Sub-Categories'!AN136 -> 105.5513908 | G137: ='CPI Sub-Categories'!AL136 -> 105.5513908 | H137: 0 | I137: 9.559046804e-15
A138: 3 | B138: 094200 | C138: Cultural services | D138: 0.01379664139 | E138: ='CPI Sub-Categories'!AK137 -> 104.0532467 | F138: ='CPI Sub-Categories'!AN137 -> 110.6196354 | G138: ='CPI Sub-Categories'!AL137 -> 113.2660646 | H138: 0.02392368348 | I138: 0.08853945607
A139: 3 | B139: 094300 | C139: Games of chance | D139: 0.002419414452 | E139: ='CPI Sub-Categories'!AK138 -> 101.9093412 | F139: ='CPI Sub-Categories'!AN138 -> 101.9093412 | G139: ='CPI Sub-Categories'!AL138 -> 101.9093412 | H139: =(G139-F139)/F139 -> 0 | I139: 0
A140: 2 | B140: 095000 | C140: Newspapers, books and stationery | D140: 0.003046524344 | E140: ='CPI Sub-Categories'!AK139 -> 156.7721117 | F140: ='CPI Sub-Categories'!AN139 -> 162.6804718 | G140: ='CPI Sub-Categories'!AL139 -> 158.3808333 | H140: -0.02642996104 | I140: 0.0102615288
A141: 3 | B141: 095100 | C141: Books | D141: 0.0009767178405 | E141: ='CPI Sub-Categories'!AK140 -> 289.1150289 | F141: ='CPI Sub-Categories'!AN140 -> 300.552593 | G141: ='CPI Sub-Categories'!AL140 -> 289.1150289 | H141: -0.03805511721 | I141: 0
A142: 3 | B142: 095200 | C142: Newspapers and periodicals | D142: 0.0004920085433 | E142: ='CPI Sub-Categories'!AK141 -> 133.3333333 | F142: ='CPI Sub-Categories'!AN141 -> 133.3333333 | G142: ='CPI Sub-Categories'!AL141 -> 133.3333333 | H142: 0 | I142: 0
A143: 3 | B143: 095300 | C143: Miscellaneous printed matter | D143: N/R | E143: ='CPI Sub-Categories'!AK142 -> Not relevant | F143: ='CPI Sub-Categories'!AN142 -> Not relevant | G143: ='CPI Sub-Categories'!AL142 -> Not relevant | H143: Not relevant | I143: Not relevant
A144: 3 | B144: 095400 | C144: Stationery and drawing materials | D144: 0.001577797961 | E144: ='CPI Sub-Categories'!AK143 -> 82.15570364 | F144: ='CPI Sub-Categories'!AN143 -> 86.48369231 | G144: ='CPI Sub-Categories'!AL143 -> 85.26193801 | H144: -0.01412699048 | I144: =(G144-E144)/E144 -> 0.03780911415
A145: 2 | B145: 096000 | C145: Package holidays | D145: 0.002172325634 | E145: ='CPI Sub-Categories'!AK144 -> 127.0286119 | F145: ='CPI Sub-Categories'!AN144 -> 147.1569306 | G145: ='CPI Sub-Categories'!AL144 -> 147.1569306 | H145: 0 | I145: 0.1584549996
A146: 3 | B146: 096100 | C146: Package holidays | D146: 0.002172325634 | E146: ='CPI Sub-Categories'!AK145 -> 127.0286119 | F146: ='CPI Sub-Categories'!AN145 -> 147.1569306 | G146: ='CPI Sub-Categories'!AL145 -> 147.1569306 | H146: 0 | I146: 0.1584549996
A147: 1 | B147: 100000 | C147: Education | D147: 0.02601866621 | E147: ='CPI Sub-Categories'!AK146 -> 107.5639915 | F147: ='CPI Sub-Categories'!AN146 -> 107.5639915 | G147: ='CPI Sub-Categories'!AL146 -> 108.96039 | H147: 0.01298202548 | I147: 0.01298202548
A148: 2 | B148: 101000 | C148: Pre-primary and primary education | D148: 0.01088271999 | E148: ='CPI Sub-Categories'!AK147 -> 105.3077109 | F148: ='CPI Sub-Categories'!AN147 -> 105.3077109 | G148: ='CPI Sub-Categories'!AL147 -> 105.3077109 | H148: 0 | I148: 0
A149: 3 | B149: 101100 | C149: Pre-primary and primary education | D149: 0.01088271999 | E149: ='CPI Sub-Categories'!AK148 -> 105.3077109 | F149: ='CPI Sub-Categories'!AN148 -> 105.3077109 | G149: ='CPI Sub-Categories'!AL148 -> 105.3077109 | H149: 0 | I149: 0
A150: 2 | B150: 102000 | C150: Secondary education | D150: 0.007994671738 | E150: ='CPI Sub-Categories'!AK149 -> 107.9653447 | F150: ='CPI Sub-Categories'!AN149 -> 107.9653447 | G150: ='CPI Sub-Categories'!AL149 -> 107.9653447 | H150: 0 | I150: 0
A151: 3 | B151: 102100 | C151: Secondary education | D151: 0.007994671738 | E151: ='CPI Sub-Categories'!AK150 -> 107.9653447 | F151: ='CPI Sub-Categories'!AN150 -> 107.9653447 | G151: ='CPI Sub-Categories'!AL150 -> 107.9653447 | H151: 0 | I151: 0
A152: 2 | B152: 103000 | C152: Post-secondary non-tertiary education | D152: 0.004484928192 | E152: ='CPI Sub-Categories'!AK151 -> 108.0663917 | F152: ='CPI Sub-Categories'!AN151 -> 108.0663917 | G152: ='CPI Sub-Categories'!AL151 -> 108.0663917 | H152: 0 | I152: 0
A153: 3 | B153: 103100 | C153: Post-secondary non-tertiary education | D153: 0.004484928192 | E153: ='CPI Sub-Categories'!AK152 -> 108.0663917 | F153: ='CPI Sub-Categories'!AN152 -> 108.0663917 | G153: ='CPI Sub-Categories'!AL152 -> 108.0663917 | H153: 0 | I153: 0
A154: 2 | B154: 104000 | C154: Tertiary education | D154: 0.0009500262569 | E154: ='CPI Sub-Categories'!AK153 -> 129.2586811 | F154: ='CPI Sub-Categories'!AN153 -> 129.2586811 | G154: ='CPI Sub-Categories'!AL153 -> 129.2586811 | H154: 0 | I154: 0
A155: 3 | B155: 104100 | C155: Tertiary education | D155: 0.0009500262569 | E155: ='CPI Sub-Categories'!AK154 -> 129.2586811 | F155: ='CPI Sub-Categories'!AN154 -> 129.2586811 | G155: ='CPI Sub-Categories'!AL154 -> 129.2586811 | H155: 0 | I155: 0
A156: 2 | B156: 105000 | C156: Education not definable by level | D156: 0.001706320032 | E156: ='CPI Sub-Categories'!AK155 -> 127.9672337 | F156: ='CPI Sub-Categories'!AN155 -> 127.9672337 | G156: ='CPI Sub-Categories'!AL155 -> 127.9672337 | H156: 0 | I156: 0
A157: 3 | B157: 105100 | C157: Education not definable by level | D157: 0.001706320032 | E157: ='CPI Sub-Categories'!AK156 -> 127.9672337 | F157: ='CPI Sub-Categories'!AN156 -> 127.9672337 | G157: ='CPI Sub-Categories'!AL156 -> 127.9672337 | H157: 0 | I157: 0
A158: 1 | B158: 110000 | C158: Restaurants and hotels | D158: 0.01967577894 | E158: ='CPI Sub-Categories'!AK157 -> 121.9748555 | F158: ='CPI Sub-Categories'!AN157 -> 127.9753645 | G158: ='CPI Sub-Categories'!AL157 -> 126.3512992 | H158: -0.01269045245 | I158: 0.03587988466
A159: 2 | B159: 111000 | C159: Catering services | D159: 0.01604059956 | E159: ='CPI Sub-Categories'!AK158 -> 127.6541707 | F159: ='CPI Sub-Categories'!AN158 -> 127.6311312 | G159: ='CPI Sub-Categories'!AL158 -> 126.3512992 | H159: -0.01002758497 | I159: -0.01020625866
A160: 3 | B160: 111100 | C160: Restaurants, cafés and the like | D160: 0.01604059956 | E160: ='CPI Sub-Categories'!AK159 -> 127.6541707 | F160: ='CPI Sub-Categories'!AN159 -> 127.6311312 | G160: ='CPI Sub-Categories'!AL159 -> 126.3512992 | H160: -0.01002758497 | I160: -0.01020625866
A161: 3 | B161: 111200 | C161: Canteens | D161: N/R | E161: ='CPI Sub-Categories'!AK160 -> Not relevant | F161: ='CPI Sub-Categories'!AN160 -> Not relevant | G161: ='CPI Sub-Categories'!AL160 -> Not relevant | H161: Not relevant | I161: Not relevant
A162: 2 | B162: 112000 | C162: Accommodation services | D162: 0.003635179381 | E162: ='CPI Sub-Categories'!AK161 -> Not available | F162: ='CPI Sub-Categories'!AN161 -> Not available | G162: ='CPI Sub-Categories'!AL161 -> Not available | H162: Not available | I162: Not available
A163: 3 | B163: 112100 | C163: Accommodation services | D163: 0.003635179381 | E163: ='CPI Sub-Categories'!AK162 -> Not available | F163: ='CPI Sub-Categories'!AN162 -> Not available | G163: ='CPI Sub-Categories'!AL162 -> Not relevant | H163: Not available | I163: Not available
A164: 1 | B164: 120000 | C164: Miscellaneous goods and services | D164: 0.1339849986 | E164: ='CPI Sub-Categories'!AK163 -> 103.6074629 | F164: ='CPI Sub-Categories'!AN163 -> 105.1617703 | G164: ='CPI Sub-Categories'!AL163 -> 108.220556 | H164: 0.0290864802 | I164: =(G164-E164)/E164 -> 0.04452471868
A165: 2 | B165: 121000 | C165: Personal care | D165: 0.05713281696 | E165: ='CPI Sub-Categories'!AK164 -> 107.1633128 | F165: ='CPI Sub-Categories'!AN164 -> 110.2435333 | G165: ='CPI Sub-Categories'!AL164 -> 111.5795014 | H165: 0.01211833558 | I165: =(G165-E165)/E165 -> 0.04120989294
A166: 3 | B166: 121100 | C166: Hairdressing salons and personal grooming establishments | D166: 0.01453624433 | E166: ='CPI Sub-Categories'!AK165 -> 99.61311495 | F166: ='CPI Sub-Categories'!AN165 -> 104.1382233 | G166: ='CPI Sub-Categories'!AL165 -> 99.61311495 | H166: -0.04345290499 | I166: =(G166-E166)/E166 -> 0
A167: 3 | B167: 121200 | C167: Electric appliances for personal care | D167: 0.0004877796642 | E167: ='CPI Sub-Categories'!AK166 -> 126.6325849 | F167: ='CPI Sub-Categories'!AN166 -> 135.2170044 | G167: ='CPI Sub-Categories'!AL166 -> 126.6325849 | H167: -0.0634862418 | I167: =(G167-E167)/E167 -> 0
A168: 3 | B168: 121300 | C168: Other appliances, articles and products for personal care | D168: 0.04210879297 | E168: ='CPI Sub-Categories'!AK167 -> 109.5441647 | F168: ='CPI Sub-Categories'!AN167 -> 112.0618404 | G168: ='CPI Sub-Categories'!AL167 -> 115.5360082 | H168: 0.03100223736 | I168: =(G168-E168)/E168 -> 0.054697971
A169: 2 | B169: 122000 | C169: Prostitution | D169: N/A | E169: ='CPI Sub-Categories'!AK168 -> Not available | F169: ='CPI Sub-Categories'!AN168 -> Not available | G169: ='CPI Sub-Categories'!AL168 -> Not available | H169: Not yet available | I169: Not yet available
A170: 3 | B170: 122000 | C170: Prostitution | D170: N/A | E170: ='CPI Sub-Categories'!AK169 -> Not available | F170: ='CPI Sub-Categories'!AN169 -> Not available | G170: ='CPI Sub-Categories'!AL169 -> Not available | H170: Not available | I170: Not available
A171: 2 | B171: 123000 | C171: Personal effects n.e.c. | D171: 0.01120086993 | E171: ='CPI Sub-Categories'!AK170 -> 116.4320015 | F171: ='CPI Sub-Categories'!AN170 -> 116.9466446 | G171: ='CPI Sub-Categories'!AL170 -> 115.7380027 | H171: -0.01033498584 | I171: =(G171-E171)/E171 -> -0.005960550142
A172: 3 | B172: 123100 | C172: Jewelry, clocks and watches | D172: 0.006801499593 | E172: ='CPI Sub-Categories'!AK171 -> 123.9882129 | F172: ='CPI Sub-Categories'!AN171 -> 124.4617392 | G172: ='CPI Sub-Categories'!AL171 -> 124.0078161 | H172: -0.003647089225 | I172: 0.0001581053514
A173: 3 | B173: 123200 | C173: Other personal effects | D173: 0.004399370341 | E173: ='CPI Sub-Categories'!AK172 -> 104.7499732 | F173: ='CPI Sub-Categories'!AN172 -> 105.3281836 | G173: ='CPI Sub-Categories'!AL172 -> 102.9527339 | H173: -0.02255284097 | I173: -0.01715742001
A174: 2 | B174: 124000 | C174: Social protection | D174: 0.003049919327 | E174: ='CPI Sub-Categories'!AK173 -> 106.0071423 | F174: ='CPI Sub-Categories'!AN173 -> 106.0071423 | G174: ='CPI Sub-Categories'!AL173 -> 106.0071423 | H174: 0 | I174: 0
A175: 3 | B175: 124100 | C175: Social protection | D175: 0.003049919327 | E175: ='CPI Sub-Categories'!AK174 -> 106.0071423 | F175: ='CPI Sub-Categories'!AN174 -> 106.0071423 | G175: ='CPI Sub-Categories'!AL174 -> 106.0071423 | H175: 0 | I175: 0
A176: 2 | B176: 125000 | C176: Insurance | D176: 0.02471943859 | E176: ='CPI Sub-Categories'!AK175 -> 105.4734594 | F176: ='CPI Sub-Categories'!AN175 -> 110.3068792 | G176: ='CPI Sub-Categories'!AL175 -> 105.4734594 | H176: -0.0438179364 | I176: 0
A177: 3 | B177: 125100 | C177: Life insurance | D177: 0.007188901327 | E177: ='CPI Sub-Categories'!AK176 -> 99.17861002 | F177: ='CPI Sub-Categories'!AN176 -> 116.1352264 | G177: ='CPI Sub-Categories'!AL176 -> 99.17861002 | H177: -0.1460075196 | I177: 0
A178: 3 | B178: 125200 | C178: Insurance connected with the dwelling | D178: 0.003316732313 | E178: ='CPI Sub-Categories'!AK177 -> 100.0941515 | F178: ='CPI Sub-Categories'!AN177 -> 97.83934608 | G178: ='CPI Sub-Categories'!AL177 -> 100.0941515 | H178: 0.02304599871 | I178: 0
A179: 3 | B179: 125300 | C179: Insurance connected with health | D179: 0.004627923053 | E179: ='CPI Sub-Categories'!AK178 -> 108.3381821 | F179: ='CPI Sub-Categories'!AN178 -> 108.3381821 | G179: ='CPI Sub-Categories'!AL178 -> 108.3381821 | H179: 0 | I179: 0
A180: 3 | B180: 125400 | C180: Insurance connected with transport | D180: 0.009585881892 | E180: ='CPI Sub-Categories'!AK179 -> 110.6724651 | F180: ='CPI Sub-Categories'!AN179 -> 111.2001757 | G180: ='CPI Sub-Categories'!AL179 -> 110.6724651 | H180: -0.004745590642 | I180: 0
A181: 3 | B181: 125500 | C181: Other insurance | D181: N/A | E181: ='CPI Sub-Categories'!AK180 -> Not available | F181: ='CPI Sub-Categories'!AN180 -> Not available | G181: ='CPI Sub-Categories'!AL180 -> Not available | H181: Not available | I181: Not available
A182: 2 | B182: 126000 | C182: Financial services n.e.c. | D182: 0.02499818445 | E182: ='CPI Sub-Categories'!AK181 -> 101.727573 | F182: ='CPI Sub-Categories'!AN181 -> 96.95713775 | G182: ='CPI Sub-Categories'!AL181 -> 101.727573 | H182: 0.04920148563 | I182: =(G182-E182)/E182 -> 0
A183: 3 | B183: 126100 | C183: FISIM | D183: N/A | E183: ='CPI Sub-Categories'!AK182 -> Not available | F183: ='CPI Sub-Categories'!AN182 -> Not available | G183: ='CPI Sub-Categories'!AL182 -> Not available | H183: Not available | I183: Not available
A184: 3 | B184: 126200 | C184: Other financial services n.e.c. | D184: 0.02499818445 | E184: ='CPI Sub-Categories'!AK183 -> 101.727573 | F184: ='CPI Sub-Categories'!AN183 -> 96.95713775 | G184: ='CPI Sub-Categories'!AL183 -> 101.727573 | H184: 0.04920148563 | I184: =(G184-E184)/E184 -> 0
A185: 2 | B185: 127000 | C185: Other services n.e.c. | D185: 0.01288376939 | E185: ='CPI Sub-Categories'!AK184 -> 105.1828001 | F185: ='CPI Sub-Categories'!AN184 -> 105.1828001 | G185: ='CPI Sub-Categories'!AL184 -> 105.1828001 | H185: 0 | I185: =(G185-E185)/E185 -> 0
A186: 3 | B186: 127100 | C186: Other services n.e.c. | D186: 0.01288376939 | E186: ='CPI Sub-Categories'!AK185 -> 105.1828001 | F186: ='CPI Sub-Categories'!AN185 -> 105.1828001 | G186: ='CPI Sub-Categories'!AL185 -> 105.1828001 | H186: 0 | I186: =(G186-E186)/E186 -> 0
A187: Base Year 2018 = 100

Sheet Total CPI
A2: Table 2. | B2: Total Consumer Price Index figures by Quarter and Year
A5: Year | B5: Quarter 1 | C5: Quarter 2 | D5: Quarter 3 | E5: Quarter 4 | F5: Annual Average
A6: 2018 | B6: 99.62807155 | C6: 99.63793497 | D6: 100.4999535 | E6: 100.23404 | F6: 100
A7: 2019 | B7: 100.295145 | C7: 100.2419577 | D7: 100.5913524 | E7: 100.4361572 | F7: 100.3911531
A8: 2020 | B8: 100.45587 | C8: 100.6971572 | D8: 101.1925433 | E8: 102.090731 | F8: 101.1090754
A9: 2021 | B9: 102.7835637 | C9: 103.5553895 | D9: 104.0448188 | E9: 105.2501173 | F9: 103.9084723
A10: 2022 | B10: ='CPI Sub-Categories'!Y8 -> 105.9971683 | C10: ='CPI Sub-Categories'!Z8 -> 108.6373996 | D10: ='CPI Sub-Categories'!AA8 -> 107.2905198 | E10: ='CPI Sub-Categories'!AB8 -> 108.8588687 | F10: =AVERAGE(B10:E10) -> 107.6959891
A11: 2023 | B11: ='CPI Sub-Categories'!AD8 -> 109.3510379 | C11: ='CPI Sub-Categories'!AE8 -> 108.6914137 | D11: ='CPI Sub-Categories'!AF8 -> 109.4377136 | E11: ='CPI Sub-Categories'!AG8 -> 112.2964665 | F11: =AVERAGE(B11:E11) -> 109.944158
A12: 2024 | B12: ='CPI Sub-Categories'!AI8 -> 113.3100029 | C12: ='CPI Sub-Categories'!AJ8 -> 113.485723 | D12: ='CPI Sub-Categories'!AK8 -> 113.8220414 | E12: ='CPI Sub-Categories'!AL8 -> 114.7942587 | F12: =AVERAGE(B12:E12) -> 113.8530065
A13: 2025 | B13: ='CPI Sub-Categories'!AM8 -> 115.0194283 | C13: ='CPI Sub-Categories'!AN8 -> 114.2282959 | D13: ='CPI Sub-Categories'!AO8 -> 115.0919259 | F13: =AVERAGE(B13:E13) -> 114.7798834

Sheet CPI Qrtrly Comparison
A2: Table 3. | B2: Quarterly percentage change for the 12 major expenditure categories and sub-categories
D4: 2019 | L4: 2020 | U4: 2021 | AD4: 2022 | AM4: 2023 | AV4: 2024 | BE4: 2025
A5: Level | B5: Code | C5: Expenditure category | D5: Q1 Index | E5: Q2 Index | F5: Q1 - Q2 % Change | G5: Q3 Index | H5: Q2 - Q3 % Change | I5: Q4 Index | J5: Q3 - Q4 % Change | L5: Q1 Index | M5: Q4 - Q1 % Change | N5: Q2 Index | O5: Q1 - Q2 % Change | P5: Q3 Index | Q5: Q2 - Q3 % Change | R5: Q4 Index | S5: Q3 - Q4 % Change | U5: Q1 Index | V5: Q4 - Q1 % Change | W5: Q2 Index | X5: Q1 - Q2 % Change | Y5: Q3 Index | Z5: Q2 - Q3 % Change | AA5: Q4 Index | AB5: Q3 - Q4 % Change | AD5: Q1 Index | AE5: Q4 - Q1 % Change | AF5: Q2 Index | AG5: Q1 - Q2 % Change | AH5: Q3 Index | AI5: Q2 - Q3 % Change | AJ5: Q4 Index | AK5: Q3 - Q4 % Change | AM5: Q1 Index | AN5: Q4 - Q1 % Change | AO5: Q2 Index | AP5: Q1 - Q2 % Change | AQ5: Q3 Index | AR5: Q2 - Q3 % Change | AS5: Q4 Index | AT5: Q3 - Q4 % Change | AV5: Q1 Index | AW5: Q4 - Q1 % Change | AX5: Q2 Index | AY5: Q1 - Q2 % Change | AZ5: Q3 Index | BA5: Q2 - Q3 % Change | BB5: Q4 Index | BC5: Q3 - Q4 % Change | BE5: Q1 Index | BF5: Q4 - Q1 % Change | BG5: Q2 Index | BH5: Q1 - Q2 % Change | BI5: Q3 Index | BJ5: Q2 - Q3 % Change | BK5: Q4 Index | BL5: Q3 - Q4 % Change
AR6: =(AQ6-AO6)/AO6 ->  | BA6: =(AZ6-AX6)/AX6 ->  | BJ6: =(BI6-BG6)/BG6 -> 
C7: TOTAL CPI | D7: 100.295145 | E7: 100.2419577 | F7: -0.0005303074032 | G7: 100.5913524 | H7: 0.003485513713 | I7: 100.4361572 | J7: -0.00154282858 | L7: 100.45587 | M7: 0.0001962718969 | N7: 100.6971572 | O7: 0.0024019225 | P7: 101.1925433 | Q7: =(P7-N7)/N7 -> 0.004919563051 | R7: 102.090731 | S7: 0.00887602671 | U7: 102.7835637 | V7: =(U7-R7)/R7 -> 0.006786441147 | W7: 103.5553895 | X7: =(W7-U7)/U7 -> 0.007509233577 | Y7: 104.0448188 | Z7: 0.004726256431 | AA7: 105.2501173 | AB7: =(AA7-Y7)/Y7 -> 0.0115844164 | AD7: ='CPI Sub-Categories'!Y8 -> 105.9971683 | AE7: =(AD7-AA7)/AA7 -> 0.007097863075 | AF7: ='CPI Sub-Categories'!Z8 -> 108.6373996 | AG7: =(AF7-AD7)/AD7 -> 0.024908508 | AH7: ='CPI Sub-Categories'!AA8 -> 107.2905198 | AI7: =(AH7-AF7)/AF7 -> -0.01239793864 | AJ7: ='CPI Sub-Categories'!AB8 -> 108.8588687 | AK7: =IFERROR((AJ7-AH7)/AH7,"") -> 0.0146177779 | AM7: ='CPI Sub-Categories'!AD8 -> 109.3510379 | AN7: =(AM7-AJ7)/AJ7 -> 0.004521167702 | AO7: ='CPI Sub-Categories'!AE8 -> 108.6914137 | AP7: =(AO7-AM7)/AM7 -> -0.006032171609 | AQ7: ='CPI Sub-Categories'!AF8 -> 109.4377136 | AR7: =(AQ7-AO7)/AO7 -> 0.006866226963 | AS7: ='CPI Sub-Categories'!AG8 -> 112.2964665 | AT7: =(AS7-AQ7)/AQ7 -> 0.02612219149 | AV7: ='CPI Sub-Categories'!AI8 -> 113.3100029 | AW7: =(AV7-AS7)/AS7 -> 0.009025540899 | AX7: ='CPI Sub-Categories'!AJ8 -> 113.485723 | AY7: =(AX7-AV7)/AV7 -> 0.001550790844 | AZ7: ='CPI Sub-Categories'!AK8 -> 113.8220414 | BA7: =(AZ7-AX7)/AX7 -> 0.002963529991 | BB7: ='CPI Sub-Categories'!AL8 -> 114.7942587 | BC7: =(BB7-AZ7)/AZ7 -> 0.008541556021 | BE7: ='CPI Sub-Categories'!AM8 -> 115.0194283 | BF7: =(BE7-BB7)/BB7 -> 0.001961505705 | BG7: ='CPI Sub-Categories'!AN8 -> 114.2282959 | BH7: =(BG7-BE7)/BE7 -> -0.00687825049 | BI7: ='CPI Sub-Categories'!AO8 -> 115.0919259 | BJ7: =(BI7-BG7)/BG7 -> 0.00756056167 | BK7: ='CPI Sub-Categories'!AU8 -> 0 | BL7: =(BK7-BI7)/BI7 -> -1
AR8: =(AQ8-AO8)/AO8 -> 
A9: 1 | B9: 010000 | C9: Food and non-alcoholic beverages | D9: 100.0320184 | E9: 98.98221456 | F9: -0.01049467774 | G9: 99.2536629 | H9: 0.002742395065 | I9: 99.28147435 | J9: 0.0002802057444 | L9: 99.60825705 | M9: 0.0032914771 | N9: 102.3048172 | O9: 0.0270716526 | P9: 101.5487693 | Q9: -0.007390148966 | R9: 101.7863961 | S9: 0.002340025942 | U9: 101.4573369 | V9: =(U9-R9)/R9 -> -0.00323284021 | W9: 101.3754965 | X9: =(W9-U9)/U9 -> -0.0008066492473 | Y9: 102.3198854 | Z9: 0.009315751914 | AA9: 103.7462658 | AB9: =IFERROR((AA9-Y9)/Y9,"Not available") -> 0.013940402 | AD9: ='CPI Sub-Categories'!Y10 -> 105.6046991 | AE9: =(AD9-AA9)/AA9 -> 0.01791325508 | AF9: ='CPI Sub-Categories'!Z10 -> 110.5493014 | AG9: =(AF9-AD9)/AD9 -> 0.04682180189 | AH9: ='CPI Sub-Categories'!AA10 -> 111.4272108 | AI9: 0.007941338859 | AJ9: ='CPI Sub-Categories'!AB10 -> 115.3915526 | AK9: =IFERROR((AJ9-AH9)/AH9,"Not available") -> 0.03557786074 | AM9: ='CPI Sub-Categories'!AD10 -> 116.6976002 | AN9: =(AM9-AJ9)/AJ9 -> 0.01131839874 | AO9: ='CPI Sub-Categories'!AE10 -> 115.9412578 | AP9: =(AO9-AM9)/AM9 -> -0.006481216379 | AQ9: ='CPI Sub-Categories'!AF10 -> 116.1415456 | AR9: 0.001727493581 | AS9: ='CPI Sub-Categories'!AG10 -> 116.7202537 | AT9: 0.004982782373 | AV9: ='CPI Sub-Categories'!AI10 -> 119.1637424 | AW9: =(AV9-AS9)/AS9 -> 0.02093457324 | AX9: ='CPI Sub-Categories'!AJ10 -> 119.7519945 | AY9: =(AX9-AV9)/AV9 -> 0.004936502509 | AZ9: ='CPI Sub-Categories'!AK10 -> 120.7219583 | BA9: 0.008099771591 | BB9: ='CPI Sub-Categories'!AL10 -> 121.7623874 | BC9: 0.00861839178 | BE9: ='CPI Sub-Categories'!AM10 -> 123.9451671 | BF9: =(BE9-BB9)/BB9 -> 0.01792655119 | BG9: ='CPI Sub-Categories'!AN10 -> 123.3800298 | BH9: =(BG9-BE9)/BE9 -> -0.004559575367 | BI9: ='CPI Sub-Categories'!AO10 -> 123.5047841 | BJ9: =(BI9-BG9)/BG9 -> 0.001011138642 | BK9: ='CPI Sub-Categories'!AU10 -> 0 | BL9: =(BK9-BI9)/BI9 -> -1
A10: 2 | B10: 011000 | C10: Food | D10: 99.80821924 | E10: 98.85949664 | F10: -0.009505455585 | G10: 99.32989183 | H10: 0.004758219539 | I10: 99.51321014 | J10: 0.00184555029 | L10: 99.68529536 | M10: 0.00172927014 | N10: 102.1037098 | O10: 0.02426049284 | P10: 101.1283046 | Q10: -0.009553082828 | R10: 101.4866133 | S10: 0.003543110784 | U10: 101.2021887 | V10: =(U10-R10)/R10 -> -0.002802582889 | W10: 101.3121654 | X10: 0.001086702406 | Y10: 102.3699564 | Z10: 0.01044090816 | AA10: 104.111426 | AB10: 0.0170115308 | AD10: ='CPI Sub-Categories'!Y11 -> 105.9137789 | AE10: =(AD10-AA10)/AA10 -> 0.01731176827 | AF10: ='CPI Sub-Categories'!Z11 -> 111.1350849 | AG10: 0.04929770284 | AH10: ='CPI Sub-Categories'!AA11 -> 111.6262988 | AI10: 0.00441997146 | AJ10: ='CPI Sub-Categories'!AB11 -> 115.8490722 | AK10: 0.03782955603 | AM10: ='CPI Sub-Categories'!AD11 -> 117.1110833 | AN10: =(AM10-AJ10)/AJ10 -> 0.01089358011 | AO10: ='CPI Sub-Categories'!AE11 -> 115.8489892 | AP10: =(AO10-AM10)/AM10 -> -0.01077689679 | AQ10: ='CPI Sub-Categories'!AF11 -> 115.9447214 | AR10: 0.0008263527521 | AS10: ='CPI Sub-Categories'!AG11 -> 116.46817 | AT10: =(AS10-AQ10)/AQ10 -> 0.004514639553 | AV10: ='CPI Sub-Categories'!AI11 -> 118.9397216 | AW10: =(AV10-AS10)/AS10 -> 0.02122083335 | AX10: ='CPI Sub-Categories'!AJ11 -> 119.4846026 | AY10: 0.004581152427 | AZ10: ='CPI Sub-Categories'!AK11 -> 120.3463768 | BA10: 0.00721242895 | BB10: ='CPI Sub-Categories'!AL11 -> 121.1223083 | BC10: 0.006447485385 | BE10: ='CPI Sub-Categories'!AM11 -> 123.815196 | BF10: =(BE10-BB10)/BB10 -> 0.02223279691 | BG10: ='CPI Sub-Categories'!AN11 -> 123.0582511 | BH10: -0.006113505758 | BI10: ='CPI Sub-Categories'!AO11 -> 123.1098533 | BJ10: 0.0004193318418 | BK10: ='CPI Sub-Categories'!AU11 -> 0 | BL10: -1
A11: 3 | B11: 011100 | C11: Bread and cereals | D11: 100.475598 | E11: 101.5301495 | F11: 0.01049559781 | G11: 101.7938418 | H11: 0.002597182811 | I11: 101.1147778 | J11: -0.00667097398 | L11: 101.5957567 | M11: 0.004756761841 | N11: 102.5428619 | O11: 0.00932229098 | P11: 103.5809773 | Q11: 0.01012372229 | R11: 102.847193 | S11: -0.007084161505 | U11: 102.8194497 | V11: -0.0002697522859 | W11: 103.791982 | X11: 0.00945864142 | Y11: 103.6131382 | Z11: -0.001723098635 | AA11: 104.6710401 | AB11: 0.01021011409 | AD11: ='CPI Sub-Categories'!Y12 -> 106.2014927 | AE11: 0.01462154698 | AF11: ='CPI Sub-Categories'!Z12 -> 109.5810785 | AG11: 0.03182239486 | AH11: ='CPI Sub-Categories'!AA12 -> 110.3260836 | AI11: 0.006798665139 | AJ11: ='CPI Sub-Categories'!AB12 -> 113.0288213 | AK11: 0.02449772199 | AM11: ='CPI Sub-Categories'!AD12 -> 114.5269632 | AN11: 0.01325451282 | AO11: ='CPI Sub-Categories'!AE12 -> 115.7880556 | AP11: =(AO11-AM11)/AM11 -> 0.01101131392 | AQ11: ='CPI Sub-Categories'!AF12 -> 117.3303316 | AR11: 0.01331981953 | AS11: ='CPI Sub-Categories'!AG12 -> 116.3854186 | AT11: -0.008053441542 | AV11: ='CPI Sub-Categories'!AI12 -> 116.8555426 | AW11: 0.004039371819 | AX11: ='CPI Sub-Categories'!AJ12 -> 117.3830767 | AY11: 0.004514412556 | AZ11: ='CPI Sub-Categories'!AK12 -> 119.4617831 | BA11: 0.01770873961 | BB11: ='CPI Sub-Categories'!AL12 -> 119.8432005 | BC11: 0.003192798797 | BE11: ='CPI Sub-Categories'!AM12 -> 118.9646328 | BF11: -0.007330976952 | BG11: ='CPI Sub-Categories'!AN12 -> 118.0537617 | BH11: -0.007656654556 | BI11: ='CPI Sub-Categories'!AO12 -> 118.1096412 | BJ11: 0.0004733398394 | BK11: ='CPI Sub-Categories'!AU12 -> 0 | BL11: -1
A12: 3 | B12: 011200 | C12: Meat | D12: 96.7347896 | E12: 95.74894996 | F12: -0.01019115923 | G12: 96.70029909 | H12: 0.009935870087 | I12: 95.83871553 | J12: -0.008909833429 | L12: 95.83743631 | M12: -1.334759401e-05 | N12: 102.3282883 | O12: 0.06772773 | P12: 100.6318555 | Q12: -0.01657833718 | R12: 99.78888853 | S12: -0.008376740421 | U12: 99.60572201 | V12: -0.001835540227 | W12: 99.08864908 | X12: -0.005191197059 | Y12: 99.09781259 | Z12: 9.247794703e-05 | AA12: 102.4473767 | AB12: 0.03380058606 | AD12: ='CPI Sub-Categories'!Y13 -> 104.160566 | AE12: 0.01672262747 | AF12: ='CPI Sub-Categories'!Z13 -> 106.6834282 | AG12: 0.02422089502 | AH12: ='CPI Sub-Categories'!AA13 -> 108.114046 | AI12: 0.01340993451 | AJ12: ='CPI Sub-Categories'!AB13 -> 111.6321613 | AK12: 0.0325407798 | AM12: ='CPI Sub-Categories'!AD13 -> 113.2615523 | AN12: 0.0145960714 | AO12: ='CPI Sub-Categories'!AE13 -> 111.8473541 | AP12: -0.01248612754 | AQ12: ='CPI Sub-Categories'!AF13 -> 112.8448141 | AR12: 0.008918047327 | AS12: ='CPI Sub-Categories'!AG13 -> 111.288702 | AT12: -0.01378984147 | AV12: ='CPI Sub-Categories'!AI13 -> 112.5285784 | AW12: 0.01114107981 | AX12: ='CPI Sub-Categories'!AJ13 -> 113.9286646 | AY12: 0.01244205004 | AZ12: ='CPI Sub-Categories'!AK13 -> 114.3398951 | BA12: 0.003609543991 | BB12: ='CPI Sub-Categories'!AL13 -> 113.5083709 | BC12: -0.007272388665 | BE12: ='CPI Sub-Categories'!AM13 -> 116.0544878 | BF12: 0.02243109361 | BG12: ='CPI Sub-Categories'!AN13 -> 117.7292594 | BH12: 0.01443090757 | BI12: ='CPI Sub-Categories'!AO13 -> 120.9788815 | BJ12: 0.02760250185 | BK12: ='CPI Sub-Categories'!AU13 -> 0 | BL12: -1
A13: 3 | B13: 011300 | C13: Fish and seafood | D13: 99.25748139 | E13: 99.56531114 | F13: 0.003101325457 | G13: 98.45635772 | H13: -0.01113794963 | I13: 100.270336 | J13: 0.01842418607 | L13: 100.2161364 | M13: -0.0005405341217 | N13: 102.7575101 | O13: 0.02535892689 | P13: 102.9434235 | Q13: 0.001809243388 | R13: 102.6489303 | S13: -0.002860728467 | U13: 105.034202 | V13: 0.02323718089 | W13: 104.1056638 | X13: -0.008840341623 | Y13: 105.5528687 | Z13: 0.01390130769 | AA13: 108.099945 | AB13: 0.02413081112 | AD13: ='CPI Sub-Categories'!Y14 -> 110.4160625 | AE13: 0.02142570442 | AF13: ='CPI Sub-Categories'!Z14 -> 119.913912 | AG13: 0.08601873007 | AH13: ='CPI Sub-Categories'!AA14 -> 116.8338557 | AI13: -0.02568556204 | AJ13: ='CPI Sub-Categories'!AB14 -> 115.2104352 | AK13: -0.01389512077 | AM13: ='CPI Sub-Categories'!AD14 -> 120.4242451 | AN13: 0.04525466751 | AO13: ='CPI Sub-Categories'!AE14 -> 120.0823804 | AP13: -0.002838836165 | AQ13: ='CPI Sub-Categories'!AF14 -> 118.5573682 | AR13: -0.0126997168 | AS13: ='CPI Sub-Categories'!AG14 -> 116.5372378 | AT13: -0.01703926476 | AV13: ='CPI Sub-Categories'!AI14 -> 115.8274126 | AW13: -0.006090973577 | AX13: ='CPI Sub-Categories'!AJ14 -> 118.5336807 | AY13: 0.02336465996 | AZ13: ='CPI Sub-Categories'!AK14 -> 117.1954638 | BA13: -0.01128976101 | BB13: ='CPI Sub-Categories'!AL14 -> 112.4638801 | BC13: -0.04037343722 | BE13: ='CPI Sub-Categories'!AM14 -> 117.7486868 | BF13: 0.04699114691 | BG13: ='CPI Sub-Categories'!AN14 -> 121.2539229 | BH13: 0.02976879179 | BI13: ='CPI Sub-Categories'!AO14 -> 120.226417 | BJ13: -0.00847400183 | BK13: ='CPI Sub-Categories'!AU14 -> 0 | BL13: -1
A14: 3 | B14: 011400 | C14: Milk, cheese and eggs | D14: 99.14389419 | E14: 96.23059007 | F14: -0.02938460446 | G14: 94.96590232 | H14: -0.01314226327 | I14: 97.90228504 | J14: 0.03092038979 | L14: 97.50255742 | M14: -0.004082924367 | N14: 102.0168637 | O14: 0.04629936236 | P14: 98.4109733 | Q14: -0.03534602242 | R14: 100.2283726 | S14: 0.01846744528 | U14: 100.434705 | V14: 0.0020586226 | W14: 100.5554572 | X14: 0.001202295652 | Y14: 100.972071 | Z14: 0.004143124754 | AA14: 101.5222534 | AB14: 0.005448857865 | AD14: ='CPI Sub-Categories'!Y15 -> 104.2020973 | AE14: 0.02639661503 | AF14: ='CPI Sub-Categories'!Z15 -> 118.8386104 | AG14: 0.1404627502 | AH14: ='CPI Sub-Categories'!AA15 -> 120.4792507 | AI14: 0.01380561597 | AJ14: ='CPI Sub-Categories'!AB15 -> 130.6258696 | AK14: 0.08421880859 | AM14: ='CPI Sub-Categories'!AD15 -> 131.1229002 | AN14: 0.003804993429 | AO14: ='CPI Sub-Categories'!AE15 -> 119.2134702 | AP14: -0.0908264686 | AQ14: ='CPI Sub-Categories'!AF15 -> 115.3328653 | AR14: -0.0325517316 | AS14: ='CPI Sub-Categories'!AG15 -> 119.4201264 | AT14: 0.03543882379 | AV14: ='CPI Sub-Categories'!AI15 -> 127.3570942 | AW14: 0.06646256379 | AX14: ='CPI Sub-Categories'!AJ15 -> 127.776883 | AY14: 0.003296155502 | AZ14: ='CPI Sub-Categories'!AK15 -> 127.9671227 | BA14: 0.001488843169 | BB14: ='CPI Sub-Categories'!AL15 -> 134.1877756 | BC14: 0.04861133692 | BE14: ='CPI Sub-Categories'!AM15 -> 146.2446283 | BF14: 0.08985060413 | BG14: ='CPI Sub-Categories'!AN15 -> 140.0421524 | BH14: -0.04241164973 | BI14: ='CPI Sub-Categories'!AO15 -> 129.8441843 | BJ14: -0.07282070339 | BK14: ='CPI Sub-Categories'!AU15 -> 0 | BL14: -1
A15: 3 | B15: 011500 | C15: Oils and fats | D15: 98.42496584 | E15: 100.4526459 | F15: 0.02060127739 | G15: 102.8324467 | H15: 0.02369077333 | I15: 104.8936193 | J15: 0.02004399064 | L15: 105.7026052 | M15: 0.007712441553 | N15: 104.3592502 | O15: -0.01270881697 | P15: 102.2249346 | Q15: -0.02045161866 | R15: 101.6768248 | S15: -0.00536180111 | U15: 102.6618762 | V15: 0.009688061723 | W15: 101.8993069 | X15: -0.007427969821 | Y15: 101.9406487 | Z15: 0.0004057126882 | AA15: 101.798735 | AB15: -0.001392120465 | AD15: ='CPI Sub-Categories'!Y16 -> 105.7211386 | AE15: 0.0385309661 | AF15: ='CPI Sub-Categories'!Z16 -> 109.6624225 | AG15: 0.03727999865 | AH15: ='CPI Sub-Categories'!AA16 -> 104.4806268 | AI15: -0.04725224615 | AJ15: ='CPI Sub-Categories'!AB16 -> 108.997097 | AK15: 0.04322782473 | AM15: ='CPI Sub-Categories'!AD16 -> 111.4374563 | AN15: 0.02238921344 | AO15: ='CPI Sub-Categories'!AE16 -> 118.07394 | AP15: 0.05955343867 | AQ15: ='CPI Sub-Categories'!AF16 -> 121.4109286 | AR15: 0.02826185584 | AS15: ='CPI Sub-Categories'!AG16 -> 132.9605804 | AT15: 0.09512860107 | AV15: ='CPI Sub-Categories'!AI16 -> 123.5742235 | AW15: -0.07059503601 | AX15: ='CPI Sub-Categories'!AJ16 -> 122.7858356 | AY15: -0.006379873534 | AZ15: ='CPI Sub-Categories'!AK16 -> 130.2917485 | BA15: 0.06113012033 | BB15: ='CPI Sub-Categories'!AL16 -> 134.2747033 | BC15: 0.03056950926 | BE15: ='CPI Sub-Categories'!AM16 -> 134.4716559 | BF15: 0.001466788617 | BG15: ='CPI Sub-Categories'!AN16 -> 134.0624311 | BH15: -0.003043204961 | BI15: ='CPI Sub-Categories'!AO16 -> 135.1383579 | BJ15: 0.00802556564 | BK15: ='CPI Sub-Categories'!AU16 -> 0 | BL15: -1
A16: 3 | B16: 011600 | C16: Fruit | D16: 100.9693034 | E16: 98.8605416 | F16: -0.02088517726 | G16: 99.57989738 | H16: 0.007276470069 | I16: 99.3245496 | J16: -0.002564250211 | L16: 98.29368048 | M16: -0.01037879487 | N16: 97.68884764 | O16: -0.006153323774 | P16: 96.71839385 | Q16: -0.009934130809 | R16: 100.41621 | S16: 0.03823281223 | U16: 98.46421487 | V16: -0.01943904445 | W16: 100.826688 | X16: 0.02399321544 | Y16: 105.4754548 | Z16: 0.04610651065 | AA16: 105.5657142 | AB16: 0.0008557393579 | AD16: ='CPI Sub-Categories'!Y17 -> 108.1872861 | AE16: 0.02483355399 | AF16: ='CPI Sub-Categories'!Z17 -> 110.2181608 | AG16: 0.01877184235 | AH16: ='CPI Sub-Categories'!AA17 -> 110.9842597 | AI16: 0.006950750234 | AJ16: ='CPI Sub-Categories'!AB17 -> 113.0986532 | AK16: 0.01905129206 | AM16: ='CPI Sub-Categories'!AD17 -> 113.3341431 | AN16: 0.002082163128 | AO16: ='CPI Sub-Categories'!AE17 -> 112.6077151 | AP16: -0.006409612624 | AQ16: ='CPI Sub-Categories'!AF17 -> 110.807751 | AR16: -0.01598437673 | AS16: ='CPI Sub-Categories'!AG17 -> 111.3295252 | AT16: 0.004708824351 | AV16: ='CPI Sub-Categories'!AI17 -> 118.6101932 | AW16: 0.06539745814 | AX16: ='CPI Sub-Categories'!AJ17 -> 116.852547 | AY16: -0.01481867749 | AZ16: ='CPI Sub-Categories'!AK17 -> 115.1556805 | BA16: -0.01452143321 | BB16: ='CPI Sub-Categories'!AL17 -> 118.2109289 | BC16: 0.02653146005 | BE16: ='CPI Sub-Categories'!AM17 -> 120.0893464 | BF16: 0.01589038814 | BG16: ='CPI Sub-Categories'!AN17 -> 117.7049733 | BH16: -0.01985499277 | BI16: ='CPI Sub-Categories'!AO17 -> 118.7467572 | BJ16: 0.008850806111 | BK16: ='CPI Sub-Categories'!AU17 -> 0 | BL16: -1
A17: 3 | B17: 011700 | C17: Vegetables | D17: 102.6693234 | E17: 99.99197232 | F17: -0.0260774198 | G17: 101.146829 | H17: 0.0115494944 | I17: 99.82117523 | J17: -0.01310623202 | L17: 100.0324347 | M17: 0.002116379027 | N17: 101.3195759 | O17: 0.01286723905 | P17: 101.3025793 | Q17: -0.0001677525343 | R17: 102.3498756 | S17: 0.01033829835 | U17: 100.5856166 | V17: -0.01723752917 | W17: 98.78493679 | X17: -0.01790196151 | Y17: 102.174578 | Z17: 0.03431334104 | AA17: 107.1102822 | AB17: 0.04830657727 | AD17: ='CPI Sub-Categories'!Y18 -> 107.2856208 | AE17: 0.001636991326 | AF17: ='CPI Sub-Categories'!Z18 -> 112.5272284 | AG17: 0.04885657217 | AH17: ='CPI Sub-Categories'!AA18 -> 112.5242624 | AI17: -2.635873263e-05 | AJ17: ='CPI Sub-Categories'!AB18 -> 120.7085756 | AK17: 0.07273376446 | AM17: ='CPI Sub-Categories'!AD18 -> 120.1615406 | AN17: -0.004531864604 | AO17: ='CPI Sub-Categories'!AE18 -> 119.4492398 | AP17: -0.005927860159 | AQ17: ='CPI Sub-Categories'!AF18 -> 119.5156214 | AR17: 0.0005557304012 | AS17: ='CPI Sub-Categories'!AG18 -> 119.459428 | AT17: -0.0004701758415 | AV17: ='CPI Sub-Categories'!AI18 -> 122.6960077 | AW17: 0.02709354694 | AX17: ='CPI Sub-Categories'!AJ18 -> 121.1350187 | AY17: -0.01272241075 | AZ17: ='CPI Sub-Categories'!AK18 -> 121.5530003 | BA17: 0.003450543086 | BB17: ='CPI Sub-Categories'!AL18 -> 120.0447711 | BC17: -0.01240799622 | BE17: ='CPI Sub-Categories'!AM18 -> 120.8366476 | BF17: 0.006596509706 | BG17: ='CPI Sub-Categories'!AN18 -> 119.496297 | BH17: -0.01109225223 | BI17: ='CPI Sub-Categories'!AO18 -> 123.1665765 | BJ17: 0.03071458783 | BK17: ='CPI Sub-Categories'!AU18 -> 0 | BL17: -1
A18: 3 | B18: 011800 | C18: Sugar, jam, honey, chocolate and confectionery | D18: 100.8636301 | E18: 99.08755095 | F18: -0.01760871692 | G18: 98.05043389 | H18: -0.01046667364 | I18: 98.24633416 | J18: 0.001997954082 | L18: 99.80935833 | M18: 0.01590923656 | N18: 100.0642746 | O18: 0.002554032024 | P18: 101.109649 | Q18: 0.01044702892 | R18: 102.2751254 | S18: 0.01152685609 | U18: 101.6044041 | V18: -0.006558009922 | W18: 102.4683643 | X18: 0.008503176489 | Y18: 103.568635 | Z18: 0.01073766254 | AA18: 103.7063222 | AB18: 0.001329429785 | AD18: ='CPI Sub-Categories'!Y19 -> 104.295647 | AE18: 0.005682631128 | AF18: ='CPI Sub-Categories'!Z19 -> 106.4087418 | AG18: 0.02026062335 | AH18: ='CPI Sub-Categories'!AA19 -> 106.7074558 | AI18: 0.002807231449 | AJ18: ='CPI Sub-Categories'!AB19 -> 108.216044 | AK18: 0.01413760842 | AM18: ='CPI Sub-Categories'!AD19 -> 109.3717179 | AN18: 0.0106793215 | AO18: ='CPI Sub-Categories'!AE19 -> 111.1500301 | AP18: 0.01625934213 | AQ18: ='CPI Sub-Categories'!AF19 -> 112.8948108 | AR18: 0.01569752763 | AS18: ='CPI Sub-Categories'!AG19 -> 113.143668 | AT18: 0.002204328532 | AV18: ='CPI Sub-Categories'!AI19 -> 113.9054777 | AW18: 0.006733117727 | AX18: ='CPI Sub-Categories'!AJ19 -> 118.4406394 | AY18: 0.03981513255 | AZ18: ='CPI Sub-Categories'!AK19 -> 121.2257512 | BA18: 0.02351483257 | BB18: ='CPI Sub-Categories'!AL19 -> 121.2491506 | BC18: 0.0001930237966 | BE18: ='CPI Sub-Categories'!AM19 -> 122.1354522 | BF18: 0.007309754692 | BG18: ='CPI Sub-Categories'!AN19 -> 124.2713594 | BH18: 0.01748802042 | BI18: ='CPI Sub-Categories'!AO19 -> 123.9074629 | BJ18: -0.002928241611 | BK18: ='CPI Sub-Categories'!AU19 -> 0 | BL18: -1
A19: 3 | B19: 011900 | C19: Food products n.e.c. | D19: 100.4073545 | E19: 100.0146673 | F19: -0.003910940242 | G19: 102.6089118 | H19: 0.0259386407 | I19: 103.7998031 | J19: 0.0116061193 | L19: 105.1589371 | M19: 0.01309380105 | N19: 107.3848483 | O19: 0.02116711383 | P19: 103.9484007 | Q19: -0.03200123316 | R19: 102.4211067 | S19: -0.01469280845 | U19: 102.5853202 | V19: 0.001603316889 | W19: 103.0002515 | X19: 0.004044742744 | Y19: 102.3021279 | Z19: -0.006777881837 | AA19: 101.9721541 | AB19: -0.003225483596 | AD19: ='CPI Sub-Categories'!Y20 -> 104.1635369 | AE19: 0.02149001228 | AF19: ='CPI Sub-Categories'!Z20 -> 107.5735553 | AG19: 0.03273716021 | AH19: ='CPI Sub-Categories'!AA20 -> 109.5620436 | AI19: 0.01848491703 | AJ19: ='CPI Sub-Categories'!AB20 -> 111.2414106 | AK19: 0.01532799998 | AM19: ='CPI Sub-Categories'!AD20 -> 113.1405832 | AN19: 0.01707253245 | AO19: ='CPI Sub-Categories'!AE20 -> 115.7706088 | AP19: 0.02324564339 | AQ19: ='CPI Sub-Categories'!AF20 -> 118.0418966 | AR19: 0.0196188632 | AS19: ='CPI Sub-Categories'!AG20 -> 118.9174399 | AT19: 0.007417224874 | AV19: ='CPI Sub-Categories'!AI20 -> 122.1057843 | AW19: 0.02681141152 | AX19: ='CPI Sub-Categories'!AJ20 -> 124.3475062 | AY19: 0.01835885153 | AZ19: ='CPI Sub-Categories'!AK20 -> 125.6112169 | BA19: 0.01016273398 | BB19: ='CPI Sub-Categories'!AL20 -> 125.9865179 | BC19: 0.002987798384 | BE19: ='CPI Sub-Categories'!AM20 -> 127.0898107 | BF19: 0.008757229037 | BG19: ='CPI Sub-Categories'!AN20 -> 128.4484355 | BH19: 0.01069027378 | BI19: ='CPI Sub-Categories'!AO20 -> 131.7583039 | BJ19: 0.02576807098 | BK19: ='CPI Sub-Categories'!AU20 -> 0 | BL19: -1
A20: 2 | B20: 012000 | C20: Non-alcoholic beverages | D20: 101.3422366 | E20: 99.70065911 | F20: -0.01619835467 | G20: 98.80738531 | H20: -0.008959557652 | I20: 97.92479136 | J20: -0.008932469447 | L20: 99.15724095 | M20: 0.01258567487 | N20: 103.4821882 | O20: 0.04361705955 | P20: 104.0103546 | Q20: 0.005103934919 | R20: 103.5414558 | S20: -0.004508193435 | U20: 102.9510866 | V20: -0.005701765917 | W20: 101.7462644 | X20: -0.01170286047 | Y20: 102.0267481 | Z20: 0.002756697695 | AA20: 101.6084573 | AB20: -0.004099815322 | AD20: ='CPI Sub-Categories'!Y21 -> 103.7952101 | AE20: 0.02152136625 | AF20: ='CPI Sub-Categories'!Z21 -> 107.1198676 | AG20: 0.03203093334 | AH20: ='CPI Sub-Categories'!AA21 -> 110.2616625 | AI20: 0.02932971226 | AJ20: ='CPI Sub-Categories'!AB21 -> 112.7130327 | AK20: 0.0222322987 | AM20: ='CPI Sub-Categories'!AD21 -> 114.276889 | AN20: 0.01387467177 | AO20: ='CPI Sub-Categories'!AE21 -> 116.4814387 | AP20: 0.0192912993 | AQ20: ='CPI Sub-Categories'!AF21 -> 117.2938411 | AR20: 0.006974522402 | AS20: ='CPI Sub-Categories'!AG21 -> 118.196062 | AT20: 0.007691971965 | AV20: ='CPI Sub-Categories'!AI21 -> 120.4752581 | AW20: 0.01928318062 | AX20: ='CPI Sub-Categories'!AJ21 -> 121.3174237 | AY20: 0.006990362009 | AZ20: ='CPI Sub-Categories'!AK21 -> 122.9207769 | BA20: 0.01321618203 | BB20: ='CPI Sub-Categories'!AL21 -> 125.5096911 | BC20: 0.02106164908 | BE20: ='CPI Sub-Categories'!AM21 -> 161.3189188 | BF20: 0.2853104594 | BG20: ='CPI Sub-Categories'!AN21 -> 125.2638632 | BH20: -0.2235017188 | BI20: ='CPI Sub-Categories'!AT21 -> 0 | BJ20: -1 | BK20: ='CPI Sub-Categories'!AU21 -> 0
A21: 3 | B21: 012100 | C21: Coffee, tea and cocoa | D21: 102.8726279 | E21: 103.4851809 | F21: 0.005954480625 | G21: 102.3298977 | H21: -0.01116375487 | I21: 101.8317706 | J21: -0.004867855292 | L21: 100.8126318 | M21: -0.01000806358 | N21: 99.98279495 | O21: -0.00823147654 | P21: 99.79366172 | Q21: -0.001891657748 | R21: 100.4126338 | S21: 0.006202518849 | U21: 99.7677811 | V21: -0.006422027454 | W21: 99.47827174 | X21: -0.002901832167 | Y21: 101.6761644 | Z21: 0.02209419819 | AA21: 102.5416517 | AB21: 0.008512194766 | AD21: ='CPI Sub-Categories'!Y22 -> 103.1864925 | AE21: 0.006288574208 | AF21: ='CPI Sub-Categories'!Z22 -> 105.3091574 | AG21: 0.02057115101 | AH21: ='CPI Sub-Categories'!AA22 -> 107.7203913 | AI21: 0.0228967165 | AJ21: ='CPI Sub-Categories'!AB22 -> 108.7812649 | AK21: 0.009848400705 | AM21: ='CPI Sub-Categories'!AD22 -> 110.1119289 | AN21: 0.01223247365 | AO21: ='CPI Sub-Categories'!AE22 -> 112.1831125 | AP21: 0.01880980294 | AQ21: ='CPI Sub-Categories'!AF22 -> 116.0501363 | AR21: 0.03447064051 | AS21: ='CPI Sub-Categories'!AG22 -> 115.1013744 | AT21: -0.008175448151 | AV21: ='CPI Sub-Categories'!AI22 -> 114.305901 | AW21: -0.00691106784 | AX21: ='CPI Sub-Categories'!AJ22 -> 114.7037874 | AY21: 0.003480890876 | AZ21: ='CPI Sub-Categories'!AK22 -> 115.5164738 | BA21: 0.007085088341 | BB21: ='CPI Sub-Categories'!AL22 -> 116.548273 | BC21: 0.008932052273 | BE21: ='CPI Sub-Categories'!AM22 -> 116.0349358 | BF21: -0.004404503134 | BG21: ='CPI Sub-Categories'!AN22 -> 117.7903067 | BH21: 0.01512795138 | BI21: ='CPI Sub-Categories'!AO22 -> 118.7783367 | BJ21: 0.008388042189 | BK21: ='CPI Sub-Categories'!AU22 -> 0 | BL21: -1
A22: 3 | B22: 012200 | C22: Mineral waters, soft drinks, fruit and vegetable juices | D22: 101.09754 | E22: 99.09554623 | F22: -0.01980259674 | G22: 98.2441655 | H22: -0.008591513549 | I22: 97.30009858 | J22: -0.009609394339 | L22: 98.89255802 | M22: 0.01636647308 | N22: 104.0417115 | O22: 0.05206815929 | P22: 104.6845679 | Q22: 0.006178833987 | R22: 104.0417278 | S22: -0.006140734198 | U22: 103.4600702 | V22: -0.005590619258 | W22: 102.1088972 | X22: -0.01305984953 | Y22: 102.0828035 | Z22: -0.0002555478498 | AA22: 101.4592475 | AB22: -0.006108335794 | AD22: ='CPI Sub-Categories'!Y23 -> 103.8925389 | AE22: 0.02398294408 | AF22: ='CPI Sub-Categories'!Z23 -> 107.4093848 | AG22: 0.03385080284 | AH22: ='CPI Sub-Categories'!AA23 -> 110.6679901 | AI22: 0.03033818128 | AJ22: ='CPI Sub-Categories'!AB23 -> 113.341689 | AK22: 0.02415964011 | AM22: ='CPI Sub-Categories'!AD23 -> 114.9428308 | AN22: 0.01412668037 | AO22: ='CPI Sub-Categories'!AE23 -> 117.1687045 | AP22: 0.01936505081 | AQ22: ='CPI Sub-Categories'!AF23 -> 117.4926989 | AR22: 0.002765195752 | AS22: ='CPI Sub-Categories'!AG23 -> 118.6908763 | AT22: 0.01019788781 | AV22: ='CPI Sub-Categories'!AI23 -> 121.4616858 | AW22: 0.02334475586 | AX22: ='CPI Sub-Categories'!AJ23 -> 122.374888 | AY22: 0.007518437982 | AZ22: ='CPI Sub-Categories'!AK23 -> 124.104662 | BA22: 0.01413504085 | BB22: ='CPI Sub-Categories'!AL23 -> 126.9425458 | BC22: 0.02286685845 | BE22: ='CPI Sub-Categories'!AM23 -> 126.0925162 | BF22: -0.006696175439 | BG22: ='CPI Sub-Categories'!AN23 -> 126.4588213 | BH22: 0.002905050571 | BI22: ='CPI Sub-Categories'!AO23 -> 126.9422853 | BJ22: 0.003823094362 | BK22: ='CPI Sub-Categories'!AU23 -> 0 | BL22: -1
A23: 1 | B23: 020000 | C23: Alcoholic beverages, tobacco and narcotics | D23: 100.9171401 | E23: 101.6686948 | F23: 0.007447245049 | G23: 102.447433 | H23: 0.007659567795 | I23: 102.8033548 | J23: 0.003474189057 | L23: 103.3938481 | M23: 0.005743910461 | N23: 103.936654 | O23: 0.005249886733 | P23: 103.3011759 | Q23: -0.006114090368 | R23: 102.8474078 | S23: -0.00439267195 | U23: 102.8251411 | V23: -0.0002165022794 | W23: 103.1211286 | X23: 0.002878551852 | Y23: 104.1493095 | Z23: 0.009970613924 | AA23: 104.7590207 | AB23: 0.005854202762 | AD23: ='CPI Sub-Categories'!Y24 -> 105.8832663 | AE23: 0.01073173101 | AF23: ='CPI Sub-Categories'!Z24 -> 109.5973209 | AG23: 0.03507687902 | AH23: ='CPI Sub-Categories'!AA24 -> 109.7121407 | AI23: 0.001047651788 | AJ23: ='CPI Sub-Categories'!AB24 -> 110.6575293 | AK23: 0.008616991423 | AM23: ='CPI Sub-Categories'!AD24 -> 110.4580005 | AN23: -0.001803119876 | AO23: ='CPI Sub-Categories'!AE24 -> 113.6396715 | AP23: 0.02880435067 | AQ23: ='CPI Sub-Categories'!AF24 -> 113.8068659 | AR23: 0.001471268147 | AS23: ='CPI Sub-Categories'!AG24 -> 112.8276242 | AT23: -0.008604416875 | AV23: ='CPI Sub-Categories'!AI24 -> 112.4423045 | AW23: -0.003415117781 | AX23: ='CPI Sub-Categories'!AJ24 -> 112.3270251 | AY23: -0.001025231595 | AZ23: ='CPI Sub-Categories'!AK24 -> 112.4423045 | BA23: 0.001026283773 | BB23: ='CPI Sub-Categories'!AL24 -> 110.8851905 | BC23: -0.01384811593 | BE23: ='CPI Sub-Categories'!AM24 -> 109.8066697 | BF23: -0.009726463352 | BG23: ='CPI Sub-Categories'!AN24 -> 112.3270251 | BH23: 0.02295266229 | BI23: ='CPI Sub-Categories'!AO24 -> 109.7978569 | BJ23: -0.0225161156 | BK23: ='CPI Sub-Categories'!AU24 -> 0 | BL23: -1
A24: 2 | B24: 021000 | C24: Alcoholic beverages | D24: 100.8328942 | E24: 101.6200895 | F24: 0.007806929661 | G24: 102.0585857 | H24: 0.004315054196 | I24: 102.4592096 | J24: 0.003925430623 | L24: 103.1238661 | M24: 0.006487035432 | N24: 102.8912676 | O24: -0.002255525476 | P24: 102.1942524 | Q24: -0.006774288835 | R24: 101.6196278 | S24: -0.005622865893 | U24: 101.5539101 | V24: -0.0006467031481 | W24: 101.7449412 | X24: 0.001881080735 | Y24: 102.902257 | Z24: 0.01137467652 | AA24: 103.5885451 | AB24: 0.006669320335 | AD24: ='CPI Sub-Categories'!Y25 -> 104.895341 | AE24: 0.01261525508 | AF24: ='CPI Sub-Categories'!Z25 -> 109.1796792 | AG24: 0.04084393152 | AH24: ='CPI Sub-Categories'!AA25 -> 109.1809032 | AI24: 1.121110933e-05 | AJ24: ='CPI Sub-Categories'!AB25 -> 110.2450282 | AK24: 0.009746439465 | AM24: ='CPI Sub-Categories'!AD25 -> 109.9773897 | AN24: -0.002427669618 | AO24: ='CPI Sub-Categories'!AE25 -> 113.5975178 | AP24: 0.0329170214 | AQ24: ='CPI Sub-Categories'!AF25 -> 113.9119387 | AR24: 0.002767849395 | AS24: ='CPI Sub-Categories'!AG25 -> 112.6263099 | AT24: -0.01128616328 | AV24: ='CPI Sub-Categories'!AI25 -> 112.0456689 | AW24: -0.005155464832 | AX24: ='CPI Sub-Categories'!AJ25 -> 111.8963565 | AY24: -0.001332603024 | AZ24: ='CPI Sub-Categories'!AK25 -> 111.3467445 | BA24: -0.004911796092 | BB24: ='CPI Sub-Categories'!AL25 -> 110.1288547 | BC24: -0.01093781222 | BE24: ='CPI Sub-Categories'!AM25 -> 108.9148766 | BF24: -0.01102325113 | BG24: ='CPI Sub-Categories'!AN25 -> 108.2169305 | BH24: -0.006408179897 | BI24: ='CPI Sub-Categories'!AO25 -> 108.9049569 | BJ24: 0.006357844255 | BK24: ='CPI Sub-Categories'!AU25 -> 0 | BL24: -1
A25: 3 | B25: 021100 | C25: Spirits | D25: 99.54444236 | E25: 100.1691717 | F25: 0.006275883966 | G25: 100.0872522 | H25: -0.0008178112813 | I25: 99.33530077 | J25: -0.007512959601 | L25: 99.10497761 | M25: -0.002318643611 | N25: 99.16817011 | O25: 0.0006376319747 | P25: 98.03647881 | Q25: -0.01141184004 | R25: 96.51218853 | S25: -0.01554819495 | U25: 96.60669104 | V25: 0.0009791769738 | W25: 97.03694684 | X25: 0.00445368534 | Y25: 97.61258389 | Z25: 0.005932142984 | AA25: 98.48523328 | AB25: 0.008939927161 | AD25: ='CPI Sub-Categories'!Y26 -> 99.55088062 | AE25: 0.01082037688 | AF25: ='CPI Sub-Categories'!Z26 -> 103.9526496 | AG25: 0.04421627321 | AH25: ='CPI Sub-Categories'!AA26 -> 105.1958798 | AI25: 0.01195958169 | AJ25: ='CPI Sub-Categories'!AB26 -> 106.9282548 | AK25: 0.0164680884 | AM25: ='CPI Sub-Categories'!AD26 -> 105.8600018 | AN25: -0.009990371729 | AO25: ='CPI Sub-Categories'!AE26 -> 111.7247475 | AP25: 0.05540096016 | AQ25: ='CPI Sub-Categories'!AF26 -> 111.0222668 | AR25: -0.006287602218 | AS25: ='CPI Sub-Categories'!AG26 -> 110.6268798 | AT25: -0.003561330659 | AV25: ='CPI Sub-Categories'!AI26 -> 109.2285727 | AW25: -0.01263984943 | AX25: ='CPI Sub-Categories'!AJ26 -> 108.0349022 | AY25: -0.01092818861 | AZ25: ='CPI Sub-Categories'!AK26 -> 108.189363 | BA25: 0.001429730058 | BB25: ='CPI Sub-Categories'!AL26 -> 107.6941052 | BC25: -0.004577693402 | BE25: ='CPI Sub-Categories'!AM26 -> 105.8483812 | BF25: -0.01713858028 | BG25: ='CPI Sub-Categories'!AN26 -> 104.749681 | BH25: -0.01037994323 | BI25: ='CPI Sub-Categories'!AO26 -> 105.8835991 | BJ25: 0.01082502687 | BK25: ='CPI Sub-Categories'!AU26 -> 0 | BL25: -1
A26: 3 | B26: 021200 | C26: Wine | D26: 103.9753696 | E26: 105.3858158 | F26: 0.01356519499 | G26: 107.3294821 | H26: 0.0184433384 | I26: 108.7253484 | J26: 0.01300543271 | L26: 111.6796343 | M26: 0.02717200645 | N26: 109.8997111 | O26: -0.01593775978 | P26: 109.1427226 | Q26: -0.006887993254 | R26: 109.3269634 | S26: 0.001688071422 | U26: 109.3269634 | V26: 0 | W26: 109.139332 | X26: -0.001716240107 | Y26: 112.5471811 | Z26: 0.03122475628 | AA26: 114.2702322 | AB26: 0.01530958972 | AD26: ='CPI Sub-Categories'!Y27 -> 116.1724818 | AE26: 0.01664693895 | AF26: ='CPI Sub-Categories'!Z27 -> 122.813012 | AG26: 0.05716095614 | AH26: ='CPI Sub-Categories'!AA27 -> 121.1687903 | AI26: -0.01338800884 | AJ26: ='CPI Sub-Categories'!AB27 -> 122.0684 | AK26: 0.007424434691 | AM26: ='CPI Sub-Categories'!AD27 -> 121.9471744 | AN26: -0.0009930958772 | AO26: ='CPI Sub-Categories'!AE27 -> 125.5566814 | AP26: 0.02959893912 | AQ26: ='CPI Sub-Categories'!AF27 -> 127.7495582 | AR26: 0.01746523348 | AS26: ='CPI Sub-Categories'!AG27 -> 123.2608932 | AT26: -0.03513644222 | AV26: ='CPI Sub-Categories'!AI27 -> 123.5730102 | AW26: 0.002532165454 | AX26: ='CPI Sub-Categories'!AJ27 -> 124.6982544 | AY26: 0.009105906262 | AZ26: ='CPI Sub-Categories'!AK27 -> 121.8597946 | BA26: -0.02276262709 | BB26: ='CPI Sub-Categories'!AL27 -> 117.346151 | BC26: -0.0370396456 | BE26: ='CPI Sub-Categories'!AM27 -> 115.6353632 | BF26: -0.01457898502 | BG26: ='CPI Sub-Categories'!AN27 -> 112.9001037 | BH26: -0.02365417835 | BI26: ='CPI Sub-Categories'!AO27 -> 114.9211303 | BJ26: 0.01790101666 | BK26: ='CPI Sub-Categories'!AU27 -> 0 | BL26: -1
A27: 3 | B27: 021300 | C27: Beer | D27: 100.3799862 | E27: 100.9758505 | F27: 0.005936086529 | G27: 101.0919316 | H27: 0.001149592145 | I27: 102.1610721 | J27: 0.01057592378 | L27: 102.4479745 | M27: 0.00280833327 | N27: 102.8076883 | O27: 0.003511185081 | P27: 102.6201849 | Q27: -0.001823826705 | R27: 102.6325512 | S27: 0.0001205061276 | U27: 102.3532424 | V27: -0.002721444408 | W27: 102.5072732 | X27: 0.001504893783 | Y27: 102.9682704 | Z27: 0.004497214287 | AA27: 102.8383018 | AB27: -0.0012622197 | AD27: ='CPI Sub-Categories'!Y28 -> 104.0560126 | AE27: 0.01184102371 | AF27: ='CPI Sub-Categories'!Z28 -> 106.8191206 | AG27: 0.02655404522 | AH27: ='CPI Sub-Categories'!AA28 -> 106.4387463 | AI27: -0.003560919625 | AJ27: ='CPI Sub-Categories'!AB28 -> 106.8713626 | AK27: 0.004064462222 | AM27: ='CPI Sub-Categories'!AD28 -> 107.3902911 | AN27: 0.004855636559 | AO27: ='CPI Sub-Categories'!AE28 -> 108.5687546 | AP27: 0.01097365032 | AQ27: ='CPI Sub-Categories'!AF28 -> 108.8815047 | AR27: 0.002880663793 | AS27: ='CPI Sub-Categories'!AG28 -> 108.5188736 | AT27: -0.003330510981 | AV27: ='CPI Sub-Categories'!AI28 -> 108.3020993 | AW27: -0.001997572783 | AX27: ='CPI Sub-Categories'!AJ28 -> 108.5381314 | AY27: 0.002179386472 | AZ27: ='CPI Sub-Categories'!AK28 -> 108.5740114 | BA27: 0.0003305748172 | BB27: ='CPI Sub-Categories'!AL28 -> 108.5167335 | BC27: -0.0005275464998 | BE27: ='CPI Sub-Categories'!AM28 -> 108.2854799 | BF27: -0.002131041149 | BG27: ='CPI Sub-Categories'!AN28 -> 109.2292062 | BH27: 0.008715168917 | BI27: ='CPI Sub-Categories'!AO28 -> 108.6427778 | BJ27: -0.005368786809 | BK27: ='CPI Sub-Categories'!AU28 -> 0 | BL27: -1
A28: 2 | B28: 022000 | C28: Tobacco | D28: 101.5879125 | E28: 102.0556938 | F28: 0.004604694444 | G28: 105.5434642 | H28: 0.03417516721 | I28: 105.5434642 | J28: 0 | L28: 105.5434642 | M28: 0 | N28: 112.2600973 | O28: 0.06363855105 | P28: 112.1145819 | Q28: -0.001296234938 | R28: 112.6230811 | S28: 0.00453553202 | U28: 112.9467748 | V28: 0.002874132078 | W28: 114.0784327 | X28: 0.01001939172 | Y28: 114.0784327 | Z28: 0 | AA28: 114.0784327 | AB28: 0 | AD28: ='CPI Sub-Categories'!Y29 -> 113.7491997 | AE28: -0.002886023868 | AF28: ='CPI Sub-Categories'!Z29 -> 112.9226146 | AG28: -0.007266733249 | AH28: ='CPI Sub-Categories'!AA29 -> 113.9418925 | AI28: 0.009026339889 | AJ28: ='CPI Sub-Categories'!AB29 -> 113.9418925 | AK28: 0 | AM28: ='CPI Sub-Categories'!AD29 -> 114.2846582 | AN28: 0.003008250246 | AO28: ='CPI Sub-Categories'!AE29 -> 113.9753017 | AP28: -0.002706894413 | AQ28: ='CPI Sub-Categories'!AF29 -> 112.9702688 | AR28: -0.008817987965 | AS28: ='CPI Sub-Categories'!AG29 -> 114.4305029 | AT28: 0.01292582642 | AV28: ='CPI Sub-Categories'!AI29 -> 115.6003462 | AW28: 0.01022317658 | AX28: ='CPI Sub-Categories'!AJ29 -> 115.7560399 | AY28: 0.001346827946 | AZ28: ='CPI Sub-Categories'!AK29 -> 115.8589821 | BA28: 0.0008893030483 | BB28: ='CPI Sub-Categories'!AL29 -> 116.9071913 | BC28: 0.009047284238 | BE28: ='CPI Sub-Categories'!AM29 -> 116.9071913 | BF28: 0 | BG28: ='CPI Sub-Categories'!AN29 -> 116.9071913 | BH28: 0 | BI28: ='CPI Sub-Categories'!AO29 -> 116.9071913 | BJ28: 0 | BK28: ='CPI Sub-Categories'!AU29 -> 0 | BL28: -1
A29: 3 | B29: 022100 | C29: Tobacco | D29: 101.5879125 | E29: 102.0556938 | F29: 0.004604694444 | G29: 105.5434642 | H29: 0.03417516721 | I29: 105.5434642 | J29: 0 | L29: 105.5434642 | M29: 0 | N29: 112.2600973 | O29: 0.06363855105 | P29: 112.1145819 | Q29: -0.001296234938 | R29: 112.6230811 | S29: 0.00453553202 | U29: 112.9467748 | V29: 0.002874132078 | W29: 114.0784327 | X29: 0.01001939172 | Y29: 114.0784327 | Z29: 0 | AA29: 114.0784327 | AB29: 0 | AD29: ='CPI Sub-Categories'!Y30 -> 113.7491997 | AE29: -0.002886023868 | AF29: ='CPI Sub-Categories'!Z30 -> 112.9226146 | AG29: -0.007266733249 | AH29: ='CPI Sub-Categories'!AA30 -> 113.9418925 | AI29: 0.009026339889 | AJ29: ='CPI Sub-Categories'!AB30 -> 113.9418925 | AK29: 0 | AM29: ='CPI Sub-Categories'!AD30 -> 114.2846582 | AN29: 0.003008250246 | AO29: ='CPI Sub-Categories'!AE30 -> 113.9753017 | AP29: -0.002706894413 | AQ29: ='CPI Sub-Categories'!AF30 -> 112.9702688 | AR29: -0.008817987965 | AS29: ='CPI Sub-Categories'!AG30 -> 114.4305029 | AT29: 0.01292582642 | AV29: ='CPI Sub-Categories'!AI30 -> 115.6003462 | AW29: 0.01022317658 | AX29: ='CPI Sub-Categories'!AJ30 -> 115.7560399 | AY29: 0.001346827946 | AZ29: ='CPI Sub-Categories'!AK30 -> 115.8589821 | BA29: 0.0008893030483 | BB29: ='CPI Sub-Categories'!AL30 -> 116.9071913 | BC29: 0.009047284238 | BE29: ='CPI Sub-Categories'!AM30 -> 116.9071913 | BF29: 0 | BG29: ='CPI Sub-Categories'!AN30 -> 116.9071913 | BH29: 0 | BI29: ='CPI Sub-Categories'!AO30 -> 116.9071913 | BJ29: 0 | BK29: ='CPI Sub-Categories'!AU30 -> 0 | BL29: -1
A30: 3 | B30: 023000 | C30: Narcotics | D30: Not available | E30: Not available | F30: Not available | G30: Not available | H30: Not available | I30: Not available | J30: Not available | L30: Not available | M30: Not available | N30: Not available | O30: Not available | P30: Not available | Q30: Not available | R30: Not available | S30: Not available | U30: Not available | V30: Not available | W30: Not available | X30: Not available | Y30: Not available | Z30: Not available | AA30: Not available | AB30: Not available | AD30: ='CPI Sub-Categories'!Y31 -> Not available | AE30: Not available | AF30: ='CPI Sub-Categories'!Z31 -> Not available | AG30: Not available | AH30: ='CPI Sub-Categories'!AA31 -> Not available | AI30: Not available | AJ30: ='CPI Sub-Categories'!AB31 -> Not available | AK30: Not available | AM30: ='CPI Sub-Categories'!AD31 -> Not available | AN30: Not available | AO30: ='CPI Sub-Categories'!AE31 -> Not available | AP30: Not available | AQ30: ='CPI Sub-Categories'!AF31 -> Not available | AR30: Not available | AS30: ='CPI Sub-Categories'!AG31 -> Not available | AT30: Not available | AV30: ='CPI Sub-Categories'!AI31 -> Not available | AW30: Not available | AX30: ='CPI Sub-Categories'!AJ31 -> Not available | AY30: Not available | AZ30: ='CPI Sub-Categories'!AK31 -> Not available | BA30: Not available | BB30: ='CPI Sub-Categories'!AL31 -> Not available | BC30: Not available | BE30: ='CPI Sub-Categories'!AM31 -> Not available | BF30: Not available | BG30: ='CPI Sub-Categories'!AN31 ->  | BH30: Not available | BI30: ='CPI Sub-Categories'!AO31 -> Not available | BJ30: Not available | BK30: ='CPI Sub-Categories'!AU31 -> 0 | BL30: Not available
A31: 2 | B31: 023000 | C31: Narcotics | D31: Not available | E31: Not available | F31: Not available | G31: Not available | H31: Not available | I31: Not available | J31: Not available | L31: Not available | M31: Not available | N31: Not available | O31: Not available | P31: Not available | Q31: Not available | R31: Not available | S31: Not available | U31: Not available | V31: Not available | W31: Not available | X31: Not available | Y31: Not available | Z31: Not available | AA31: Not available | AB31: Not available | AD31: ='CPI Sub-Categories'!Y32 -> Not available | AE31: Not available | AF31: ='CPI Sub-Categories'!Z32 -> Not available | AG31: Not available | AH31: ='CPI Sub-Categories'!AA32 -> Not available | AI31: Not available | AJ31: ='CPI Sub-Categories'!AB32 -> Not available | AK31: Not available | AM31: ='CPI Sub-Categories'!AD32 -> Not available | AN31: Not available | AO31: ='CPI Sub-Categories'!AE32 -> Not available | AP31: Not available | AQ31: ='CPI Sub-Categories'!AF32 -> Not available | AR31: Not available | AS31: ='CPI Sub-Categories'!AG32 -> Not available | AT31: Not available | AV31: ='CPI Sub-Categories'!AI32 -> Not available | AW31: Not available | AX31: ='CPI Sub-Categories'!AJ32 -> Not available | AY31: Not available | AZ31: ='CPI Sub-Categories'!AK32 -> Not available | BA31: Not available | BB31: ='CPI Sub-Categories'!AL32 -> Not available | BC31: Not available | BE31: ='CPI Sub-Categories'!AM32 -> Not available | BF31: Not available | BG31: ='CPI Sub-Categories'!AN32 -> Not available | BH31: Not available | BI31: ='CPI Sub-Categories'!AO32 -> Not available | BJ31: Not available | BK31: ='CPI Sub-Categories'!AU32 -> 0 | BL31: Not available
A32: 1 | B32: 030000 | C32: Clothing and footwear | D32: 102.8990724 | E32: 103.2555565 | F32: 0.003464405081 | G32: 102.891676 | H32: -0.003524076799 | I32: 103.3669379 | J32: 0.004619051611 | L32: 106.062184 | M32: 0.02607454718 | N32: 103.3378112 | O32: -0.02568656193 | P32: 95.98456564 | Q32: -0.07115735708 | R32: 97.37531503 | S32: 0.01448930225 | U32: 99.2425882 | V32: 0.01917604241 | W32: 101.8018133 | X32: 0.02578756918 | Y32: 100.885919 | Z32: -0.008996836815 | AA32: 101.7661715 | AB32: 0.008725226288 | AD32: ='CPI Sub-Categories'!Y33 -> 101.9837059 | AE32: =(AD32-AA32)/AA32 -> 0.002137590988 | AF32: ='CPI Sub-Categories'!Z33 -> 102.8969152 | AG32: =(AF32-AD32)/AD32 -> 0.008954462333 | AH32: ='CPI Sub-Categories'!AA33 -> 104.5512895 | AI32: 0.0160779782 | AJ32: ='CPI Sub-Categories'!AB33 -> 108.3263418 | AK32: 0.03610718039 | AM32: ='CPI Sub-Categories'!AD33 -> 109.1178561 | AN32: =(AM32-AJ32)/AJ32 -> 0.007306757423 | AO32: ='CPI Sub-Categories'!AE33 -> 109.7600255 | AP32: 0.005885099384 | AQ32: ='CPI Sub-Categories'!AF33 -> 111.8199341 | AR32: 0.01876738365 | AS32: ='CPI Sub-Categories'!AG33 -> 114.9191244 | AT32: 0.02771590193 | AV32: ='CPI Sub-Categories'!AI33 -> 121.1210535 | AW32: =(AV32-AS32)/AS32 -> 0.05396777195 | AX32: ='CPI Sub-Categories'!AJ33 -> 123.3902078 | AY32: 0.01873459853 | AZ32: ='CPI Sub-Categories'!AK33 -> 121.1210535 | BA32: -0.01839006799 | BB32: ='CPI Sub-Categories'!AL33 -> 122.3463586 | BC32: 0.01011636765 | BE32: ='CPI Sub-Categories'!AM33 -> 123.7362925 | BF32: =(BE32-BB32)/BB32 -> 0.01136064765 | BG32: ='CPI Sub-Categories'!AN33 -> 123.3902078 | BH32: =(BG32-BE32)/BE32 -> -0.002796953591 | BI32: ='CPI Sub-Categories'!AO33 -> 124.2568328 | BJ32: =(BI32-BG32)/BG32 -> 0.00702345009 | BK32: ='CPI Sub-Categories'!AU33 -> 0 | BL32: =(BK32-BI32)/BI32 -> -1
A33: 2 | B33: 031000 | C33: Clothing | D33: 105.2917901 | E33: 105.4022897 | F33: 0.001049460906 | G33: 104.683694 | H33: -0.006817647872 | I33: 105.4823816 | J33: 0.007629532023 | L33: 108.3795974 | M33: 0.02746634797 | N33: 106.0139681 | O33: -0.02182725689 | P33: 98.06217995 | Q33: -0.07500698486 | R33: 99.98153544 | S33: 0.01957284132 | U33: 102.4333911 | V33: 0.02452308446 | W33: 106.2153935 | X33: 0.03692157764 | Y33: 105.0641483 | Z33: -0.01083877953 | AA33: 105.3970228 | AB33: 0.003168298293 | AD33: ='CPI Sub-Categories'!Y34 -> 104.5085287 | AE33: -0.008429973104 | AF33: ='CPI Sub-Categories'!Z34 -> 104.9502931 | AG33: 0.004227065005 | AH33: ='CPI Sub-Categories'!AA34 -> 105.514561 | AI33: 0.005376525437 | AJ33: ='CPI Sub-Categories'!AB34 -> 108.7390598 | AK33: 0.03055975164 | AM33: ='CPI Sub-Categories'!AD34 -> 109.1476214 | AN33: 0.0037572665 | AO33: ='CPI Sub-Categories'!AE34 -> 110.1844156 | AP33: 0.00949900861 | AQ33: ='CPI Sub-Categories'!AF34 -> 110.5131982 | AR33: 0.002983929688 | AS33: ='CPI Sub-Categories'!AG34 -> 112.2026817 | AT33: 0.01528761766 | AV33: ='CPI Sub-Categories'!AI34 -> 116.8245924 | AW33: 0.04119251569 | AX33: ='CPI Sub-Categories'!AJ34 -> 118.2572913 | AY33: 0.01226367565 | AZ33: ='CPI Sub-Categories'!AK34 -> 118.5479987 | BA33: 0.002458261468 | BB33: ='CPI Sub-Categories'!AL34 -> 117.8031601 | BC33: -0.006283012325 | BE33: ='CPI Sub-Categories'!AM34 -> 120.2950445 | BF33: 0.02115295032 | BG33: ='CPI Sub-Categories'!AN34 -> 120.6326719 | BH33: 0.002806661044 | BI33: ='CPI Sub-Categories'!AO34 -> 121.0398847 | BJ33: 0.003375642221 | BK33: ='CPI Sub-Categories'!AU34 -> 0 | BL33: -1
A34: 3 | B34: 031100 | C34: Clothing materials | D34: 62.5 | E34: 62.5 | F34: 0 | G34: 62.5 | H34: 0 | I34: 62.5 | J34: 0 | L34: 62.5 | M34: 0 | N34: 62.5 | O34: 0 | P34: 62.5 | Q34: 0 | R34: 62.5 | S34: 0 | U34: 62.5 | V34: 0 | W34: 62.5 | X34: 0 | Y34: 62.5 | Z34: 0 | AA34: 62.5 | AB34: 0 | AD34: ='CPI Sub-Categories'!Y35 -> 62.5 | AE34: 0 | AF34: ='CPI Sub-Categories'!Z35 -> 62.5 | AG34: 0 | AH34: ='CPI Sub-Categories'!AA35 -> 62.5 | AI34: 0 | AJ34: ='CPI Sub-Categories'!AB35 -> 62.5 | AK34: 0 | AM34: ='CPI Sub-Categories'!AD35 -> 62.5 | AN34: 0 | AO34: ='CPI Sub-Categories'!AE35 -> 62.5 | AP34: 0 | AQ34: ='CPI Sub-Categories'!AF35 -> 62.5 | AR34: 0 | AS34: ='CPI Sub-Categories'!AG35 -> 62.5 | AT34: 0 | AV34: ='CPI Sub-Categories'!AI35 -> 62.5 | AW34: 0 | AX34: ='CPI Sub-Categories'!AJ35 -> 62.5 | AY34: 0 | AZ34: ='CPI Sub-Categories'!AK35 -> 62.5 | BA34: 0 | BB34: ='CPI Sub-Categories'!AL35 -> 62.5 | BC34: 0 | BE34: ='CPI Sub-Categories'!AM35 -> 62.5 | BF34: 0 | BG34: ='CPI Sub-Categories'!AN35 -> 62.5 | BH34: 0 | BI34: ='CPI Sub-Categories'!AO35 -> 62.5 | BJ34: 0 | BK34: ='CPI Sub-Categories'!AU35 -> 0 | BL34: -1
A35: 3 | B35: 031200 | C35: Garments | D35: 105.8671567 | E35: 106.0803166 | F35: 0.002013466315 | G35: 105.1979058 | H35: -0.00831832732 | I35: 105.7627599 | J35: 0.005369441879 | L35: 108.9676282 | M35: 0.03030242668 | N35: 106.3817166 | O35: -0.02373100677 | P35: 97.83482656 | Q35: -0.08034171988 | R35: 99.99860768 | S35: 0.02211667551 | U35: 102.7924928 | V35: 0.02793923982 | W35: 107.0343195 | X35: 0.04126591962 | Y35: 105.6968016 | Z35: -0.01249615889 | AA35: 105.9504227 | AB35: 0.002399514737 | AD35: ='CPI Sub-Categories'!Y36 -> 105.0772415 | AE35: -0.008241412395 | AF35: ='CPI Sub-Categories'!Z36 -> 105.4836923 | AG35: 0.003868114037 | AH35: ='CPI Sub-Categories'!AA36 -> 106.065683 | AI35: 0.005517352741 | AJ35: ='CPI Sub-Categories'!AB36 -> 109.5461396 | AK35: 0.03281416208 | AM35: ='CPI Sub-Categories'!AD36 -> 109.7480049 | AN35: 0.001842742341 | AO35: ='CPI Sub-Categories'!AE36 -> 110.689626 | AP35: 0.008579847207 | AQ35: ='CPI Sub-Categories'!AF36 -> 110.1113817 | AR35: -0.005224014845 | AS35: ='CPI Sub-Categories'!AG36 -> 111.7107912 | AT35: 0.01452537844 | AV35: ='CPI Sub-Categories'!AI36 -> 116.6902636 | AW35: 0.04457467649 | AX35: ='CPI Sub-Categories'!AJ36 -> 118.5371364 | AY35: 0.01582713683 | AZ35: ='CPI Sub-Categories'!AK36 -> 118.7078605 | BA35: 0.001440258904 | BB35: ='CPI Sub-Categories'!AL36 -> 118.0297426 | BC35: -0.005712494018 | BE35: ='CPI Sub-Categories'!AM36 -> 120.6433598 | BF35: 0.02214371716 | BG35: ='CPI Sub-Categories'!AN36 -> 120.6864524 | BH35: 0.000357189413 | BI35: ='CPI Sub-Categories'!AO36 -> 120.7846806 | BJ35: 0.0008139124457 | BK35: ='CPI Sub-Categories'!AU36 -> 0 | BL35: -1
A36: 3 | B36: 031300 | C36: Other articles of clothing and clothing accessories | D36: 101.9735825 | E36: 98.87465847 | F36: -0.03038947857 | G36: 100.7682191 | H36: 0.01915112184 | I36: 110.2206075 | J36: 0.09380326911 | L36: 108.4436062 | M36: -0.01612222396 | N36: 108.8637485 | O36: 0.003874293466 | P36: 105.430547 | Q36: -0.03153668288 | R36: 102.8994899 | S36: -0.02400686667 | U36: 98.67309959 | V36: -0.04107299585 | W36: 94.41267085 | X36: -0.04317720597 | Y36: 97.25307347 | Z36: 0.0300849727 | AA36: 100.8692794 | AB36: 0.03718346171 | AD36: ='CPI Sub-Categories'!Y37 -> 97.7585394 | AE36: -0.0308393202 | AF36: ='CPI Sub-Categories'!Z37 -> 100.2286286 | AG36: 0.02526724733 | AH36: ='CPI Sub-Categories'!AA37 -> 97.64195209 | AI36: -0.0258077611 | AJ36: ='CPI Sub-Categories'!AB37 -> 98.5460856 | AK36: 0.009259682885 | AM36: ='CPI Sub-Categories'!AD37 -> 106.6322632 | AN36: 0.08205478192 | AO36: ='CPI Sub-Categories'!AE37 -> 112.8392564 | AP36: 0.05820933596 | AQ36: ='CPI Sub-Categories'!AF37 -> 119.4715743 | AR36: 0.0587766895 | AS36: ='CPI Sub-Categories'!AG37 -> 127.4187427 | AT36: 0.06651932362 | AV36: ='CPI Sub-Categories'!AI37 -> 129.0254426 | AW36: 0.01260960448 | AX36: ='CPI Sub-Categories'!AJ37 -> 119.4113664 | AY36: -0.07451302614 | AZ36: ='CPI Sub-Categories'!AK37 -> 126.0681172 | BA36: 0.05574637483 | BB36: ='CPI Sub-Categories'!AL37 -> 121.6640601 | BC36: -0.03493394879 | BE36: ='CPI Sub-Categories'!AM37 -> 124.8986828 | BF36: 0.02658651009 | BG36: ='CPI Sub-Categories'!AN37 -> 135.705474 | BH36: 0.08652446075 | BI36: ='CPI Sub-Categories'!AO37 -> 137.7550758 | BJ36: 0.01510330942 | BK36: ='CPI Sub-Categories'!AU37 -> 0 | BL36: -1
A37: 3 | B37: 031400 | C37: Cleaning, repair and hire of clothing | D37: 100.9187681 | E37: 100.9187681 | F37: 0 | G37: 101.7637612 | H37: 0.008373002828 | I37: 102.1562484 | J37: 0.003856845727 | L37: 102.1562484 | M37: 0 | N37: 102.1562484 | O37: 0 | P37: 102.1562484 | Q37: 0 | R37: 102.1562484 | S37: 0 | U37: 102.1562484 | V37: 0 | W37: 102.1562484 | X37: 0 | Y37: 102.1562484 | Z37: 0 | AA37: 102.1562484 | AB37: 0 | AD37: ='CPI Sub-Categories'!Y38 -> 102.1562484 | AE37: 0 | AF37: ='CPI Sub-Categories'!Z38 -> 102.1562484 | AG37: 0 | AH37: ='CPI Sub-Categories'!AA38 -> 104.2608214 | AI37: 0.02060151024 | AJ37: ='CPI Sub-Categories'!AB38 -> 104.2608214 | AK37: 0 | AM37: ='CPI Sub-Categories'!AD38 -> 104.2608214 | AN37: 0 | AO37: ='CPI Sub-Categories'!AE38 -> 104.2608214 | AP37: 0 | AQ37: ='CPI Sub-Categories'!AF38 -> 118.4365971 | AR37: 0.1359645505 | AS37: ='CPI Sub-Categories'!AG38 -> 118.4365971 | AT37: 0 | AV37: ='CPI Sub-Categories'!AI38 -> 118.4365971 | AW37: 0 | AX37: ='CPI Sub-Categories'!AJ38 -> 118.4365971 | AY37: 0 | AZ37: ='CPI Sub-Categories'!AK38 -> 117.3943781 | BA37: -0.008799804763 | BB37: ='CPI Sub-Categories'!AL38 -> 117.3943781 | BC37: 0 | BE37: ='CPI Sub-Categories'!AM38 -> 117.3943781 | BF37: 0 | BG37: ='CPI Sub-Categories'!AN38 -> 117.3943781 | BH37: 0 | BI37: ='CPI Sub-Categories'!AO38 -> 122.843007 | BJ37: 0.04641303034 | BK37: ='CPI Sub-Categories'!AU38 -> 0 | BL37: -1
A38: 2 | B38: 032000 | C38: Footwear | D38: 91.86599875 | E38: 93.3567431 | F38: 0.01622737867 | G38: 94.62849176 | H38: 0.01362246171 | I38: 93.61240397 | J38: -0.01073765169 | L38: 95.37634647 | M38: 0.01884304245 | N38: 90.99776925 | O38: -0.04590841842 | P38: 86.4044667 | Q38: -0.05047708965 | R38: 85.35775752 | S38: -0.01211406331 | U38: 84.52945921 | V38: -0.009703843345 | W38: 81.45032912 | X38: -0.03642670992 | Y38: 81.61966281 | Z38: 0.002078981014 | AA38: 85.02393262 | AB38: 0.04170894239 | AD38: ='CPI Sub-Categories'!Y39 -> 90.34148135 | AE38: 0.06254178752 | AF38: ='CPI Sub-Categories'!Z39 -> 93.42857285 | AG38: 0.03417136245 | AH38: ='CPI Sub-Categories'!AA39 -> 100.1095431 | AI38: 0.07150885474 | AJ38: ='CPI Sub-Categories'!AB39 -> 106.4232557 | AK38: 0.06306803889 | AM38: ='CPI Sub-Categories'!AD39 -> 108.9806052 | AN38: 0.02402998768 | AO38: ='CPI Sub-Categories'!AE39 -> 107.8031181 | AP38: -0.01080455591 | AQ38: ='CPI Sub-Categories'!AF39 -> 117.8454312 | AR38: 0.0931541987 | AS38: ='CPI Sub-Categories'!AG39 -> 127.4449285 | AT38: 0.08145837431 | AV38: ='CPI Sub-Categories'!AI39 -> 140.9324891 | AW38: 0.105830501 | AX38: ='CPI Sub-Categories'!AJ39 -> 147.0586276 | AY38: 0.04346860345 | AZ38: ='CPI Sub-Categories'!AK39 -> 139.8805498 | BA38: -0.04881099368 | BB38: ='CPI Sub-Categories'!AL39 -> 143.2955264 | BC38: 0.02441351952 | BE38: ='CPI Sub-Categories'!AM39 -> 139.60425 | BF38: -0.02575988538 | BG38: ='CPI Sub-Categories'!AN39 -> 138.8640013 | BH38: -0.005302480226 | BI38: ='CPI Sub-Categories'!AO39 -> 139.09052 | BJ38: 0.001631227293 | BK38: ='CPI Sub-Categories'!AU39 -> 0 | BL38: -1
A39: 3 | B39: 032100 | C39: Shoes and other footwear | D39: 91.80259798 | E39: 93.30496199 | F39: 0.01636515787 | G39: 94.58662334 | H39: 0.01373626141 | I39: 93.56261563 | J39: -0.01082613673 | L39: 95.34030724 | M39: 0.01900002051 | N39: 90.92760104 | O39: -0.04628374218 | P39: 86.29849582 | Q39: -0.05090979159 | R39: 85.24362803 | S39: -0.01222347831 | U39: 84.40887352 | V39: -0.00979257368 | W39: 81.30574304 | X39: -0.03676308368 | Y39: 81.47639661 | Z39: 0.002098911577 | AA39: 84.90720112 | AB39: 0.04210795593 | AD39: ='CPI Sub-Categories'!Y40 -> 90.26619768 | AE39: 0.06311592518 | AF39: ='CPI Sub-Categories'!Z40 -> 93.37735163 | AG39: 0.03446643405 | AH39: ='CPI Sub-Categories'!AA40 -> 100.1103969 | AI39: 0.0721057643 | AJ39: ='CPI Sub-Categories'!AB40 -> 106.473322 | AK39: 0.06355908289 | AM39: ='CPI Sub-Categories'!AD40 -> 109.0506048 | AN39: 0.02420590274 | AO39: ='CPI Sub-Categories'!AE40 -> 107.8639398 | AP39: -0.0108817829 | AQ39: ='CPI Sub-Categories'!AF40 -> 118.2517693 | AR39: 0.09630493296 | AS39: ='CPI Sub-Categories'!AG40 -> 127.9260902 | AT39: 0.08181121459 | AV39: ='CPI Sub-Categories'!AI40 -> 141.5187801 | AW39: 0.1062542433 | AX39: ='CPI Sub-Categories'!AJ40 -> 147.692669 | AY39: 0.0436259335 | AZ39: ='CPI Sub-Categories'!AK40 -> 140.4141013 | BA39: -0.04928184847 | BB39: ='CPI Sub-Categories'!AL40 -> 143.8556959 | BC39: 0.02451032098 | BE39: ='CPI Sub-Categories'!AM40 -> 140.1356478 | BF39: -0.02585958169 | BG39: ='CPI Sub-Categories'!AN40 -> 139.3896292 | BH39: -0.00532354674 | BI39: ='CPI Sub-Categories'!AO40 -> 139.6179135 | BJ39: 0.001637742771 | BK39: ='CPI Sub-Categories'!AU40 -> 0 | BL39: -1
A40: 3 | B40: 032200 | C40: Repair and hire of footwear | D40: 100 | E40: 100 | F40: 0 | G40: 100 | H40: 0 | I40: 100 | J40: 0 | L40: 100 | M40: 0 | N40: 100 | O40: 0 | P40: 100 | Q40: 0 | R40: 100 | S40: 0 | U40: 100 | V40: 0 | W40: 100 | X40: 0 | Y40: 100 | Z40: 0 | AA40: 100 | AB40: 0 | AD40: ='CPI Sub-Categories'!Y41 -> 100 | AE40: 0 | AF40: ='CPI Sub-Categories'!Z41 -> 100 | AG40: 0 | AH40: ='CPI Sub-Categories'!AA41 -> 100 | AI40: 0 | AJ40: ='CPI Sub-Categories'!AB41 -> 100 | AK40: 0 | AM40: ='CPI Sub-Categories'!AD41 -> 100 | AN40: 0 | AO40: ='CPI Sub-Categories'!AE41 -> 100 | AP40: 0 | AQ40: ='CPI Sub-Categories'!AF41 -> 65.71428571 | AR40: -0.3428571429 | AS40: ='CPI Sub-Categories'!AG41 -> 65.71428571 | AT40: 1.513764959e-15 | AV40: ='CPI Sub-Categories'!AI41 -> 65.71428571 | AW40: 0 | AX40: ='CPI Sub-Categories'!AJ41 -> 65.71428571 | AY40: 0 | AZ40: ='CPI Sub-Categories'!AK41 -> 71.42857143 | BA40: 0.08695652174 | BB40: ='CPI Sub-Categories'!AL41 -> 71.42857143 | BC40: -1.392663762e-15 | BE40: ='CPI Sub-Categories'!AM41 -> 71.42857143 | BF40: 0 | BG40: ='CPI Sub-Categories'!AN41 -> 71.42857143 | BH40: 0 | BI40: ='CPI Sub-Categories'!AO41 -> 71.42857143 | BJ40: 0 | BK40: ='CPI Sub-Categories'!AU41 -> 0 | BL40: -1
A41: 1 | B41: 040000 | C41: Housing, water, electricity, gas and other fuels | D41: 100.034074 | E41: 100.3140255 | F41: 0.002798561543 | G41: 100.8012183 | H41: 0.004856676807 | I41: 99.79317988 | J41: -0.01000026024 | L41: 99.44796161 | M41: -0.003459337309 | N41: 100.789889 | O41: 0.01349376459 | P41: 102.972467 | Q41: 0.02165473217 | R41: 105.2635218 | S41: 0.02224919786 | U41: 105.9178531 | V41: 0.006216125314 | W41: 105.5255046 | X41: -0.003704271676 | Y41: 105.7430211 | Z41: 0.002061269549 | AA41: 106.4402098 | AB41: 0.006593235889 | AD41: ='CPI Sub-Categories'!Y42 -> 106.4907126 | AE41: 0.0004744717351 | AF41: ='CPI Sub-Categories'!Z42 -> 107.5878828 | AG41: 0.01030296556 | AH41: ='CPI Sub-Categories'!AA42 -> 105.531579 | AI41: -0.01911278199 | AJ41: ='CPI Sub-Categories'!AB42 -> 108.4505866 | AK41: 0.02766003878 | AM41: ='CPI Sub-Categories'!AD42 -> 107.9582953 | AN41: -0.00453931395 | AO41: ='CPI Sub-Categories'!AE42 -> 108.807241 | AP41: 0.007863644329 | AQ41: ='CPI Sub-Categories'!AF42 -> 108.0482672 | AR41: -0.006975397449 | AS41: ='CPI Sub-Categories'!AG42 -> 111.9917328 | AT41: 0.0364972592 | AV41: ='CPI Sub-Categories'!AI42 -> 113.934922 | AW41: 0.01735118401 | AX41: ='CPI Sub-Categories'!AJ42 -> 112.4585461 | AY41: -0.01295806342 | AZ41: ='CPI Sub-Categories'!AK42 -> 112.1834026 | BA41: -0.002446621544 | BB41: ='CPI Sub-Categories'!AL42 -> 111.5765639 | BC41: -0.005409344434 | BE41: ='CPI Sub-Categories'!AM42 -> 111.6361107 | BF41: 0.0005336854867 | BG41: ='CPI Sub-Categories'!AN42 -> 112.4585461 | BH41: 0.007367108796 | BI41: ='CPI Sub-Categories'!AO42 -> 111.8597375 | BJ41: -0.005324705061 | BK41: ='CPI Sub-Categories'!AU42 -> 0 | BL41: -1
A42: 2 | B42: 041000 | C42: Actual rentals for housing | D42: 100.034074 | E42: 101.3905529 | F42: 0.01356016917 | G42: 104.2512682 | H42: 0.02821481043 | I42: 100.18137 | J42: -0.03903931528 | L42: 99.12297157 | M42: -0.01056482333 | N42: 102.201106 | O42: 0.03105369358 | P42: 108.1574795 | Q42: 0.05828091048 | R42: 114.2894403 | S42: 0.05669474561 | U42: 114.0369353 | V42: -0.002209346241 | W42: 109.9932651 | X42: -0.03545930258 | Y42: 109.4745542 | Z42: -0.00471584267 | AA42: 109.9375528 | AB42: 0.004229280947 | AD42: ='CPI Sub-Categories'!Y43 -> 109.8126667 | AE42: -0.001135973218 | AF42: ='CPI Sub-Categories'!Z43 -> 103.3441588 | AG42: -0.05890493446 | AH42: ='CPI Sub-Categories'!AA43 -> 97.17752185 | AI42: -0.05967088024 | AJ42: ='CPI Sub-Categories'!AB43 -> 108.6323402 | AK42: 0.1178751852 | AM42: ='CPI Sub-Categories'!AD43 -> 111.5074787 | AN42: 0.02646669004 | AO42: ='CPI Sub-Categories'!AE43 -> 111.4749507 | AP42: -0.0002917114219 | AQ42: ='CPI Sub-Categories'!AF43 -> 107.715389 | AR42: -0.03372561927 | AS42: ='CPI Sub-Categories'!AG43 -> 115.1930445 | AT42: 0.06942049394 | AV42: ='CPI Sub-Categories'!AI43 -> 119.8885247 | AW42: 0.04076183848 | AX42: ='CPI Sub-Categories'!AJ43 -> 114.2790562 | AY42: -0.04678903653 | AZ42: ='CPI Sub-Categories'!AK43 -> 113.4672654 | BA42: -0.007103582929 | BB42: ='CPI Sub-Categories'!AL43 -> 113.4672654 | BC42: 0 | BE42: ='CPI Sub-Categories'!AM43 -> 108.7573868 | BF42: -0.04150869986 | BG42: ='CPI Sub-Categories'!AN43 -> 113.4672654 | BH42: 0.04330628756 | BI42: ='CPI Sub-Categories'!AO43 -> 118.3367902 | BJ42: 0.04291567951 | BK42: ='CPI Sub-Categories'!AU43 -> 0 | BL42: -1
A43: 3 | B43: 041100 | C43: Actual rentals paid by tenants | D43: 100.034074 | E43: 101.3905529 | F43: 0.01356016917 | G43: 104.2512682 | H43: 0.02821481043 | I43: 100.18137 | J43: -0.03903931528 | L43: 99.12297157 | M43: -0.01056482333 | N43: 102.201106 | O43: 0.03105369358 | P43: 108.1574795 | Q43: 0.05828091048 | R43: 114.2894403 | S43: 0.05669474561 | U43: 114.0369353 | V43: -0.002209346241 | W43: 109.9932651 | X43: -0.03545930258 | Y43: 109.4745542 | Z43: -0.00471584267 | AA43: 109.9375528 | AB43: 0.004229280947 | AD43: ='CPI Sub-Categories'!Y44 -> 109.8126667 | AE43: -0.001135973218 | AF43: ='CPI Sub-Categories'!Z44 -> 103.3441588 | AG43: -0.05890493446 | AH43: ='CPI Sub-Categories'!AA44 -> 97.17752185 | AI43: -0.05967088024 | AJ43: ='CPI Sub-Categories'!AB44 -> 108.6323402 | AK43: 0.1178751852 | AM43: ='CPI Sub-Categories'!AD44 -> 111.5074787 | AN43: 0.02646669004 | AO43: ='CPI Sub-Categories'!AE44 -> 111.4749507 | AP43: -0.0002917114219 | AQ43: ='CPI Sub-Categories'!AF44 -> 107.715389 | AR43: -0.03372561927 | AS43: ='CPI Sub-Categories'!AG44 -> 115.1930445 | AT43: 0.06942049394 | AV43: ='CPI Sub-Categories'!AI44 -> 119.8885247 | AW43: 0.04076183848 | AX43: ='CPI Sub-Categories'!AJ44 -> 114.2790562 | AY43: -0.04678903653 | AZ43: ='CPI Sub-Categories'!AK44 -> 113.4672654 | BA43: -0.007103582929 | BB43: ='CPI Sub-Categories'!AL44 -> 113.4672654 | BC43: 0 | BE43: ='CPI Sub-Categories'!AM44 -> 113.4672654 | BF43: 0 | BG43: ='CPI Sub-Categories'!AN44 -> 113.4672654 | BH43: 0 | BI43: ='CPI Sub-Categories'!AO44 -> 118.3367902 | BJ43: 0.04291567951 | BK43: ='CPI Sub-Categories'!AU44 -> 0 | BL43: -1
A44: 3 | B44: 041200 | C44: Other actual rentals | D44: Not available | E44: Not available | F44: Not available | G44: Not available | H44: Not available | I44: Not available | J44: Not available | L44: Not available | M44: Not available | N44: Not available | O44: Not available | P44: Not available | Q44: Not available | R44: Not available | S44: Not available | U44: Not available | V44: Not available | W44: Not available | X44: Not available | Y44: Not available | Z44: Not available | AA44: Not available | AB44: Not available | AD44: ='CPI Sub-Categories'!Y45 -> Not available | AE44: Not available | AF44: ='CPI Sub-Categories'!Z45 -> Not available | AG44: Not available | AH44: ='CPI Sub-Categories'!AA45 -> Not available | AI44: Not available | AJ44: ='CPI Sub-Categories'!AB45 -> Not available | AK44: Not available | AM44: ='CPI Sub-Categories'!AD45 -> Not available | AN44: Not available | AO44: ='CPI Sub-Categories'!AE45 -> Not available | AP44: Not available | AQ44: ='CPI Sub-Categories'!AF45 -> Not available | AR44: Not available | AS44: ='CPI Sub-Categories'!AG45 -> Not available | AT44: Not available | AV44: ='CPI Sub-Categories'!AI45 -> Not available | AW44: Not available | AX44: ='CPI Sub-Categories'!AJ45 -> Not available | AY44: Not available | AZ44: ='CPI Sub-Categories'!AK45 -> Not available | BA44: Not available | BB44: ='CPI Sub-Categories'!AL45 -> Not available | BC44: Not available | BE44: ='CPI Sub-Categories'!AM45 -> Not available | BF44: Not available | BG44: ='CPI Sub-Categories'!AN45 -> Not available | BH44: Not available | BI44: ='CPI Sub-Categories'!AO45 -> Not available | BJ44: Not available | BK44: ='CPI Sub-Categories'!AU45 -> 0 | BL44: Not available
A45: 2 | B45: 042000 | C45: Imputed rentals for housing | D45: 100.034074 | E45: 99.99999997 | F45: -0.000340624 | G45: 99.99999997 | H45: 0 | I45: 99.99999997 | J45: 0 | L45: 99.99999997 | M45: 0 | N45: 99.99999997 | O45: 0 | P45: 99.99999997 | Q45: 0 | R45: 99.99999997 | S45: 0 | U45: 99.99999997 | V45: 0 | W45: 99.99999997 | X45: 0 | Y45: 99.99999997 | Z45: 0 | AA45: 99.99999997 | AB45: 0 | AD45: ='CPI Sub-Categories'!Y46 -> 99.99999997 | AE45: =(AD45-AA45)/AA45 -> 0 | AF45: ='CPI Sub-Categories'!Z46 -> 99.99999997 | AG45: =(AF45-AD45)/AD45 -> 0 | AH45: ='CPI Sub-Categories'!AA46 -> 99.99999997 | AI45: 0 | AJ45: ='CPI Sub-Categories'!AB46 -> 99.99999997 | AK45: 0 | AM45: ='CPI Sub-Categories'!AD46 -> 99.99999997 | AN45: =(AM45-AJ45)/AJ45 -> 0 | AO45: ='CPI Sub-Categories'!AE46 -> 99.99999997 | AP45: 0 | AQ45: ='CPI Sub-Categories'!AF46 -> 99.99999997 | AR45: 0 | AS45: ='CPI Sub-Categories'!AG46 -> 99.99999997 | AT45: 0 | AV45: ='CPI Sub-Categories'!AI46 -> 99.99999997 | AW45: =(AV45-AS45)/AS45 -> 0 | AX45: ='CPI Sub-Categories'!AJ46 -> 99.99999997 | AY45: 0 | AZ45: ='CPI Sub-Categories'!AK46 -> 99.99999997 | BA45: 0 | BB45: ='CPI Sub-Categories'!AL46 -> 99.99999997 | BC45: 0 | BE45: ='CPI Sub-Categories'!AM46 -> 99.99999997 | BF45: =(BE45-BB45)/BB45 -> 0 | BG45: ='CPI Sub-Categories'!AN46 -> 99.99999997 | BH45: =(BG45-BE45)/BE45 -> 0 | BI45: ='CPI Sub-Categories'!AO46 -> 99.99999997 | BJ45: =(BI45-BG45)/BG45 -> 0 | BK45: ='CPI Sub-Categories'!AU46 -> 0 | BL45: =(BK45-BI45)/BI45 -> -1
A46: 3 | B46: 042100 | C46: Imputed rentals of owner-occupiers | D46: 100.034074 | E46: 99.99999997 | F46: -0.000340624 | G46: 99.99999997 | H46: 0 | I46: 99.99999997 | J46: 0 | L46: 99.99999997 | M46: 0 | N46: 99.99999997 | O46: 0 | P46: 99.99999997 | Q46: 0 | R46: 99.99999997 | S46: 0 | U46: 99.99999997 | V46: 0 | W46: 99.99999997 | X46: 0 | Y46: 99.99999997 | Z46: 0 | AA46: 99.99999997 | AB46: 0 | AD46: ='CPI Sub-Categories'!Y47 -> 99.99999997 | AE46: =(AD46-AA46)/AA46 -> 0 | AF46: ='CPI Sub-Categories'!Z47 -> 99.99999997 | AG46: 0 | AH46: ='CPI Sub-Categories'!AA47 -> 99.99999997 | AI46: 0 | AJ46: ='CPI Sub-Categories'!AB47 -> 99.99999997 | AK46: 0 | AM46: ='CPI Sub-Categories'!AD47 -> 99.99999997 | AN46: =(AM46-AJ46)/AJ46 -> 0 | AO46: ='CPI Sub-Categories'!AE47 -> 99.99999997 | AP46: 0 | AQ46: ='CPI Sub-Categories'!AF47 -> 99.99999997 | AR46: 0 | AS46: ='CPI Sub-Categories'!AG47 -> 99.99999997 | AT46: 0 | AV46: ='CPI Sub-Categories'!AI47 -> 99.99999997 | AW46: =(AV46-AS46)/AS46 -> 0 | AX46: ='CPI Sub-Categories'!AJ47 -> 99.99999997 | AY46: 0 | AZ46: ='CPI Sub-Categories'!AK47 -> 99.99999997 | BA46: 0 | BB46: ='CPI Sub-Categories'!AL47 -> 99.99999997 | BC46: 0 | BE46: ='CPI Sub-Categories'!AM47 -> 99.99999997 | BF46: =(BE46-BB46)/BB46 -> 0 | BG46: ='CPI Sub-Categories'!AN47 -> 99.99999997 | BH46: =(BG46-BE46)/BE46 -> 0 | BI46: ='CPI Sub-Categories'!AO47 -> 99.99999997 | BJ46: =(BI46-BG46)/BG46 -> 0 | BK46: ='CPI Sub-Categories'!AU47 -> 0 | BL46: -1
A47: 3 | B47: 042200 | C47: Other imputed rentals | D47: Not available | E47: Not available | F47: Not available | G47: Not available | H47: Not available | I47: Not available | J47: Not available | L47: Not available | M47: Not available | N47: Not available | O47: Not available | P47: Not available | Q47: Not available | R47: Not available | S47: Not available | U47: Not available | V47: Not available | W47: Not available | X47: Not available | Y47: Not available | Z47: Not available | AA47: Not available | AB47: Not available | AD47: ='CPI Sub-Categories'!Y48 -> Not available | AE47: Not available | AF47: ='CPI Sub-Categories'!Z48 -> Not available | AG47: Not available | AH47: ='CPI Sub-Categories'!AA48 -> Not available | AI47: Not available | AJ47: ='CPI Sub-Categories'!AB48 -> Not available | AK47: Not available | AM47: ='CPI Sub-Categories'!AD48 -> Not available | AN47: Not available | AO47: ='CPI Sub-Categories'!AE48 -> Not available | AP47: Not available | AQ47: ='CPI Sub-Categories'!AF48 -> Not available | AR47: Not available | AS47: ='CPI Sub-Categories'!AG48 -> Not available | AT47: Not available | AV47: ='CPI Sub-Categories'!AI48 -> Not available | AW47: Not available | AX47: ='CPI Sub-Categories'!AJ48 -> Not available | AY47: Not available | AZ47: ='CPI Sub-Categories'!AK48 -> Not available | BA47: Not available | BB47: ='CPI Sub-Categories'!AL48 -> Not available | BE47: ='CPI Sub-Categories'!AM48 -> Not available | BF47: Not available | BG47: ='CPI Sub-Categories'!AN48 -> Not available | BH47: Not available | BI47: ='CPI Sub-Categories'!AO48 -> Not available | BJ47: Not available | BK47: ='CPI Sub-Categories'!AU48 -> 0
A48: 2 | B48: 043000 | C48: Maintenance and repair of the dwelling | D48: 97.67249781 | E48: 98.14173194 | F48: 0.004804158191 | G48: 98.45047306 | H48: 0.003145869894 | I48: 100.0832902 | J48: 0.01658516322 | L48: 100.0877917 | M48: 4.497774146e-05 | N48: 100.1070564 | O48: 0.0001924771864 | P48: 100.2479092 | Q48: 0.00140702217 | R48: 101.9591669 | S48: 0.01707025858 | U48: 103.4381426 | V48: 0.01450556809 | W48: 104.766294 | X48: 0.01284005449 | Y48: 106.9529683 | Z48: 0.02087192562 | AA48: 106.4295674 | AB48: -0.004893747924 | AD48: ='CPI Sub-Categories'!Y49 -> 107.2560288 | AE48: =(AD48-AA48)/AA48 -> 0.00776533671 | AF48: ='CPI Sub-Categories'!Z49 -> 115.2768833 | AG48: =(AF48-AD48)/AD48 -> 0.07478231847 | AH48: ='CPI Sub-Categories'!AA49 -> 123.4032669 | AI48: 0.07049447713 | AJ48: ='CPI Sub-Categories'!AB49 -> 123.4157746 | AK48: 0.0001013558242 | AM48: ='CPI Sub-Categories'!AD49 -> 123.5942856 | AN48: =(AM48-AJ48)/AJ48 -> 0.00144641957 | AO48: ='CPI Sub-Categories'!AE49 -> 123.8322179 | AP48: 0.001925107579 | AQ48: ='CPI Sub-Categories'!AF49 -> 121.7453239 | AR48: -0.0168525931 | AS48: ='CPI Sub-Categories'!AG49 -> 126.9099696 | AT48: 0.04242171702 | AV48: ='CPI Sub-Categories'!AI49 -> 129.4816683 | AW48: =(AV48-AS48)/AS48 -> 0.02026396142 | AX48: ='CPI Sub-Categories'!AJ49 -> 126.6932834 | AY48: -0.02153497827 | AZ48: ='CPI Sub-Categories'!AK49 -> 126.3622677 | BA48: -0.002612732779 | BB48: ='CPI Sub-Categories'!AL49 -> 123.2864991 | BC48: -0.02434087811 | BE48: ='CPI Sub-Categories'!AM49 -> 123.9030758 | BF48: =(BE48-BB48)/BB48 -> 0.005001169404 | BG48: ='CPI Sub-Categories'!AN49 -> 121.3082239 | BH48: =(BG48-BE48)/BE48 -> -0.02094259472 | BI48: ='CPI Sub-Categories'!AO49 -> 121.3741101 | BJ48: =(BI48-BG48)/BG48 -> 0.0005431307417 | BK48: ='CPI Sub-Categories'!AU49 -> 0 | BL48: -1
A49: 3 | B49: 043100 | C49: Materials for the maintenance and repair of the dwelling | D49: 96.7714445 | E49: 97.42233473 | F49: 0.006726056782 | G49: 97.85059978 | H49: 0.004395963739 | I49: 100.1155346 | J49: 0.02314686744 | L49: 100.1217788 | M49: 6.237002333e-05 | N49: 100.1485014 | O49: 0.0002669008589 | P49: 100.3438831 | Q49: 0.001950919438 | R49: 102.7176255 | S49: 0.02365607453 | U49: 104.7691616 | V49: 0.01997258181 | W49: 106.6114845 | X49: 0.01758459097 | Y49: 109.644693 | Z49: 0.02845104801 | AA49: 108.9186663 | AB49: -0.006621631084 | AD49: ='CPI Sub-Categories'!Y50 -> 110.0650783 | AE49: =(AD49-AA49)/AA49 -> 0.01052539574 | AF49: ='CPI Sub-Categories'!Z50 -> 121.1910717 | AG49: 0.1010855902 | AH49: ='CPI Sub-Categories'!AA50 -> 132.4634481 | AI49: 0.09301325724 | AJ49: ='CPI Sub-Categories'!AB50 -> 132.4807978 | AK49: 0.0001309777334 | AM49: ='CPI Sub-Categories'!AD50 -> 132.7284163 | AN49: =(AM49-AJ49)/AJ49 -> 0.001869089885 | AO49: ='CPI Sub-Categories'!AE50 -> 133.0584601 | AP49: 0.002486609807 | AQ49: ='CPI Sub-Categories'!AF50 -> 130.1636602 | AR49: -0.02175584985 | AS49: ='CPI Sub-Categories'!AG50 -> 129.5850481 | AT49: -0.004445266704 | AV49: ='CPI Sub-Categories'!AI50 -> 133.1523367 | AW49: =(AV49-AS49)/AS49 -> 0.02752855119 | AX49: ='CPI Sub-Categories'!AJ50 -> 129.2844755 | AY49: -0.02904839165 | AZ49: ='CPI Sub-Categories'!AK50 -> 128.8253126 | BA49: -0.003551569903 | BB49: ='CPI Sub-Categories'!AL50 -> 124.558812 | BC49: -0.03311849608 | BE49: ='CPI Sub-Categories'!AM50 -> 125.4140859 | BF49: =(BE49-BB49)/BB49 -> 0.006866426697 | BG49: ='CPI Sub-Categories'!AN50 -> 124.2597324 | BH49: =(BG49-BE49)/BE49 -> -0.009204337014 | BI49: ='CPI Sub-Categories'!AO50 -> 124.3511254 | BJ49: =(BI49-BG49)/BG49 -> 0.0007354994876 | BK49: ='CPI Sub-Categories'!AU50 -> 0 | BL49: -1
A50: 3 | B50: 043200 | C50: Services for the maintenance and repair of the dwelling | D50: 100 | E50: 100 | F50: 0 | G50: 100 | H50: 0 | I50: 100 | J50: 0 | L50: 100 | M50: 0 | N50: 100 | O50: 0 | P50: 100 | Q50: 0 | R50: 100 | S50: 0 | U50: 100 | V50: 0 | W50: 100 | X50: 0 | Y50: 100 | Z50: 0 | AA50: 100 | AB50: 0 | AD50: ='CPI Sub-Categories'!Y51 -> 100 | AE50: =(AD50-AA50)/AA50 -> 0 | AF50: ='CPI Sub-Categories'!Z51 -> 100 | AG50: 0 | AH50: ='CPI Sub-Categories'!AA51 -> 100 | AI50: 0 | AJ50: ='CPI Sub-Categories'!AB51 -> 100 | AK50: 0 | AM50: ='CPI Sub-Categories'!AD51 -> 100 | AN50: =(AM50-AJ50)/AJ50 -> 0 | AO50: ='CPI Sub-Categories'!AE51 -> 100 | AP50: 0 | AQ50: ='CPI Sub-Categories'!AF51 -> 100 | AR50: 0 | AS50: ='CPI Sub-Categories'!AG51 -> 120 | AT50: 0.2 | AV50: ='CPI Sub-Categories'!AI51 -> 120 | AW50: =(AV50-AS50)/AS50 -> 0 | AX50: ='CPI Sub-Categories'!AJ51 -> 120 | AY50: 0 | AZ50: ='CPI Sub-Categories'!AK51 -> 120 | BA50: 0 | BB50: ='CPI Sub-Categories'!AL51 -> 120 | BC50: 0 | BE50: ='CPI Sub-Categories'!AM51 -> 120 | BF50: =(BE50-BB50)/BB50 -> 0 | BG50: ='CPI Sub-Categories'!AN51 -> 113.6842105 | BH50: =(BG50-BE50)/BE50 -> -0.05263157895 | BI50: ='CPI Sub-Categories'!AO51 -> 113.6842105 | BJ50: =(BI50-BG50)/BG50 -> 0 | BK50: ='CPI Sub-Categories'!AU51 -> 0 | BL50: -1
A51: 2 | B51: 044000 | C51: Water supply and miscellaneous services relating to the dwelling | D51: 100.0239876 | E51: 100.0003598 | F51: -0.0002362209177 | G51: 100.0003598 | H51: 0 | I51: 100.2082812 | J51: 0.002079205744 | L51: 100.8240137 | M51: 0.006144527878 | N51: 100.8240137 | O51: 0 | P51: 100.8240137 | Q51: 0 | R51: 100.7580165 | S51: -0.0006545788646 | U51: 100.6220986 | V51: -0.001348953137 | W51: 100.6220986 | X51: 0 | Y51: 100.6220986 | Z51: 0 | AA51: 101.1712012 | AB51: 0.005457077593 | AD51: ='CPI Sub-Categories'!Y52 -> 102.2872175 | AE51: =(AD51-AA51)/AA51 -> 0.01103096814 | AF51: ='CPI Sub-Categories'!Z52 -> 102.3050266 | AG51: 0.0001741087163 | AH51: ='CPI Sub-Categories'!AA52 -> 102.3050266 | AI51: 0 | AJ51: ='CPI Sub-Categories'!AB52 -> 102.5620544 | AK51: 0.002512366988 | AM51: ='CPI Sub-Categories'!AD52 -> 102.5620544 | AN51: =(AM51-AJ51)/AJ51 -> 0 | AO51: ='CPI Sub-Categories'!AE52 -> 102.5620544 | AP51: 0 | AQ51: ='CPI Sub-Categories'!AF52 -> 102.5620544 | AR51: 0 | AS51: ='CPI Sub-Categories'!AG52 -> 102.2822099 | AT51: -0.002728537841 | AV51: ='CPI Sub-Categories'!AI52 -> 102.2822099 | AW51: =(AV51-AS51)/AS51 -> 0 | AX51: ='CPI Sub-Categories'!AJ52 -> 102.2822099 | AY51: 0 | AZ51: ='CPI Sub-Categories'!AK52 -> 102.2822099 | BA51: 0 | BB51: ='CPI Sub-Categories'!AL52 -> 102.2822099 | BC51: 0 | BE51: ='CPI Sub-Categories'!AM52 -> 102.2822099 | BF51: =(BE51-BB51)/BB51 -> 0 | BG51: ='CPI Sub-Categories'!AN52 -> 99.81124825 | BH51: =(BG51-BE51)/BE51 -> -0.02415827445 | BI51: ='CPI Sub-Categories'!AO52 -> 99.81124825 | BJ51: =(BI51-BG51)/BG51 -> 0 | BK51: ='CPI Sub-Categories'!AU52 -> 0 | BL51: -1
A52: 3 | B52: 044100 | C52: Water supply | D52: 100.0285177 | E52: 100.0004278 | F52: -0.0002808193608 | G52: 100.0004278 | H52: 0 | I52: 100.0004278 | J52: 0 | L52: 100.0004278 | M52: 0 | N52: 100.0004278 | O52: 0 | P52: 100.0004278 | Q52: 0 | R52: 100.0004278 | S52: 0 | U52: 100.0004278 | V52: 0 | W52: 100.0004278 | X52: 0 | Y52: 100.0004278 | Z52: 0 | AA52: 100.0004278 | AB52: 0 | AD52: ='CPI Sub-Categories'!Y53 -> 100.0216026 | AE52: =(AD52-AA52)/AA52 -> 0.0002117469676 | AF52: ='CPI Sub-Categories'!Z53 -> 100.042775 | AG52: 0.0002116783457 | AH52: ='CPI Sub-Categories'!AA53 -> 100.042775 | AI52: 0 | AJ52: ='CPI Sub-Categories'!AB53 -> 100.042775 | AK52: 0 | AM52: ='CPI Sub-Categories'!AD53 -> 100.042775 | AN52: =(AM52-AJ52)/AJ52 -> 0 | AO52: ='CPI Sub-Categories'!AE53 -> 100.042775 | AP52: 0 | AQ52: ='CPI Sub-Categories'!AF53 -> 100.042775 | AR52: 0 | AS52: ='CPI Sub-Categories'!AG53 -> 100.042775 | AT52: 0 | AV52: ='CPI Sub-Categories'!AI53 -> 100.042775 | AW52: =(AV52-AS52)/AS52 -> 0 | AX52: ='CPI Sub-Categories'!AJ53 -> 100.042775 | AY52: 0 | AZ52: ='CPI Sub-Categories'!AK53 -> 100.042775 | BA52: 0 | BB52: ='CPI Sub-Categories'!AL53 -> 100.042775 | BC52: 0 | BE52: ='CPI Sub-Categories'!AM53 -> 100.042775 | BF52: =(BE52-BB52)/BB52 -> 0 | BG52: ='CPI Sub-Categories'!AN53 -> 100.042775 | BH52: =(BG52-BE52)/BE52 -> 0 | BI52: ='CPI Sub-Categories'!AO53 -> 100.042775 | BJ52: =(BI52-BG52)/BG52 -> 0 | BK52: ='CPI Sub-Categories'!AU53 -> 0 | BL52: -1
A53: 3 | B53: 044200 | C53: Refuse collection | D53: Not available | E53: Not available | F53: Not available | G53: Not available | H53: Not available | I53: Not available | J53: Not available | L53: Not available | M53: Not available | N53: Not available | O53: Not available | P53: Not available | Q53: Not available | R53: Not available | S53: Not available | U53: Not available | V53: Not available | W53: Not available | X53: Not available | Y53: Not available | Z53: Not available | AA53: Not available | AB53: Not available | AD53: ='CPI Sub-Categories'!Y54 -> Not available | AE53: Not available | AF53: ='CPI Sub-Categories'!Z54 -> Not available | AG53: Not available | AH53: ='CPI Sub-Categories'!AA54 -> Not available | AI53: Not available | AJ53: ='CPI Sub-Categories'!AB54 -> Not available | AK53: Not available | AM53: ='CPI Sub-Categories'!AD54 -> Not available | AN53: Not available | AO53: ='CPI Sub-Categories'!AE54 -> Not available | AP53: Not available | AQ53: ='CPI Sub-Categories'!AF54 -> Not available | AR53: Not available | AS53: ='CPI Sub-Categories'!AG54 -> Not available | AT53: Not available | AV53: ='CPI Sub-Categories'!AI54 -> Not available | AW53: Not available | AX53: ='CPI Sub-Categories'!AJ54 -> Not available | AY53: Not available | AZ53: ='CPI Sub-Categories'!AK54 -> Not available | BA53: Not available | BB53: ='CPI Sub-Categories'!AL54 -> Not available | BC53: Not available | BE53: ='CPI Sub-Categories'!AM54 -> Not available | BF53: Not available | BG53: ='CPI Sub-Categories'!AN54 -> Not available | BH53: Not available | BI53: ='CPI Sub-Categories'!AO54 -> Not available | BJ53: Not available | BK53: ='CPI Sub-Categories'!AU54 -> 0 | BL53: Not available
A54: 3 | B54: 044300 | C54: Sewage collection | D54: 100 | E54: 100 | F54: 0 | G54: 100 | H54: 0 | I54: 98.11275528 | J54: -0.01887244719 | L54: 100 | M54: 0.01923546753 | N54: 100 | O54: 0 | P54: 100 | Q54: 0 | R54: 98.13067629 | S54: -0.01869323707 | U54: 94.28090416 | V54: -0.03923107717 | W54: 94.28090416 | X54: 0 | Y54: 94.28090416 | Z54: 0 | AA54: 94.28090416 | AB54: 0 | AD54: ='CPI Sub-Categories'!Y55 -> 94.28090416 | AE54: =(AD54-AA54)/AA54 -> 0 | AF54: ='CPI Sub-Categories'!Z55 -> 94.28090416 | AG54: =(AF54-AD54)/AD54 -> 0 | AH54: ='CPI Sub-Categories'!AA55 -> 94.28090416 | AI54: 0 | AJ54: ='CPI Sub-Categories'!AB55 -> 101.5610253 | AK54: 0.07721734502 | AM54: ='CPI Sub-Categories'!AD55 -> 101.5610253 | AN54: =(AM54-AJ54)/AJ54 -> 0 | AO54: ='CPI Sub-Categories'!AE55 -> 101.5610253 | AP54: 0 | AQ54: ='CPI Sub-Categories'!AF55 -> 101.5610253 | AR54: 0 | AS54: ='CPI Sub-Categories'!AG55 -> 93.63463875 | AT54: -0.07804555427 | AV54: ='CPI Sub-Categories'!AI55 -> 93.63463875 | AW54: =(AV54-AS54)/AS54 -> 0 | AX54: ='CPI Sub-Categories'!AJ55 -> 93.63463875 | AY54: 0 | AZ54: ='CPI Sub-Categories'!AK55 -> 93.63463875 | BA54: 0 | BB54: ='CPI Sub-Categories'!AL55 -> 93.63463875 | BC54: 1.062384437e-15 | BE54: ='CPI Sub-Categories'!AM55 -> 93.63463875 | BF54: =(BE54-BB54)/BB54 -> -1.062384437e-15 | BG54: ='CPI Sub-Categories'!AN55 -> 93.63463875 | BH54: =(BG54-BE54)/BE54 -> 0 | BI54: ='CPI Sub-Categories'!AO55 -> 93.63463875 | BJ54: =(BI54-BG54)/BG54 -> 0 | BK54: ='CPI Sub-Categories'!AU55 -> 0 | BL54: =(BK54-BI54)/BI54 -> -1
A55: 3 | B55: 044400 | C55: Other services relating to the dwelling n.e.c. | D55: 100 | E55: 100 | F55: 0 | G55: 100 | H55: 0 | I55: 102.2222222 | J55: 0.02222222222 | L55: 106.6666667 | M55: 0.04347826087 | N55: 106.6666667 | O55: 0 | P55: 106.6666667 | Q55: 0 | R55: 106.6666667 | S55: 0 | U55: 106.6666667 | V55: 0 | W55: 106.6666667 | X55: 0 | Y55: 106.6666667 | Z55: 0 | AA55: 111.1111111 | AB55: 0.04166666667 | AD55: ='CPI Sub-Categories'!Y56 -> 120 | AE55: =(AD55-AA55)/AA55 -> 0.08 | AF55: ='CPI Sub-Categories'!Z56 -> 120 | AG55: 0 | AH55: ='CPI Sub-Categories'!AA56 -> 120 | AI55: 0 | AJ55: ='CPI Sub-Categories'!AB56 -> 120 | AK55: 0 | AM55: ='CPI Sub-Categories'!AD56 -> 120 | AN55: =(AM55-AJ55)/AJ55 -> 0 | AO55: ='CPI Sub-Categories'!AE56 -> 120 | AP55: 0 | AQ55: ='CPI Sub-Categories'!AF56 -> 120 | AR55: 0 | AS55: ='CPI Sub-Categories'!AG56 -> 120 | AT55: 0 | AV55: ='CPI Sub-Categories'!AI56 -> 120 | AW55: =(AV55-AS55)/AS55 -> 0 | AX55: ='CPI Sub-Categories'!AJ56 -> 120 | AY55: 0 | AZ55: ='CPI Sub-Categories'!AK56 -> 120 | BA55: 0 | BB55: ='CPI Sub-Categories'!AL56 -> 120 | BC55: 0 | BE55: ='CPI Sub-Categories'!AM56 -> 120 | BF55: =(BE55-BB55)/BB55 -> 0 | BG55: ='CPI Sub-Categories'!AN56 -> 100 | BH55: =(BG55-BE55)/BE55 -> -0.1666666667 | BI55: ='CPI Sub-Categories'!AO56 -> 100 | BJ55: =(BI55-BG55)/BG55 -> 9.947598301e-16 | BK55: ='CPI Sub-Categories'!AU56 -> 0 | BL55: -1
A56: 2 | B56: 045000 | C56: Electricity, gas and other fuels | D56: 100.9667051 | E56: 99.37073759 | F56: -0.01580686885 | G56: 95.22949705 | H56: -0.04167464824 | I56: 97.8086533 | J56: 0.02708358574 | L56: 97.8023317 | M56: -6.463237578e-05 | N56: 99.75878022 | O56: 0.0200041092 | P56: 100.3186232 | Q56: 0.005611966544 | R56: 100.6422192 | S56: 0.003225682331 | U56: 105.8279431 | V56: 0.0515263273 | W56: 113.2665481 | X56: 0.07028961109 | Y56: 115.4877089 | Z56: 0.01961003391 | AA56: 119.6000887 | AB56: 0.03560880942 | AD56: ='CPI Sub-Categories'!Y57 -> 119.5984122 | AE56: =(AD56-AA56)/AA56 -> -1.401748847e-05 | AF56: ='CPI Sub-Categories'!Z57 -> 142.4379189 | AG56: 0.1909683098 | AH56: ='CPI Sub-Categories'!AA57 -> 140.1680775 | AI56: -0.0159356536 | AJ56: ='CPI Sub-Categories'!AB57 -> 131.4209621 | AK56: -0.06240447563 | AM56: ='CPI Sub-Categories'!AD57 -> 119.7581686 | AN56: =(AM56-AJ56)/AJ56 -> -0.08874378415 | AO56: ='CPI Sub-Categories'!AE57 -> 126.2824842 | AP56: 0.05447908621 | AQ56: ='CPI Sub-Categories'!AF57 -> 131.4732362 | AR56: 0.04110429095 | AS56: ='CPI Sub-Categories'!AG57 -> 139.5715437 | AT56: 0.06159662361 | AV56: ='CPI Sub-Categories'!AI57 -> 140.7573108 | AW56: =(AV56-AS56)/AS56 -> 0.008495765796 | AX56: ='CPI Sub-Categories'!AJ57 -> 145.7287648 | AY56: 0.03531933075 | AZ56: ='CPI Sub-Categories'!AK57 -> 145.9467885 | BA56: 0.00149609233 | BB56: ='CPI Sub-Categories'!AL57 -> 142.489261 | BC56: -0.02369032978 | BE56: ='CPI Sub-Categories'!AM57 -> 142.704716 | BF56: =(BE56-BB56)/BB56 -> 0.001512079034 | BG56: ='CPI Sub-Categories'!AN57 -> 134.6069269 | BH56: =(BG56-BE56)/BE56 -> -0.05674506982 | BI56: ='CPI Sub-Categories'!AO57 -> 133.0932007 | BJ56: =(BI56-BG56)/BG56 -> -0.01124552965 | BK56: ='CPI Sub-Categories'!AU57 -> 0 | BL56: -1
A57: 3 | B57: 045100 | C57: Electricity | D57: 101.0842801 | E57: 98.88864249 | F57: -0.02172086111 | G57: 93.43033244 | H57: -0.05519653133 | I57: 96.37311321 | J57: 0.03149705987 | L57: 96.37311321 | M57: 0 | N57: 98.2627821 | O57: 0.01960784314 | P57: 98.2627821 | Q57: 0 | R57: 98.6305851 | S57: 0.003743054985 | U57: 104.5484919 | V57: 0.06000072702 | W57: 112.9305773 | X57: 0.08017413968 | Y57: 115.1482229 | Z57: 0.01963724679 | AA57: 119.8353865 | AB57: 0.04070547931 | AD57: ='CPI Sub-Categories'!Y58 -> 119.8334838 | AE57: =(AD57-AA57)/AA57 -> -1.58775019e-05 | AF57: ='CPI Sub-Categories'!Z58 -> 142.0289287 | AG57: 0.1852190573 | AH57: ='CPI Sub-Categories'!AA58 -> 139.4359492 | AI57: -0.01825670013 | AJ57: ='CPI Sub-Categories'!AB58 -> 129.4492396 | AK57: -0.07162220107 | AM57: ='CPI Sub-Categories'!AD58 -> 116.1335467 | AN57: =(AM57-AJ57)/AJ57 -> -0.1028642029 | AO57: ='CPI Sub-Categories'!AE58 -> 125.0106866 | AP57: 0.07643906649 | AQ57: ='CPI Sub-Categories'!AF58 -> 130.9329187 | AR57: 0.04737380619 | AS57: ='CPI Sub-Categories'!AG58 -> 140.1786195 | AT57: 0.07061402853 | AV57: ='CPI Sub-Categories'!AI58 -> 141.5327706 | AW57: =(AV57-AS57)/AS57 -> 0.009660182707 | AX57: ='CPI Sub-Categories'!AJ58 -> 147.2061359 | AY57: 0.04008517075 | AZ57: ='CPI Sub-Categories'!AK58 -> 147.4532329 | BA57: 0.001678578119 | BB57: ='CPI Sub-Categories'!AL58 -> 143.5071257 | BC57: -0.02676175419 | BE57: ='CPI Sub-Categories'!AM58 -> 143.7545523 | BF57: =(BE57-BB57)/BB57 -> 0.001724141345 | BG57: ='CPI Sub-Categories'!AN58 -> 132.9050847 | BH57: =(BG57-BE57)/BE57 -> -0.07547216739 | BI57: ='CPI Sub-Categories'!AO58 -> 131.177638 | BJ57: =(BI57-BG57)/BG57 -> -0.01299759611 | BK57: ='CPI Sub-Categories'!AU58 -> 0 | BL57: -1
A58: 3 | B58: 045200 | C58: Cooking gas | D58: 100 | E58: 102.6737491 | F58: 0.02673749093 | G58: 107.9057956 | H58: 0.05095797683 | I58: 107.9057956 | J58: 0 | L58: 107.9057956 | M58: 0 | N58: 110.3322511 | O58: 0.02248679462 | P58: 114.8883729 | Q58: 0.04129456086 | R58: 114.8883729 | S58: 0 | U58: 114.8883729 | V58: 0 | W58: 115.6473533 | X58: 0.006606241874 | Y58: 117.8739632 | Z58: 0.01925344468 | AA58: 117.8739632 | AB58: 0 | AD58: ='CPI Sub-Categories'!Y59 -> 117.8739632 | AE58: =(AD58-AA58)/AA58 -> 0 | AF58: ='CPI Sub-Categories'!Z59 -> 145.4918281 | AG58: 0.2342999597 | AH58: ='CPI Sub-Categories'!AA59 -> 145.4918281 | AI58: 0 | AJ58: ='CPI Sub-Categories'!AB59 -> 145.4918281 | AK58: 0 | AM58: ='CPI Sub-Categories'!AD59 -> 145.4918281 | AN58: =(AM58-AJ58)/AJ58 -> 0 | AO58: ='CPI Sub-Categories'!AE59 -> 135.2801539 | AP58: -0.07018726944 | AQ58: ='CPI Sub-Categories'!AF59 -> 135.2801539 | AR58: 0 | AS58: ='CPI Sub-Categories'!AG59 -> 135.2801539 | AT58: 0 | AV58: ='CPI Sub-Categories'!AI59 -> 135.2801539 | AW58: =(AV58-AS58)/AS58 -> 0 | AX58: ='CPI Sub-Categories'!AJ59 -> 135.2801539 | AY58: 0 | AZ58: ='CPI Sub-Categories'!AK59 -> 135.2801539 | BA58: 0 | BB58: ='CPI Sub-Categories'!AL59 -> 135.2801539 | BC58: 0 | BE58: ='CPI Sub-Categories'!AM59 -> 135.2801539 | BF58: =(BE58-BB58)/BB58 -> 0 | BG58: ='CPI Sub-Categories'!AN59 -> 146.7329799 | BH58: =(BG58-BE58)/BE58 -> 0.08466006001 | BI58: ='CPI Sub-Categories'!AO59 -> 146.7329799 | BJ58: =(BI58-BG58)/BG58 -> 0 | BK58: ='CPI Sub-Categories'!AU59 -> 0 | BL58: -1
A59: 3 | B59: 045300 | C59: Liquid fuels | D59: Not available | E59: Not available | F59: Not available | G59: Not available | H59: Not available | I59: Not available | J59: Not available | L59: Not available | M59: Not available | N59: Not available | O59: Not available | P59: Not available | Q59: Not available | R59: Not available | S59: Not available | U59: Not available | V59: Not available | W59: Not available | X59: Not available | Y59: Not available | Z59: Not available | AA59: Not available | AB59: Not available | AD59: ='CPI Sub-Categories'!Y60 -> Not available | AE59: Not available | AF59: ='CPI Sub-Categories'!Z60 -> Not available | AG59: Not available | AH59: ='CPI Sub-Categories'!AA60 -> Not available | AI59: Not available | AJ59: ='CPI Sub-Categories'!AB60 -> Not available | AK59: Not available | AM59: ='CPI Sub-Categories'!AD60 -> Not available | AN59: Not available | AO59: ='CPI Sub-Categories'!AE60 -> Not available | AP59: Not available | AQ59: ='CPI Sub-Categories'!AF60 -> Not available | AR59: Not available | AS59: ='CPI Sub-Categories'!AG60 -> Not available | AT59: Not available | AV59: ='CPI Sub-Categories'!AI60 -> Not available | AW59: Not available | AX59: ='CPI Sub-Categories'!AJ60 -> Not available | AY59: Not available | AZ59: ='CPI Sub-Categories'!AK60 -> Not available | BA59: Not available | BB59: ='CPI Sub-Categories'!AL60 -> Not available | BE59: ='CPI Sub-Categories'!AM60 -> Not available | BF59: Not available | BG59: ='CPI Sub-Categories'!AN60 -> Not available | BH59: Not available | BI59: ='CPI Sub-Categories'!AO60 -> Not available | BJ59: Not available | BK59: ='CPI Sub-Categories'!AU60 -> 0
A60: 3 | B60: 045400 | C60: Solid fuels | D60: 117.0027979 | E60: 116.1667288 | F60: -0.007145719591 | G60: 114.2430154 | H60: -0.01655993401 | I60: 115.1258921 | J60: 0.007728058772 | L60: 108.6988708 | M60: -0.05582602804 | N60: 111.4234499 | O60: 0.02506538485 | P60: 111.4264284 | Q60: 2.673195758e-05 | R60: 112.7980302 | S60: 0.01230948294 | U60: 113.6207662 | V60: 0.007293886688 | W60: 115.1093143 | X60: 0.01310102107 | Y60: 119.7809404 | Z60: 0.04058425852 | AA60: 125.645578 | AB60: 0.04896135811 | AD60: ='CPI Sub-Categories'!Y61 -> 125.6359469 | AE60: =(AD60-AA60)/AA60 -> -7.665273574e-05 | AF60: ='CPI Sub-Categories'!Z61 -> 125.2348624 | AG60: =(AF60-AD60)/AD60 -> -0.003192434246 | AH60: ='CPI Sub-Categories'!AA61 -> 127.2394365 | AI60: =(AH60-AF60)/AF60 -> 0.01600651851 | AJ60: ='CPI Sub-Categories'!AB61 -> 129.9234995 | AK60: 0.02109458378 | AM60: ='CPI Sub-Categories'!AD61 -> 133.6010248 | AN60: =(AM60-AJ60)/AJ60 -> 0.02830531302 | AO60: ='CPI Sub-Categories'!AE61 -> 135.0982135 | AP60: 0.01120641618 | AQ60: ='CPI Sub-Categories'!AF61 -> 137.1801454 | AR60: 0.01541050664 | AS60: ='CPI Sub-Categories'!AG61 -> 134.9225113 | AT60: -0.0164574407 | AV60: ='CPI Sub-Categories'!AI61 -> 134.2527928 | AW60: =(AV60-AS60)/AS60 -> -0.004963727074 | AX60: ='CPI Sub-Categories'!AJ61 -> 135.0579435 | AY60: 0.005997273642 | AZ60: ='CPI Sub-Categories'!AK61 -> 136.6156234 | BA60: 0.01153341907 | BB60: ='CPI Sub-Categories'!AL61 -> 136.4271938 | BC60: -0.001379267961 | BE60: ='CPI Sub-Categories'!AM61 -> 135.0798122 | BF60: =(BE60-BB60)/BB60 -> -0.009876194984 | BG60: ='CPI Sub-Categories'!AN61 -> 135.6702335 | BH60: =(BG60-BE60)/BE60 -> 0.004370906814 | BI60: ='CPI Sub-Categories'!AO61 -> 135.4250424 | BJ60: =(BI60-BG60)/BG60 -> -0.00180725774 | BK60: ='CPI Sub-Categories'!AU61 -> 0 | BL60: -1
A61: 3 | B61: 045500 | C61: Heat energy | D61: Not available | E61: Not available | F61: Not available | G61: Not available | H61: Not available | I61: Not available | J61: Not available | L61: Not available | M61: Not available | N61: Not available | O61: Not available | P61: Not available | Q61: Not available | R61: Not available | S61: Not available | U61: Not available | V61: Not available | W61: Not available | X61: Not available | Y61: Not available | Z61: Not available | AA61: Not available | AB61: Not available | AD61: ='CPI Sub-Categories'!Y62 -> Not available | AE61: Not available | AF61: ='CPI Sub-Categories'!Z62 -> Not available | AG61: Not available | AH61: ='CPI Sub-Categories'!AA62 -> Not available | AI61: Not available | AJ61: ='CPI Sub-Categories'!AB62 -> Not available | AK61: Not available | AM61: ='CPI Sub-Categories'!AD62 -> Not available | AN61: Not available | AO61: ='CPI Sub-Categories'!AE62 -> Not available | AP61: Not available | AQ61: ='CPI Sub-Categories'!AF62 -> Not available | AR61: Not available | AS61: ='CPI Sub-Categories'!AG62 -> Not available | AT61: Not available | AV61: ='CPI Sub-Categories'!AI62 -> Not available | AW61: Not available | AX61: ='CPI Sub-Categories'!AJ62 -> Not available | AY61: Not available | AZ61: ='CPI Sub-Categories'!AK62 -> Not available | BA61: Not available | BB61: ='CPI Sub-Categories'!AL62 -> Not available | BC61: Not available | BE61: ='CPI Sub-Categories'!AM62 -> Not available | BF61: Not available | BG61: ='CPI Sub-Categories'!AN62 -> Not available | BH61: Not available | BI61: ='CPI Sub-Categories'!AO62 -> Not available | BJ61: Not available | BK61: ='CPI Sub-Categories'!AU62 -> 0 | BL61: Not available
A62: 1 | B62: 050000 | C62: Furnishings, household equipment and routine household maintenance | D62: 101.0188641 | E62: 100.6999381 | F62: -0.003157093816 | G62: 102.2203116 | H62: 0.01509805838 | I62: 102.9001784 | J62: 0.006650995243 | L62: 103.0155829 | M62: 0.001121519026 | N62: 102.2048098 | O62: -0.007870393034 | P62: 101.6932022 | Q62: -0.005005710065 | R62: 101.5283522 | S62: -0.00162105199 | U62: 102.0034932 | V62: 0.00467988526 | W62: 107.1393706 | X62: 0.0503500149 | Y62: 107.604299 | Z62: 0.00433947258 | AA62: 109.0249808 | AB62: 0.01320283484 | AD62: ='CPI Sub-Categories'!Y63 -> 109.5968923 | AE62: =(AD62-AA62)/AA62 -> 0.005245692739 | AF62: ='CPI Sub-Categories'!Z63 -> 112.0661626 | AG62: =(AF62-AD62)/AD62 -> 0.02253047708 | AH62: ='CPI Sub-Categories'!AA63 -> 113.9722253 | AI62: 0.01700836907 | AJ62: ='CPI Sub-Categories'!AB63 -> 115.9019398 | AK62: 0.01693144544 | AM62: ='CPI Sub-Categories'!AD63 -> 118.3273551 | AN62: =(AM62-AJ62)/AJ62 -> 0.02092644254 | AO62: ='CPI Sub-Categories'!AE63 -> 117.9970543 | AP62: -0.002791414776 | AQ62: ='CPI Sub-Categories'!AF63 -> 118.1407877 | AR62: 0.001218109985 | AS62: ='CPI Sub-Categories'!AG63 -> 116.1860635 | AT62: -0.01654571865 | AV62: ='CPI Sub-Categories'!AI63 -> 116.6014927 | AW62: =(AV62-AS62)/AS62 -> 0.003575551013 | AX62: ='CPI Sub-Categories'!AJ63 -> 117.3448502 | AY62: 0.006375197519 | AZ62: ='CPI Sub-Categories'!AK63 -> 116.6014927 | BA62: -0.006334811842 | BB62: ='CPI Sub-Categories'!AL63 -> 114.7535113 | BC62: -0.01584869403 | BE62: ='CPI Sub-Categories'!AM63 -> 115.4776999 | BF62: =(BE62-BB62)/BB62 -> 0.006310818956 | BG62: ='CPI Sub-Categories'!AN63 -> 117.3448502 | BH62: =(BG62-BE62)/BE62 -> 0.0161689252 | BI62: ='CPI Sub-Categories'!AO63 -> 117.2877747 | BJ62: =(BI62-BG62)/BG62 -> -0.0004863914446 | BK62: ='CPI Sub-Categories'!AU63 -> 0 | BL62: =(BK62-BI62)/BI62 -> -1
A63: 2 | B63: 051000 | C63: Furniture and furnishings, carpets and other floor coverings | D63: 102.8761833 | E63: 98.72286652 | F63: -0.040371995 | G63: 103.5893265 | H63: 0.04929415183 | I63: 104.7339817 | J63: 0.011049934 | L63: 103.3435029 | M63: -0.01327629077 | N63: 104.1686694 | O63: 0.007984696777 | P63: 103.7273178 | Q63: -0.004236894434 | R63: 101.3291057 | S63: -0.02312035238 | U63: 102.6095738 | V63: 0.01263672644 | W63: 101.2318494 | X63: -0.01342686088 | Y63: 101.1984203 | Z63: -0.0003302229697 | AA63: 102.2001989 | AB63: 0.009899152917 | AD63: ='CPI Sub-Categories'!Y64 -> 104.8571322 | AE63: =(AD63-AA63)/AA63 -> 0.02599733965 | AF63: ='CPI Sub-Categories'!Z64 -> 108.4309967 | AG63: 0.03408318015 | AH63: ='CPI Sub-Categories'!AA64 -> 109.6618718 | AI63: 0.01135169 | AJ63: ='CPI Sub-Categories'!AB64 -> 110.2753952 | AK63: 0.005594682838 | AM63: ='CPI Sub-Categories'!AD64 -> 111.6728398 | AN63: =(AM63-AJ63)/AJ63 -> 0.01267231594 | AO63: ='CPI Sub-Categories'!AE64 -> 107.734991 | AP63: -0.03526236892 | AQ63: ='CPI Sub-Categories'!AF64 -> 108.952321 | AR63: 0.01129930043 | AS63: ='CPI Sub-Categories'!AG64 -> 105.0092475 | AT63: -0.03619081639 | AV63: ='CPI Sub-Categories'!AI64 -> 103.9808277 | AW63: =(AV63-AS63)/AS63 -> -0.009793612578 | AX63: ='CPI Sub-Categories'!AJ64 -> 103.9136075 | AY63: -0.0006464671703 | AZ63: ='CPI Sub-Categories'!AK64 -> 105.4826679 | BA63: 0.01509966243 | BB63: ='CPI Sub-Categories'!AL64 -> 102.2386683 | BC63: -0.03075386352 | BE63: ='CPI Sub-Categories'!AM64 -> 101.7854495 | BF63: =(BE63-BB63)/BB63 -> -0.00443294892 | BG63: ='CPI Sub-Categories'!AN64 -> 103.3928242 | BH63: =(BG63-BE63)/BE63 -> 0.01579179217 | BI63: ='CPI Sub-Categories'!AO64 -> 104.7215183 | BJ63: =(BI63-BG63)/BG63 -> 0.0128509317 | BK63: ='CPI Sub-Categories'!AU64 -> 0 | BL63: =(BK63-BI63)/BI63 -> -1
A64: 3 | B64: 051100 | C64: Furniture and furnishings | D64: 102.5894379 | E64: 98.43551607 | F64: -0.04049073555 | G64: 103.4145962 | H64: 0.05058215056 | I64: 104.1241719 | J64: 0.00686146621 | L64: 103.2512221 | M64: -0.008383738321 | N64: 103.4646386 | O64: 0.002066963553 | P64: 103.7532871 | Q64: 0.002789827739 | R64: 101.2226261 | S64: -0.02439114048 | U64: 101.1026654 | V64: -0.001185117765 | W64: 99.53931046 | X64: -0.01546304389 | Y64: 99.84329901 | Z64: 0.003053954807 | AA64: 101.1464231 | AB64: 0.01305169348 | AD64: ='CPI Sub-Categories'!Y65 -> 103.6335713 | AE64: =(AD64-AA64)/AA64 -> 0.02458958132 | AF64: ='CPI Sub-Categories'!Z65 -> 107.3816248 | AG64: 0.03616640291 | AH64: ='CPI Sub-Categories'!AA65 -> 108.7636408 | AI64: 0.01287013447 | AJ64: ='CPI Sub-Categories'!AB65 -> 108.959176 | AK64: 0.001797799375 | AM64: ='CPI Sub-Categories'!AD65 -> 109.4633945 | AN64: =(AM64-AJ64)/AJ64 -> 0.004627590637 | AO64: ='CPI Sub-Categories'!AE65 -> 104.2609591 | AP64: -0.04752671351 | AQ64: ='CPI Sub-Categories'!AF65 -> 105.0065455 | AR64: 0.007151155996 | AS64: ='CPI Sub-Categories'!AG65 -> 102.1532478 | AT64: -0.02717256966 | AV64: ='CPI Sub-Categories'!AI65 -> 102.404398 | AW64: =(AV64-AS64)/AS64 -> 0.002458563531 | AX64: ='CPI Sub-Categories'!AJ65 -> 102.3334654 | AY64: -0.0006926718073 | AZ64: ='CPI Sub-Categories'!AK65 -> 103.9891821 | BA64: 0.01617962139 | BB64: ='CPI Sub-Categories'!AL65 -> 100.9069497 | BC64: -0.02963993299 | BE64: ='CPI Sub-Categories'!AM65 -> 101.2337052 | BF64: =(BE64-BB64)/BB64 -> 0.003238185766 | BG64: ='CPI Sub-Categories'!AN65 -> 102.9298522 | BH64: =(BG64-BE64)/BE64 -> 0.01675476582 | BI64: ='CPI Sub-Categories'!AO65 -> 103.4385823 | BJ64: =(BI64-BG64)/BG64 -> 0.004942493223 | BK64: ='CPI Sub-Categories'!AU65 -> 0 | BL64: =(BK64-BI64)/BI64 -> -1
A65: 3 | B65: 051200 | C65: Carpets and other floor coverings | D65: 108.0681969 | E65: 103.9258354 | F65: -0.03833099422 | G65: 106.7531164 | H65: 0.02720479393 | I65: 115.7756259 | J65: 0.08451752837 | L65: 105.0144039 | M65: -0.09294894274 | N65: 116.9163459 | O65: 0.1133362815 | P65: 103.2570985 | Q65: -0.1168292369 | R65: 103.2570985 | S65: 0 | U65: 129.8947162 | V65: 0.257973719 | W65: 131.8781475 | X65: 0.01526953066 | Y65: 125.7351977 | Z65: -0.04658049801 | AA65: 121.2806032 | AB65: -0.03542838152 | AD65: ='CPI Sub-Categories'!Y66 -> 127.0117845 | AE65: =(AD65-AA65)/AA65 -> 0.04725554751 | AF65: ='CPI Sub-Categories'!Z66 -> 127.4316612 | AG65: 0.003305809169 | AH65: ='CPI Sub-Categories'!AA66 -> 125.9258732 | AI65: -0.01181643581 | AJ65: ='CPI Sub-Categories'!AB66 -> 134.1077842 | AK65: 0.06497402666 | AM65: ='CPI Sub-Categories'!AD66 -> 151.6786095 | AN65: =(AM65-AJ65)/AJ65 -> 0.1310201742 | AO65: ='CPI Sub-Categories'!AE66 -> 170.6382521 | AP65: 0.1249987896 | AQ65: ='CPI Sub-Categories'!AF66 -> 180.3973039 | AR65: 0.05719146603 | AS65: ='CPI Sub-Categories'!AG66 -> 156.7219849 | AT65: -0.1312398712 | AV65: ='CPI Sub-Categories'!AI66 -> 132.5247695 | AW65: =(AV65-AS65)/AS65 -> -0.1543957946 | AX65: ='CPI Sub-Categories'!AJ66 -> 132.5247695 | AY65: 0 | AZ65: ='CPI Sub-Categories'!AK66 -> 132.5247695 | BA65: 0 | BB65: ='CPI Sub-Categories'!AL66 -> 126.3516998 | BC65: -0.04658049801 | BE65: ='CPI Sub-Categories'!AM66 -> 111.7757196 | BF65: =(BE65-BB65)/BB65 -> -0.1153603807 | BG65: ='CPI Sub-Categories'!AN66 -> 111.7757196 | BH65: =(BG65-BE65)/BE65 -> 0 | BI65: ='CPI Sub-Categories'!AO66 -> 127.9512582 | BJ65: =(BI65-BG65)/BG65 -> 0.1447142426 | BK65: ='CPI Sub-Categories'!AU66 -> 0 | BL65: =(BK65-BI65)/BI65 -> -1
A66: 3 | B66: 051300 | C66: Repair of furniture, furnishings and floor coverings | D66: Not relevant | E66: Not relevant | F66: Not relevent | G66: Not relevant | H66: Not relevant | I66: Not relevant | J66: Not relevant | L66: Not relevant | M66: Not relevant | N66: Not relevant | O66: Not relevant | P66: Not relevant | Q66: Not relevant | R66: Not relevant | S66: Not relevant | U66: Not relevant | V66: Not relevant | W66: Not relevant | X66: Not relevant | Y66: Not relevant | Z66: Not relevant | AA66: Not relevant | AB66: Not available | AD66: ='CPI Sub-Categories'!Y67 -> Not relevant | AE66: Not relevant | AF66: ='CPI Sub-Categories'!Z67 -> Not available | AG66: Not relevant | AH66: ='CPI Sub-Categories'!AA67 -> Not available | AI66: Not relevant | AJ66: ='CPI Sub-Categories'!AB67 -> Not available | AK66: Not available | AM66: ='CPI Sub-Categories'!AD67 -> Not available | AN66: Not relevant | AO66: ='CPI Sub-Categories'!AE67 -> Not available | AP66: Not available | AQ66: ='CPI Sub-Categories'!AF67 -> Not available | AR66: Not available | AS66: ='CPI Sub-Categories'!AG67 -> Not available | AT66: Not available | AV66: ='CPI Sub-Categories'!AI67 -> Not available | AW66: Not relevant | AX66: ='CPI Sub-Categories'!AJ67 -> Not available | AY66: Not available | AZ66: ='CPI Sub-Categories'!AK67 -> Not available | BA66: Not available | BB66: ='CPI Sub-Categories'!AL67 -> Not available | BC66: Not available | BE66: ='CPI Sub-Categories'!AM67 -> Not available | BF66: Not relevant | BG66: ='CPI Sub-Categories'!AN67 -> Not available | BH66: Not available | BI66: ='CPI Sub-Categories'!AO67 -> Not available | BJ66: Not available | BK66: ='CPI Sub-Categories'!AU67 -> 0 | BL66: Not available
A67: 2 | B67: 052000 | C67: Household textiles | D67: 97.59851912 | E67: 94.77389356 | F67: -0.02894127481 | G67: 91.29012127 | H67: -0.0367587756 | I67: 92.26848911 | J67: 0.01071712719 | L67: 94.97703804 | M67: 0.02935508047 | N67: 89.5537227 | O67: -0.05710133151 | P67: 87.43735425 | Q67: -0.02363238947 | R67: 92.73538395 | S67: 0.06059229199 | U67: 88.18326734 | V67: -0.04908715973 | W67: 88.47460464 | X67: 0.003303770746 | Y67: 95.46307713 | Z67: 0.07898845679 | AA67: 102.1264182 | AB67: 0.06980019122 | AD67: ='CPI Sub-Categories'!Y68 -> 98.0122128 | AE67: =(AD67-AA67)/AA67 -> -0.04028541723 | AF67: ='CPI Sub-Categories'!Z68 -> 100.0474781 | AG67: =(AF67-AD67)/AD67 -> 0.02076542558 | AH67: ='CPI Sub-Categories'!AA68 -> 103.8859776 | AI67: 0.03836677881 | AJ67: ='CPI Sub-Categories'!AB68 -> 102.11192 | AK67: -0.01707696837 | AM67: ='CPI Sub-Categories'!AD68 -> 106.6071842 | AN67: =(AM67-AJ67)/AJ67 -> 0.04402291308 | AO67: ='CPI Sub-Categories'!AE68 -> 109.5458858 | AP67: 0.02756569897 | AQ67: ='CPI Sub-Categories'!AF68 -> 113.6636844 | AR67: 0.03758971532 | AS67: ='CPI Sub-Categories'!AG68 -> 101.0980551 | AT67: -0.1105509591 | AV67: ='CPI Sub-Categories'!AI68 -> 110.1787996 | AW67: =(AV67-AS67)/AS67 -> 0.08982115931 | AX67: ='CPI Sub-Categories'!AJ68 -> 117.7900578 | AY67: 0.06908096845 | AZ67: ='CPI Sub-Categories'!AK68 -> 116.4074496 | BA67: -0.01173790248 | BB67: ='CPI Sub-Categories'!AL68 -> 102.4890256 | BC67: -0.1195664365 | BE67: ='CPI Sub-Categories'!AM68 -> 101.0806738 | BF67: =(BE67-BB67)/BB67 -> -0.01374148864 | BG67: ='CPI Sub-Categories'!AN68 -> 103.5760132 | BH67: =(BG67-BE67)/BE67 -> 0.02468661139 | BI67: ='CPI Sub-Categories'!AO68 -> 108.3813957 | BJ67: =(BI67-BG67)/BG67 -> 0.04639474348 | BK67: ='CPI Sub-Categories'!AU68 -> 0 | BL67: =(BK67-BI67)/BI67 -> -1
A68: 3 | B68: 052100 | C68: Household textiles | D68: 97.59851912 | E68: 94.77389356 | F68: -0.02894127481 | G68: 91.29012127 | H68: -0.0367587756 | I68: 92.26848911 | J68: 0.01071712719 | L68: 94.97703804 | M68: 0.02935508047 | N68: 89.5537227 | O68: -0.05710133151 | P68: 87.43735425 | Q68: -0.02363238947 | R68: 92.73538395 | S68: 0.06059229199 | U68: 88.18326734 | V68: -0.04908715973 | W68: 88.47460464 | X68: 0.003303770746 | Y68: 95.46307713 | Z68: 0.07898845679 | AA68: 102.1264182 | AB68: 0.06980019122 | AD68: ='CPI Sub-Categories'!Y69 -> 98.0122128 | AE68: =(AD68-AA68)/AA68 -> -0.04028541723 | AF68: ='CPI Sub-Categories'!Z69 -> 100.0474781 | AG68: 0.02076542558 | AH68: ='CPI Sub-Categories'!AA69 -> 103.8859776 | AI68: 0.03836677881 | AJ68: ='CPI Sub-Categories'!AB69 -> 102.11192 | AK68: -0.01707696837 | AM68: ='CPI Sub-Categories'!AD69 -> 106.6071842 | AN68: =(AM68-AJ68)/AJ68 -> 0.04402291308 | AO68: ='CPI Sub-Categories'!AE69 -> 109.5458858 | AP68: 0.02756569897 | AQ68: ='CPI Sub-Categories'!AF69 -> 113.6636844 | AR68: 0.03758971532 | AS68: ='CPI Sub-Categories'!AG69 -> 101.0980551 | AT68: -0.1105509591 | AV68: ='CPI Sub-Categories'!AI69 -> 110.1787996 | AW68: =(AV68-AS68)/AS68 -> 0.08982115931 | AX68: ='CPI Sub-Categories'!AJ69 -> 117.7900578 | AY68: 0.06908096845 | AZ68: ='CPI Sub-Categories'!AK69 -> 116.4074496 | BA68: -0.01173790248 | BB68: ='CPI Sub-Categories'!AL69 -> 102.4890256 | BC68: -0.1195664365 | BE68: ='CPI Sub-Categories'!AM69 -> 101.0806738 | BF68: =(BE68-BB68)/BB68 -> -0.01374148864 | BG68: ='CPI Sub-Categories'!AN69 -> 103.5760132 | BH68: =(BG68-BE68)/BE68 -> 0.02468661139 | BI68: ='CPI Sub-Categories'!AO69 -> 108.3813957 | BJ68: =(BI68-BG68)/BG68 -> 0.04639474348 | BK68: ='CPI Sub-Categories'!AU69 -> 0 | BL68: =(BK68-BI68)/BI68 -> -1
A69: 2 | B69: 053000 | C69: Household appliances | D69: 102.715554 | E69: 108.8695672 | F69: 0.05991315771 | G69: 112.9973018 | H69: 0.03791449396 | I69: 110.7843384 | J69: -0.0195842142 | L69: 109.1600707 | M69: -0.01466152799 | N69: 107.0689569 | O69: -0.01915639876 | P69: 108.5772161 | Q69: 0.01408680213 | R69: 111.8715783 | S69: 0.03034119273 | U69: 117.0968242 | V69: 0.04670753681 | W69: 114.5243475 | X69: -0.02196879991 | Y69: 108.5913967 | Z69: -0.05180514784 | AA69: 111.0951037 | AB69: 0.02305621815 | AD69: ='CPI Sub-Categories'!Y70 -> 113.9131709 | AE69: =(AD69-AA69)/AA69 -> 0.02536625933 | AF69: ='CPI Sub-Categories'!Z70 -> 117.1792088 | AG69: 0.02867129348 | AH69: ='CPI Sub-Categories'!AA70 -> 125.3446472 | AI69: 0.06968333742 | AJ69: ='CPI Sub-Categories'!AB70 -> 135.9648243 | AK69: 0.08472780759 | AM69: ='CPI Sub-Categories'!AD70 -> 144.9132857 | AN69: =(AM69-AJ69)/AJ69 -> 0.06581453275 | AO69: ='CPI Sub-Categories'!AE70 -> 145.1698663 | AP69: 0.001770579982 | AQ69: ='CPI Sub-Categories'!AF70 -> 140.7301812 | AR69: -0.03058269047 | AS69: ='CPI Sub-Categories'!AG70 -> 137.4885978 | AT69: -0.02303403112 | AV69: ='CPI Sub-Categories'!AI70 -> 136.7203811 | AW69: =(AV69-AS69)/AS69 -> -0.005587494337 | AX69: ='CPI Sub-Categories'!AJ70 -> 137.8150201 | AY69: 0.008006406999 | AZ69: ='CPI Sub-Categories'!AK70 -> 127.4005602 | BA69: -0.07556839501 | BB69: ='CPI Sub-Categories'!AL70 -> 122.6014497 | BC69: -0.03766946144 | BE69: ='CPI Sub-Categories'!AM70 -> 122.9639948 | BF69: =(BE69-BB69)/BB69 -> 0.002957102481 | BG69: ='CPI Sub-Categories'!AN70 -> 123.366937 | BH69: =(BG69-BE69)/BE69 -> 0.003276912576 | BI69: ='CPI Sub-Categories'!AO70 -> 125.0630011 | BJ69: =(BI69-BG69)/BG69 -> 0.01374812542 | BK69: ='CPI Sub-Categories'!AU70 -> 0 | BL69: =(BK69-BI69)/BI69 -> -1
A70: 3 | B70: 053100 | C70: Major household appliances whether electric or not | D70: 101.9856309 | E70: 107.9185245 | F70: 0.05817381816 | G70: 112.2791615 | H70: 0.04040675132 | I70: 110.6095979 | J70: -0.01486975429 | L70: 109.1492923 | M70: -0.01320234094 | N70: 106.9311336 | O70: -0.02032224568 | P70: 108.3298207 | Q70: 0.01308026108 | R70: 111.2820532 | S70: 0.02725226022 | U70: 117.3686344 | V70: 0.05469508353 | W70: 114.5344095 | X70: -0.02414806012 | Y70: 108.8678834 | Z70: -0.04947444299 | AA70: 111.4567252 | AB70: 0.02377966455 | AD70: ='CPI Sub-Categories'!Y71 -> 114.5465625 | AE70: =(AD70-AA70)/AA70 -> 0.02772230532 | AF70: ='CPI Sub-Categories'!Z71 -> 117.790848 | AG70: 0.02832285324 | AH70: ='CPI Sub-Categories'!AA71 -> 126.6748286 | AI70: 0.07542165421 | AJ70: ='CPI Sub-Categories'!AB71 -> 137.957213 | AK70: 0.08906571633 | AM70: ='CPI Sub-Categories'!AD71 -> 147.7470869 | AN70: =(AM70-AJ70)/AJ70 -> 0.07096311793 | AO70: ='CPI Sub-Categories'!AE71 -> 147.9988569 | AP70: 0.001704060147 | AQ70: ='CPI Sub-Categories'!AF71 -> 143.8475236 | AR70: -0.02804976569 | AS70: ='CPI Sub-Categories'!AG71 -> 140.6655798 | AT70: -0.02212025467 | AV70: ='CPI Sub-Categories'!AI71 -> 139.9294653 | AW70: =(AV70-AS70)/AS70 -> -0.005233081571 | AX70: ='CPI Sub-Categories'!AJ71 -> 141.0032036 | AY70: 0.007673425437 | AZ70: ='CPI Sub-Categories'!AK71 -> 129.4337582 | BA70: -0.08205094044 | BB70: ='CPI Sub-Categories'!AL71 -> 124.5325851 | BC70: -0.0378662659 | BE70: ='CPI Sub-Categories'!AM71 -> 128.8780563 | BF70: =(BE70-BB70)/BB70 -> 0.03489425101 | BG70: ='CPI Sub-Categories'!AN71 -> 123.8852373 | BH70: =(BG70-BE70)/BE70 -> -0.03874064488 | BI70: ='CPI Sub-Categories'!AO71 -> 125.5899214 | BJ70: =(BI70-BG70)/BG70 -> 0.01376018713 | BK70: ='CPI Sub-Categories'!AU71 -> 0 | BL70: =(BK70-BI70)/BI70 -> -1
A71: 3 | B71: 053200 | C71: Small electric household appliances | D71: 111.6448697 | E71: 120.5038899 | F71: 0.0793499979 | G71: 121.7824758 | H71: 0.01061032897 | I71: 112.9219784 | J71: -0.07275675188 | L71: 109.2919255 | M71: -0.0321465579 | N71: 108.7549808 | O71: -0.004912940296 | P71: 111.6036601 | Q71: 0.02619355243 | R71: 119.0833739 | S71: 0.06702032761 | U71: 113.7717081 | V71: -0.04460459632 | W71: 114.4012561 | X71: 0.005533432122 | Y71: 105.209072 | Z71: -0.0803503778 | AA71: 106.6713053 | AB71: 0.01389835754 | AD71: ='CPI Sub-Categories'!Y72 -> 106.1647462 | AE71: =(AD71-AA71)/AA71 -> -0.004748785302 | AF71: ='CPI Sub-Categories'!Z72 -> 109.6968871 | AG71: 0.03327037519 | AH71: ='CPI Sub-Categories'!AA72 -> 109.072234 | AI71: -0.00569435589 | AJ71: ='CPI Sub-Categories'!AB72 -> 111.5914793 | AK71: 0.02309703585 | AM71: ='CPI Sub-Categories'!AD72 -> 110.2467484 | AN71: =(AM71-AJ71)/AJ71 -> -0.01205047977 | AO71: ='CPI Sub-Categories'!AE72 -> 110.5621786 | AP71: 0.002861129484 | AQ71: ='CPI Sub-Categories'!AF72 -> 102.5950198 | AR71: -0.07206043613 | AS71: ='CPI Sub-Categories'!AG72 -> 98.62385264 | AT71: -0.03870721213 | AV71: ='CPI Sub-Categories'!AI72 -> 97.46292101 | AW71: =(AV71-AS71)/AS71 -> -0.01177130682 | AX71: ='CPI Sub-Categories'!AJ72 -> 98.81324302 | AY71: 0.01385472549 | AZ71: ='CPI Sub-Categories'!AK72 -> 102.5279854 | BA71: 0.03759356845 | BB71: ='CPI Sub-Categories'!AL72 -> 98.97743019 | BC71: -0.03463010841 | BE71: ='CPI Sub-Categories'!AM72 -> 109.2131826 | BF71: =(BE71-BB71)/BB71 -> 0.1034150144 | BG71: ='CPI Sub-Categories'!AN72 -> 117.026451 | BH71: =(BG71-BE71)/BE71 -> 0.07154144136 | BI71: ='CPI Sub-Categories'!AO72 -> 118.6170657 | BJ71: =(BI71-BG71)/BG71 -> 0.0135919238 | BK71: ='CPI Sub-Categories'!AU72 -> 0 | BL71: =(BK71-BI71)/BI71 -> -1
A72: 3 | B72: 053300 | C72: Repair of household appliances | D72: Not relevant | E72: Not relevant | F72: Not relevent | G72: Not relevant | H72: Not relevant | I72: Not relevant | J72: Not relevant | L72: Not relevant | M72: Not relevant | N72: Not relevant | O72: Not relevant | P72: Not relevant | Q72: Not relevant | R72: Not relevant | S72: Not relevant | U72: Not relevant | V72: Not relevant | W72: Not relevant | X72: Not relevant | Y72: Not relevant | Z72: Not relevant | AA72: Not relevant | AB72: Not available | AD72: ='CPI Sub-Categories'!Y73 -> Not relevant | AE72: Not relevant | AF72: ='CPI Sub-Categories'!Z73 -> Not relevant | AG72: Not relevant | AH72: ='CPI Sub-Categories'!AA73 -> Not relevant | AI72: Not relevant | AJ72: ='CPI Sub-Categories'!AB73 -> Not relevant | AK72: Not available | AM72: ='CPI Sub-Categories'!AD73 -> Not relevant | AN72: Not relevant | AO72: ='CPI Sub-Categories'!AE73 -> Not relevant | AP72: Not relevant | AQ72: ='CPI Sub-Categories'!AF73 -> Not relevant | AR72: Not available | AS72: ='CPI Sub-Categories'!AG73 -> Not relevant | AT72: Not available | AV72: ='CPI Sub-Categories'!AI73 -> Not relevant | AW72: Not relevant | AX72: ='CPI Sub-Categories'!AJ73 -> Not relevant | AY72: Not relevant | AZ72: ='CPI Sub-Categories'!AK73 -> Not relevant | BA72: Not relevant | BB72: ='CPI Sub-Categories'!AL73 -> Not relevant | BC72: Not relevant | BE72: ='CPI Sub-Categories'!AM73 -> Not relevant | BF72: Not relevant | BG72: ='CPI Sub-Categories'!AN73 -> Not relevant | BH72: Not relevant | BI72: ='CPI Sub-Categories'!AO73 -> Not relevant | BJ72: Not relevant | BK72: ='CPI Sub-Categories'!AU73 -> 0 | BL72: Not relevant
A73: 2 | B73: 054000 | C73: Glassware, tableware and household utensils | D73: 103.1897868 | E73: 103.5415693 | F73: 0.003409082511 | G73: 103.3140147 | H73: -0.002197712466 | I73: 108.5702968 | J73: 0.05087675798 | L73: 111.8441088 | M73: 0.03015384562 | N73: 112.2685532 | O73: 0.00379496418 | P73: 109.6751047 | Q73: -0.02310040019 | R73: 107.5989948 | S73: -0.01892963633 | U73: 107.1908752 | V73: -0.003792968516 | W73: 105.2661828 | X73: =(W73-U73)/U73 -> -0.01795574873 | Y73: 111.0880087 | Z73: 0.05530575648 | AA73: 110.3872436 | AB73: =IFERROR((AA73-Y73)/Y73,"Not available") -> -0.006308196798 | AD73: ='CPI Sub-Categories'!Y74 -> 108.5789209 | AE73: =(AD73-AA73)/AA73 -> -0.01638162745 | AF73: ='CPI Sub-Categories'!Z74 -> 117.5124259 | AG73: =(AF73-AD73)/AD73 -> 0.08227660446 | AH73: ='CPI Sub-Categories'!AA74 -> 117.2675672 | AI73: -0.002083682932 | AJ73: ='CPI Sub-Categories'!AB74 -> 125.6306837 | AK73: =IFERROR((AJ73-AH73)/AH73,"Not available") -> 0.07131653389 | AM73: ='CPI Sub-Categories'!AD74 -> 127.5439194 | AN73: =(AM73-AJ73)/AJ73 -> 0.01522904818 | AO73: ='CPI Sub-Categories'!AE74 -> 126.852726 | AP73: -0.0054192583 | AQ73: ='CPI Sub-Categories'!AF74 -> 126.2559768 | AR73: =(AQ73-AO73)/AO73 -> -0.004704267289 | AS73: ='CPI Sub-Categories'!AG74 -> 126.1848003 | AT73: -0.0005637476799 | AV73: ='CPI Sub-Categories'!AI74 -> 126.9414055 | AW73: =(AV73-AS73)/AS73 -> 0.005996008775 | AX73: ='CPI Sub-Categories'!AJ74 -> 124.5578799 | AY73: =(AX73-AV73)/AV73 -> -0.01877658098 | AZ73: ='CPI Sub-Categories'!AK74 -> 124.4116153 | BA73: -0.001174270587 | BB73: ='CPI Sub-Categories'!AL74 -> 123.1690059 | BC73: -0.00998788877 | BE73: ='CPI Sub-Categories'!AM74 -> 105.1828001 | BF73: =(BE73-BB73)/BB73 -> -0.1460286672 | BG73: ='CPI Sub-Categories'!AN74 -> 124.271727 | BH73: =(BG73-BE73)/BE73 -> 0.1814833499 | BI73: ='CPI Sub-Categories'!AO74 -> 125.4795118 | BJ73: =(BI73-BG73)/BG73 -> 0.009718901971 | BK73: ='CPI Sub-Categories'!AU74 -> 0 | BL73: =(BK73-BI73)/BI73 -> -1
A74: 3 | B74: 054100 | C74: Glassware, tableware and household utensils | D74: 103.1897868 | E74: 103.5415693 | F74: 0.003409082511 | G74: 103.3140147 | H74: -0.002197712466 | I74: 108.5702968 | J74: 0.05087675798 | L74: 111.8441088 | M74: 0.03015384562 | N74: 112.2685532 | O74: 0.00379496418 | P74: 109.6751047 | Q74: -0.02310040019 | R74: 107.5989948 | S74: -0.01892963633 | U74: 107.1908752 | V74: =(U74-R74)/R74 -> -0.003792968516 | W74: 105.2661828 | X74: -0.01795574873 | Y74: 111.0880087 | Z74: 0.05530575648 | AA74: 110.3872436 | AB74: -0.006308196798 | AD74: ='CPI Sub-Categories'!Y75 -> 108.5789209 | AE74: -0.01638162745 | AF74: ='CPI Sub-Categories'!Z75 -> 117.5124259 | AG74: 0.08227660446 | AH74: ='CPI Sub-Categories'!AA75 -> 117.2675672 | AI74: -0.002083682932 | AJ74: ='CPI Sub-Categories'!AB75 -> 125.6306837 | AK74: 0.07131653389 | AM74: ='CPI Sub-Categories'!AD75 -> 127.5439194 | AN74: 0.01522904818 | AO74: ='CPI Sub-Categories'!AE75 -> 126.852726 | AP74: -0.0054192583 | AQ74: ='CPI Sub-Categories'!AF75 -> 126.2559768 | AR74: -0.004704267289 | AS74: ='CPI Sub-Categories'!AG75 -> 126.1848003 | AT74: -0.0005637476799 | AV74: ='CPI Sub-Categories'!AI75 -> 126.9414055 | AW74: 0.005996008775 | AX74: ='CPI Sub-Categories'!AJ75 -> 124.5578799 | AY74: -0.01877658098 | AZ74: ='CPI Sub-Categories'!AK75 -> 124.4116153 | BA74: -0.001174270587 | BB74: ='CPI Sub-Categories'!AL75 -> 123.1690059 | BC74: -0.00998788877 | BE74: ='CPI Sub-Categories'!AM75 -> 122.9639948 | BF74: -0.001664470104 | BG74: ='CPI Sub-Categories'!AN75 -> 124.271727 | BH74: 0.0106350829 | BI74: ='CPI Sub-Categories'!AO75 -> 125.4795118 | BJ74: 0.009718901971 | BK74: ='CPI Sub-Categories'!AU75 -> 0 | BL74: -1
A75: 2 | B75: 055000 | C75: Tools and equipment for house and garden | D75: 101.1088427 | E75: 100.2938535 | F75: -0.008060513168 | G75: 101.6648079 | H75: 0.01366937583 | I75: 107.4993365 | J75: 0.05738985531 | L75: 107.2526548 | M75: -0.002294727526 | N75: 103.8216023 | O75: -0.03199037412 | P75: 105.5671579 | Q75: 0.01681302886 | R75: 102.5273895 | S75: -0.02879464029 | U75: 103.483679 | V75: 0.009327161459 | W75: 102.1033612 | X75: -0.01333850746 | Y75: 104.359409 | Z75: 0.02209572499 | AA75: 107.0359777 | AB75: 0.02564760258 | AD75: ='CPI Sub-Categories'!Y76 -> 109.36192 | AE75: 0.02173047192 | AF75: ='CPI Sub-Categories'!Z76 -> 110.6818622 | AG75: 0.01206948705 | AH75: ='CPI Sub-Categories'!AA76 -> 111.2764737 | AI75: 0.00537225774 | AJ75: ='CPI Sub-Categories'!AB76 -> 113.5335357 | AK75: 0.0202833706 | AM75: ='CPI Sub-Categories'!AD76 -> 115.1580709 | AN75: 0.01430885739 | AO75: ='CPI Sub-Categories'!AE76 -> 116.5898449 | AP75: =(AO75-AM75)/AM75 -> 0.01243311969 | AQ75: ='CPI Sub-Categories'!AF76 -> 117.5648064 | AR75: 0.008362318665 | AS75: ='CPI Sub-Categories'!AG76 -> 116.9003727 | AT75: -0.005651637587 | AV75: ='CPI Sub-Categories'!AI76 -> 115.6918766 | AW75: -0.01033782931 | AX75: ='CPI Sub-Categories'!AJ76 -> 114.6859899 | AY75: -0.008694532081 | AZ75: ='CPI Sub-Categories'!AK76 -> 115.392805 | BA75: 0.006163047315 | BB75: ='CPI Sub-Categories'!AL76 -> 116.1799275 | BC75: 0.006821243375 | BE75: ='CPI Sub-Categories'!AM76 -> 120.1586256 | BF75: 0.03424600318 | BG75: ='CPI Sub-Categories'!AN76 -> 123.7100126 | BH75: 0.02955582199 | BI75: ='CPI Sub-Categories'!AO76 -> 124.2657943 | BJ75: 0.00449261754 | BK75: ='CPI Sub-Categories'!AU76 -> 0 | BL75: -1
A76: 3 | B76: 055100 | C76: Major tools and equipment | D76: 97.64775247 | E76: 97.64775247 | F76: 0 | G76: 96.47890939 | H76: -0.0119699947 | I76: 96.75552122 | J76: 0.002867070511 | L76: 97.28263806 | M76: 0.005447925151 | N76: 97.28263806 | O76: 0 | P76: 97.28263806 | Q76: 0 | R76: 97.28263806 | S76: 0 | U76: 97.28263806 | V76: 0 | W76: 97.28263806 | X76: 0 | Y76: 97.28263806 | Z76: 0 | AA76: 99.81816333 | AB76: 0.02606349213 | AD76: ='CPI Sub-Categories'!Y77 -> 101.0166753 | AE76: 0.01200695232 | AF76: ='CPI Sub-Categories'!Z77 -> 101.0341678 | AG76: 0.0001731651772 | AH76: ='CPI Sub-Categories'!AA77 -> 101.1611476 | AI76: 0.001256799893 | AJ76: ='CPI Sub-Categories'!AB77 -> 101.2134573 | AK76: 0.0005170934712 | AM76: ='CPI Sub-Categories'!AD77 -> 100.1262289 | AN76: -0.01074193557 | AO76: ='CPI Sub-Categories'!AE77 -> 103.8848322 | AP76: 0.03753864819 | AQ76: ='CPI Sub-Categories'!AF77 -> 106.4585795 | AR76: 0.02477500579 | AS76: ='CPI Sub-Categories'!AG77 -> 101.988504 | AT76: -0.04198887031 | AV76: ='CPI Sub-Categories'!AI77 -> 93.35247104 | AW76: -0.08467653337 | AX76: ='CPI Sub-Categories'!AJ77 -> 93.35247104 | AY76: 0 | AZ76: ='CPI Sub-Categories'!AK77 -> 93.35247104 | BA76: 0 | BB76: ='CPI Sub-Categories'!AL77 -> 112.2693318 | BC76: 0.2026391007 | BE76: ='CPI Sub-Categories'!AM77 -> 112.2693318 | BF76: 0 | BG76: ='CPI Sub-Categories'!AN77 -> 112.2693318 | BH76: 0 | BI76: ='CPI Sub-Categories'!AO77 -> 113.8098981 | BJ76: 0.01372205816 | BK76: ='CPI Sub-Categories'!AU77 -> 0 | BL76: -1
A77: 3 | B77: 055200 | C77: Small tools and miscellaneous accessories | D77: 101.9976962 | E77: 100.9734071 | F77: -0.01004227676 | G77: 102.9966148 | H77: 0.0200370358 | I77: 110.2584896 | J77: 0.07050595559 | L77: 109.8130863 | M77: -0.004039628399 | N77: 105.5008943 | O77: -0.03926847088 | P77: 107.6947315 | Q77: 0.02079448944 | R77: 103.8743107 | S77: -0.03547453786 | U77: 105.0761879 | V77: 0.01157049548 | W77: 103.3413863 | X77: -0.01650994039 | Y77: 106.1768169 | Z77: 0.0274375121 | AA77: 108.8896073 | AB77: 0.02554974354 | AD77: ='CPI Sub-Categories'!Y78 -> 111.5050886 | AE77: 0.02401956737 | AF77: ='CPI Sub-Categories'!Z78 -> 113.1595171 | AG77: 0.01483724658 | AH77: ='CPI Sub-Categories'!AA78 -> 113.8742225 | AI77: 0.00631591135 | AJ77: ='CPI Sub-Categories'!AB78 -> 116.6974939 | AK77: 0.02479289215 | AM77: ='CPI Sub-Categories'!AD78 -> 119.0184456 | AN77: 0.0198886168 | AO77: ='CPI Sub-Categories'!AE78 -> 119.8526593 | AP77: 0.007009112987 | AQ77: ='CPI Sub-Categories'!AF78 -> 120.4170315 | AR77: 0.004708883348 | AS77: ='CPI Sub-Categories'!AG78 -> 120.7299367 | AT77: 0.00259851279 | AV77: ='CPI Sub-Categories'!AI78 -> 121.4289298 | AW77: 0.005789724458 | AX77: ='CPI Sub-Categories'!AJ78 -> 120.1647181 | AY77: -0.01041112426 | AZ77: ='CPI Sub-Categories'!AK78 -> 121.0530527 | BA77: 0.007392640967 | BB77: ='CPI Sub-Categories'!AL78 -> 117.1842198 | BC77: =(BB77-AZ77)/AZ77 -> -0.03195981263 | BE77: ='CPI Sub-Categories'!AM78 -> 121.8508342 | BF77: 0.03982289041 | BG77: ='CPI Sub-Categories'!AN78 -> 126.6481299 | BH77: 0.03937023253 | BI77: ='CPI Sub-Categories'!AO78 -> 126.951006 | BJ77: 0.00239147749 | BK77: ='CPI Sub-Categories'!AU78 -> 0 | BL77: -1
A78: 2 | B78: 056000 | C78: Goods and services for routine household maintenance | D78: 100.1023637 | E78: 100.2963095 | F78: 0.001937474206 | G78: 100.7521912 | H78: 0.004545349494 | I78: 100.5573136 | J78: -0.001934227354 | L78: 101.0450813 | M78: 0.004850643784 | N78: 100.9629517 | O78: -0.0008128018086 | P78: 100.0420714 | Q78: -0.009120972008 | R78: 99.68385829 | S78: -0.003580624883 | U78: 99.48981072 | V78: -0.001946629837 | W78: 112.3240081 | X78: 0.1290001189 | Y78: 112.6026477 | Z78: 0.002480676888 | AA78: 113.0057079 | AB78: 0.003579491445 | AD78: ='CPI Sub-Categories'!Y79 -> 112.8743434 | AE78: -0.001162458821 | AF78: ='CPI Sub-Categories'!Z79 -> 114.1882249 | AG78: 0.01164021399 | AH78: ='CPI Sub-Categories'!AA79 -> 114.875766 | AI78: 0.006021120718 | AJ78: ='CPI Sub-Categories'!AB79 -> 115.0430785 | AK78: 0.001456464806 | AM78: ='CPI Sub-Categories'!AD79 -> 116.0493213 | AN78: 0.008746660307 | AO78: ='CPI Sub-Categories'!AE79 -> 116.3522238 | AP78: 0.002610119219 | AQ78: ='CPI Sub-Categories'!AF79 -> 116.4256447 | AR78: 0.0006310221359 | AS78: ='CPI Sub-Categories'!AG79 -> 117.2099779 | AT78: 0.00673677369 | AV78: ='CPI Sub-Categories'!AI79 -> 117.2439537 | AW78: 0.0002898710586 | AX78: ='CPI Sub-Categories'!AJ79 -> 117.6522392 | AY78: 0.003482358602 | AZ78: ='CPI Sub-Categories'!AK79 -> 119.3178263 | BA78: 0.01415686772 | BB78: ='CPI Sub-Categories'!AL79 -> 119.4296484 | BC78: 0.0009371783939 | BE78: ='CPI Sub-Categories'!AM79 -> 119.622836 | BF78: 0.001617584729 | BG78: ='CPI Sub-Categories'!AN79 -> 120.3538235 | BH78: 0.00611076878 | BI78: ='CPI Sub-Categories'!AO79 -> 120.4999343 | BJ78: 0.001214010391 | BK78: ='CPI Sub-Categories'!AU79 -> 0 | BL78: -1
A79: 3 | B79: 056100 | C79: Non-durable household goods | D79: 100.3445244 | E79: 100.9972855 | F79: 0.006505198755 | G79: 102.5316418 | H79: 0.01519205488 | I79: 101.8757443 | J79: -0.006397025719 | L79: 103.5174187 | M79: 0.01611447785 | N79: 103.2409959 | O79: -0.00267030207 | P79: 104.33943 | Q79: 0.01063951511 | R79: 103.133796 | S79: -0.01155492226 | U79: 102.4806923 | V79: -0.006332587495 | W79: 103.6983026 | X79: 0.01188136313 | Y79: 104.6361167 | Z79: 0.009043678865 | AA79: 105.9926921 | AB79: 0.01296469502 | AD79: ='CPI Sub-Categories'!Y80 -> 105.5505601 | AE79: -0.004171344151 | AF79: ='CPI Sub-Categories'!Z80 -> 109.9726767 | AG79: 0.04189571888 | AH79: ='CPI Sub-Categories'!AA80 -> 112.2867262 | AI79: 0.0210420403 | AJ79: ='CPI Sub-Categories'!AB80 -> 112.849848 | AK79: 0.005015035166 | AM79: ='CPI Sub-Categories'!AD80 -> 116.2365481 | AN79: 0.030010675 | AO79: ='CPI Sub-Categories'!AE80 -> 117.256024 | AP79: 0.008770699513 | AQ79: ='CPI Sub-Categories'!AF80 -> 117.5031357 | AR79: 0.002107454011 | AS79: ='CPI Sub-Categories'!AG80 -> 120.1429574 | AT79: 0.02246596824 | AV79: ='CPI Sub-Categories'!AI80 -> 120.2573093 | AW79: 0.0009517987051 | AX79: ='CPI Sub-Categories'!AJ80 -> 121.6314713 | AY79: 0.01142684802 | AZ79: ='CPI Sub-Categories'!AK80 -> 122.7414125 | BA79: 0.009125444057 | BB79: ='CPI Sub-Categories'!AL80 -> 123.1177708 | BC79: 0.003066270546 | BE79: ='CPI Sub-Categories'!AM80 -> 123.7679801 | BF79: 0.005281197824 | BG79: ='CPI Sub-Categories'!AN80 -> 126.2282567 | BH79: 0.01987813471 | BI79: ='CPI Sub-Categories'!AO80 -> 126.7200202 | BJ79: 0.003895827318 | BK79: ='CPI Sub-Categories'!AU80 -> 0 | BL79: -1
A80: 3 | B80: 056200 | C80: Domestic services and household services | D80: 100 | E80: 100 | F80: 0 | G80: 100 | H80: 0 | I80: 100 | J80: 0 | L80: 100 | M80: 0 | N80: 100 | O80: 0 | P80: 98.22553571 | Q80: -0.01774464293 | R80: 98.22553571 | S80: 0 | U80: 98.22553571 | V80: 0 | W80: 115.9701786 | X80: 0.1806520352 | Y80: 115.9701786 | Z80: 0 | AA80: 115.9701786 | AB80: 0 | AD80: ='CPI Sub-Categories'!Y81 -> 115.9701786 | AE80: 0 | AF80: ='CPI Sub-Categories'!Z81 -> 115.9701786 | AG80: 0 | AH80: ='CPI Sub-Categories'!AA81 -> 115.9701786 | AI80: 0 | AJ80: ='CPI Sub-Categories'!AB81 -> 115.9701786 | AK80: 0 | AM80: ='CPI Sub-Categories'!AD81 -> 115.9701786 | AN80: 0 | AO80: ='CPI Sub-Categories'!AE81 -> 115.9701786 | AP80: 0 | AQ80: ='CPI Sub-Categories'!AF81 -> 115.9701786 | AR80: 0 | AS80: ='CPI Sub-Categories'!AG81 -> 115.9701786 | AT80: 0 | AV80: ='CPI Sub-Categories'!AI81 -> 115.9701786 | AW80: 0 | AX80: ='CPI Sub-Categories'!AJ81 -> 115.9701786 | AY80: 0 | AZ80: ='CPI Sub-Categories'!AK81 -> 117.8706428 | BA80: 0.01638752509 | BB80: ='CPI Sub-Categories'!AL81 -> 117.8706428 | BC80: 0 | BE80: ='CPI Sub-Categories'!AM81 -> 117.8706428 | BF80: -8.55998288e-15 | BG80: ='CPI Sub-Categories'!AN81 -> 117.8706428 | BH80: 0 | BI80: ='CPI Sub-Categories'!AO81 -> 117.8706428 | BJ80: 8.55998288e-15 | BK80: ='CPI Sub-Categories'!AU81 -> 0 | BL80: -1
A81: 1 | B81: 060000 | C81: Health | D81: 101.0403958 | E81: 102.7274649 | F81: 0.01669697615 | G81: 102.2958789 | H81: -0.004201271998 | I81: 103.1375804 | J81: 0.008228108549 | L81: 103.8001482 | M81: 0.006424115384 | N81: 106.4712746 | O81: 0.02573335836 | P81: 106.3540825 | Q81: -0.001100692215 | R81: 104.8723349 | S81: -0.01393221162 | U81: 104.845069 | V81: -0.0002599913158 | W81: 106.3281013 | X81: 0.01414498872 | Y81: 105.569574 | Z81: -0.007133836259 | AA81: 105.7768647 | AB81: 0.001963545152 | AD81: ='CPI Sub-Categories'!Y82 -> 105.8252172 | AE81: 0.0004571177921 | AF81: ='CPI Sub-Categories'!Z82 -> 106.9022632 | AG81: 0.01017759317 | AH81: ='CPI Sub-Categories'!AA82 -> 107.5442758 | AI81: 0.006005603926 | AJ81: ='CPI Sub-Categories'!AB82 -> 109.0861993 | AK81: 0.01433756889 | AM81: ='CPI Sub-Categories'!AD82 -> 108.1996023 | AN81: -0.008127489839 | AO81: ='CPI Sub-Categories'!AE82 -> 108.2789823 | AP81: 0.0007336442014 | AQ81: ='CPI Sub-Categories'!AF82 -> 108.5532728 | AR81: 0.002533183494 | AS81: ='CPI Sub-Categories'!AG82 -> 108.6623231 | AT81: 0.001004578436 | AV81: ='CPI Sub-Categories'!AI82 -> 109.1608483 | AW81: 0.004587838718 | AX81: ='CPI Sub-Categories'!AJ82 -> 109.2257098 | AY81: 0.0005941825709 | AZ81: ='CPI Sub-Categories'!AK82 -> 109.1608483 | BA81: -0.0005938297276 | BB81: ='CPI Sub-Categories'!AL82 -> 111.275481 | BC81: 0.01937171335 | BE81: ='CPI Sub-Categories'!AM82 -> 111.0523422 | BF81: -0.002005282288 | BG81: ='CPI Sub-Categories'!AN82 -> 109.2257098 | BH81: -0.01644839182 | BI81: ='CPI Sub-Categories'!AO82 -> 115.3735847 | BJ81: 0.05628596877 | BK81: ='CPI Sub-Categories'!AU82 -> 0 | BL81: -1
A82: 2 | B82: 061000 | C82: Medical products, appliances and equipment | D82: 101.8989426 | E82: 100.2253501 | F82: -0.01642404153 | G82: 99.43761426 | H82: -0.007859646852 | I82: 100.9738979 | J82: 0.01544972306 | L82: 102.1832242 | M82: 0.01197662344 | N82: 108.0394837 | O82: 0.05731135916 | P82: 107.9312811 | Q82: -0.001001509921 | R82: 105.226778 | S82: -0.02505763856 | U82: 105.177012 | V82: -0.000472940767 | W82: 105.1437182 | X82: -0.0003165500817 | Y82: 103.7592454 | Z82: -0.01316743277 | AA82: 104.1375946 | AB82: 0.003646415064 | AD82: ='CPI Sub-Categories'!Y83 -> 104.2258482 | AE82: 0.0008474703604 | AF82: ='CPI Sub-Categories'!Z83 -> 106.1916851 | AG82: 0.01886131908 | AH82: ='CPI Sub-Categories'!AA83 -> 107.3634941 | AI82: 0.01103484706 | AJ82: ='CPI Sub-Categories'!AB83 -> 110.1778309 | AK82: 0.0262131628 | AM82: ='CPI Sub-Categories'!AD83 -> 108.5596037 | AN82: -0.01468741183 | AO82: ='CPI Sub-Categories'!AE83 -> 108.704489 | AP82: 0.001334615454 | AQ82: ='CPI Sub-Categories'!AF83 -> 109.2051273 | AR82: 0.004605497816 | AS82: ='CPI Sub-Categories'!AG83 -> 109.4041672 | AT82: 0.001822623596 | AV82: ='CPI Sub-Categories'!AI83 -> 110.3140812 | AW82: 0.0083169963 | AX82: ='CPI Sub-Categories'!AJ83 -> 110.4324671 | AY82: 0.001073171432 | AZ82: ='CPI Sub-Categories'!AK83 -> 111.580108 | BA82: 0.01039224114 | BB82: ='CPI Sub-Categories'!AL83 -> 114.1737335 | BC82: 0.02324451537 | BE82: ='CPI Sub-Categories'!AM83 -> 113.7664581 | BF82: -0.003567155487 | BG82: ='CPI Sub-Categories'!AN83 -> 114.5763676 | BH82: 0.00711905358 | BI82: ='CPI Sub-Categories'!AO83 -> 114.6368005 | BJ82: 0.000527447094 | BK82: ='CPI Sub-Categories'!AU83 -> 0 | BL82: -1
A83: 3 | B83: 061100 | C83: Pharmaceutical products | D83: 101.357523 | E83: 98.57757215 | F83: -0.02742717865 | G83: 98.89493514 | H83: 0.0032194239 | I83: 99.81750866 | J83: 0.009328824769 | L83: 96.49662732 | M83: -0.03326952744 | N83: 103.7251132 | O83: 0.07490920791 | P83: 103.6797788 | Q83: -0.0004370635929 | R83: 102.5490568 | S83: -0.01090590665 | U83: 102.5941801 | V83: 0.0004400173856 | W83: 101.7838705 | X83: -0.007898203133 | Y83: 99.92237173 | Z83: -0.01828873999 | AA83: 100.801016 | AB83: 0.00879326866 | AD83: ='CPI Sub-Categories'!Y84 -> 101.1271406 | AE83: 0.003235330229 | AF83: ='CPI Sub-Categories'!Z84 -> 103.7621899 | AG83: 0.0260567963 | AH83: ='CPI Sub-Categories'!AA84 -> 106.0908013 | AI83: 0.02244181103 | AJ83: ='CPI Sub-Categories'!AB84 -> 109.5468652 | AK83: 0.03257647098 | AM83: ='CPI Sub-Categories'!AD84 -> 107.2410263 | AN83: -0.02104888105 | AO83: ='CPI Sub-Categories'!AE84 -> 107.5356408 | AP83: 0.002747218089 | AQ83: ='CPI Sub-Categories'!AF84 -> 107.9423095 | AR83: 0.003781710993 | AS83: ='CPI Sub-Categories'!AG84 -> 106.6864962 | AT83: -0.0116341158 | AV83: ='CPI Sub-Categories'!AI84 -> 108.5428965 | AW83: 0.01740051792 | AX83: ='CPI Sub-Categories'!AJ84 -> 110.4450229 | AY83: 0.01752419126 | AZ83: ='CPI Sub-Categories'!AK84 -> 111.1182542 | BA83: 0.006095622952 | BB83: ='CPI Sub-Categories'!AL84 -> 114.4635035 | BC83: 0.03010530867 | BE83: ='CPI Sub-Categories'!AM84 -> 113.8868083 | BF83: -0.005038244785 | BG83: ='CPI Sub-Categories'!AN84 -> 115.0314026 | BH83: 0.01005027954 | BI83: ='CPI Sub-Categories'!AO84 -> 114.9371096 | BJ83: -0.0008197153958 | BK83: ='CPI Sub-Categories'!AU84 -> 0 | BL83: -1
A84: 3 | B84: 061200 | C84: Other medical products | D84: 100.6571506 | E84: 98.76684548 | F84: -0.01877964036 | G84: 97.85968568 | H84: -0.009184861485 | I84: 101.1456924 | J84: 0.03357875773 | L84: 101.5275918 | M84: 0.003775736244 | N84: 99.95255551 | O84: -0.01551338195 | P84: 104.7559203 | Q84: 0.04805644768 | R84: 105.4224755 | S84: 0.006362935999 | U84: 102.7942323 | V84: -0.02493057694 | W84: 104.0050272 | X84: 0.01177882051 | Y84: 102.2668913 | Z84: -0.01671203698 | AA84: 99.46302086 | AB84: -0.0274171865 | AD84: ='CPI Sub-Categories'!Y85 -> 99.7840664 | AE84: 0.00322778791 | AF84: ='CPI Sub-Categories'!Z85 -> 100.095935 | AG84: 0.003125435371 | AH84: ='CPI Sub-Categories'!AA85 -> 99.11966202 | AI84: -0.009753373412 | AJ84: ='CPI Sub-Categories'!AB85 -> 106.0141288 | AK84: 0.06955700465 | AM84: ='CPI Sub-Categories'!AD85 -> 106.127145 | AN84: 0.00106604818 | AO84: ='CPI Sub-Categories'!AE85 -> 105.5601541 | AP84: -0.005342561831 | AQ84: ='CPI Sub-Categories'!AF85 -> 106.1410776 | AR84: 0.005503245842 | AS84: ='CPI Sub-Categories'!AG85 -> 111.2421894 | AT84: 0.04805973227 | AV84: ='CPI Sub-Categories'!AI85 -> 108.6884479 | AW84: -0.02295659159 | AX84: ='CPI Sub-Categories'!AJ85 -> 107.271934 | AY84: -0.01303279125 | AZ84: ='CPI Sub-Categories'!AK85 -> 112.4323813 | BA84: 0.04810621961 | BB84: ='CPI Sub-Categories'!AL85 -> 119.0587861 | BC84: 0.05893680044 | BE84: ='CPI Sub-Categories'!AM85 -> 117.5040054 | BF84: -0.01305893295 | BG84: ='CPI Sub-Categories'!AN85 -> 118.9742166 | BH84: 0.01251200915 | BI84: ='CPI Sub-Categories'!AO85 -> 120.2888248 | BJ84: 0.01104952188 | BK84: ='CPI Sub-Categories'!AU85 -> 0 | BL84: -1
A85: 3 | B85: 061300 | C85: Therapeutic appliances and equipment | D85: 103.3743705 | E85: 104.1877384 | F85: 0.007868177379 | G85: 100.9922889 | H85: -0.03067011067 | I85: 103.482706 | J85: 0.02465947717 | L85: 114.8617551 | M85: 0.109960877 | N85: 119.3851943 | O85: 0.03938159584 | P85: 118.0210855 | Q85: -0.01142611382 | R85: 111.0821245 | S85: -0.05879424847 | U85: 111.4098938 | V85: 0.002950694049 | W85: 112.8055803 | X85: 0.01252749172 | Y85: 112.5526054 | Z85: -0.002242574696 | AA85: 112.5526054 | AB85: 0 | AD85: ='CPI Sub-Categories'!Y86 -> 112.0637932 | AE85: -0.004342966523 | AF85: ='CPI Sub-Categories'!Z86 -> 112.9314234 | AG85: 0.007742288325 | AH85: ='CPI Sub-Categories'!AA86 -> 112.0431217 | AI85: -0.007865850888 | AJ85: ='CPI Sub-Categories'!AB86 -> 112.5152955 | AK85: 0.00421421562 | AM85: ='CPI Sub-Categories'!AD86 -> 112.0182348 | AN85: -0.004417717418 | AO85: ='CPI Sub-Categories'!AE86 -> 111.995172 | AP85: -0.0002058835256 | AQ85: ='CPI Sub-Categories'!AF86 -> 112.6845901 | AR85: 0.00615578346 | AS85: ='CPI Sub-Categories'!AG86 -> 114.9739046 | AT85: 0.02031612768 | AV85: ='CPI Sub-Categories'!AI86 -> 114.5863958 | AW85: -0.003370406767 | AX85: ='CPI Sub-Categories'!AJ86 -> 111.123828 | AY85: -0.0302179653 | AZ85: ='CPI Sub-Categories'!AK86 -> 112.403825 | BA85: 0.01151865387 | BB85: ='CPI Sub-Categories'!AL86 -> 112.4239229 | BC85: 0.0001788009201 | BE85: ='CPI Sub-Categories'!AM86 -> 112.6509915 | BF85: 0.002019753891 | BG85: ='CPI Sub-Categories'!AN86 -> 112.5732651 | BH85: -0.0006899756303 | BI85: ='CPI Sub-Categories'!AO86 -> 112.6892819 | BJ85: 0.001030589821 | BK85: ='CPI Sub-Categories'!AU86 -> 0 | BL85: -1
A86: 2 | B86: 062000 | C86: Outpatient services | D86: 100 | E86: 108.4018667 | F86: 0.08401866709 | G86: 108.4018667 | H86: 0 | I86: 108.4018667 | J86: 0 | L86: 108.4018667 | M86: 0 | N86: 106.6678984 | O86: -0.01599574232 | P86: 106.4810508 | Q86: -0.001751675908 | R86: 106.4810508 | S86: 0 | U86: 106.4810508 | V86: 0 | W86: 107.7465461 | X86: 0.01188469996 | Y86: 107.7465461 | Z86: 0 | AA86: 107.7465461 | AB86: 0 | AD86: ='CPI Sub-Categories'!Y87 -> 107.7465461 | AE86: 0 | AF86: ='CPI Sub-Categories'!Z87 -> 107.7465461 | AG86: 0 | AH86: ='CPI Sub-Categories'!AA87 -> 107.7465461 | AI86: 0 | AJ86: ='CPI Sub-Categories'!AB87 -> 107.7465461 | AK86: 0 | AM86: ='CPI Sub-Categories'!AD87 -> 107.7465461 | AN86: 0 | AO86: ='CPI Sub-Categories'!AE87 -> 107.7465461 | AP86: 0 | AQ86: ='CPI Sub-Categories'!AF87 -> 107.7465461 | AR86: 0 | AS86: ='CPI Sub-Categories'!AG87 -> 107.7465461 | AT86: 0 | AV86: ='CPI Sub-Categories'!AI87 -> 107.7465461 | AW86: 0 | AX86: ='CPI Sub-Categories'!AJ87 -> 107.7465461 | AY86: 0 | AZ86: ='CPI Sub-Categories'!AK87 -> 107.7465461 | BA86: 0 | BB86: ='CPI Sub-Categories'!AL87 -> 107.7465461 | BC86: 0 | BE86: ='CPI Sub-Categories'!AM87 -> 107.7465461 | BF86: 0 | BG86: ='CPI Sub-Categories'!AN87 -> 115.6291519 | BH86: 0.07315877878 | BI86: ='CPI Sub-Categories'!AO87 -> 115.6291519 | BJ86: 8.603019342e-15 | BK86: ='CPI Sub-Categories'!AU87 -> 0 | BL86: -1
A87: 3 | B87: 062100 | C87: Medical services | D87: 100 | E87: 100.901462 | F87: 0.009014619555 | G87: 100.901462 | H87: 0 | I87: 100.901462 | J87: 0 | L87: 100.901462 | M87: 0 | N87: 101.4706626 | O87: 0.00564115392 | P87: 100.901462 | Q87: -0.005609509811 | R87: 100.901462 | S87: 0 | U87: 100.901462 | V87: 0 | W87: 103.6167931 | X87: 0.02691072202 | Y87: 103.6167931 | Z87: 0 | AA87: 103.6167931 | AB87: 0 | AD87: ='CPI Sub-Categories'!Y88 -> 103.6167931 | AE87: 0 | AF87: ='CPI Sub-Categories'!Z88 -> 103.6167931 | AG87: 0 | AH87: ='CPI Sub-Categories'!AA88 -> 103.6167931 | AI87: 0 | AJ87: ='CPI Sub-Categories'!AB88 -> 103.6167931 | AK87: 0 | AM87: ='CPI Sub-Categories'!AD88 -> 103.6167931 | AN87: 0 | AO87: ='CPI Sub-Categories'!AE88 -> 103.6167931 | AP87: 0 | AQ87: ='CPI Sub-Categories'!AF88 -> 103.6167931 | AR87: 0 | AS87: ='CPI Sub-Categories'!AG88 -> 103.6167931 | AT87: 0 | AV87: ='CPI Sub-Categories'!AI88 -> 103.6167931 | AW87: 0 | AX87: ='CPI Sub-Categories'!AJ88 -> 103.6167931 | AY87: 0 | AZ87: ='CPI Sub-Categories'!AK88 -> 103.6167931 | BA87: 0 | BB87: ='CPI Sub-Categories'!AL88 -> 103.6167931 | BC87: 0 | BE87: ='CPI Sub-Categories'!AM88 -> 103.6167931 | BF87: 0 | BG87: ='CPI Sub-Categories'!AN88 -> 106.9381853 | BH87: 0.03205457421 | BI87: ='CPI Sub-Categories'!AO88 -> 106.9381853 | BJ87: 0 | BK87: ='CPI Sub-Categories'!AU88 -> 0 | BL87: -1
A88: 3 | B88: 062200 | C88: Dental services | D88: 100 | E88: 114.1833389 | F88: 0.1418333891 | G88: 114.1833389 | H88: 0 | I88: 114.1833389 | J88: 0 | L88: 114.1833389 | M88: 0 | N88: 110.8224024 | O88: -0.02943456128 | P88: 110.8224024 | Q88: 0 | R88: 110.8224024 | S88: 0 | U88: 110.8224024 | V88: 0 | W88: 110.8224024 | X88: 0 | Y88: 110.8224024 | Z88: 0 | AA88: 110.8224024 | AB88: 0 | AD88: ='CPI Sub-Categories'!Y89 -> 110.8224024 | AE88: 0 | AF88: ='CPI Sub-Categories'!Z89 -> 110.8224024 | AG88: 0 | AH88: ='CPI Sub-Categories'!AA89 -> 110.8224024 | AI88: 0 | AJ88: ='CPI Sub-Categories'!AB89 -> 110.8224024 | AK88: 0 | AM88: ='CPI Sub-Categories'!AD89 -> 110.8224024 | AN88: 0 | AO88: ='CPI Sub-Categories'!AE89 -> 110.8224024 | AP88: 0 | AQ88: ='CPI Sub-Categories'!AF89 -> 110.8224024 | AR88: 0 | AS88: ='CPI Sub-Categories'!AG89 -> 110.8224024 | AT88: 0 | AV88: ='CPI Sub-Categories'!AI89 -> 110.8224024 | AW88: 0 | AX88: ='CPI Sub-Categories'!AJ89 -> 110.8224024 | AY88: 0 | AZ88: ='CPI Sub-Categories'!AK89 -> 110.8224024 | BA88: 0 | BB88: ='CPI Sub-Categories'!AL89 -> 110.8224024 | BC88: 0 | BE88: ='CPI Sub-Categories'!AM89 -> 110.8224024 | BF88: 0 | BG88: ='CPI Sub-Categories'!AN89 -> 122.2234671 | BH88: 0.1028768952 | BI88: ='CPI Sub-Categories'!AO89 -> 122.2234671 | BJ88: 0 | BK88: ='CPI Sub-Categories'!AU89 -> 0 | BL88: -1
A89: 3 | B89: 062300 | C89: Paramedical services | D89: 100 | E89: 100 | F89: 0 | G89: 100 | H89: 0 | I89: 100 | J89: 0 | L89: 100 | M89: 0 | N89: 100 | O89: 0 | P89: 100 | Q89: 0 | R89: 100 | S89: 0 | U89: 100 | V89: 0 | W89: 103.7331316 | X89: 0.03733131629 | Y89: 103.7331316 | Z89: 0 | AA89: 103.7331316 | AB89: 0 | AD89: ='CPI Sub-Categories'!Y90 -> 103.7331316 | AE89: 0 | AF89: ='CPI Sub-Categories'!Z90 -> 103.7331316 | AG89: 0 | AH89: ='CPI Sub-Categories'!AA90 -> 103.7331316 | AI89: 0 | AJ89: ='CPI Sub-Categories'!AB90 -> 103.7331316 | AK89: 0 | AM89: ='CPI Sub-Categories'!AD90 -> 103.7331316 | AN89: 0 | AO89: ='CPI Sub-Categories'!AE90 -> 103.7331316 | AP89: 0 | AQ89: ='CPI Sub-Categories'!AF90 -> 103.7331316 | AR89: 0 | AS89: ='CPI Sub-Categories'!AG90 -> 103.7331316 | AT89: 0 | AV89: ='CPI Sub-Categories'!AI90 -> 103.7331316 | AW89: 0 | AX89: ='CPI Sub-Categories'!AJ90 -> 103.7331316 | AY89: 0 | AZ89: ='CPI Sub-Categories'!AK90 -> 103.7331316 | BA89: 0 | BB89: ='CPI Sub-Categories'!AL90 -> 103.7331316 | BC89: 0 | BE89: ='CPI Sub-Categories'!AM90 -> 103.7331316 | BF89: 0 | BG89: ='CPI Sub-Categories'!AN90 -> 106.4916175 | BH89: 0.02659213919 | BI89: ='CPI Sub-Categories'!AO90 -> 106.4916175 | BJ89: 0 | BK89: ='CPI Sub-Categories'!AU90 -> 0 | BL89: -1
A90: 2 | B90: 063000 | C90: Hospital services | D90: 100 | E90: 100 | F90: 0 | G90: 100 | H90: 0 | I90: 100 | J90: 0 | L90: 100 | M90: 0 | N90: 100 | O90: 0 | P90: 100 | Q90: 0 | R90: 100 | S90: 0 | U90: 100 | V90: 0 | W90: 107.7999745 | X90: 0.07799974525 | Y90: 107.7999745 | Z90: 0 | AA90: 107.7999745 | AB90: 0 | AD90: ='CPI Sub-Categories'!Y91 -> 107.7999745 | AE90: 0 | AF90: ='CPI Sub-Categories'!Z91 -> 107.7999745 | AG90: -9.227829918e-15 | AH90: ='CPI Sub-Categories'!AA91 -> 107.7999745 | AI90: 0 | AJ90: ='CPI Sub-Categories'!AB91 -> 107.7999745 | AK90: 0 | AM90: ='CPI Sub-Categories'!AD91 -> 107.7999745 | AN90: 0 | AO90: ='CPI Sub-Categories'!AE91 -> 107.7999745 | AP90: 0 | AQ90: ='CPI Sub-Categories'!AF91 -> 107.7999745 | AR90: 0 | AS90: ='CPI Sub-Categories'!AG91 -> 107.7999745 | AT90: 0 | AV90: ='CPI Sub-Categories'!AI91 -> 107.7999745 | AW90: 0 | AX90: ='CPI Sub-Categories'!AJ91 -> 107.7999745 | AY90: 0 | AZ90: ='CPI Sub-Categories'!AK91 -> 107.7999745 | BA90: 0 | BB90: ='CPI Sub-Categories'!AL91 -> 107.7999745 | BC90: 0 | BE90: ='CPI Sub-Categories'!AM91 -> 107.7999745 | BF90: 0 | BG90: ='CPI Sub-Categories'!AN91 -> 117.6555213 | BH90: 0.0914243884 | BI90: ='CPI Sub-Categories'!AO91 -> 117.6555213 | BJ90: 0 | BK90: ='CPI Sub-Categories'!AU91 -> 0 | BL90: -1
A91: 3 | B91: 063100 | C91: Hospital services | D91: 100 | E91: 100 | F91: 0 | G91: 100 | H91: 0 | I91: 100 | J91: 0 | L91: 100 | M91: 0 | N91: 100 | O91: 0 | P91: 100 | Q91: 0 | R91: 100 | S91: 0 | U91: 100 | V91: 0 | W91: 107.7999745 | X91: 0.07799974525 | Y91: 107.7999745 | Z91: 0 | AA91: 107.7999745 | AB91: 0 | AD91: ='CPI Sub-Categories'!Y92 -> 107.7999745 | AE91: 0 | AF91: ='CPI Sub-Categories'!Z92 -> 107.7999745 | AG91: -9.227829918e-15 | AH91: ='CPI Sub-Categories'!AA92 -> 107.7999745 | AI91: 0 | AJ91: ='CPI Sub-Categories'!AB92 -> 107.7999745 | AK91: 0 | AM91: ='CPI Sub-Categories'!AD92 -> 107.7999745 | AN91: 0 | AO91: ='CPI Sub-Categories'!AE92 -> 107.7999745 | AP91: 0 | AQ91: ='CPI Sub-Categories'!AF92 -> 107.7999745 | AR91: 0 | AS91: ='CPI Sub-Categories'!AG92 -> 107.7999745 | AT91: 0 | AV91: ='CPI Sub-Categories'!AI92 -> 107.7999745 | AW91: 0 | AX91: ='CPI Sub-Categories'!AJ92 -> 107.7999745 | AY91: 0 | AZ91: ='CPI Sub-Categories'!AK92 -> 107.7999745 | BA91: 0 | BB91: ='CPI Sub-Categories'!AL92 -> 107.7999745 | BC91: 0 | BE91: ='CPI Sub-Categories'!AM92 -> 107.7999745 | BF91: 0 | BG91: ='CPI Sub-Categories'!AN92 -> 117.6555213 | BH91: 0.0914243884 | BI91: ='CPI Sub-Categories'!AO92 -> 117.6555213 | BJ91: 0 | BK91: ='CPI Sub-Categories'!AU92 -> 0 | BL91: -1
A92: 1 | B92: 070000 | C92: Transport | D92: 99.88284029 | E92: 100.5355302 | F92: 0.006534555115 | G92: 99.92285992 | H92: -0.006094067375 | I92: 101.3669595 | J92: 0.01445214372 | L92: 100.8768431 | M92: -0.004835070379 | N92: 97.31231691 | O92: -0.03533542535 | P92: 97.59679393 | Q92: 0.002923340308 | R92: 96.20814539 | S92: -0.0142284237 | U92: 97.68940789 | V92: 0.01539643541 | W92: 99.63194554 | X92: 0.01988483392 | Y92: 101.3822339 | Z92: 0.01756754167 | AA92: 104.8286624 | AB92: 0.03399440243 | AD92: ='CPI Sub-Categories'!Y93 -> 108.0487631 | AE92: 0.03071775125 | AF92: ='CPI Sub-Categories'!Z93 -> 118.7590279 | AG92: 0.09912436298 | AH92: ='CPI Sub-Categories'!AA93 -> 110.7695169 | AI92: -0.0672749785 | AJ92: ='CPI Sub-Categories'!AB93 -> 109.7234628 | AK92: -0.009443519736 | AM92: ='CPI Sub-Categories'!AD93 -> 111.5302027 | AN92: 0.01646630459 | AO92: ='CPI Sub-Categories'!AE93 -> 105.5969821 | AP92: -0.05319833086 | AQ92: ='CPI Sub-Categories'!AF93 -> 109.2514907 | AR92: 0.03460807774 | AS92: ='CPI Sub-Categories'!AG93 -> 116.8283181 | AT92: 0.06935216486 | AV92: ='CPI Sub-Categories'!AI93 -> 114.7215672 | AW92: -0.01803287808 | AX92: ='CPI Sub-Categories'!AJ93 -> 116.333073 | AY92: 0.01404710409 | AZ92: ='CPI Sub-Categories'!AK93 -> 114.7215672 | BA92: -0.01385251635 | BB92: ='CPI Sub-Categories'!AL93 -> 123.2383397 | BC92: 0.07423863447 | BE92: ='CPI Sub-Categories'!AM93 -> 122.1266025 | BF92: -0.009021033818 | BG92: ='CPI Sub-Categories'!AN93 -> 116.333073 | BH92: -0.0474387181 | BI92: ='CPI Sub-Categories'!AO93 -> 120.9470505 | BJ92: 0.03966178625 | BK92: ='CPI Sub-Categories'!AU93 -> 0 | BL92: -1
A93: 2 | B93: 071000 | C93: Purchase of vehicles | D93: 99.30300193 | E93: 98.51313938 | F93: -0.007954065165 | G93: 98.60935817 | H93: 0.0009767101604 | I93: 102.0032342 | J93: 0.0344173824 | L93: 101.5250526 | M93: -0.004687905432 | N93: 101.2262416 | O93: -0.002943224373 | P93: 101.1292139 | Q93: -0.0009585235665 | R93: 99.12040857 | S93: -0.01986374903 | U93: 102.0060784 | V93: 0.02911277143 | W93: 102.1900366 | X93: 0.001803404561 | Y93: 102.1900366 | Z93: 0 | AA93: 106.8422457 | AB93: 0.04552507562 | AD93: ='CPI Sub-Categories'!Y94 -> 107.7031915 | AE93: 0.00805810222 | AF93: ='CPI Sub-Categories'!Z94 -> 107.7137092 | AG93: 9.76548088e-05 | AH93: ='CPI Sub-Categories'!AA94 -> 107.7031915 | AI93: -9.764527326e-05 | AJ93: ='CPI Sub-Categories'!AB94 -> 107.0681418 | AK93: -0.005896293587 | AM93: ='CPI Sub-Categories'!AD94 -> 110.7738816 | AN93: 0.03461104042 | AO93: ='CPI Sub-Categories'!AE94 -> 110.7902647 | AP93: 0.0001478962512 | AQ93: ='CPI Sub-Categories'!AF94 -> 110.8762355 | AR93: 0.0007759780409 | AS93: ='CPI Sub-Categories'!AG94 -> 116.0575473 | AT93: 0.04673058936 | AV93: ='CPI Sub-Categories'!AI94 -> 116.6255593 | AW93: 0.004894227196 | AX93: ='CPI Sub-Categories'!AJ94 -> 116.6663531 | AY93: 0.0003497845984 | AZ93: ='CPI Sub-Categories'!AK94 -> 116.6274392 | BA93: -0.0003335491172 | BB93: ='CPI Sub-Categories'!AL94 -> 117.185032 | BC93: 0.004780974447 | BE93: ='CPI Sub-Categories'!AM94 -> 117.132271 | BF93: -0.0004502361031 | BG93: ='CPI Sub-Categories'!AN94 -> 115.3307578 | BH93: -0.01538016151 | BI93: ='CPI Sub-Categories'!AO94 -> 115.3654189 | BJ93: 0.0003005361876 | BK93: ='CPI Sub-Categories'!AU94 -> 0 | BL93: -1
A94: 3 | B94: 071100 | C94: Motor cars | D94: 99.24288791 | E94: 98.46373182 | F94: -0.007851001747 | G94: 98.46373182 | H94: 0 | I94: 101.8190128 | J94: 0.03407631338 | L94: 101.323227 | M94: -0.00486928519 | N94: 101.0441724 | O94: -0.002754102471 | P94: 101.0441724 | Q94: 0 | R94: 98.74962601 | S94: -0.02270834997 | U94: 101.6704925 | V94: 0.02957850722 | W94: 101.8734979 | X94: 0.001996698846 | Y94: 101.8734979 | Z94: 0 | AA94: 106.5755175 | AB94: 0.04615547437 | AD94: ='CPI Sub-Categories'!Y95 -> 107.3759734 | AE94: 0.007510691742 | AF94: ='CPI Sub-Categories'!Z95 -> 107.3759734 | AG94: 0 | AH94: ='CPI Sub-Categories'!AA95 -> 107.3759734 | AI94: 0 | AJ94: ='CPI Sub-Categories'!AB95 -> 106.7024821 | AK94: -0.006272271379 | AM94: ='CPI Sub-Categories'!AD95 -> 110.441008 | AN94: 0.03503691558 | AO94: ='CPI Sub-Categories'!AE95 -> 110.441008 | AP94: 0 | AQ94: ='CPI Sub-Categories'!AF95 -> 110.441008 | AR94: 0 | AS94: ='CPI Sub-Categories'!AG95 -> 115.6262436 | AT94: 0.04695027458 | AV94: ='CPI Sub-Categories'!AI95 -> 115.8789499 | AW94: 0.00218554432 | AX94: ='CPI Sub-Categories'!AJ95 -> 115.8789499 | AY94: 0 | AZ94: ='CPI Sub-Categories'!AK95 -> 115.8789499 | BA94: 0 | BB94: ='CPI Sub-Categories'!AL95 -> 116.4187383 | BC94: 0.004658209034 | BE94: ='CPI Sub-Categories'!AM95 -> 116.4187383 | BF94: 0 | BG94: ='CPI Sub-Categories'!AN95 -> 114.5918362 | BH94: -0.01569250888 | BI94: ='CPI Sub-Categories'!AO95 -> 114.5918362 | BJ94: 0 | BK94: ='CPI Sub-Categories'!AU95 -> 0 | BL94: -1
A95: 3 | B95: 071200 | C95: Motor cycles | D95: 102.144368 | E95: 103.5523541 | F95: 0.01378427598 | G95: 103.5523541 | H95: 0 | I95: 105.3924689 | J95: 0.01776989798 | L95: 102.7821634 | M95: -0.02476747673 | N95: 100.0339844 | O95: -0.02673789745 | P95: 100.0339844 | Q95: 0 | R95: 116.2810601 | S95: 0.1624155609 | U95: 114.7869861 | V95: -0.01284881681 | W95: 114.7869861 | X95: 0 | Y95: 114.7869861 | Z95: 0 | AA95: 115.7855144 | AB95: 0.008698967766 | AD95: ='CPI Sub-Categories'!Y96 -> 122.9532057 | AE95: 0.06190490557 | AF95: ='CPI Sub-Categories'!Z96 -> 122.9532057 | AG95: 0 | AH95: ='CPI Sub-Categories'!AA96 -> 122.9532057 | AI95: 0 | AJ95: ='CPI Sub-Categories'!AB96 -> 119.5707399 | AK95: -0.02751018817 | AM95: ='CPI Sub-Categories'!AD96 -> 119.5707399 | AN95: 0 | AO95: ='CPI Sub-Categories'!AE96 -> 119.5707399 | AP95: 0 | AQ95: ='CPI Sub-Categories'!AF96 -> 127.8572702 | AR95: 0.06930232558 | AS95: ='CPI Sub-Categories'!AG96 -> 135.7988292 | AT95: 0.06211268989 | AV95: ='CPI Sub-Categories'!AI96 -> 169.0759368 | AW95: 0.2450470877 | AX95: ='CPI Sub-Categories'!AJ96 -> 169.0759368 | AY95: 0 | AZ95: ='CPI Sub-Categories'!AK96 -> 169.0759368 | BA95: 0 | BB95: ='CPI Sub-Categories'!AL96 -> 169.1004477 | BC95: 0.0001449695584 | BE95: ='CPI Sub-Categories'!AM96 -> 169.1004477 | BF95: -5.882656396e-15 | BG95: ='CPI Sub-Categories'!AN96 -> 169.1004477 | BH95: 0 | BI95: ='CPI Sub-Categories'!AO96 -> 169.1004477 | BJ95: 0 | BK95: ='CPI Sub-Categories'!AU96 -> 0 | BL95: -1
A96: 3 | B96: 071300 | C96: Bicycles | D96: 106.7294413 | E96: 98.61548574 | F96: -0.07602359236 | G96: 120.90632 | H96: 0.2260378688 | I96: 136.565811 | J96: 0.1295175561 | L96: 144.8416448 | M96: 0.06059960148 | N96: 145.4659699 | O96: 0.004310398102 | P96: 122.9877268 | Q96: -0.1545257847 | R96: 145.7364176 | S96: 0.1849671628 | U96: 150.3024637 | V96: 0.03133085144 | W96: 146.5434336 | X96: -0.02500977056 | Y96: 146.5434336 | Z96: 0 | AA96: 147.9260004 | AB96: 0.009434519444 | AD96: ='CPI Sub-Categories'!Y97 -> 148.6076967 | AE96: 0.004608360025 | AF96: ='CPI Sub-Categories'!Z97 -> 151.0443215 | AG96: 0.01639635681 | AH96: ='CPI Sub-Categories'!AA97 -> 148.6076967 | AI96: -0.01613185319 | AJ96: ='CPI Sub-Categories'!AB97 -> 162.852585 | AK96: 0.09585565627 | AM96: ='CPI Sub-Categories'!AD97 -> 167.2934319 | AN96: 0.02726912109 | AO96: ='CPI Sub-Categories'!AE97 -> 171.088862 | AP96: 0.02268726307 | AQ96: ='CPI Sub-Categories'!AF97 -> 172.6132708 | AR96: 0.00891004162 | AS96: ='CPI Sub-Categories'!AG97 -> 170.7717086 | AT96: -0.01066871735 | AV96: ='CPI Sub-Categories'!AI97 -> 170.7717086 | AW96: 0 | AX96: ='CPI Sub-Categories'!AJ97 -> 180.2223412 | AY96: 0.05534073921 | AZ96: ='CPI Sub-Categories'!AK97 -> 171.2072137 | BA96: -0.05002225296 | BB96: ='CPI Sub-Categories'!AL97 -> 177.0154035 | BC96: 0.03392491293 | BE96: ='CPI Sub-Categories'!AM97 -> 164.7923724 | BF96: -0.06905066375 | BG96: ='CPI Sub-Categories'!AN97 -> 164.7923724 | BH96: 0 | BI96: ='CPI Sub-Categories'!AO97 -> 172.8222398 | BJ96: 0.04872717907 | BK96: ='CPI Sub-Categories'!AU97 -> 0 | BL96: -1
A97: 3 | B97: 071400 | C97: Animal drawn vehicles | D97: Not relevant | E97: Not relevant | F97: Not relevent | G97: Not relevant | H97: Not relevant | I97: Not relevant | J97: Not relevant | L97: Not relevant | M97: Not relevant | N97: Not relevant | O97: Not relevant | P97: Not relevant | Q97: Not relevant | R97: Not relevant | S97: Not relevant | U97: Not relevant | V97: Not relevant | W97: Not relevant | X97: Not relevant | Y97: Not relevant | Z97: Not relevant | AA97: Not relevant | AB97: =IFERROR((AA97-Y97)/Y97,"Not relevant") -> Not relevant | AD97: ='CPI Sub-Categories'!Y98 -> Not relevant | AE97: Not relevant | AF97: ='CPI Sub-Categories'!Z98 -> Not relevant | AG97: Not relevant | AH97: ='CPI Sub-Categories'!AA98 -> Not relevant | AI97: Not relevant | AJ97: ='CPI Sub-Categories'!AB98 -> Not relevant | AK97: =IFERROR((AJ97-AH97)/AH97,"Not relevant") -> Not relevant | AM97: ='CPI Sub-Categories'!AD98 -> Not relevant | AN97: Not relevant | AO97: ='CPI Sub-Categories'!AE98 -> Not relevant | AP97: Not relevant | AQ97: ='CPI Sub-Categories'!AF98 -> Not relevant | AR97: Not relevant | AS97: ='CPI Sub-Categories'!AG98 -> Not relevant | AT97: Not relevant | AV97: ='CPI Sub-Categories'!AI98 -> Not relevant | AW97: Not relevant | AX97: ='CPI Sub-Categories'!AJ98 -> Not relevant | AY97: Not relevant | AZ97: ='CPI Sub-Categories'!AK98 -> Not relevant | BA97: Not relevant | BB97: ='CPI Sub-Categories'!AL98 -> Not relevant | BC97: Not relevant | BE97: ='CPI Sub-Categories'!AM98 -> Not relevant | BF97: Not relevant | BG97: ='CPI Sub-Categories'!AN98 -> Not relevant | BH97: Not relevant | BI97: ='CPI Sub-Categories'!AO98 -> Not relevant | BJ97: Not relevant | BK97: ='CPI Sub-Categories'!AU98 -> 0 | BL97: Not relevant
A98: 2 | B98: 072000 | C98: Operation of personal transport equipment (incl. fuel) | D98: 95.60485299 | E98: 98.24029705 | F98: 0.02756600712 | G98: 95.74468612 | H98: -0.02540312884 | I98: 97.25143239 | J98: 0.0157371268 | L98: 94.60833669 | M98: -0.02717796164 | N98: 84.90446029 | O98: -0.1025689357 | P98: 87.80444517 | Q98: 0.03415586026 | R98: 89.79975306 | S98: 0.02272445188 | U98: 97.49943114 | V98: 0.08574275336 | W98: 102.7570313 | X98: 0.05392441895 | Y98: 105.9657485 | Z98: 0.03122625434 | AA98: 108.4885076 | AB98: 0.02380730727 | AD98: ='CPI Sub-Categories'!Y99 -> 110.9030041 | AE98: =(AD98-AA98)/AA98 -> 0.02225578062 | AF98: ='CPI Sub-Categories'!Z99 -> 141.330974 | AG98: =(AF98-AD98)/AD98 -> 0.274365606 | AH98: ='CPI Sub-Categories'!AA99 -> 115.8108004 | AI98: -0.1805702803 | AJ98: ='CPI Sub-Categories'!AB99 -> 113.6310143 | AK98: =IFERROR((AJ98-AH98)/AH98,"Not available") -> -0.01882195879 | AM98: ='CPI Sub-Categories'!AD99 -> 115.4667231 | AN98: =(AM98-AJ98)/AJ98 -> 0.01615499808 | AO98: ='CPI Sub-Categories'!AE99 -> 102.6213377 | AP98: -0.1112475098 | AQ98: ='CPI Sub-Categories'!AF99 -> 111.7982898 | AR98: 0.08942537983 | AS98: ='CPI Sub-Categories'!AG99 -> 120.5116199 | AT98: 0.07793795517 | AV98: ='CPI Sub-Categories'!AI99 -> 116.9202538 | AW98: =(AV98-AS98)/AS98 -> -0.02980099382 | AX98: ='CPI Sub-Categories'!AJ99 -> 118.4522837 | AY98: 0.0131032033 | AZ98: ='CPI Sub-Categories'!AK99 -> 119.0531217 | BA98: 0.00507240561 | BB98: ='CPI Sub-Categories'!AL99 -> 115.6850343 | BC98: =(BB98-AZ98)/AZ98 -> -0.0282906271 | BE98: ='CPI Sub-Categories'!AM99 -> 117.3807935 | BF98: =(BE98-BB98)/BB98 -> 0.01465841531 | BG98: ='CPI Sub-Categories'!AN99 -> 115.127558 | BH98: =(BG98-BE98)/BE98 -> -0.01919594773 | BI98: ='CPI Sub-Categories'!AO99 -> 118.2050923 | BJ98: =(BI98-BG98)/BG98 -> 0.02673151719 | BK98: ='CPI Sub-Categories'!AU99 -> 0 | BL98: =(BK98-BI98)/BI98 -> -1
A99: 3 | B99: 072100 | C99: Spare parts and accessories for personal transport equipment | D99: 100.036472 | E99: 100.2181085 | F99: 0.001815702647 | G99: 99.97386412 | H99: -0.002437128133 | I99: 108.047676 | J99: 0.08075922597 | L99: 108.373167 | M99: 0.003012475838 | N99: 103.7256556 | O99: -0.04288433695 | P99: 104.455266 | Q99: 0.007034040167 | R99: 107.5595554 | S99: 0.02971884044 | U99: 106.7422939 | V99: -0.007598223557 | W99: 108.1708362 | X99: 0.01338309614 | Y99: 107.5655232 | Z99: -0.005595899099 | AA99: 109.7639567 | AB99: 0.02043808703 | AD99: ='CPI Sub-Categories'!Y100 -> 110.4438755 | AE99: 0.006194371874 | AF99: ='CPI Sub-Categories'!Z100 -> 118.0099165 | AG99: 0.06850575458 | AH99: ='CPI Sub-Categories'!AA100 -> 119.103474 | AI99: 0.009266658247 | AJ99: ='CPI Sub-Categories'!AB100 -> 119.1924644 | AK99: 0.0007471687916 | AM99: ='CPI Sub-Categories'!AD100 -> 125.9802496 | AN99: 0.05694810621 | AO99: ='CPI Sub-Categories'!AE100 -> 128.0755283 | AP99: 0.01663180365 | AQ99: ='CPI Sub-Categories'!AF100 -> 127.5515254 | AR99: -0.004091358851 | AS99: ='CPI Sub-Categories'!AG100 -> 126.2879101 | AT99: -0.009906704549 | AV99: ='CPI Sub-Categories'!AI100 -> 122.9253876 | AW99: -0.02662584627 | AX99: ='CPI Sub-Categories'!AJ100 -> 123.603971 | AY99: 0.00552028631 | AZ99: ='CPI Sub-Categories'!AK100 -> 123.5093683 | BA99: -0.0007653690342 | BB99: ='CPI Sub-Categories'!AL100 -> 125.9461451 | BC99: 0.01972948954 | BE99: ='CPI Sub-Categories'!AM100 -> 126.9528473 | BF99: 0.007993116361 | BG99: ='CPI Sub-Categories'!AN100 -> 132.5347725 | BH99: 0.04396849179 | BI99: ='CPI Sub-Categories'!AO100 -> 133.9145941 | BJ99: 0.01041101522 | BK99: ='CPI Sub-Categories'!AU100 -> 0 | BL99: -1
A100: 3 | B100: 072200 | C100: Fuels and lubricants for personal transport equipment | D100: 93.37276059 | E100: 97.29404945 | F100: 0.04199606862 | G100: 93.60220579 | H100: -0.03794521541 | I100: 94.12724646 | J100: 0.005609276684 | L100: 90.05322316 | M100: -0.0432820831 | N100: 76.71289503 | O100: -0.1481382638 | P100: 80.880207 | Q100: 0.05432348719 | R100: 82.745717 | S100: 0.02306509921 | U100: 94.56860123 | V100: 0.1428821292 | W100: 102.094711 | X100: 0.07958360039 | Y100: 107.094595 | Z100: 0.04897299694 | AA100: 108.8576859 | AB100: 0.01646293132 | AD100: ='CPI Sub-Categories'!Y101 -> 112.3073974 | AE100: 0.03169010498 | AF100: ='CPI Sub-Categories'!Z101 -> 156.0612732 | AG100: 0.3895903282 | AH100: ='CPI Sub-Categories'!AA101 -> 117.3210795 | AI100: -0.2482370734 | AJ100: ='CPI Sub-Categories'!AB101 -> 111.371186 | AK100: -0.05071461597 | AM100: ='CPI Sub-Categories'!AD101 -> 112.2660246 | AN100: 0.008034740955 | AO100: ='CPI Sub-Categories'!AE101 -> 92.34039566 | AP100: -0.1774858337 | AQ100: ='CPI Sub-Categories'!AF101 -> 106.307728 | AR100: 0.1512591777 | AS100: ='CPI Sub-Categories'!AG101 -> 116.9215186 | AT100: 0.09984025453 | AV100: ='CPI Sub-Categories'!AI101 -> 112.4376929 | AW100: -0.03834902015 | AX100: ='CPI Sub-Categories'!AJ101 -> 114.5585301 | AY100: 0.01886233232 | AZ100: ='CPI Sub-Categories'!AK101 -> 115.4896068 | BA100: 0.008127520071 | BB100: ='CPI Sub-Categories'!AL101 -> 107.9405883 | BC100: -0.06536534931 | BE100: ='CPI Sub-Categories'!AM101 -> 110.319711 | BF100: 0.02204103834 | BG100: ='CPI Sub-Categories'!AN101 -> 105.3140145 | BH100: -0.04537445257 | BI100: ='CPI Sub-Categories'!AO101 -> 109.5697478 | BJ100: 0.04040994336 | BK100: ='CPI Sub-Categories'!AU101 -> 0 | BL100: -1
A101: 3 | B101: 072300 | C101: Maintenance and repair of personal transport equipment | D101: 100 | E101: 100 | F101: 0 | G101: 100 | H101: 0 | I101: 97.68308755 | J101: -0.02316912447 | L101: 97.68308755 | M101: 0 | N101: 97.68308755 | O101: 0 | P101: 97.68308755 | Q101: 0 | R101: 99.06493047 | S101: 0.01414618387 | U101: 99.06493047 | V101: 0 | W101: 99.06493047 | X101: 0 | Y101: 99.06493047 | Z101: 0 | AA101: 105.9988599 | AB101: 0.06999378516 | AD101: ='CPI Sub-Categories'!Y102 -> 105.9988599 | AE101: 0 | AF101: ='CPI Sub-Categories'!Z102 -> 105.9988599 | AG101: 0 | AH101: ='CPI Sub-Categories'!AA102 -> 105.9988599 | AI101: 0 | AJ101: ='CPI Sub-Categories'!AB102 -> 118.7953369 | AK101: 0.1207227795 | AM101: ='CPI Sub-Categories'!AD102 -> 118.7953369 | AN101: 0 | AO101: ='CPI Sub-Categories'!AE102 -> 118.7953369 | AP101: 0 | AQ101: ='CPI Sub-Categories'!AF102 -> 118.7953369 | AR101: 0 | AS101: ='CPI Sub-Categories'!AG102 -> 132.6418979 | AT101: 0.1165581187 | AV101: ='CPI Sub-Categories'!AI102 -> 132.6418979 | AW101: 0 | AX101: ='CPI Sub-Categories'!AJ102 -> 132.6418979 | AY101: 0 | AZ101: ='CPI Sub-Categories'!AK102 -> 132.6418979 | BA101: 0 | BB101: ='CPI Sub-Categories'!AL102 -> 141.3835039 | BC101: 0.06590380669 | BE101: ='CPI Sub-Categories'!AM102 -> 141.3835039 | BF101: 0 | BG101: ='CPI Sub-Categories'!AN102 -> 141.3835039 | BH101: 0 | BI101: ='CPI Sub-Categories'!AO102 -> 141.3835039 | BJ101: 0 | BK101: ='CPI Sub-Categories'!AU102 -> 0 | BL101: -1
A102: 3 | B102: 072400 | C102: Other services in respect of personal transport equipment | D102: 99.87238452 | E102: 99.80787869 | F102: -0.0006458825088 | G102: 99.80787869 | H102: 0 | I102: 99.80787869 | J102: 0 | L102: 99.93710851 | M102: 0.001294785703 | N102: 100.0650957 | O102: 0.001280677167 | P102: 100.0650957 | Q102: 0 | R102: 100.0650957 | S102: 0 | U102: 100.0650957 | V102: 0 | W102: 100.0650957 | X102: 0 | Y102: 100.0650957 | Z102: 0 | AA102: 100.0650957 | AB102: 0 | AD102: ='CPI Sub-Categories'!Y103 -> 100.0650957 | AE102: 0 | AF102: ='CPI Sub-Categories'!Z103 -> 99.90484208 | AG102: -0.001601493532 | AH102: ='CPI Sub-Categories'!AA103 -> 99.84674552 | AI102: -0.0005815189627 | AJ102: ='CPI Sub-Categories'!AB103 -> 99.84674552 | AK102: 0 | AM102: ='CPI Sub-Categories'!AD103 -> 99.90484208 | AN102: 0.0005818573238 | AO102: ='CPI Sub-Categories'!AE103 -> 99.90484208 | AP102: 0 | AQ102: ='CPI Sub-Categories'!AF103 -> 99.90484208 | AR102: 0 | AS102: ='CPI Sub-Categories'!AG103 -> 99.90484208 | AT102: 0 | AV102: ='CPI Sub-Categories'!AI103 -> 99.90484208 | AW102: 0 | AX102: ='CPI Sub-Categories'!AJ103 -> 99.90484208 | AY102: 0 | AZ102: ='CPI Sub-Categories'!AK103 -> 99.90484208 | BA102: 0 | BB102: ='CPI Sub-Categories'!AL103 -> 99.90484208 | BC102: 0 | BE102: ='CPI Sub-Categories'!AM103 -> 98.79677812 | BF102: -0.01109119375 | BG102: ='CPI Sub-Categories'!AN103 -> 98.79677812 | BH102: 0 | BI102: ='CPI Sub-Categories'!AO103 -> 98.79677812 | BJ102: 0 | BK102: ='CPI Sub-Categories'!AU103 -> 0 | BL102: -1
A103: 2 | B103: 073000 | C103: Transport services | D103: 105.1867897 | E103: 104.8789477 | F103: -0.002926622357 | G103: 105.7570042 | H103: 0.008372095234 | I103: 105.4244109 | J103: -0.003144882433 | L103: 107.3377658 | M103: 0.01814906944 | N103: 107.7984997 | O103: 0.004292374175 | P103: 105.4843684 | Q103: -0.02146719352 | R103: 100.8443978 | S103: -0.04398728211 | U103: 94.12443933 | V103: -0.0666369038 | W103: 93.88925139 | X103: -0.002498691573 | Y103: 95.53621232 | Z103: 0.01754152805 | AA103: 98.96295238 | AB103: 0.03586849401 | AD103: ='CPI Sub-Categories'!Y104 -> 105.1510389 | AE103: 0.06252932413 | AF103: ='CPI Sub-Categories'!Z104 -> 103.1183146 | AG103: -0.01933147191 | AH103: ='CPI Sub-Categories'!AA104 -> 107.8009006 | AI103: 0.04540983919 | AJ103: ='CPI Sub-Categories'!AB104 -> 107.6662719 | AK103: -0.001248864856 | AM103: ='CPI Sub-Categories'!AD104 -> 107.7785185 | AN103: 0.001042541915 | AO103: ='CPI Sub-Categories'!AE104 -> 104.3880845 | AP103: -0.03145741904 | AQ103: ='CPI Sub-Categories'!AF104 -> 104.9740395 | AR103: 0.005613237177 | AS103: ='CPI Sub-Categories'!AG104 -> 113.3731884 | AT103: 0.08001167643 | AV103: ='CPI Sub-Categories'!AI104 -> 110.5900208 | AW103: -0.02454872869 | AX103: ='CPI Sub-Categories'!AJ104 -> 113.6653293 | AY103: 0.02780819212 | AZ103: ='CPI Sub-Categories'!AK104 -> 116.7317089 | BA103: 0.02697726402 | BB103: ='CPI Sub-Categories'!AL104 -> 137.0049764 | BC103: 0.1736740399 | BE103: ='CPI Sub-Categories'!AM104 -> 133.8646375 | BF103: -0.02292134893 | BG103: ='CPI Sub-Categories'!AN104 -> 128.9063996 | BH103: -0.03703919118 | BI103: ='CPI Sub-Categories'!AO104 -> 128.9063996 | BJ103: 7.716915785e-15 | BK103: ='CPI Sub-Categories'!AU104 -> 0 | BL103: -1
A104: 3 | B104: 073100 | C104: Passenger transport by railway | D104: Not relevant | E104: Not relevant | F104: Not relevent | G104: Not relevant | H104: Not relevant | I104: Not relevant | J104: Not relevant | L104: Not relevant | M104: Not relevant | N104: Not relevant | O104: Not relevant | P104: Not relevant | Q104: Not relevant | R104: Not relevant | S104: Not relevant | U104: Not relevant | V104: Not relevant | W104: Not relevant | X104: Not relevant | Y104: Not relevant | Z104: Not relevant | AA104: Not relevant | AB104: =IFERROR((AA104-Y104)/Y104,"Not relevant") -> Not relevant | AD104: ='CPI Sub-Categories'!Y105 -> Not relevant | AE104: Not relevant | AF104: ='CPI Sub-Categories'!Z105 -> Not relevant | AG104: Not relevant | AH104: ='CPI Sub-Categories'!AA105 -> Not relevant | AI104: Not relevant | AJ104: ='CPI Sub-Categories'!AB105 -> Not relevant | AK104: =IFERROR((AJ104-AH104)/AH104,"Not relevant") -> Not relevant | AM104: ='CPI Sub-Categories'!AD105 -> Not relevant | AN104: Not relevant | AO104: ='CPI Sub-Categories'!AE105 -> Not relevant | AP104: Not relevant | AQ104: ='CPI Sub-Categories'!AF105 -> Not relevant | AR104: Not relevant | AS104: ='CPI Sub-Categories'!AG105 -> Not relevant | AT104: Not relevant | AV104: ='CPI Sub-Categories'!AI105 -> Not relevant | AW104: Not relevant | AX104: ='CPI Sub-Categories'!AJ105 -> Not relevant | AY104: Not relevant | AZ104: ='CPI Sub-Categories'!AK105 -> Not relevant | BA104: Not relevant | BB104: ='CPI Sub-Categories'!AL105 -> Not relevant | BC104: Not relevant | BE104: ='CPI Sub-Categories'!AM105 -> Not relevant | BF104: Not relevant | BG104: ='CPI Sub-Categories'!AN105 -> Not relevant | BH104: Not relevant | BI104: ='CPI Sub-Categories'!AO105 -> Not relevant | BJ104: Not relevant | BK104: ='CPI Sub-Categories'!AU105 -> 0 | BL104: Not relevant
A105: 3 | B105: 073200 | C105: Passenger transport by road | D105: 109.2165966 | E105: 108.4085687 | F105: -0.007398398709 | G105: 113.2319645 | H105: 0.04449275444 | I105: 114.6712182 | J105: 0.0127106655 | L105: 117.2786658 | M105: 0.02273846628 | N105: 117.2786658 | O105: 0 | P105: 117.2786658 | Q105: 0 | R105: 113.8075302 | S105: -0.02959733205 | U105: 106.3679371 | V105: -0.06536995436 | W105: 106.3679371 | X105: 0 | Y105: 106.3679371 | Z105: 0 | AA105: 112.70941 | AB105: 0.05961827477 | AD105: ='CPI Sub-Categories'!Y106 -> 124.1795009 | AE105: =(AD105-AA105)/AA105 -> 0.1017669324 | AF105: ='CPI Sub-Categories'!Z106 -> 119.5436083 | AG105: =(AF105-AD105)/AD105 -> -0.03733218949 | AH105: ='CPI Sub-Categories'!AA106 -> 119.5245822 | AI105: -0.0001591561174 | AJ105: ='CPI Sub-Categories'!AB106 -> 119.5245822 | AK105: =IFERROR((AJ105-AH105)/AH105,"Not available") -> 0 | AM105: ='CPI Sub-Categories'!AD106 -> 119.7240373 | AN105: =(AM105-AJ105)/AJ105 -> 0.001668737045 | AO105: ='CPI Sub-Categories'!AE106 -> 113.232922 | AP105: -0.05421731024 | AQ105: ='CPI Sub-Categories'!AF106 -> 113.232922 | AR105: 0 | AS105: ='CPI Sub-Categories'!AG106 -> 124.6695498 | AT105: 0.101000907 | AV105: ='CPI Sub-Categories'!AI106 -> 119.7240373 | AW105: =(AV105-AS105)/AS105 -> -0.03966896935 | AX105: ='CPI Sub-Categories'!AJ106 -> 124.6695498 | AY105: 0.04130759924 | AZ105: ='CPI Sub-Categories'!AK106 -> 124.6695498 | BA105: 0 | BB105: ='CPI Sub-Categories'!AL106 -> 156.8491889 | BC105: =(BB105-AZ105)/AZ105 -> 0.2581194779 | BE105: ='CPI Sub-Categories'!AM106 -> 153.1145955 | BF105: =(BE105-BB105)/BB105 -> -0.02381009059 | BG105: ='CPI Sub-Categories'!AN106 -> 142.8627619 | BH105: =(BG105-BE105)/BE105 -> -0.06695530004 | BI105: ='CPI Sub-Categories'!AO106 -> 142.8627619 | BJ105: =(BI105-BG105)/BG105 -> 0 | BK105: ='CPI Sub-Categories'!AU106 -> 0 | BL105: =(BK105-BI105)/BI105 -> -1
A106: 3 | B106: 073300 | C106: Passenger transport by air | D106: 100 | E106: 100 | F106: 0 | G106: 94.83683878 | H106: -0.05163161216 | I106: 92.04803293 | J106: -0.02940635613 | L106: 93.13658071 | M106: 0.01182586689 | N106: 94.26116143 | O106: 0.01207453296 | P106: 88.61272176 | Q106: -0.05992329802 | R106: 82.0553074 | S106: -0.07400082323 | U106: 75.87213885 | V106: -0.07535366991 | W106: 75.87213885 | X106: 0 | Y106: 79.89211804 | Z106: 0.05298360178 | AA106: 79.54545195 | AB106: -0.004339177595 | AD106: ='CPI Sub-Categories'!Y107 -> 78.89400527 | AE106: =(AD106-AA106)/AA106 -> -0.008189615706 | AF106: ='CPI Sub-Categories'!Z107 -> 78.89400527 | AG106: 0 | AH106: ='CPI Sub-Categories'!AA107 -> 90.34961487 | AI106: 0.1452025354 | AJ106: ='CPI Sub-Categories'!AB107 -> 90.02100671 | AK106: =IFERROR((AJ106-AH106)/AH106,"Not available") -> -0.003637073138 | AM106: ='CPI Sub-Categories'!AD107 -> 90.02100671 | AN106: =(AM106-AJ106)/AJ106 -> 1.105030777e-15 | AO106: ='CPI Sub-Categories'!AE107 -> 90.02100671 | AP106: 0 | AQ106: ='CPI Sub-Categories'!AF107 -> 91.45123323 | AR106: 0.0158876975 | AS106: ='CPI Sub-Categories'!AG107 -> 96.24261661 | AT106: 0.05239276945 | AV106: ='CPI Sub-Categories'!AI107 -> 96.24261661 | AW106: =(AV106-AS106)/AS106 -> -1.033595994e-15 | AX106: ='CPI Sub-Categories'!AJ107 -> 96.24261661 | AY106: 0 | AZ106: ='CPI Sub-Categories'!AK107 -> 103.7271792 | BA106: 0.07776765462 | BB106: ='CPI Sub-Categories'!AL107 -> 109.3516224 | BC106: =(BB106-AZ106)/AZ106 -> 0.05422342768 | BE106: ='CPI Sub-Categories'!AM107 -> 101.6865366 | BF106: =(BE106-BB106)/BB106 -> -0.07009576669 | BG106: ='CPI Sub-Categories'!AN107 -> 109.5681543 | BH106: =(BG106-BE106)/BE106 -> 0.07750895995 | BI106: ='CPI Sub-Categories'!AO107 -> 109.5681543 | BJ106: =(BI106-BG106)/BG106 -> 0 | BK106: ='CPI Sub-Categories'!AU107 -> 0 | BL106: =(BK106-BI106)/BI106 -> -1
A107: 3 | B107: 073400 | C107: Passenger transport by sea and inland waterway | D107: 100 | E107: 105.3336865 | F107: 0.05333686529 | G107: 115.4618407 | H107: 0.09615304014 | I107: 115.4618407 | J107: 0 | L107: 115.4618407 | M107: 0 | N107: 115.4618407 | O107: 0 | P107: 115.4618407 | Q107: 0 | R107: 115.4618407 | S107: 0 | U107: 115.4618407 | V107: 0 | W107: 106.9219226 | X107: -0.0739631215 | Y107: 106.9219226 | Z107: 0 | AA107: 106.9219226 | AB107: 0 | AD107: ='CPI Sub-Categories'!Y108 -> 106.9219226 | AE107: =(AD107-AA107)/AA107 -> 0 | AF107: ='CPI Sub-Categories'!Z108 -> 127.8443297 | AG107: 0.1956793018 | AH107: ='CPI Sub-Categories'!AA108 -> 127.8443297 | AI107: 0 | AJ107: ='CPI Sub-Categories'!AB108 -> 127.8443297 | AK107: =IFERROR((AJ107-AH107)/AH107,"Not available") -> 0 | AM107: ='CPI Sub-Categories'!AD108 -> 127.8443297 | AN107: =(AM107-AJ107)/AJ107 -> 0 | AO107: ='CPI Sub-Categories'!AE108 -> 137.3776727 | AP107: 0.07456993182 | AQ107: ='CPI Sub-Categories'!AF108 -> 137.3776727 | AR107: 0 | AS107: ='CPI Sub-Categories'!AG108 -> 137.3776727 | AT107: 0 | AV107: ='CPI Sub-Categories'!AI108 -> 137.3776727 | AW107: =(AV107-AS107)/AS107 -> 0 | AX107: ='CPI Sub-Categories'!AJ108 -> 147.9856118 | AY107: 0.07721734502 | AZ107: ='CPI Sub-Categories'!AK108 -> 147.9856118 | BA107: 0 | BB107: ='CPI Sub-Categories'!AL108 -> 142.8785373 | BC107: =(BB107-AZ107)/AZ107 -> -0.03451061539 | BE107: ='CPI Sub-Categories'!AM108 -> 142.8785373 | BF107: =(BE107-BB107)/BB107 -> 0 | BG107: ='CPI Sub-Categories'!AN108 -> 131.3970169 | BH107: =(BG107-BE107)/BE107 -> -0.08035860787 | BI107: ='CPI Sub-Categories'!AO108 -> 131.3970169 | BJ107: =(BI107-BG107)/BG107 -> 0 | BK107: ='CPI Sub-Categories'!AU108 -> 0 | BL107: =(BK107-BI107)/BI107 -> -1
A108: 3 | B108: 073500 | C108: Combined passenger transport | D108: Not relevant | E108: Not relevant | F108: Not relevent | G108: Not relevant | H108: Not relevant | I108: Not relevant | J108: Not relevant | L108: Not relevant | M108: Not relevant | N108: Not relevant | O108: Not relevant | P108: Not relevant | Q108: Not relevant | R108: Not relevant | S108: Not relevant | U108: Not relevant | V108: Not relevant | W108: Not relevant | X108: Not relevant | Y108: Not relevant | Z108: Not relevant | AA108: Not relevant | AB108: =IFERROR((AA108-Y108)/Y108,"Not relevant") -> Not relevant | AD108: ='CPI Sub-Categories'!Y109 -> Not relevant | AE108: Not relevant | AF108: ='CPI Sub-Categories'!Z109 -> Not relevant | AG108: Not relevant | AH108: ='CPI Sub-Categories'!AA109 -> Not relevant | AI108: Not relevant | AJ108: ='CPI Sub-Categories'!AB109 -> Not relevant | AK108: =IFERROR((AJ108-AH108)/AH108,"Not relevant") -> Not relevant | AM108: ='CPI Sub-Categories'!AD109 -> Not relevant | AN108: Not relevant | AO108: ='CPI Sub-Categories'!AE109 -> Not relevant | AP108: Not relevant | AQ108: ='CPI Sub-Categories'!AF109 -> Not relevant | AR108: Not relevant | AS108: ='CPI Sub-Categories'!AG109 -> Not relevant | AT108: Not relevant | AV108: ='CPI Sub-Categories'!AI109 -> Not relevant | AW108: Not relevant | AX108: ='CPI Sub-Categories'!AJ109 -> Not relevant | AY108: Not relevant | AZ108: ='CPI Sub-Categories'!AK109 -> Not relevant | BA108: Not relevant | BB108: ='CPI Sub-Categories'!AL109 -> Not relevant | BC108: Not relevant | BE108: ='CPI Sub-Categories'!AM109 -> Not relevant | BF108: Not relevant | BG108: ='CPI Sub-Categories'!AN109 -> Not relevant | BH108: Not relevant | BI108: ='CPI Sub-Categories'!AO109 -> Not relevant | BJ108: Not relevant | BK108: ='CPI Sub-Categories'!AU109 -> 0 | BL108: Not relevant
A109: 3 | B109: 073600 | C109: Other purchased transport services | D109: Not relevant | E109: Not relevant | F109: Not relevent | G109: Not relevant | H109: Not relevant | I109: Not relevant | J109: Not relevant | L109: Not relevant | M109: Not relevant | N109: Not relevant | O109: Not relevant | P109: Not relevant | Q109: Not relevant | R109: Not relevant | S109: Not relevant | U109: Not relevant | V109: Not relevant | W109: Not relevant | X109: Not relevant | Y109: Not relevant | Z109: Not relevant | AA109: Not relevant | AB109: =IFERROR((AA109-Y109)/Y109,"Not relevant") -> Not relevant | AD109: ='CPI Sub-Categories'!Y110 -> Not relevant | AE109: Not relevant | AF109: ='CPI Sub-Categories'!Z110 -> Not relevant | AG109: Not relevant | AH109: ='CPI Sub-Categories'!AA110 -> Not relevant | AI109: Not relevant | AJ109: ='CPI Sub-Categories'!AB110 -> Not relevant | AK109: =IFERROR((AJ109-AH109)/AH109,"Not relevant") -> Not relevant | AM109: ='CPI Sub-Categories'!AD110 -> Not relevant | AN109: Not relevant | AO109: ='CPI Sub-Categories'!AE110 -> Not relevant | AP109: Not relevant | AQ109: ='CPI Sub-Categories'!AF110 -> Not relevant | AR109: Not relevant | AS109: ='CPI Sub-Categories'!AG110 -> Not relevant | AT109: Not relevant | AV109: ='CPI Sub-Categories'!AI110 -> Not relevant | AW109: Not relevant | AX109: ='CPI Sub-Categories'!AJ110 -> Not relevant | AY109: Not relevant | AZ109: ='CPI Sub-Categories'!AK110 -> Not relevant | BA109: Not relevant | BB109: ='CPI Sub-Categories'!AL110 -> Not relevant | BC109: Not relevant | BE109: ='CPI Sub-Categories'!AM110 -> Not relevant | BF109: Not relevant | BG109: ='CPI Sub-Categories'!AN110 -> Not relevant | BH109: Not relevant | BI109: ='CPI Sub-Categories'!AO110 -> Not relevant | BJ109: Not relevant | BK109: ='CPI Sub-Categories'!AU110 -> 0 | BL109: Not relevant
A110: 1 | B110: 080000 | C110: Communication | D110: 99.53449012 | E110: 99.53791425 | F110: 3.440140809e-05 | G110: 99.17090917 | H110: -0.003687088338 | I110: 96.81589368 | J110: -0.02374703943 | L110: 97.09381228 | M110: 0.002870588591 | N110: 97.28758166 | O110: 0.001995692428 | P110: 97.52723114 | Q110: 0.00246331009 | R110: 99.57749674 | S110: 0.02102249363 | U110: 103.1901527 | V110: 0.03627984317 | W110: 103.8244366 | X110: 0.006146748683 | Y110: 104.0825944 | Z110: 0.002486483674 | AA110: 104.6528158 | AB110: 0.005478547505 | AD110: ='CPI Sub-Categories'!Y111 -> 104.6410699 | AE110: =(AD110-AA110)/AA110 -> -0.0001122375348 | AF110: ='CPI Sub-Categories'!Z111 -> 105.2487851 | AG110: =(AF110-AD110)/AD110 -> 0.005807616984 | AH110: ='CPI Sub-Categories'!AA111 -> 105.9533609 | AI110: 0.00669438413 | AJ110: ='CPI Sub-Categories'!AB111 -> 105.1419593 | AK110: =IFERROR((AJ110-AH110)/AH110,"Not available") -> -0.00765810155 | AM110: ='CPI Sub-Categories'!AD111 -> 105.3982384 | AN110: =(AM110-AJ110)/AJ110 -> 0.002437457705 | AO110: ='CPI Sub-Categories'!AE111 -> 105.9396227 | AP110: 0.005136559322 | AQ110: ='CPI Sub-Categories'!AF111 -> 106.0035346 | AR110: 0.0006032864015 | AS110: ='CPI Sub-Categories'!AG111 -> 115.1952681 | AT110: 0.08671157522 | AV110: ='CPI Sub-Categories'!AI111 -> 115.8060629 | AW110: =(AV110-AS110)/AS110 -> 0.005302255813 | AX110: ='CPI Sub-Categories'!AJ111 -> 115.7952609 | AY110: -9.327649403e-05 | AZ110: ='CPI Sub-Categories'!AK111 -> 115.8060629 | BA110: 9.328519535e-05 | BB110: ='CPI Sub-Categories'!AL111 -> 116.6788861 | BC110: =(BB110-AZ110)/AZ110 -> 0.007536938851 | BE110: ='CPI Sub-Categories'!AM111 -> 117.6972756 | BF110: =(BE110-BB110)/BB110 -> 0.008728138759 | BG110: ='CPI Sub-Categories'!AN111 -> 115.7952609 | BH110: =(BG110-BE110)/BE110 -> -0.01616022713 | BI110: ='CPI Sub-Categories'!AO111 -> 117.3540631 | BJ110: =(BI110-BG110)/BG110 -> 0.01346170949 | BK110: ='CPI Sub-Categories'!AU111 -> 0 | BL110: =(BK110-BI110)/BI110 -> -1
A111: 2 | B111: 081000 | C111: Postal services | D111: 100 | E111: 102.1096037 | F111: 0.02109603708 | G111: 102.1096037 | H111: 0 | I111: 102.1096037 | J111: 0 | L111: 102.1096037 | M111: 0 | N111: 94.62783863 | O111: -0.07327190397 | P111: 94.62783863 | Q111: 0 | R111: 94.62783863 | S111: 0 | U111: 94.62783863 | V111: 0 | W111: 99.97104394 | X111: 0.05646546925 | Y111: 99.97104394 | Z111: 0 | AA111: 103.3847419 | AB111: 0.03414686673 | AD111: ='CPI Sub-Categories'!Y112 -> 103.3847419 | AE111: 0 | AF111: ='CPI Sub-Categories'!Z112 -> 103.3847419 | AG111: 9.759377125e-15 | AH111: ='CPI Sub-Categories'!AA112 -> 103.3847419 | AI111: 0 | AJ111: ='CPI Sub-Categories'!AB112 -> 125.8836443 | AK111: 0.2176230462 | AM111: ='CPI Sub-Categories'!AD112 -> 125.8836443 | AN111: -8.01510546e-15 | AO111: ='CPI Sub-Categories'!AE112 -> 125.8836443 | AP111: 0 | AQ111: ='CPI Sub-Categories'!AF112 -> 125.8836443 | AR111: 0 | AS111: ='CPI Sub-Categories'!AG112 -> 135.1210219 | AT111: 0.07338028402 | AV111: ='CPI Sub-Categories'!AI112 -> 135.1210219 | AW111: 0 | AX111: ='CPI Sub-Categories'!AJ112 -> 140.6787165 | AY111: 0.0411312356 | AZ111: ='CPI Sub-Categories'!AK112 -> 140.6787165 | BA111: 0 | BB111: ='CPI Sub-Categories'!AL112 -> 136.4301622 | BC111: -0.03020040513 | BE111: ='CPI Sub-Categories'!AM112 -> 136.4301622 | BF111: 0 | BG111: ='CPI Sub-Categories'!AN112 -> 161.635658 | BH111: 0.1847501704 | BI111: ='CPI Sub-Categories'!AO112 -> 161.635658 | BJ111: 0 | BK111: ='CPI Sub-Categories'!AU112 -> 0 | BL111: -1
A112: 3 | B112: 081100 | C112: Postal services | D112: 100 | E112: 102.1096037 | F112: 0.02109603708 | G112: 102.1096037 | H112: 0 | I112: 102.1096037 | J112: 0 | L112: 102.1096037 | M112: 0 | N112: 94.62783863 | O112: -0.07327190397 | P112: 94.62783863 | Q112: 0 | R112: 94.62783863 | S112: 0 | U112: 94.62783863 | V112: 0 | W112: 99.97104394 | X112: 0.05646546925 | Y112: 99.97104394 | Z112: 0 | AA112: 103.3847419 | AB112: 0.03414686673 | AD112: ='CPI Sub-Categories'!Y113 -> 103.3847419 | AE112: 0 | AF112: ='CPI Sub-Categories'!Z113 -> 103.3847419 | AG112: 9.759377125e-15 | AH112: ='CPI Sub-Categories'!AA113 -> 103.3847419 | AI112: 0 | AJ112: ='CPI Sub-Categories'!AB113 -> 125.8836443 | AK112: 0.2176230462 | AM112: ='CPI Sub-Categories'!AD113 -> 125.8836443 | AN112: -8.01510546e-15 | AO112: ='CPI Sub-Categories'!AE113 -> 125.8836443 | AP112: 0 | AQ112: ='CPI Sub-Categories'!AF113 -> 125.8836443 | AR112: 0 | AS112: ='CPI Sub-Categories'!AG113 -> 135.1210219 | AT112: 0.07338028402 | AV112: ='CPI Sub-Categories'!AI113 -> 135.1210219 | AW112: 0 | AX112: ='CPI Sub-Categories'!AJ113 -> 140.6787165 | AY112: 0.0411312356 | AZ112: ='CPI Sub-Categories'!AK113 -> 140.6787165 | BA112: 0 | BB112: ='CPI Sub-Categories'!AL113 -> 136.4301622 | BC112: -0.03020040513 | BE112: ='CPI Sub-Categories'!AM113 -> 136.4301622 | BF112: 0 | BG112: ='CPI Sub-Categories'!AN113 -> 161.635658 | BH112: 0.1847501704 | BI112: ='CPI Sub-Categories'!AO113 -> 161.635658 | BJ112: 0 | BK112: ='CPI Sub-Categories'!AU113 -> 0 | BL112: -1
A113: 2 | B113: 082000 | C113: Telephone and telefax equipment | D113: 96.25496558 | E113: 96.02156203 | F113: -0.002424846909 | G113: 93.06900026 | H113: -0.03074894542 | I113: 93.14682394 | J113: 0.0008361933596 | L113: 94.63220358 | M113: 0.01594664837 | N113: 97.11654996 | O113: 0.02625265267 | P113: 99.04453387 | Q113: 0.01985226945 | R113: 97.50334801 | S113: -0.01556053428 | U113: 98.22685001 | V113: 0.007420278564 | W113: 102.6687383 | X113: 0.04522071441 | Y113: 104.7456217 | Z113: 0.02022897526 | AA113: 107.0650716 | AB113: 0.02214364554 | AD113: ='CPI Sub-Categories'!Y114 -> 102.1185804 | AE113: -0.04620079283 | AF113: ='CPI Sub-Categories'!Z114 -> 107.0076594 | AG113: 0.04787648766 | AH113: ='CPI Sub-Categories'!AA114 -> 112.675983 | AI113: 0.05297119479 | AJ113: ='CPI Sub-Categories'!AB114 -> 112.3523395 | AK113: -0.002872337272 | AM113: ='CPI Sub-Categories'!AD114 -> 114.4141088 | AN113: 0.01835092445 | AO113: ='CPI Sub-Categories'!AE114 -> 118.7695542 | AP113: 0.03806738033 | AQ113: ='CPI Sub-Categories'!AF114 -> 119.2837268 | AR113: 0.004329161072 | AS113: ='CPI Sub-Categories'!AG114 -> 114.6095491 | AT113: -0.03918537546 | AV113: ='CPI Sub-Categories'!AI114 -> 119.5234029 | AW113: 0.04287473272 | AX113: ='CPI Sub-Categories'!AJ114 -> 118.7490331 | AY113: -0.006478813193 | AZ113: ='CPI Sub-Categories'!AK114 -> 116.395014 | BA113: -0.01982348063 | BB113: ='CPI Sub-Categories'!AL114 -> 112.5453313 | BC113: -0.03307429217 | BE113: ='CPI Sub-Categories'!AM114 -> 120.7382912 | BF113: 0.0727969771 | BG113: ='CPI Sub-Categories'!AN114 -> 118.2642696 | BH113: -0.02049077872 | BI113: ='CPI Sub-Categories'!AO114 -> 114.8593078 | BJ113: -0.02879112836 | BK113: ='CPI Sub-Categories'!AU114 -> 0 | BL113: -1
A114: 3 | B114: 082100 | C114: Telephone and telefax equipment | D114: 96.25496558 | E114: 96.02156203 | F114: -0.002424846909 | G114: 93.06900026 | H114: -0.03074894542 | I114: 93.14682394 | J114: 0.0008361933596 | L114: 94.63220358 | M114: 0.01594664837 | N114: 97.11654996 | O114: 0.02625265267 | P114: 99.04453387 | Q114: 0.01985226945 | R114: 97.50334801 | S114: -0.01556053428 | U114: 98.22685001 | V114: 0.007420278564 | W114: 102.6687383 | X114: 0.04522071441 | Y114: 104.7456217 | Z114: 0.02022897526 | AA114: 107.0650716 | AB114: 0.02214364554 | AD114: ='CPI Sub-Categories'!Y115 -> 102.1185804 | AE114: -0.04620079283 | AF114: ='CPI Sub-Categories'!Z115 -> 107.0076594 | AG114: 0.04787648766 | AH114: ='CPI Sub-Categories'!AA115 -> 112.675983 | AI114: 0.05297119479 | AJ114: ='CPI Sub-Categories'!AB115 -> 112.3523395 | AK114: -0.002872337272 | AM114: ='CPI Sub-Categories'!AD115 -> 114.4141088 | AN114: 0.01835092445 | AO114: ='CPI Sub-Categories'!AE115 -> 118.7695542 | AP114: 0.03806738033 | AQ114: ='CPI Sub-Categories'!AF115 -> 119.2837268 | AR114: 0.004329161072 | AS114: ='CPI Sub-Categories'!AG115 -> 114.6095491 | AT114: -0.03918537546 | AV114: ='CPI Sub-Categories'!AI115 -> 119.5234029 | AW114: 0.04287473272 | AX114: ='CPI Sub-Categories'!AJ115 -> 118.7490331 | AY114: -0.006478813193 | AZ114: ='CPI Sub-Categories'!AK115 -> 116.395014 | BA114: -0.01982348063 | BB114: ='CPI Sub-Categories'!AL115 -> 112.5453313 | BC114: -0.03307429217 | BE114: ='CPI Sub-Categories'!AM115 -> 120.7382912 | BF114: 0.0727969771 | BG114: ='CPI Sub-Categories'!AN115 -> 118.2642696 | BH114: -0.02049077872 | BI114: ='CPI Sub-Categories'!AO115 -> 114.8593078 | BJ114: -0.02879112836 | BK114: ='CPI Sub-Categories'!AU115 -> 0 | BL114: -1
A115: 2 | B115: 083000 | C115: Telephone and telefax services | D115: 100 | E115: 100 | F115: 0 | G115: 100 | H115: 0 | I115: 97.25139677 | J115: -0.02748603228 | L115: 97.35982696 | M115: 0.001114947311 | N115: 97.35982696 | O115: 0 | P115: 97.35982696 | Q115: 0 | R115: 99.96563146 | S115: 0.02676467886 | U115: 104.0602804 | V115: 0.04096056652 | W115: 104.0602804 | X115: 0 | Y115: 104.0602804 | Z115: 0 | AA115: 104.3269532 | AB115: 0.00256267668 | AD115: ='CPI Sub-Categories'!Y116 -> 105.0279748 | AE115: 0.006719468052 | AF115: ='CPI Sub-Categories'!Z116 -> 105.0279748 | AG115: 0 | AH115: ='CPI Sub-Categories'!AA116 -> 105.0279748 | AI115: 0 | AJ115: ='CPI Sub-Categories'!AB116 -> 103.7295039 | AK115: -0.01236309596 | AM115: ='CPI Sub-Categories'!AD116 -> 103.7295039 | AN115: 0 | AO115: ='CPI Sub-Categories'!AE116 -> 103.7295039 | AP115: 0 | AQ115: ='CPI Sub-Categories'!AF116 -> 103.7295039 | AR115: 0 | AS115: ='CPI Sub-Categories'!AG116 -> 114.923784 | AT115: 0.1079179953 | AV115: ='CPI Sub-Categories'!AI116 -> 114.923784 | AW115: 0 | AX115: ='CPI Sub-Categories'!AJ116 -> 114.923784 | AY115: 0 | AZ115: ='CPI Sub-Categories'!AK116 -> 114.923784 | BA115: 0 | BB115: ='CPI Sub-Categories'!AL116 -> 116.9231156 | BC115: 0.01739702142 | BE115: ='CPI Sub-Categories'!AM116 -> 116.9231156 | BF115: 0 | BG115: ='CPI Sub-Categories'!AN116 -> 116.9231156 | BH115: 0 | BI115: ='CPI Sub-Categories'!AO116 -> 116.9231156 | BJ115: 0 | BK115: ='CPI Sub-Categories'!AU116 -> 0 | BL115: -1
A116: 3 | B116: 083100 | C116: Telephone and telefax services | D116: 100 | E116: 100 | F116: 0 | G116: 100 | H116: 0 | I116: 97.25139677 | J116: -0.02748603228 | L116: 97.35982696 | M116: 0.001114947311 | N116: 97.35982696 | O116: 0 | P116: 97.35982696 | Q116: 0 | R116: 99.96563146 | S116: 0.02676467886 | U116: 104.0602804 | V116: 0.04096056652 | W116: 104.0602804 | X116: 0 | Y116: 104.0602804 | Z116: 0 | AA116: 104.3269532 | AB116: 0.00256267668 | AD116: ='CPI Sub-Categories'!Y117 -> 105.0279748 | AE116: 0.006719468052 | AF116: ='CPI Sub-Categories'!Z117 -> 105.0279748 | AG116: 0 | AH116: ='CPI Sub-Categories'!AA117 -> 105.0279748 | AI116: 0 | AJ116: ='CPI Sub-Categories'!AB117 -> 103.7295039 | AK116: -0.01236309596 | AM116: ='CPI Sub-Categories'!AD117 -> 103.7295039 | AN116: 0 | AO116: ='CPI Sub-Categories'!AE117 -> 103.7295039 | AP116: 0 | AQ116: ='CPI Sub-Categories'!AF117 -> 103.7295039 | AR116: 0 | AS116: ='CPI Sub-Categories'!AG117 -> 114.923784 | AT116: 0.1079179953 | AV116: ='CPI Sub-Categories'!AI117 -> 114.923784 | AW116: 0 | AX116: ='CPI Sub-Categories'!AJ117 -> 114.923784 | AY116: 0 | AZ116: ='CPI Sub-Categories'!AK117 -> 114.923784 | BA116: 0 | BB116: ='CPI Sub-Categories'!AL117 -> 116.9231156 | BC116: 0.01739702142 | BE116: ='CPI Sub-Categories'!AM117 -> 116.9231156 | BF116: 0 | BG116: ='CPI Sub-Categories'!AN117 -> 116.9231156 | BH116: 0 | BI116: ='CPI Sub-Categories'!AO117 -> 116.9231156 | BJ116: 0 | BK116: ='CPI Sub-Categories'!AU117 -> 0 | BL116: -1
A117: 1 | B117: 090000 | C117: Recreation and culture | D117: 100.5068502 | E117: 100.1910525 | F117: -0.003142051612 | G117: 100.8554812 | H117: 0.006631617098 | I117: 104.1631678 | J117: 0.03279629986 | L117: 104.9708704 | M117: 0.007754205363 | N117: 105.9071653 | O117: 0.008919568839 | P117: 105.075871 | Q117: -0.007849273986 | R117: 102.2026433 | S117: -0.02734431452 | U117: 99.44296533 | V117: -0.0270020214 | W117: 100.6383128 | X117: 0.01202043282 | Y117: 101.3921032 | Z117: 0.007490094039 | AA117: 105.7810551 | AB117: 0.04328692018 | AD117: ='CPI Sub-Categories'!Y118 -> 106.4832421 | AE117: 0.006638116413 | AF117: ='CPI Sub-Categories'!Z118 -> 107.0942301 | AG117: 0.005737879667 | AH117: ='CPI Sub-Categories'!AA118 -> 108.8405951 | AI117: 0.01630680705 | AJ117: ='CPI Sub-Categories'!AB118 -> 108.4432408 | AK117: -0.00365079062 | AM117: ='CPI Sub-Categories'!AD118 -> 109.9235135 | AN117: 0.01365020685 | AO117: ='CPI Sub-Categories'!AE118 -> 110.3817443 | AP117: 0.004168632983 | AQ117: ='CPI Sub-Categories'!AF118 -> 114.9087472 | AR117: 0.04101224336 | AS117: ='CPI Sub-Categories'!AG118 -> 109.6120812 | AT117: -0.04609454168 | AV117: ='CPI Sub-Categories'!AI118 -> 108.4744138 | AW117: -0.01037903264 | AX117: ='CPI Sub-Categories'!AJ118 -> 107.3789898 | AY117: -0.01009845531 | AZ117: ='CPI Sub-Categories'!AK118 -> 108.4744138 | BA117: 0.01020147445 | BB117: ='CPI Sub-Categories'!AL118 -> 111.5615462 | BC117: =(BB117-AZ117)/AZ117 -> 0.02845954423 | BE117: ='CPI Sub-Categories'!AM118 -> 112.1649554 | BF117: 0.005408756024 | BG117: ='CPI Sub-Categories'!AN118 -> 107.3789898 | BH117: -0.042668992 | BI117: ='CPI Sub-Categories'!AO118 -> 110.7317923 | BJ117: 0.03122400884 | BK117: ='CPI Sub-Categories'!AU118 -> 0 | BL117: -1
A118: 2 | B118: 091000 | C118: Audio-visual, photographic and information processing equipment | D118: 102.9881236 | E118: 99.5179694 | F118: -0.03369470251 | G118: 103.8102762 | H118: 0.04313097258 | I118: 107.4023313 | J118: 0.0346021146 | L118: 105.8727316 | M118: -0.01424177355 | N118: 102.2319605 | O118: -0.03438818549 | P118: 102.2431569 | Q118: 0.0001095197944 | R118: 101.2182686 | S118: -0.010024028 | U118: 100.1597636 | V118: -0.01045764767 | W118: 101.8768367 | X118: 0.0171433421 | Y118: 102.9135378 | Z118: 0.01017602384 | AA118: 104.4978716 | AB118: 0.01539480415 | AD118: ='CPI Sub-Categories'!Y119 -> 108.3286048 | AE118: 0.03665848078 | AF118: ='CPI Sub-Categories'!Z119 -> 107.1222126 | AG118: -0.01113641393 | AH118: ='CPI Sub-Categories'!AA119 -> 105.4889216 | AI118: -0.01524698794 | AJ118: ='CPI Sub-Categories'!AB119 -> 106.2290143 | AK118: 0.0070158335 | AM118: ='CPI Sub-Categories'!AD119 -> 110.0604234 | AN118: 0.03606744538 | AO118: ='CPI Sub-Categories'!AE119 -> 113.7434757 | AP118: 0.03346391102 | AQ118: ='CPI Sub-Categories'!AF119 -> 117.523914 | AR118: 0.03323652955 | AS118: ='CPI Sub-Categories'!AG119 -> 103.7564092 | AT118: -0.1171464123 | AV118: ='CPI Sub-Categories'!AI119 -> 101.7294335 | AW118: -0.01953590795 | AX118: ='CPI Sub-Categories'!AJ119 -> 100.3405118 | AY118: -0.01365309587 | AZ118: ='CPI Sub-Categories'!AK119 -> 98.27975993 | BA118: -0.02053758566 | BB118: ='CPI Sub-Categories'!AL119 -> 88.41078302 | BC118: -0.1004171857 | BE118: ='CPI Sub-Categories'!AM119 -> 89.1325273 | BF118: 0.008163532225 | BG118: ='CPI Sub-Categories'!AN119 -> 89.5689169 | BH118: 0.004895963518 | BI118: ='CPI Sub-Categories'!AO119 -> 87.3657907 | BJ118: -0.02459699497 | BK118: ='CPI Sub-Categories'!AU119 -> 0 | BL118: -1
A119: 3 | B119: 091100 | C119: Equipment for the reception, recording and reproduction of sounds | D119: 97.88390701 | E119: 101.9989111 | F119: 0.04203963853 | G119: 104.4782012 | H119: 0.02430702583 | I119: 102.1965039 | J119: -0.0218389804 | L119: 102.295982 | M119: 0.0009734006514 | N119: 85.73220725 | O119: -0.1619200913 | P119: 86.00240021 | Q119: 0.003151592182 | R119: 84.89519121 | S119: -0.01287416393 | U119: 82.17490002 | V119: -0.03204293607 | W119: 82.81282264 | X119: 0.007762986262 | Y119: 85.26507383 | Z119: 0.02961197437 | AA119: 91.27042854 | AB119: 0.07043158987 | AD119: ='CPI Sub-Categories'!Y120 -> 93.22628199 | AE119: 0.02142921298 | AF119: ='CPI Sub-Categories'!Z120 -> 91.78867872 | AG119: -0.01542057919 | AH119: ='CPI Sub-Categories'!AA120 -> 91.41834902 | AI119: -0.004034590156 | AJ119: ='CPI Sub-Categories'!AB120 -> 89.60949596 | AK119: -0.01978654271 | AM119: ='CPI Sub-Categories'!AD120 -> 89.35821676 | AN119: -0.002804158122 | AO119: ='CPI Sub-Categories'!AE120 -> 83.36460058 | AP119: -0.06707403528 | AQ119: ='CPI Sub-Categories'!AF120 -> 83.21697476 | AR119: -0.001770845358 | AS119: ='CPI Sub-Categories'!AG120 -> 80.21340449 | AT119: -0.03609324039 | AV119: ='CPI Sub-Categories'!AI120 -> 82.41711635 | AW119: 0.02747311219 | AX119: ='CPI Sub-Categories'!AJ120 -> 79.53272465 | AY119: -0.0349974838 | AZ119: ='CPI Sub-Categories'!AK120 -> 79.53272465 | BA119: 0 | BB119: ='CPI Sub-Categories'!AL120 -> 83.43910175 | BC119: 0.04911660092 | BE119: ='CPI Sub-Categories'!AM120 -> 86.85074084 | BF119: 0.04088777349 | BG119: ='CPI Sub-Categories'!AN120 -> 85.80214134 | BH119: -0.01207358159 | BI119: ='CPI Sub-Categories'!AO120 -> 84.70433586 | BJ119: -0.01279461636 | BK119: ='CPI Sub-Categories'!AU120 -> 0 | BL119: -1
A120: 3 | B120: 091200 | C120: Photographic and cinematographic equipment and optical instruments | D120: 54.61947985 | E120: 53.38796609 | F120: -0.02254715292 | G120: 53.38796609 | H120: 0 | I120: 51.83629155 | J120: -0.02906412521 | L120: 55.79337223 | M120: 0.0763380357 | N120: 54.74896516 | O120: -0.01871919592 | P120: 53.74396998 | Q120: -0.01835642331 | R120: 53.74396998 | S120: 0 | U120: 53.74396998 | V120: 0 | W120: 53.74396998 | X120: 0 | Y120: 51.16862874 | Z120: -0.04791870123 | AA120: 49.75461859 | AB120: -0.02763431784 | AD120: ='CPI Sub-Categories'!Y121 -> 80.99445862 | AE120: 0.6278781932 | AF120: ='CPI Sub-Categories'!Z121 -> 85.59137209 | AG120: 0.05675590099 | AH120: ='CPI Sub-Categories'!AA121 -> 90.24227722 | AI120: 0.05433848086 | AJ120: ='CPI Sub-Categories'!AB121 -> 86.56482002 | AK120: -0.04075093532 | AM120: ='CPI Sub-Categories'!AD121 -> 78.05331714 | AN120: -0.09832519589 | AO120: ='CPI Sub-Categories'!AE121 -> 76.44517939 | AP120: -0.02060306732 | AQ120: ='CPI Sub-Categories'!AF121 -> 71.23474411 | AR120: -0.06815910859 | AS120: ='CPI Sub-Categories'!AG121 -> 65.43575334 | AT120: -0.08140677468 | AV120: ='CPI Sub-Categories'!AI121 -> 65.03494831 | AW120: -0.006125168835 | AX120: ='CPI Sub-Categories'!AJ121 -> 72.44036014 | AY120: 0.1138681898 | AZ120: ='CPI Sub-Categories'!AK121 -> 71.51244149 | BA120: -0.01280941517 | BB120: ='CPI Sub-Categories'!AL121 -> 74.09061056 | BC120: 0.03605203534 | BE120: ='CPI Sub-Categories'!AM121 -> 61.797455 | BF120: -0.1659205596 | BG120: ='CPI Sub-Categories'!AN121 -> 65.55855455 | BH120: 0.06086172241 | BI120: ='CPI Sub-Categories'!AO121 -> 66.20638209 | BJ120: 0.009881662962 | BK120: ='CPI Sub-Categories'!AU121 -> 0 | BL120: -1
A121: 3 | B121: 091300 | C121: Information processing equipment | D121: 113.4436658 | E121: 106.8876447 | F121: -0.05779098485 | G121: 113.5856442 | H121: 0.06266392722 | I121: 120.4033919 | J121: 0.06002296929 | L121: 117.2025209 | M121: -0.0265845583 | N121: 116.9203296 | O121: -0.002407723614 | P121: 117.3516526 | Q121: 0.003689033276 | R121: 116.2966526 | S121: -0.00899007332 | U121: 115.4270925 | V121: -0.00747708616 | W121: 117.9839684 | X121: 0.02215143625 | Y121: 119.2299433 | Z121: 0.01056054417 | AA121: 120.560899 | AB121: 0.01116293103 | AD121: ='CPI Sub-Categories'!Y122 -> 121.9796524 | AE121: 0.01176793965 | AF121: ='CPI Sub-Categories'!Z122 -> 119.9641296 | AG121: -0.01652343393 | AH121: ='CPI Sub-Categories'!AA122 -> 117.393387 | AI121: -0.02142926114 | AJ121: ='CPI Sub-Categories'!AB122 -> 119.6607536 | AK121: 0.01931426202 | AM121: ='CPI Sub-Categories'!AD122 -> 127.1052225 | AN121: 0.06221312095 | AO121: ='CPI Sub-Categories'!AE122 -> 135.2499584 | AP121: 0.06407868764 | AQ121: ='CPI Sub-Categories'!AF122 -> 142.1328923 | AR121: 0.0508904695 | AS121: ='CPI Sub-Categories'!AG122 -> 121.8522575 | AT121: -0.1426878358 | AV121: ='CPI Sub-Categories'!AI122 -> 118.2980053 | AW121: -0.02916853781 | AX121: ='CPI Sub-Categories'!AJ122 -> 116.0144039 | AY121: -0.01930380277 | AZ121: ='CPI Sub-Categories'!AK122 -> 112.8001156 | BA121: -0.0277059421 | BB121: ='CPI Sub-Categories'!AL122 -> 95.08272195 | BC121: -0.1570689314 | BE121: ='CPI Sub-Categories'!AM122 -> 96.99958689 | BF121: 0.02015997116 | BG121: ='CPI Sub-Categories'!AN122 -> 97.04872836 | BH121: 0.0005066152761 | BI121: ='CPI Sub-Categories'!AO122 -> 94.3660576 | BJ121: -0.02764251326 | BK121: ='CPI Sub-Categories'!AU122 -> 0 | BL121: -1
A122: 3 | B122: 091400 | C122: Recording media | D122: 88.09154887 | E122: 86.07641408 | F122: -0.02287546107 | G122: 81.60797287 | H122: -0.05191249258 | I122: 81.42406134 | J122: -0.002253597512 | L122: 82.44072894 | M122: 0.01248608313 | N122: 81.9661448 | O122: -0.00575667083 | P122: 79.02334949 | Q122: -0.03590257072 | R122: 77.00738584 | S122: -0.02551098719 | U122: 77.35217668 | V122: 0.004477373672 | W122: 77.52006513 | X122: 0.002170442477 | Y122: 77.52006513 | Z122: 0 | AA122: 75.79380281 | AB122: -0.02226858699 | AD122: ='CPI Sub-Categories'!Y123 -> 73.46104822 | AE122: -0.03077764285 | AF122: ='CPI Sub-Categories'!Z123 -> 72.43444108 | AG122: -0.01397485016 | AH122: ='CPI Sub-Categories'!AA123 -> 67.35245089 | AI122: -0.07015985927 | AJ122: ='CPI Sub-Categories'!AB123 -> 67.74663922 | AK122: 0.005852620472 | AM122: ='CPI Sub-Categories'!AD123 -> 68.27529782 | AN122: 0.00780346608 | AO122: ='CPI Sub-Categories'!AE123 -> 68.44447049 | AP122: 0.00247780198 | AQ122: ='CPI Sub-Categories'!AF123 -> 68.7731069 | AR122: 0.004801504194 | AS122: ='CPI Sub-Categories'!AG123 -> 66.7156286 | AT122: -0.029916902 | AV122: ='CPI Sub-Categories'!AI123 -> 63.44546309 | AW122: -0.04901648362 | AX122: ='CPI Sub-Categories'!AJ123 -> 62.79590691 | AY122: -0.01023802406 | AZ122: ='CPI Sub-Categories'!AK123 -> 62.8167327 | BA122: 0.0003316425041 | BB122: ='CPI Sub-Categories'!AL123 -> 63.30908723 | BC122: 0.007837951887 | BE122: ='CPI Sub-Categories'!AM123 -> 62.37181384 | BF122: -0.01480472131 | BG122: ='CPI Sub-Categories'!AN123 -> 67.65250264 | BH122: 0.08466466627 | BI122: ='CPI Sub-Categories'!AO123 -> 62.52489106 | BJ122: -0.07579337612 | BK122: ='CPI Sub-Categories'!AU123 -> 0 | BL122: -1
A123: 3 | B123: 091500 | C123: Repair of audio-visual, photographic and information processing eq | D123: 100 | E123: 100 | F123: 0 | G123: 100 | H123: 0 | I123: 100 | J123: 0 | L123: 100 | M123: 0 | N123: 100 | O123: 0 | P123: 100 | Q123: 0 | R123: 100 | S123: 0 | U123: 100 | V123: 0 | W123: 100 | X123: 0 | Y123: 100 | Z123: 0 | AA123: 90 | AB123: -0.1 | AD123: ='CPI Sub-Categories'!Y124 -> 90 | AE123: 0 | AF123: ='CPI Sub-Categories'!Z124 -> 90 | AG123: 0 | AH123: ='CPI Sub-Categories'!AA124 -> 90 | AI123: 0 | AJ123: ='CPI Sub-Categories'!AB124 -> 90 | AK123: 0 | AM123: ='CPI Sub-Categories'!AD124 -> 90 | AN123: 0 | AO123: ='CPI Sub-Categories'!AE124 -> 90 | AP123: 0 | AQ123: ='CPI Sub-Categories'!AF124 -> 90 | AR123: 0 | AS123: ='CPI Sub-Categories'!AG124 -> 90 | AT123: 0 | AV123: ='CPI Sub-Categories'!AI124 -> 90 | AW123: 0 | AX123: ='CPI Sub-Categories'!AJ124 -> 90 | AY123: 0 | AZ123: ='CPI Sub-Categories'!AK124 -> 90 | BA123: 0 | BB123: ='CPI Sub-Categories'!AL124 -> 90 | BC123: 0 | BE123: ='CPI Sub-Categories'!AM124 -> 90 | BF123: 0 | BG123: ='CPI Sub-Categories'!AN124 -> 84.375 | BH123: -0.0625 | BI123: ='CPI Sub-Categories'!AO124 -> 84.375 | BJ123: 0 | BK123: ='CPI Sub-Categories'!AU124 -> 0 | BL123: -1
A124: 2 | B124: 092000 | C124: Other major durables for recreation and culture | D124: Not relevant | E124: Not relevant | F124: Not relevent | G124: Not relevant | H124: Not relevant | I124: Not relevant | J124: Not relevant | L124: Not relevant | M124: Not relevant | N124: Not relevant | O124: Not relevant | P124: Not relevant | Q124: Not relevant | R124: Not relevant | S124: Not relevant | U124: Not relevant | V124: Not relevant | W124: Not relevant | X124: Not relevant | Y124: Not relevant | Z124: Not relevant | AA124: Not relevant | AB124: =IFERROR((AA124-Y124)/Y124,"Not relevant") -> Not relevant | AD124: ='CPI Sub-Categories'!Y125 -> Not relevant | AE124: Not relevant | AF124: ='CPI Sub-Categories'!Z125 -> Not available | AG124: Not relevant | AH124: ='CPI Sub-Categories'!AA125 -> Not available | AI124: Not relevant | AJ124: ='CPI Sub-Categories'!AB125 -> Not available | AK124: =IFERROR((AJ124-AH124)/AH124,"Not relevant") -> Not relevant | AM124: ='CPI Sub-Categories'!AD125 -> Not available | AN124: Not relevant | AO124: ='CPI Sub-Categories'!AE125 -> Not available | AP124: Not available | AQ124: ='CPI Sub-Categories'!AF125 -> Not available | AR124: Not available | AS124: ='CPI Sub-Categories'!AG125 -> Not available | AT124: Not available | AV124: ='CPI Sub-Categories'!AI125 -> Not available | AW124: Not relevant | AX124: ='CPI Sub-Categories'!AJ125 -> Not available | AY124: Not available | AZ124: ='CPI Sub-Categories'!AK125 -> Not available | BA124: Not available | BB124: ='CPI Sub-Categories'!AL125 -> Not available | BC124: Not available | BE124: ='CPI Sub-Categories'!AM125 -> Not available | BF124: Not relevant | BG124: ='CPI Sub-Categories'!AN125 -> Not available | BH124: Not available | BI124: ='CPI Sub-Categories'!AO125 -> Not available | BJ124: Not available | BK124: ='CPI Sub-Categories'!AU125 -> 0 | BL124: Not available
A125: 3 | B125: 092100 | C125: Major durables for outdoor recreation | D125: Not relevant | E125: Not relevant | F125: Not relevent | G125: Not relevant | H125: Not relevant | I125: Not relevant | J125: Not relevant | L125: Not relevant | M125: Not relevant | N125: Not relevant | O125: Not relevant | P125: Not relevant | Q125: Not relevant | R125: Not relevant | S125: Not relevant | U125: Not relevant | V125: Not relevant | W125: Not relevant | X125: Not relevant | Y125: Not relevant | Z125: Not relevant | AA125: Not relevant | AB125: =IFERROR((AA125-Y125)/Y125,"Not relevant") -> Not relevant | AD125: ='CPI Sub-Categories'!Y126 -> Not relevant | AE125: Not relevant | AF125: ='CPI Sub-Categories'!Z126 -> Not relevant | AG125: Not relevant | AH125: ='CPI Sub-Categories'!AA126 -> Not relevant | AI125: Not relevant | AJ125: ='CPI Sub-Categories'!AB126 -> Not relevant | AK125: =IFERROR((AJ125-AH125)/AH125,"Not relevant") -> Not relevant | AM125: ='CPI Sub-Categories'!AD126 -> Not relevant | AN125: Not relevant | AO125: ='CPI Sub-Categories'!AE126 -> Not relevant | AP125: Not relevant | AQ125: ='CPI Sub-Categories'!AF126 -> Not relevant | AR125: Not relevant | AS125: ='CPI Sub-Categories'!AG126 -> Not relevant | AT125: Not relevant | AV125: ='CPI Sub-Categories'!AI126 -> Not relevant | AW125: Not relevant | AX125: ='CPI Sub-Categories'!AJ126 -> Not relevant | AY125: Not relevant | AZ125: ='CPI Sub-Categories'!AK126 -> Not relevant | BA125: Not relevant | BB125: ='CPI Sub-Categories'!AL126 -> Not relevant | BC125: Not relevant | BE125: ='CPI Sub-Categories'!AM126 -> Not relevant | BF125: Not relevant | BG125: ='CPI Sub-Categories'!AN126 -> Not relevant | BH125: Not relevant | BI125: ='CPI Sub-Categories'!AO126 -> Not relevant | BJ125: Not relevant | BK125: ='CPI Sub-Categories'!AU126 -> 0 | BL125: Not relevant
A126: 3 | B126: 092200 | C126: Musical instruments and major durables for indoor recreation | D126: Not relevant | E126: Not relevant | F126: Not relevent | G126: Not relevant | H126: Not relevant | I126: Not relevant | J126: Not relevant | L126: Not relevant | M126: Not relevant | N126: Not relevant | O126: Not relevant | P126: Not relevant | Q126: Not relevant | R126: Not relevant | S126: Not relevant | U126: Not relevant | V126: Not relevant | W126: Not relevant | X126: Not relevant | Y126: Not relevant | Z126: Not relevant | AA126: Not relevant | AB126: =IFERROR((AA126-Y126)/Y126,"Not relevant") -> Not relevant | AD126: ='CPI Sub-Categories'!Y127 -> Not relevant | AE126: Not relevant | AF126: ='CPI Sub-Categories'!Z127 -> Not relevant | AG126: Not relevant | AH126: ='CPI Sub-Categories'!AA127 -> Not relevant | AI126: Not relevant | AJ126: ='CPI Sub-Categories'!AB127 -> Not relevant | AK126: =IFERROR((AJ126-AH126)/AH126,"Not relevant") -> Not relevant | AM126: ='CPI Sub-Categories'!AD127 -> Not relevant | AN126: Not relevant | AO126: ='CPI Sub-Categories'!AE127 -> Not relevant | AP126: Not relevant | AQ126: ='CPI Sub-Categories'!AF127 -> Not relevant | AR126: Not relevant | AS126: ='CPI Sub-Categories'!AG127 -> Not relevant | AT126: Not relevant | AV126: ='CPI Sub-Categories'!AI127 -> Not relevant | AW126: Not relevant | AX126: ='CPI Sub-Categories'!AJ127 -> Not relevant | AY126: Not relevant | AZ126: ='CPI Sub-Categories'!AK127 -> Not relevant | BA126: Not relevant | BB126: ='CPI Sub-Categories'!AL127 -> Not relevant | BC126: Not relevant | BE126: ='CPI Sub-Categories'!AM127 -> Not relevant | BF126: Not relevant | BG126: ='CPI Sub-Categories'!AN127 -> Not relevant | BH126: Not relevant | BI126: ='CPI Sub-Categories'!AO127 -> Not relevant | BJ126: Not relevant | BK126: ='CPI Sub-Categories'!AU127 -> 0 | BL126: Not relevant
A127: 3 | B127: 092300 | C127: Maintenance and repair of other major durables for recreation and | D127: Not relevant | E127: Not relevant | F127: Not relevent | G127: Not relevant | H127: Not relevant | I127: Not relevant | J127: Not relevant | L127: Not relevant | M127: Not relevant | N127: Not relevant | O127: Not relevant | P127: Not relevant | Q127: Not relevant | R127: Not relevant | S127: Not relevant | U127: Not relevant | V127: Not relevant | W127: Not relevant | X127: Not relevant | Y127: Not relevant | Z127: Not relevant | AA127: Not relevant | AB127: =IFERROR((AA127-Y127)/Y127,"Not relevant") -> Not relevant | AD127: ='CPI Sub-Categories'!Y128 -> Not relevant | AE127: Not relevant | AF127: ='CPI Sub-Categories'!Z128 -> Not relevant | AG127: Not relevant | AH127: ='CPI Sub-Categories'!AA128 -> Not relevant | AI127: Not relevant | AJ127: ='CPI Sub-Categories'!AB128 -> Not relevant | AK127: =IFERROR((AJ127-AH127)/AH127,"Not relevant") -> Not relevant | AM127: ='CPI Sub-Categories'!AD128 -> Not relevant | AN127: Not relevant | AO127: ='CPI Sub-Categories'!AE128 -> Not relevant | AP127: Not relevant | AQ127: ='CPI Sub-Categories'!AF128 -> Not relevant | AR127: Not relevant | AS127: ='CPI Sub-Categories'!AG128 -> Not relevant | AT127: Not relevant | AV127: ='CPI Sub-Categories'!AI128 -> Not relevant | AW127: Not relevant | AX127: ='CPI Sub-Categories'!AJ128 -> Not relevant | AY127: Not relevant | AZ127: ='CPI Sub-Categories'!AK128 -> Not relevant | BA127: Not relevant | BB127: ='CPI Sub-Categories'!AL128 -> Not relevant | BC127: Not relevant | BE127: ='CPI Sub-Categories'!AM128 -> Not relevant | BF127: Not relevant | BG127: ='CPI Sub-Categories'!AN128 -> Not relevant | BH127: Not relevant | BI127: ='CPI Sub-Categories'!AO128 -> Not relevant | BJ127: Not relevant | BK127: ='CPI Sub-Categories'!AU128 -> 0 | BL127: Not relevant
A128: 2 | B128: 093000 | C128: Other recreational items and equipment, gardens and pets | D128: 101.694222 | E128: 102.9565544 | F128: 0.01241302045 | G128: 102.4138088 | H128: -0.005271598374 | I128: 106.6165454 | J128: 0.04103681516 | L128: 105.820123 | M128: -0.00746997011 | N128: 107.3589273 | O128: 0.0145416981 | P128: 104.6977971 | Q128: -0.02478722725 | R128: 100.6511695 | S128: -0.03865055221 | U128: 99.40136297 | V128: -0.01241720779 | W128: 99.98483501 | X128: 0.005869859581 | Y128: 101.2353674 | Z128: 0.01250722093 | AA128: 103.7475092 | AB128: 0.02481486297 | AD128: ='CPI Sub-Categories'!Y129 -> 103.6313737 | AE128: =(AD128-AA128)/AA128 -> -0.001119405079 | AF128: ='CPI Sub-Categories'!Z129 -> 106.6189957 | AG128: =(AF128-AD128)/AD128 -> 0.02882931943 | AH128: ='CPI Sub-Categories'!AA129 -> 110.9133698 | AI128: 0.04027775767 | AJ128: ='CPI Sub-Categories'!AB129 -> 106.1099327 | AK128: =IFERROR((AJ128-AH128)/AH128,"Not available") -> -0.04330800721 | AM128: ='CPI Sub-Categories'!AD129 -> 108.5445037 | AN128: =(AM128-AJ128)/AJ128 -> 0.02294385505 | AO128: ='CPI Sub-Categories'!AE129 -> 107.6116988 | AP128: -0.008593755302 | AQ128: ='CPI Sub-Categories'!AF129 -> 111.3079395 | AR128: 0.03434794495 | AS128: ='CPI Sub-Categories'!AG129 -> 111.6070079 | AT128: 0.00268685607 | AV128: ='CPI Sub-Categories'!AI129 -> 108.7456053 | AW128: =(AV128-AS128)/AS128 -> -0.02563819822 | AX128: ='CPI Sub-Categories'!AJ129 -> 106.0072123 | AY128: -0.02518164308 | AZ128: ='CPI Sub-Categories'!AK129 -> 108.7874988 | BA128: 0.0262273341 | BB128: ='CPI Sub-Categories'!AL129 -> 112.551029 | BC128: =(BB128-AZ128)/AZ128 -> 0.03459524498 | BE128: ='CPI Sub-Categories'!AM129 -> 113.8139297 | BF128: =(BE128-BB128)/BB128 -> 0.01122069411 | BG128: ='CPI Sub-Categories'!AN129 -> 112.3018757 | BH128: =(BG128-BE128)/BE128 -> -0.01328531556 | BI128: ='CPI Sub-Categories'!AO129 -> 112.3004491 | BJ128: =(BI128-BG128)/BG128 -> -1.270324129e-05 | BK128: ='CPI Sub-Categories'!AU129 -> 0 | BL128: =(BK128-BI128)/BI128 -> -1
A129: 3 | B129: 093100 | C129: Games, toys and hobbies | D129: 104.9676982 | E129: 104.5987658 | F129: -0.003514723854 | G129: 102.6411186 | H129: -0.0187157767 | I129: 115.8859763 | J129: 0.1290404648 | L129: 111.7031492 | M129: -0.03609433362 | N129: 114.8384673 | O129: 0.02806830571 | P129: 107.3472771 | Q129: -0.0652324125 | R129: 99.14719194 | S129: -0.07638838501 | U129: 95.6400793 | V129: -0.03537278838 | W129: 94.83196157 | X129: -0.008449571926 | Y129: 98.59469166 | Z129: 0.03967786841 | AA129: 106.0643816 | AB129: 0.07576158323 | AD129: ='CPI Sub-Categories'!Y130 -> 103.8680702 | AE129: -0.02070734213 | AF129: ='CPI Sub-Categories'!Z130 -> 112.0283527 | AG129: 0.0785639179 | AH129: ='CPI Sub-Categories'!AA130 -> 120.8029831 | AI129: 0.07832508672 | AJ129: ='CPI Sub-Categories'!AB130 -> 104.6301012 | AK129: -0.1338781668 | AM129: ='CPI Sub-Categories'!AD130 -> 111.4954802 | AN129: 0.06561571556 | AO129: ='CPI Sub-Categories'!AE130 -> 109.066203 | AP129: -0.02178812286 | AQ129: ='CPI Sub-Categories'!AF130 -> 109.9944175 | AR129: 0.008510560469 | AS129: ='CPI Sub-Categories'!AG130 -> 99.00913743 | AT129: -0.09987125069 | AV129: ='CPI Sub-Categories'!AI130 -> 102.6888338 | AW129: 0.03716522008 | AX129: ='CPI Sub-Categories'!AJ130 -> 97.67619257 | AY129: -0.04881388805 | AZ129: ='CPI Sub-Categories'!AK130 -> 104.0401343 | BA129: 0.06515345859 | BB129: ='CPI Sub-Categories'!AL130 -> 109.4940676 | BC129: 0.05242143572 | BE129: ='CPI Sub-Categories'!AM130 -> 112.2364501 | BF129: 0.02504594666 | BG129: ='CPI Sub-Categories'!AN130 -> 109.3562035 | BH129: -0.02566231089 | BI129: ='CPI Sub-Categories'!AO130 -> 109.3562035 | BJ129: 0 | BK129: ='CPI Sub-Categories'!AU130 -> 0 | BL129: -1
A130: 3 | B130: 093200 | C130: Equipment for sport, camping and open-air recreation | D130: 96.0160542 | E130: 113.8558377 | F130: 0.1858000065 | G130: 113.8558377 | H130: 0 | I130: 122.7139153 | J130: 0.07780082097 | L130: 117.446485 | M130: -0.04292447477 | N130: 123.7041248 | O130: 0.0532807757 | P130: 118.0031022 | Q130: -0.04608595417 | R130: 114.4712829 | S130: -0.02992988455 | U130: 113.9892736 | V130: -0.004210744514 | W130: 118.2539016 | X130: 0.03741253749 | Y130: 112.1681157 | Z130: -0.05146372179 | AA130: 122.5485202 | AB130: 0.09254327292 | AD130: ='CPI Sub-Categories'!Y131 -> 132.6447756 | AE130: 0.08238577967 | AF130: ='CPI Sub-Categories'!Z131 -> 121.6543336 | AG130: -0.0828562 | AH130: ='CPI Sub-Categories'!AA131 -> 137.2646569 | AI130: 0.1283170342 | AJ130: ='CPI Sub-Categories'!AB131 -> 129.5667151 | AK130: -0.05608101848 | AM130: ='CPI Sub-Categories'!AD131 -> 126.5821132 | AN130: -0.02303525196 | AO130: ='CPI Sub-Categories'!AE131 -> 112.5618768 | AP130: -0.1107600121 | AQ130: ='CPI Sub-Categories'!AF131 -> 118.3000309 | AR130: 0.05097777603 | AS130: ='CPI Sub-Categories'!AG131 -> 115.2733606 | AT130: -0.02558469581 | AV130: ='CPI Sub-Categories'!AI131 -> 119.722 | AW130: 0.03859208556 | AX130: ='CPI Sub-Categories'!AJ131 -> 131.0189478 | AY130: 0.09435983182 | AZ130: ='CPI Sub-Categories'!AK131 -> 136.9847899 | BA130: 0.0455341936 | BB130: ='CPI Sub-Categories'!AL131 -> 132.1147094 | BC130: -0.03555198048 | BE130: ='CPI Sub-Categories'!AM131 -> 125.0944753 | BF130: -0.05313741451 | BG130: ='CPI Sub-Categories'!AN131 -> 125.5223883 | BH130: 0.003420718696 | BI130: ='CPI Sub-Categories'!AO131 -> 125.4687887 | BJ130: -0.0004270121817 | BK130: ='CPI Sub-Categories'!AU131 -> 0 | BL130: -1
A131: 3 | B131: 093300 | C131: Gardens, plants and flowers | D131: 100 | E131: 100 | F131: 0 | G131: 100 | H131: 0 | I131: 97.43682565 | J131: -0.02563174354 | L131: 107.1312864 | M131: 0.0994948335 | N131: 110.2371842 | O131: 0.02899151086 | P131: 106.7366947 | Q131: -0.03175416345 | R131: 106.7366947 | S131: 0 | U131: 106.7366947 | V131: 0 | W131: 106.7366947 | X131: 0 | Y131: 106.7366947 | Z131: 0 | AA131: 106.7366947 | AB131: 0 | AD131: ='CPI Sub-Categories'!Y132 -> 106.7366947 | AE131: 0 | AF131: ='CPI Sub-Categories'!Z132 -> 106.7366947 | AG131: 0 | AH131: ='CPI Sub-Categories'!AA132 -> 106.7366947 | AI131: 0 | AJ131: ='CPI Sub-Categories'!AB132 -> 103.1174437 | AK131: -0.03390821692 | AM131: ='CPI Sub-Categories'!AD132 -> 108.6543065 | AN131: 0.05369472508 | AO131: ='CPI Sub-Categories'!AE132 -> 108.6543065 | AP131: 0 | AQ131: ='CPI Sub-Categories'!AF132 -> 108.6543065 | AR131: 0 | AS131: ='CPI Sub-Categories'!AG132 -> 180.3398315 | AT131: 0.6597577891 | AV131: ='CPI Sub-Categories'!AI132 -> 103.5978164 | AW131: -0.4255411268 | AX131: ='CPI Sub-Categories'!AJ132 -> 103.5978164 | AY131: 0 | AZ131: ='CPI Sub-Categories'!AK132 -> 103.5978164 | BA131: -9.60213125e-15 | BB131: ='CPI Sub-Categories'!AL132 -> 141.7148925 | BC131: 0.3679332006 | BE131: ='CPI Sub-Categories'!AM132 -> 141.7148925 | BF131: 0 | BG131: ='CPI Sub-Categories'!AN132 -> 150.1973969 | BH131: 0.05985612535 | BI131: ='CPI Sub-Categories'!AO132 -> 150.1973969 | BJ131: 6.812245489e-15 | BK131: ='CPI Sub-Categories'!AU132 -> 0 | BL131: -1
A132: 3 | B132: 093400 | C132: Pets and related products | D132: 100.3512863 | E132: 104.0609688 | F132: 0.03696696482 | G132: 104.6556668 | H132: 0.005714900099 | I132: 102.4413557 | J132: -0.02115806285 | L132: 103.9891163 | M132: 0.015108748 | N132: 105.0446381 | O132: 0.01015031065 | P132: 106.117556 | Q132: 0.01021392304 | R132: 101.2232451 | S132: -0.04612159481 | U132: 101.1246689 | V132: -0.0009738492051 | W132: 105.0586323 | X132: 0.03890211405 | Y132: 105.5398864 | Z132: 0.004580814577 | AA132: 103.9961261 | AB132: -0.01462726903 | AD132: ='CPI Sub-Categories'!Y133 -> 105.6487624 | AE132: 0.01589132597 | AF132: ='CPI Sub-Categories'!Z133 -> 107.6460281 | AG132: 0.01890477097 | AH132: ='CPI Sub-Categories'!AA133 -> 111.3409405 | AI132: 0.03432465162 | AJ132: ='CPI Sub-Categories'!AB133 -> 116.4726047 | AK132: 0.04608964266 | AM132: ='CPI Sub-Categories'!AD133 -> 115.9662879 | AN132: -0.004347088627 | AO132: ='CPI Sub-Categories'!AE133 -> 117.2050189 | AP132: 0.01068181981 | AQ132: ='CPI Sub-Categories'!AF133 -> 131.37606 | AR132: 0.1209081417 | AS132: ='CPI Sub-Categories'!AG133 -> 135.4539942 | AT132: 0.03104016253 | AV132: ='CPI Sub-Categories'!AI133 -> 132.0778854 | AW132: -0.02492439449 | AX132: ='CPI Sub-Categories'!AJ133 -> 126.3465945 | AY132: -0.04339326684 | AZ132: ='CPI Sub-Categories'!AK133 -> 128.1831433 | BA132: 0.01453579983 | BB132: ='CPI Sub-Categories'!AL133 -> 129.3823094 | BC132: 0.009355099667 | BE132: ='CPI Sub-Categories'!AM133 -> 129.9013273 | BF132: 0.004011506264 | BG132: ='CPI Sub-Categories'!AN133 -> 129.83787 | BH132: -0.0004885039826 | BI132: ='CPI Sub-Categories'!AO133 -> 129.83787 | BJ132: 0 | BK132: ='CPI Sub-Categories'!AU133 -> 0 | BL132: -1
A133: 3 | B133: 093500 | C133: Veterinary and other services for pets | D133: 100 | E133: 100.2027 | F133: 0.002026999626 | G133: 100.2027 | H133: 0 | I133: 100.2027 | J133: 0 | L133: 100.2027 | M133: 0 | N133: 99.9355192 | O133: -0.002666402821 | P133: 99.9355192 | Q133: 0 | R133: 99.9355192 | S133: 0 | U133: 99.9355192 | V133: 0 | W133: 99.52725707 | X133: -0.00408525551 | Y133: 99.52725707 | Z133: 0 | AA133: 99.52725707 | AB133: 0 | AD133: ='CPI Sub-Categories'!Y134 -> 99.52725707 | AE133: 0 | AF133: ='CPI Sub-Categories'!Z134 -> 99.52725707 | AG133: -9.994848239e-16 | AH133: ='CPI Sub-Categories'!AA134 -> 99.52725707 | AI133: 0 | AJ133: ='CPI Sub-Categories'!AB134 -> 99.52725707 | AK133: 0 | AM133: ='CPI Sub-Categories'!AD134 -> 99.52725707 | AN133: 0 | AO133: ='CPI Sub-Categories'!AE134 -> 99.52725707 | AP133: 0 | AQ133: ='CPI Sub-Categories'!AF134 -> 99.52725707 | AR133: 0 | AS133: ='CPI Sub-Categories'!AG134 -> 99.52725707 | AT133: 0 | AV133: ='CPI Sub-Categories'!AI134 -> 99.52725707 | AW133: 0 | AX133: ='CPI Sub-Categories'!AJ134 -> 99.52725707 | AY133: 0 | AZ133: ='CPI Sub-Categories'!AK134 -> 99.52725707 | BA133: 0 | BB133: ='CPI Sub-Categories'!AL134 -> 99.52725707 | BC133: 0 | BE133: ='CPI Sub-Categories'!AM134 -> 99.52725707 | BF133: 0 | BG133: ='CPI Sub-Categories'!AN134 -> 98.0738303 | BH133: -0.01460330379 | BI133: ='CPI Sub-Categories'!AO134 -> 98.0738303 | BJ133: 0 | BK133: ='CPI Sub-Categories'!AU134 -> 0 | BL133: -1
A134: 2 | B134: 094000 | C134: Recreational and cultural services | D134: 100 | E134: 100.2074432 | F134: 0.002074432445 | G134: 99.78895412 | H134: -0.004176227916 | I134: 100.6850686 | J134: 0.008980097167 | L134: 102.7462869 | M134: 0.02047193559 | N134: 102.6634724 | O134: -0.0008060090445 | P134: 102.2174456 | Q134: -0.004344552319 | R134: 101.8484816 | S134: -0.00360959905 | U134: 96.25144724 | V134: -0.05495451949 | W134: 96.34908477 | X134: 0.00101440059 | Y134: 96.84614087 | Z134: 0.005158908471 | AA134: 96.35333942 | AB134: -0.005088498614 | AD134: ='CPI Sub-Categories'!Y135 -> 95.59094996 | AE134: -0.007912434254 | AF134: ='CPI Sub-Categories'!Z135 -> 95.59094996 | AG134: -1.040642268e-15 | AH134: ='CPI Sub-Categories'!AA135 -> 95.8817377 | AI134: 0.003042000719 | AJ134: ='CPI Sub-Categories'!AB135 -> 95.26328405 | AK134: -0.00645017143 | AM134: ='CPI Sub-Categories'!AD135 -> 95.26328405 | AN134: 0 | AO134: ='CPI Sub-Categories'!AE135 -> 95.26328405 | AP134: 0 | AQ134: ='CPI Sub-Categories'!AF135 -> 101.0381362 | AR134: 0.06061991443 | AS134: ='CPI Sub-Categories'!AG135 -> 101.0381362 | AT134: 0 | AV134: ='CPI Sub-Categories'!AI135 -> 101.4467826 | AW134: 0.004044476609 | AX134: ='CPI Sub-Categories'!AJ135 -> 101.4467826 | AY134: 0 | AZ134: ='CPI Sub-Categories'!AK135 -> 103.884483 | BA134: 0.02402935177 | BB134: ='CPI Sub-Categories'!AL135 -> 111.071282 | BC134: =(BB134-AZ134)/AZ134 -> 0.06918067834 | BE134: ='CPI Sub-Categories'!AM135 -> 111.071282 | BF134: 0 | BG134: ='CPI Sub-Categories'!AN135 -> 109.0068371 | BH134: -0.01858666621 | BI134: ='CPI Sub-Categories'!AO135 -> 109.0068371 | BJ134: 0 | BK134: ='CPI Sub-Categories'!AU135 -> 0 | BL134: -1
A135: 3 | B135: 094100 | C135: Sporting and recreational services | D135: 100 | E135: 100 | F135: 0 | G135: 100 | H135: 0 | I135: 100 | J135: 0 | L135: 98.06581137 | M135: -0.01934188628 | N135: 97.06942797 | O135: -0.01016035444 | P135: 97.06942797 | Q135: 0 | R135: 97.06942797 | S135: 0 | U135: 89.26906387 | V135: -0.08035860787 | W135: 90.44379153 | X135: 0.01315940382 | Y135: 100 | Z135: 0.1056590873 | AA135: 100 | AB135: 0 | AD135: ='CPI Sub-Categories'!Y136 -> 98.66101295 | AE135: -0.01338987053 | AF135: ='CPI Sub-Categories'!Z136 -> 98.66101295 | AG135: -3.024780915e-15 | AH135: ='CPI Sub-Categories'!AA136 -> 96.76028757 | AI135: -0.01926521246 | AJ135: ='CPI Sub-Categories'!AB136 -> 96.76028757 | AK135: -1.028066219e-15 | AM135: ='CPI Sub-Categories'!AD136 -> 96.76028757 | AN135: 2.056132438e-15 | AO135: ='CPI Sub-Categories'!AE136 -> 96.76028757 | AP135: -2.056132438e-15 | AQ135: ='CPI Sub-Categories'!AF136 -> 100.6347544 | AR135: 0.04004191153 | AS135: ='CPI Sub-Categories'!AG136 -> 100.6347544 | AT135: 0 | AV135: ='CPI Sub-Categories'!AI136 -> 105.5513908 | AW135: 0.04885624629 | AX135: ='CPI Sub-Categories'!AJ136 -> 105.5513908 | AY135: 0 | AZ135: ='CPI Sub-Categories'!AK136 -> 105.5513908 | BA135: -9.559046804e-15 | BB135: ='CPI Sub-Categories'!AL136 -> 105.5513908 | BC135: 9.559046804e-15 | BE135: ='CPI Sub-Categories'!AM136 -> 105.5513908 | BF135: -9.559046804e-15 | BG135: ='CPI Sub-Categories'!AN136 -> 105.5513908 | BH135: 9.559046804e-15 | BI135: ='CPI Sub-Categories'!AO136 -> 105.5513908 | BJ135: -9.559046804e-15 | BK135: ='CPI Sub-Categories'!AU136 -> 0 | BL135: -1
A136: 3 | B136: 094200 | C136: Cultural services | D136: 100 | E136: 100.2659232 | F136: 0.002659232336 | G136: 99.72945852 | H136: -0.005350419117 | I136: 100.8781952 | J136: 0.01151852933 | L136: 103.7265679 | M136: 0.02823576202 | N136: 103.7265679 | O136: 0 | P136: 103.1548024 | Q136: -0.005512237984 | R136: 102.6818244 | S136: -0.004585128618 | U136: 96.33803555 | V136: -0.06178102939 | W136: 96.33803555 | X136: 0 | Y136: 95.95704156 | Z136: -0.003954761947 | AA136: 95.32531524 | AB136: -0.006583428407 | AD136: ='CPI Sub-Categories'!Y137 -> 94.49066532 | AE136: -0.008755805542 | AF136: ='CPI Sub-Categories'!Z137 -> 94.49066532 | AG136: 0 | AH136: ='CPI Sub-Categories'!AA137 -> 95.06594297 | AI136: 0.006088195535 | AJ136: ='CPI Sub-Categories'!AB137 -> 94.27314206 | AK136: -0.008339484003 | AM136: ='CPI Sub-Categories'!AD137 -> 94.27314206 | AN136: 0 | AO136: ='CPI Sub-Categories'!AE137 -> 94.27314206 | AP136: 0 | AQ136: ='CPI Sub-Categories'!AF137 -> 99.66120482 | AR136: =(AQ136-AO136)/AO136 -> 0.05715374119 | AS136: ='CPI Sub-Categories'!AG137 -> 99.66120482 | AT136: -9.981414853e-16 | AV136: ='CPI Sub-Categories'!AI137 -> 99.66120482 | AW136: 0 | AX136: ='CPI Sub-Categories'!AJ137 -> 99.66120482 | AY136: =(AX136-AV136)/AV136 -> 0 | AZ136: ='CPI Sub-Categories'!AK137 -> 104.0532467 | BA136: 0.04406972517 | BB136: ='CPI Sub-Categories'!AL137 -> 113.2660646 | BC136: 0.08853945607 | BE136: ='CPI Sub-Categories'!AM137 -> 113.266144 | BF136: 7.01343834e-07 | BG136: ='CPI Sub-Categories'!AN137 -> 110.6196354 | BH136: -0.02336539843 | BI136: ='CPI Sub-Categories'!AO137 -> 110.6196354 | BJ136: 0 | BK136: ='CPI Sub-Categories'!AU137 -> 0 | BL136: -1
A137: 3 | B137: 094300 | C137: Games of chance | D137: 100 | E137: 100 | F137: 0 | G137: 100 | H137: 0 | I137: 100 | J137: 0 | L137: 100 | M137: 0 | N137: 100 | O137: 0 | P137: 100 | Q137: 0 | R137: 100 | S137: 0 | U137: 100 | V137: 0 | W137: 100 | X137: =(W137-U137)/U137 -> 0 | Y137: 100 | Z137: 0 | AA137: 100 | AB137: =IFERROR((AA137-Y137)/Y137,"Not available") -> 0 | AD137: ='CPI Sub-Categories'!Y138 -> 100 | AE137: 0 | AF137: ='CPI Sub-Categories'!Z138 -> 100 | AG137: 0 | AH137: ='CPI Sub-Categories'!AA138 -> 100 | AI137: 0 | AJ137: ='CPI Sub-Categories'!AB138 -> 100 | AK137: 0 | AM137: ='CPI Sub-Categories'!AD138 -> 100 | AN137: 0 | AO137: ='CPI Sub-Categories'!AE138 -> 100 | AP137: 0 | AQ137: ='CPI Sub-Categories'!AF138 -> 109.1351341 | AR137: 0.09135134085 | AS137: ='CPI Sub-Categories'!AG138 -> 109.1351341 | AT137: 0 | AV137: ='CPI Sub-Categories'!AI138 -> 109.1351341 | AW137: 0 | AX137: ='CPI Sub-Categories'!AJ138 -> 109.1351341 | AY137: 0 | AZ137: ='CPI Sub-Categories'!AK138 -> 101.9093412 | BA137: -0.0662095941 | BB137: ='CPI Sub-Categories'!AL138 -> 101.9093412 | BC137: 0 | BE137: ='CPI Sub-Categories'!AM138 -> 101.9093412 | BF137: 0 | BG137: ='CPI Sub-Categories'!AN138 -> 101.9093412 | BH137: 0 | BI137: ='CPI Sub-Categories'!AO138 -> 101.9093412 | BJ137: 0 | BK137: ='CPI Sub-Categories'!AU138 -> 0 | BL137: -1
A138: 2 | B138: 095000 | C138: Newspapers, books and stationery | D138: 90.68379131 | E138: 90.20162518 | F138: -0.005317004482 | G138: 91.38953841 | H138: 0.01316953243 | I138: 101.5354287 | J138: 0.1110180712 | L138: 110.1450328 | M138: 0.08479408791 | N138: 129.5859923 | O138: 0.17650328 | P138: 131.2977325 | Q138: 0.0132092995 | R138: 126.3778262 | S138: -0.03747137285 | U138: 126.0593608 | V138: =(U138-R138)/R138 -> -0.002519946479 | W138: 135.5119031 | X138: 0.07498485026 | Y138: 135.2062201 | Z138: -0.002255765124 | AA138: 137.6200358 | AB138: 0.01785284512 | AD138: ='CPI Sub-Categories'!Y139 -> 140.9664108 | AE138: 0.02431604487 | AF138: ='CPI Sub-Categories'!Z139 -> 140.8846521 | AG138: -0.0005799872091 | AH138: ='CPI Sub-Categories'!AA139 -> 151.8707295 | AI138: 0.07797923505 | AJ138: ='CPI Sub-Categories'!AB139 -> 151.3535912 | AK138: -0.003405121332 | AM138: ='CPI Sub-Categories'!AD139 -> 150.7962442 | AN138: -0.003682417118 | AO138: ='CPI Sub-Categories'!AE139 -> 150.0970697 | AP138: -0.004636550679 | AQ138: ='CPI Sub-Categories'!AF139 -> 156.641855 | AR138: 0.04360368445 | AS138: ='CPI Sub-Categories'!AG139 -> 156.8300925 | AT138: 0.001201706235 | AV138: ='CPI Sub-Categories'!AI139 -> 156.3236195 | AW138: -0.003229437903 | AX138: ='CPI Sub-Categories'!AJ139 -> 156.2545292 | AY138: -0.0004419695235 | AZ138: ='CPI Sub-Categories'!AK139 -> 156.7721117 | BA138: 0.003312432297 | BB138: ='CPI Sub-Categories'!AL139 -> 158.3808333 | BC138: =(BB138-AZ138)/AZ138 -> 0.0102615288 | BE138: ='CPI Sub-Categories'!AM139 -> 163.1693181 | BF138: 0.03023399215 | BG138: ='CPI Sub-Categories'!AN139 -> 162.6804718 | BH138: -0.002995945214 | BI138: ='CPI Sub-Categories'!AO139 -> 162.2630087 | BJ138: -0.002566153579 | BK138: ='CPI Sub-Categories'!AU139 -> 0 | BL138: -1
A139: 3 | B139: 095100 | C139: Books | D139: 98.57575399 | E139: 98.57575399 | F139: 0 | G139: 98.57575399 | H139: 0 | I139: 131.2007185 | J139: 0.3309633782 | L139: 158.1097814 | M139: 0.2050984415 | N139: 222.6443861 | O139: 0.4081632653 | P139: 222.6443861 | Q139: 0 | R139: 206.4390298 | S139: -0.07278582931 | U139: 210.8130419 | V139: 0.02118791247 | W139: 237.4873452 | X139: 0.1265306122 | Y139: 237.4873452 | Z139: 0 | AA139: 237.4873452 | AB139: 0 | AD139: ='CPI Sub-Categories'!Y140 -> 237.4873452 | AE139: 0 | AF139: ='CPI Sub-Categories'!Z140 -> 237.4873452 | AG139: 0 | AH139: ='CPI Sub-Categories'!AA140 -> 271.905801 | AI139: 0.1449275362 | AJ139: ='CPI Sub-Categories'!AB140 -> 271.905801 | AK139: 0 | AM139: ='CPI Sub-Categories'!AD140 -> 271.905801 | AN139: 0 | AO139: ='CPI Sub-Categories'!AE140 -> 271.905801 | AP139: =(AO139-AM139)/AM139 -> 0 | AQ139: ='CPI Sub-Categories'!AF140 -> 289.1150289 | AR139: 0.06329113924 | AS139: ='CPI Sub-Categories'!AG140 -> 289.1150289 | AT139: 0 | AV139: ='CPI Sub-Categories'!AI140 -> 289.1150289 | AW139: 0 | AX139: ='CPI Sub-Categories'!AJ140 -> 289.1150289 | AY139: 0 | AZ139: ='CPI Sub-Categories'!AK140 -> 289.1150289 | BA139: 0 | BB139: ='CPI Sub-Categories'!AL140 -> 289.1150289 | BC139: 0 | BE139: ='CPI Sub-Categories'!AM140 -> 300.552593 | BF139: 0.0395606005 | BG139: ='CPI Sub-Categories'!AN140 -> 300.552593 | BH139: 0 | BI139: ='CPI Sub-Categories'!AO140 -> 300.552593 | BJ139: 0 | BK139: ='CPI Sub-Categories'!AU140 -> 0 | BL139: -1
A140: 3 | B140: 095200 | C140: Newspapers and periodicals | D140: 100 | E140: 100 | F140: 0 | G140: 100 | H140: 0 | I140: 100 | J140: 0 | L140: 100 | M140: 0 | N140: 100 | O140: 0 | P140: 100 | Q140: 0 | R140: 100 | S140: 0 | U140: 100 | V140: 0 | W140: 100 | X140: 0 | Y140: 100 | Z140: 0 | AA140: 111.1111111 | AB140: 0.1111111111 | AD140: ='CPI Sub-Categories'!Y141 -> 133.3333333 | AE140: 0.2 | AF140: ='CPI Sub-Categories'!Z141 -> 133.3333333 | AG140: 0 | AH140: ='CPI Sub-Categories'!AA141 -> 133.3333333 | AI140: 0 | AJ140: ='CPI Sub-Categories'!AB141 -> 133.3333333 | AK140: 0 | AM140: ='CPI Sub-Categories'!AD141 -> 133.3333333 | AN140: 0 | AO140: ='CPI Sub-Categories'!AE141 -> 133.3333333 | AP140: 0 | AQ140: ='CPI Sub-Categories'!AF141 -> 133.3333333 | AR140: 0 | AS140: ='CPI Sub-Categories'!AG141 -> 133.3333333 | AT140: 0 | AV140: ='CPI Sub-Categories'!AI141 -> 133.3333333 | AW140: 0 | AX140: ='CPI Sub-Categories'!AJ141 -> 133.3333333 | AY140: 0 | AZ140: ='CPI Sub-Categories'!AK141 -> 133.3333333 | BA140: 0 | BB140: ='CPI Sub-Categories'!AL141 -> 133.3333333 | BC140: 0 | BE140: ='CPI Sub-Categories'!AM141 -> 133.3333333 | BF140: 0 | BG140: ='CPI Sub-Categories'!AN141 -> 133.3333333 | BH140: 0 | BI140: ='CPI Sub-Categories'!AO141 -> 133.3333333 | BJ140: 0 | BK140: ='CPI Sub-Categories'!AU141 -> 0 | BL140: -1
A141: 3 | B141: 095300 | C141: Miscellaneous printed matter | D141: Not relevant | E141: Not relevant | F141: Not relevent | G141: Not relevant | H141: Not relevant | I141: Not relevant | J141: Not relevant | L141: Not relevant | M141: Not relevant | N141: Not relevant | O141: Not relevant | P141: Not relevant | Q141: Not relevant | R141: Not relevant | S141: Not relevant | U141: Not relevant | V141: Not relevant | W141: Not relevant | X141: Not relevant | Y141: Not relevant | Z141: Not relevant | AA141: Not relevant | AB141: =IFERROR((AA141-Y141)/Y141,"Not relevant") -> Not relevant | AD141: ='CPI Sub-Categories'!Y142 -> Not relevant | AE141: Not relevant | AF141: ='CPI Sub-Categories'!Z142 -> Not relevant | AG141: Not relevant | AH141: ='CPI Sub-Categories'!AA142 -> Not relevant | AI141: Not relevant | AJ141: ='CPI Sub-Categories'!AB142 -> Not relevant | AK141: =IFERROR((AJ141-AH141)/AH141,"Not relevant") -> Not relevant | AM141: ='CPI Sub-Categories'!AD142 -> Not relevant | AN141: Not relevant | AO141: ='CPI Sub-Categories'!AE142 -> Not relevant | AP141: Not relevant | AQ141: ='CPI Sub-Categories'!AF142 -> Not relevant | AR141: Not relevant | AS141: ='CPI Sub-Categories'!AG142 -> Not relevant | AT141: Not relevant | AV141: ='CPI Sub-Categories'!AI142 -> Not relevant | AW141: Not relevant | AX141: ='CPI Sub-Categories'!AJ142 -> Not relevant | AY141: Not relevant | AZ141: ='CPI Sub-Categories'!AK142 -> Not relevant | BA141: Not relevant | BB141: ='CPI Sub-Categories'!AL142 -> Not relevant | BC141: Not relevant | BE141: ='CPI Sub-Categories'!AM142 -> Not relevant | BF141: Not relevant | BG141: ='CPI Sub-Categories'!AN142 -> Not relevant | BH141: Not relevant | BI141: ='CPI Sub-Categories'!AO142 -> Not relevant | BJ141: Not relevant | BK141: ='CPI Sub-Categories'!AU142 -> 0 | BL141: Not relevant
A142: 3 | B142: 095400 | C142: Stationery and drawing materials | D142: 82.89326265 | E142: 81.96226188 | F142: -0.01123132014 | G142: 84.25596954 | H142: 0.0279849238 | I142: 83.65026353 | J142: -0.007188879472 | L142: 83.61655068 | M142: -0.000403021389 | N142: 81.20512622 | O142: -0.02883908077 | P142: 84.51027635 | Q142: 0.04070124982 | R142: 85.04231256 | S142: 0.006295520894 | U142: 81.71971422 | V142: -0.03906994345 | W142: 83.45893197 | X142: 0.02128271946 | Y142: 82.86869737 | Z142: -0.00707215621 | AA142: 84.06465733 | AB142: 0.01443198695 | AD142: ='CPI Sub-Categories'!Y143 -> 83.59646156 | AE142: =(AD142-AA142)/AA142 -> -0.005569472099 | AF142: ='CPI Sub-Categories'!Z143 -> 83.438596 | AG142: =(AF142-AD142)/AD142 -> -0.001888423985 | AH142: ='CPI Sub-Categories'!AA143 -> 83.34494277 | AI142: -0.001122420988 | AJ142: ='CPI Sub-Categories'!AB143 -> 82.3464153 | AK142: =IFERROR((AJ142-AH142)/AH142,"Not available") -> -0.01198066053 | AM142: ='CPI Sub-Categories'!AD143 -> 81.27024983 | AN142: =(AM142-AJ142)/AJ142 -> -0.01306875925 | AO142: ='CPI Sub-Categories'!AE143 -> 79.92023393 | AP142: -0.01661144017 | AQ142: ='CPI Sub-Categories'!AF143 -> 81.90419466 | AR142: 0.02482426075 | AS142: ='CPI Sub-Categories'!AG143 -> 82.26765705 | AT142: 0.004437652928 | AV142: ='CPI Sub-Categories'!AI143 -> 81.28972274 | AW142: =(AV142-AS142)/AS142 -> -0.01188722691 | AX142: ='CPI Sub-Categories'!AJ143 -> 81.15631831 | AY142: -0.001641098422 | AZ142: ='CPI Sub-Categories'!AK143 -> 82.15570364 | BA142: 0.01231432562 | BB142: ='CPI Sub-Categories'!AL143 -> 85.26193801 | BC142: 0.03780911415 | BE142: ='CPI Sub-Categories'!AM143 -> 83.85470857 | BF142: =(BE142-BB142)/BB142 -> -0.01650477899 | BG142: ='CPI Sub-Categories'!AN143 -> 86.48369231 | BH142: =(BG142-BE142)/BE142 -> 0.03135165318 | BI142: ='CPI Sub-Categories'!AO143 -> 85.67762481 | BJ142: =(BI142-BG142)/BG142 -> -0.009320456626 | BK142: ='CPI Sub-Categories'!AU143 -> 0 | BL142: =(BK142-BI142)/BI142 -> -1
A143: 2 | B143: 096000 | C143: Package holidays | D143: 100 | E143: 100 | F143: 0 | G143: 100 | H143: 0 | I143: 106.5562296 | J143: 0.0655622963 | L143: 106.5562296 | M143: 0 | N143: 106.5562296 | O143: 0 | P143: 106.5562296 | Q143: 0 | R143: 85.15543587 | S143: -0.200840381 | U143: 85.15543587 | V143: 0 | W143: 85.15543587 | X143: 0 | Y143: 85.15543587 | Z143: 0 | AA143: 156.1687015 | AB143: 0.8339252198 | AD143: ='CPI Sub-Categories'!Y144 -> 156.1687015 | AE143: 0 | AF143: ='CPI Sub-Categories'!Z144 -> 156.1687015 | AG143: 0 | AH143: ='CPI Sub-Categories'!AA144 -> 156.1687015 | AI143: 0 | AJ143: ='CPI Sub-Categories'!AB144 -> 179.8608985 | AK143: 0.151708997 | AM143: ='CPI Sub-Categories'!AD144 -> 179.8608985 | AN143: 0 | AO143: ='CPI Sub-Categories'!AE144 -> 179.8608985 | AP143: 0 | AQ143: ='CPI Sub-Categories'!AF144 -> 179.8608985 | AR143: 0 | AS143: ='CPI Sub-Categories'!AG144 -> 127.0286119 | AT143: -0.2937397012 | AV143: ='CPI Sub-Categories'!AI144 -> 127.0286119 | AW143: 0 | AX143: ='CPI Sub-Categories'!AJ144 -> 127.0286119 | AY143: 0 | AZ143: ='CPI Sub-Categories'!AK144 -> 127.0286119 | BA143: 0 | BB143: ='CPI Sub-Categories'!AL144 -> 147.1569306 | BC143: =(BB143-AZ143)/AZ143 -> 0.1584549996 | BE143: ='CPI Sub-Categories'!AM144 -> 147.1569306 | BF143: 0 | BG143: ='CPI Sub-Categories'!AN144 -> 147.1569306 | BH143: 0 | BI143: ='CPI Sub-Categories'!AO144 -> 147.1569306 | BJ143: 0 | BK143: ='CPI Sub-Categories'!AU144 -> 0 | BL143: -1
A144: 3 | B144: 096100 | C144: Package holidays | D144: 100 | E144: 100 | F144: 0 | G144: 100 | H144: 0 | I144: 106.5562296 | J144: 0.0655622963 | L144: 106.5562296 | M144: 0 | N144: 106.5562296 | O144: 0 | P144: 106.5562296 | Q144: 0 | R144: 85.15543587 | S144: -0.200840381 | U144: 85.15543587 | V144: 0 | W144: 85.15543587 | X144: 0 | Y144: 85.15543587 | Z144: 0 | AA144: 156.1687015 | AB144: 0.8339252198 | AD144: ='CPI Sub-Categories'!Y145 -> 156.1687015 | AE144: 0 | AF144: ='CPI Sub-Categories'!Z145 -> 156.1687015 | AG144: 0 | AH144: ='CPI Sub-Categories'!AA145 -> 156.1687015 | AI144: 0 | AJ144: ='CPI Sub-Categories'!AB145 -> 179.8608985 | AK144: 0.151708997 | AM144: ='CPI Sub-Categories'!AD145 -> 179.8608985 | AN144: 0 | AO144: ='CPI Sub-Categories'!AE145 -> 179.8608985 | AP144: 0 | AQ144: ='CPI Sub-Categories'!AF145 -> 179.8608985 | AR144: 0 | AS144: ='CPI Sub-Categories'!AG145 -> 127.0286119 | AT144: -0.2937397012 | AV144: ='CPI Sub-Categories'!AI145 -> 127.0286119 | AW144: 0 | AX144: ='CPI Sub-Categories'!AJ145 -> 127.0286119 | AY144: 0 | AZ144: ='CPI Sub-Categories'!AK145 -> 127.0286119 | BA144: 0 | BB144: ='CPI Sub-Categories'!AL145 -> 147.1569306 | BC144: 0.1584549996 | BE144: ='CPI Sub-Categories'!AM145 -> 147.1569306 | BF144: 0 | BG144: ='CPI Sub-Categories'!AN145 -> 147.1569306 | BH144: 0 | BI144: ='CPI Sub-Categories'!AO145 -> 147.1569306 | BJ144: 0 | BK144: ='CPI Sub-Categories'!AU145 -> 0 | BL144: -1
A145: 1 | B145: 100000 | C145: Education | D145: 100 | E145: 100 | F145: 0 | G145: 100.5059393 | H145: 0.00505939281 | I145: 100.8210997 | J145: 0.003135739056 | L145: 100.8210997 | M145: 0 | N145: 100.8210997 | O145: 0 | P145: 101.4961401 | Q145: 0.006695427896 | R145: 101.8322991 | S145: 0.003312037455 | U145: 101.8322991 | V145: 0 | W145: 101.8322991 | X145: 0 | Y145: 101.1381501 | Z145: -0.006816589607 | AA145: 100.7528744 | AB145: -0.003809399987 | AD145: ='CPI Sub-Categories'!Y146 -> 100.7528744 | AE145: 0 | AF145: ='CPI Sub-Categories'!Z146 -> 100.7528744 | AG145: 0 | AH145: ='CPI Sub-Categories'!AA146 -> 103.7296363 | AI145: 0.02954518001 | AJ145: ='CPI Sub-Categories'!AB146 -> 103.7296363 | AK145: 0 | AM145: ='CPI Sub-Categories'!AD146 -> 103.7296363 | AN145: 0 | AO145: ='CPI Sub-Categories'!AE146 -> 103.7296363 | AP145: 0 | AQ145: ='CPI Sub-Categories'!AF146 -> 107.5639915 | AR145: 0.0369648963 | AS145: ='CPI Sub-Categories'!AG146 -> 107.5639915 | AT145: 0 | AV145: ='CPI Sub-Categories'!AI146 -> 107.5639915 | AW145: 0 | AX145: ='CPI Sub-Categories'!AJ146 -> 107.5639915 | AY145: 0 | AZ145: ='CPI Sub-Categories'!AK146 -> 107.5639915 | BA145: 0 | BB145: ='CPI Sub-Categories'!AL146 -> 108.96039 | BC145: =(BB145-AZ145)/AZ145 -> 0.01298202548 | BE145: ='CPI Sub-Categories'!AM146 -> 108.96039 | BF145: 0 | BG145: ='CPI Sub-Categories'!AN146 -> 107.5639915 | BH145: -0.01281565236 | BI145: ='CPI Sub-Categories'!AO146 -> 111.8318146 | BJ145: 0.03967706104 | BK145: ='CPI Sub-Categories'!AU146 -> 0 | BL145: -1
A146: 2 | B146: 101000 | C146: Pre-primary and primary education | D146: 100 | E146: 100 | F146: 0 | G146: 100.2717459 | H146: 0.002717458777 | I146: 100.6208438 | J146: 0.003481518444 | L146: 100.6208438 | M146: 0 | N146: 100.6208438 | O146: 0 | P146: 101.4129483 | Q146: 0.007872171111 | R146: 101.8067747 | S146: 0.003883393801 | U146: 101.8067747 | V146: 0 | W146: 101.8067747 | X146: 0 | Y146: 100.1471868 | Z146: -0.01630135063 | AA146: 99.22606056 | AB146: -0.00919772453 | AD146: ='CPI Sub-Categories'!Y147 -> 99.22606056 | AE146: 0 | AF146: ='CPI Sub-Categories'!Z147 -> 99.22606056 | AG146: -1.002518718e-15 | AH146: ='CPI Sub-Categories'!AA147 -> 100.2022954 | AI146: 0.009838492145 | AJ146: ='CPI Sub-Categories'!AB147 -> 100.2022954 | AK146: 0 | AM146: ='CPI Sub-Categories'!AD147 -> 100.2022954 | AN146: 0 | AO146: ='CPI Sub-Categories'!AE147 -> 100.2022954 | AP146: 0 | AQ146: ='CPI Sub-Categories'!AF147 -> 103.3271722 | AR146: 0.0311856806 | AS146: ='CPI Sub-Categories'!AG147 -> 103.3271722 | AT146: 0 | AV146: ='CPI Sub-Categories'!AI147 -> 103.3271722 | AW146: 0 | AX146: ='CPI Sub-Categories'!AJ147 -> 103.3271722 | AY146: 0 | AZ146: ='CPI Sub-Categories'!AK147 -> 105.3077109 | BA146: 0.01916764698 | BB146: ='CPI Sub-Categories'!AL147 -> 105.3077109 | BC146: 0 | BE146: ='CPI Sub-Categories'!AM147 -> 105.3077109 | BF146: 0 | BG146: ='CPI Sub-Categories'!AN147 -> 105.3077109 | BH146: 0 | BI146: ='CPI Sub-Categories'!AO147 -> 109.2294244 | BJ146: 0.0372405161 | BK146: ='CPI Sub-Categories'!AU147 -> 0 | BL146: -1
A147: 3 | B147: 101100 | C147: Pre-primary and primary education | D147: 100 | E147: 100 | F147: 0 | G147: 100.2717459 | H147: 0.002717458777 | I147: 100.6208438 | J147: 0.003481518444 | L147: 100.6208438 | M147: 0 | N147: 100.6208438 | O147: 0 | P147: 101.4129483 | Q147: 0.007872171111 | R147: 101.8067747 | S147: 0.003883393801 | U147: 101.8067747 | V147: 0 | W147: 101.8067747 | X147: 0 | Y147: 100.1471868 | Z147: -0.01630135063 | AA147: 99.22606056 | AB147: -0.00919772453 | AD147: ='CPI Sub-Categories'!Y148 -> 99.22606056 | AE147: 0 | AF147: ='CPI Sub-Categories'!Z148 -> 99.22606056 | AG147: -1.002518718e-15 | AH147: ='CPI Sub-Categories'!AA148 -> 100.2022954 | AI147: 0.009838492145 | AJ147: ='CPI Sub-Categories'!AB148 -> 100.2022954 | AK147: 0 | AM147: ='CPI Sub-Categories'!AD148 -> 100.2022954 | AN147: 0 | AO147: ='CPI Sub-Categories'!AE148 -> 100.2022954 | AP147: 0 | AQ147: ='CPI Sub-Categories'!AF148 -> 103.3271722 | AR147: 0.0311856806 | AS147: ='CPI Sub-Categories'!AG148 -> 103.3271722 | AT147: 0 | AV147: ='CPI Sub-Categories'!AI148 -> 103.3271722 | AW147: 0 | AX147: ='CPI Sub-Categories'!AJ148 -> 103.3271722 | AY147: 0 | AZ147: ='CPI Sub-Categories'!AK148 -> 105.3077109 | BA147: 0.01916764698 | BB147: ='CPI Sub-Categories'!AL148 -> 105.3077109 | BC147: 0 | BE147: ='CPI Sub-Categories'!AM148 -> 105.3077109 | BF147: 0 | BG147: ='CPI Sub-Categories'!AN148 -> 105.3077109 | BH147: 0 | BI147: ='CPI Sub-Categories'!AO148 -> 109.2294244 | BJ147: 0.0372405161 | BK147: ='CPI Sub-Categories'!AU148 -> 0 | BL147: -1
A148: 2 | B148: 102000 | C148: Secondary education | D148: 100 | E148: 100 | F148: 0 | G148: 100.580419 | H148: 0.005804189963 | I148: 100.9351902 | J148: 0.003527239175 | L148: 100.9351902 | M148: 0 | N148: 100.9351902 | O148: 0 | P148: 101.5982281 | Q148: 0.006568946701 | R148: 101.9284804 | S148: 0.003250571599 | U148: 101.9284804 | V148: 0 | W148: 101.9284804 | X148: 0 | Y148: 101.9284804 | Z148: 0 | AA148: 101.9284804 | AB148: 0 | AD148: ='CPI Sub-Categories'!Y149 -> 101.9284804 | AE148: 0 | AF148: ='CPI Sub-Categories'!Z149 -> 101.9284804 | AG148: 0 | AH148: ='CPI Sub-Categories'!AA149 -> 103.9578158 | AI148: 0.01990940487 | AJ148: ='CPI Sub-Categories'!AB149 -> 103.9578158 | AK148: 0 | AM148: ='CPI Sub-Categories'!AD149 -> 103.9578158 | AN148: 0 | AO148: ='CPI Sub-Categories'!AE149 -> 103.9578158 | AP148: 0 | AQ148: ='CPI Sub-Categories'!AF149 -> 106.1167665 | AR148: 0.02076756498 | AS148: ='CPI Sub-Categories'!AG149 -> 106.1167665 | AT148: 0 | AV148: ='CPI Sub-Categories'!AI149 -> 106.1167665 | AW148: 0 | AX148: ='CPI Sub-Categories'!AJ149 -> 106.1167665 | AY148: 0 | AZ148: ='CPI Sub-Categories'!AK149 -> 107.9653447 | BA148: 0.01742022794 | BB148: ='CPI Sub-Categories'!AL149 -> 107.9653447 | BC148: 0 | BE148: ='CPI Sub-Categories'!AM149 -> 107.9653447 | BF148: 0 | BG148: ='CPI Sub-Categories'!AN149 -> 107.9653447 | BH148: 0 | BI148: ='CPI Sub-Categories'!AO149 -> 110.7353175 | BJ148: 0.02565612828 | BK148: ='CPI Sub-Categories'!AU149 -> 0 | BL148: -1
A149: 3 | B149: 102100 | C149: Secondary education | D149: 100 | E149: 100 | F149: 0 | G149: 100.580419 | H149: 0.005804189963 | I149: 100.9351902 | J149: 0.003527239175 | L149: 100.9351902 | M149: 0 | N149: 100.9351902 | O149: 0 | P149: 101.5982281 | Q149: 0.006568946701 | R149: 101.9284804 | S149: 0.003250571599 | U149: 101.9284804 | V149: 0 | W149: 101.9284804 | X149: 0 | Y149: 101.9284804 | Z149: 0 | AA149: 101.9284804 | AB149: 0 | AD149: ='CPI Sub-Categories'!Y150 -> 101.9284804 | AE149: 0 | AF149: ='CPI Sub-Categories'!Z150 -> 101.9284804 | AG149: 0 | AH149: ='CPI Sub-Categories'!AA150 -> 103.9578158 | AI149: 0.01990940487 | AJ149: ='CPI Sub-Categories'!AB150 -> 103.9578158 | AK149: 0 | AM149: ='CPI Sub-Categories'!AD150 -> 103.9578158 | AN149: 0 | AO149: ='CPI Sub-Categories'!AE150 -> 103.9578158 | AP149: 0 | AQ149: ='CPI Sub-Categories'!AF150 -> 106.1167665 | AR149: 0.02076756498 | AS149: ='CPI Sub-Categories'!AG150 -> 106.1167665 | AT149: 0 | AV149: ='CPI Sub-Categories'!AI150 -> 106.1167665 | AW149: 0 | AX149: ='CPI Sub-Categories'!AJ150 -> 106.1167665 | AY149: 0 | AZ149: ='CPI Sub-Categories'!AK150 -> 107.9653447 | BA149: 0.01742022794 | BB149: ='CPI Sub-Categories'!AL150 -> 107.9653447 | BC149: 0 | BE149: ='CPI Sub-Categories'!AM150 -> 107.9653447 | BF149: 0 | BG149: ='CPI Sub-Categories'!AN150 -> 107.9653447 | BH149: 0 | BI149: ='CPI Sub-Categories'!AO150 -> 110.7353175 | BJ149: 0.02565612828 | BK149: ='CPI Sub-Categories'!AU150 -> 0 | BL149: -1
A150: 2 | B150: 103000 | C150: Post-secondary non-tertiary education | D150: 100 | E150: 100 | F150: 0 | G150: 100.0333611 | H150: 0.0003336113521 | I150: 100.0500375 | J150: 0.0001667083449 | L150: 100.0500375 | M150: 0 | N150: 100.0500375 | O150: 0 | P150: 100.0500375 | Q150: 0 | R150: 100.0500375 | S150: 0 | U150: 100.0500375 | V150: 0 | W150: 100.0500375 | X150: 0 | Y150: 100.0500375 | Z150: 0 | AA150: 100.0500375 | AB150: 0 | AD150: ='CPI Sub-Categories'!Y151 -> 100.0500375 | AE150: 0 | AF150: ='CPI Sub-Categories'!Z151 -> 100.0500375 | AG150: 0 | AH150: ='CPI Sub-Categories'!AA151 -> 108.0663917 | AI150: 0.08012344973 | AJ150: ='CPI Sub-Categories'!AB151 -> 108.0663917 | AK150: 0 | AM150: ='CPI Sub-Categories'!AD151 -> 108.0663917 | AN150: 0 | AO150: ='CPI Sub-Categories'!AE151 -> 108.0663917 | AP150: 0 | AQ150: ='CPI Sub-Categories'!AF151 -> 108.0663917 | AR150: 0 | AS150: ='CPI Sub-Categories'!AG151 -> 108.0663917 | AT150: 0 | AV150: ='CPI Sub-Categories'!AI151 -> 108.0663917 | AW150: 0 | AX150: ='CPI Sub-Categories'!AJ151 -> 108.0663917 | AY150: 0 | AZ150: ='CPI Sub-Categories'!AK151 -> 108.0663917 | BA150: 0 | BB150: ='CPI Sub-Categories'!AL151 -> 108.0663917 | BC150: 0 | BE150: ='CPI Sub-Categories'!AM151 -> 108.0663917 | BF150: 0 | BG150: ='CPI Sub-Categories'!AN151 -> 108.0663917 | BH150: 0 | BI150: ='CPI Sub-Categories'!AO151 -> 108.0663917 | BJ150: 0 | BK150: ='CPI Sub-Categories'!AU151 -> 0 | BL150: -1
A151: 3 | B151: 103100 | C151: Post-secondary non-tertiary education | D151: 100 | E151: 100 | F151: 0 | G151: 100.0333611 | H151: 0.0003336113521 | I151: 100.0500375 | J151: 0.0001667083449 | L151: 100.0500375 | M151: 0 | N151: 100.0500375 | O151: 0 | P151: 100.0500375 | Q151: 0 | R151: 100.0500375 | S151: 0 | U151: 100.0500375 | V151: 0 | W151: 100.0500375 | X151: 0 | Y151: 100.0500375 | Z151: 0 | AA151: 100.0500375 | AB151: 0 | AD151: ='CPI Sub-Categories'!Y152 -> 100.0500375 | AE151: 0 | AF151: ='CPI Sub-Categories'!Z152 -> 100.0500375 | AG151: 0 | AH151: ='CPI Sub-Categories'!AA152 -> 108.0663917 | AI151: 0.08012344973 | AJ151: ='CPI Sub-Categories'!AB152 -> 108.0663917 | AK151: 0 | AM151: ='CPI Sub-Categories'!AD152 -> 108.0663917 | AN151: 0 | AO151: ='CPI Sub-Categories'!AE152 -> 108.0663917 | AP151: 0 | AQ151: ='CPI Sub-Categories'!AF152 -> 108.0663917 | AR151: 0 | AS151: ='CPI Sub-Categories'!AG152 -> 108.0663917 | AT151: 0 | AV151: ='CPI Sub-Categories'!AI152 -> 108.0663917 | AW151: 0 | AX151: ='CPI Sub-Categories'!AJ152 -> 108.0663917 | AY151: 0 | AZ151: ='CPI Sub-Categories'!AK152 -> 108.0663917 | BA151: 0 | BB151: ='CPI Sub-Categories'!AL152 -> 108.0663917 | BC151: 0 | BE151: ='CPI Sub-Categories'!AM152 -> 108.0663917 | BF151: 0 | BG151: ='CPI Sub-Categories'!AN152 -> 108.0663917 | BH151: 0 | BI151: ='CPI Sub-Categories'!AO152 -> 108.0663917 | BJ151: 0 | BK151: ='CPI Sub-Categories'!AU152 -> 0 | BL151: -1
A152: 2 | B152: 104000 | C152: Tertiary education | D152: 100 | E152: 100 | F152: 0 | G152: 104.7722558 | H152: 0.04772255751 | I152: 107.0087713 | J152: 0.02134644795 | L152: 107.0087713 | M152: 0 | N152: 107.0087713 | O152: 0 | P152: 110.8430125 | Q152: 0.03583109333 | R152: 112.7590103 | S152: 0.01728568804 | U152: 112.7590103 | V152: 0 | W152: 112.7590103 | X152: 0 | Y152: 112.7590103 | Z152: 0 | AA152: 112.7590103 | AB152: 0 | AD152: ='CPI Sub-Categories'!Y153 -> 112.7590103 | AE152: 0 | AF152: ='CPI Sub-Categories'!Z153 -> 112.7590103 | AG152: 0 | AH152: ='CPI Sub-Categories'!AA153 -> 128.1803137 | AI152: 0.1367633804 | AJ152: ='CPI Sub-Categories'!AB153 -> 128.1803137 | AK152: 0 | AM152: ='CPI Sub-Categories'!AD153 -> 128.1803137 | AN152: 0 | AO152: ='CPI Sub-Categories'!AE153 -> 128.1803137 | AP152: 0 | AQ152: ='CPI Sub-Categories'!AF153 -> 129.2586811 | AR152: 0.008412894231 | AS152: ='CPI Sub-Categories'!AG153 -> 129.2586811 | AT152: 0 | AV152: ='CPI Sub-Categories'!AI153 -> 129.2586811 | AW152: 0 | AX152: ='CPI Sub-Categories'!AJ153 -> 129.2586811 | AY152: 0 | AZ152: ='CPI Sub-Categories'!AK153 -> 129.2586811 | BA152: 0 | BB152: ='CPI Sub-Categories'!AL153 -> 129.2586811 | BC152: 0 | BE152: ='CPI Sub-Categories'!AM153 -> 129.2586811 | BF152: 0 | BG152: ='CPI Sub-Categories'!AN153 -> 129.2586811 | BH152: 0 | BI152: ='CPI Sub-Categories'!AO153 -> 139.6654527 | BJ152: 0.08051120055 | BK152: ='CPI Sub-Categories'!AU153 -> 0 | BL152: -1
A153: 3 | B153: 104100 | C153: Tertiary education | D153: 100 | E153: 100 | F153: 0 | G153: 104.7722558 | H153: 0.04772255751 | I153: 107.0087713 | J153: 0.02134644795 | L153: 107.0087713 | M153: 0 | N153: 107.0087713 | O153: 0 | P153: 110.8430125 | Q153: 0.03583109333 | R153: 112.7590103 | S153: 0.01728568804 | U153: 112.7590103 | V153: 0 | W153: 112.7590103 | X153: 0 | Y153: 112.7590103 | Z153: 0 | AA153: 112.7590103 | AB153: 0 | AD153: ='CPI Sub-Categories'!Y154 -> 112.7590103 | AE153: 0 | AF153: ='CPI Sub-Categories'!Z154 -> 112.7590103 | AG153: 0 | AH153: ='CPI Sub-Categories'!AA154 -> 128.1803137 | AI153: 0.1367633804 | AJ153: ='CPI Sub-Categories'!AB154 -> 128.1803137 | AK153: 0 | AM153: ='CPI Sub-Categories'!AD154 -> 128.1803137 | AN153: 0 | AO153: ='CPI Sub-Categories'!AE154 -> 128.1803137 | AP153: 0 | AQ153: ='CPI Sub-Categories'!AF154 -> 129.2586811 | AR153: 0.008412894231 | AS153: ='CPI Sub-Categories'!AG154 -> 129.2586811 | AT153: 0 | AV153: ='CPI Sub-Categories'!AI154 -> 129.2586811 | AW153: 0 | AX153: ='CPI Sub-Categories'!AJ154 -> 129.2586811 | AY153: 0 | AZ153: ='CPI Sub-Categories'!AK154 -> 129.2586811 | BA153: 0 | BB153: ='CPI Sub-Categories'!AL154 -> 129.2586811 | BC153: 0 | BE153: ='CPI Sub-Categories'!AM154 -> 129.2586811 | BF153: 0 | BG153: ='CPI Sub-Categories'!AN154 -> 129.2586811 | BH153: 0 | BI153: ='CPI Sub-Categories'!AO154 -> 139.6654527 | BJ153: 0.08051120055 | BK153: ='CPI Sub-Categories'!AU154 -> 0 | BL153: -1
A154: 2 | B154: 105000 | C154: Education not definable by level | D154: 100 | E154: 100 | F154: 0 | G154: 100.5174188 | H154: 0.005174187962 | I154: 100.1453306 | J154: -0.003701728569 | L154: 100.1453306 | M154: 0 | N154: 100.1453306 | O154: 0 | P154: 100.1453306 | Q154: 0 | R154: 100.1453306 | S154: 0 | U154: 100.1453306 | V154: 0 | W154: 100.1453306 | X154: 0 | Y154: 100.1453306 | Z154: 0 | AA154: 100.1453306 | AB154: 0 | AD154: ='CPI Sub-Categories'!Y155 -> 100.1453306 | AE154: 0 | AF154: ='CPI Sub-Categories'!Z155 -> 100.1453306 | AG154: 0 | AH154: ='CPI Sub-Categories'!AA155 -> 100.1453306 | AI154: 0 | AJ154: ='CPI Sub-Categories'!AB155 -> 100.1453306 | AK154: 0 | AM154: ='CPI Sub-Categories'!AD155 -> 100.1453306 | AN154: 0 | AO154: ='CPI Sub-Categories'!AE155 -> 100.1453306 | AP154: 0 | AQ154: ='CPI Sub-Categories'!AF155 -> 127.9672337 | AR154: 0.2778152806 | AS154: ='CPI Sub-Categories'!AG155 -> 127.9672337 | AT154: 0 | AV154: ='CPI Sub-Categories'!AI155 -> 127.9672337 | AW154: 0 | AX154: ='CPI Sub-Categories'!AJ155 -> 127.9672337 | AY154: 0 | AZ154: ='CPI Sub-Categories'!AK155 -> 127.9672337 | BA154: 0 | BB154: ='CPI Sub-Categories'!AL155 -> 127.9672337 | BC154: 0 | BE154: ='CPI Sub-Categories'!AM155 -> 127.9672337 | BF154: 0 | BG154: ='CPI Sub-Categories'!AN155 -> 127.9672337 | BH154: 0 | BI154: ='CPI Sub-Categories'!AO155 -> 127.9672337 | BJ154: 0 | BK154: ='CPI Sub-Categories'!AU155 -> 0 | BL154: -1
